Workbook

Sheet OB_RAS (3) (hidden)
A1: konto | B1: broj | C1: pozicija | D1: glava | E1: funkcija | F1: plan | G1: kvota | H1: izvrsenje | I1: korisnik | J1: vreme | K1: datump
A2: 411111 | B2: 2 | C2: 1 | D2: 101 | E2: 111 | F2: 3000000 | G2: 3000000 | H2: 1960733.7 | K2: - -
A3: 412111 | B3: 2 | C3: 2 | D3: 101 | E3: 111 | F3: 500000 | G3: 500000 | H3: 326462.17 | K3: - -
A4: 413 | B4: 2 | C4: 3 | D4: 101 | E4: 111 | F4: 12000 | G4: 12000 | H4: 0 | K4: - -
A5: 414 | B5: 2 | C5: 4 | D5: 101 | E5: 111 | F5: 88000 | G5: 88000 | H5: 0 | K5: - -
A6: 415 | B6: 2 | C6: 5 | D6: 101 | E6: 111 | F6: 110000 | G6: 110000 | H6: 34560 | K6: - -
A7: 416 | B7: 2 | C7: 6 | D7: 101 | E7: 111 | F7: 5000 | G7: 5000 | H7: 0 | K7: - -
A8: 421 | B8: 2 | C8: 7 | D8: 101 | E8: 111 | F8: 50000 | G8: 50000 | H8: 1506 | K8: - -
A9: 422 | B9: 2 | C9: 8 | D9: 101 | E9: 111 | F9: 100000 | G9: 100000 | H9: 46332.44 | K9: - -
A10: 423 | B10: 2 | C10: 9 | D10: 101 | E10: 111 | F10: 16700000 | G10: 16700000 | H10: 10898077.21 | K10: - -
A11: 426 | B11: 2 | C11: 10 | D11: 101 | E11: 111 | F11: 1800000 | G11: 1800000 | H11: 63300 | K11: - -
A12: 481 | B12: 2 | C12: 11 | D12: 101 | E12: 111 | F12: 454000 | G12: 454000 | H12: 298243.95 | K12: - -
A13: 512 | B13: 2 | C13: 12 | D13: 101 | E13: 111 | F13: 200000 | G13: 200000 | H13: 0 | K13: - -
A14: 423 | B14: 2 | C14: 13 | D14: 101 | E14: 111 | F14: 2800000 | G14: 2800000 | H14: 1167937.16 | K14: - -
A15: 481 | B15: 2 | C15: 14 | D15: 101 | E15: 111 | F15: 500000 | G15: 500000 | H15: 375000 | K15: - -
A16: 481 | B16: 2 | C16: 15 | D16: 101 | E16: 111 | F16: 100000 | G16: 100000 | H16: 0 | K16: - -
A17: 481 | B17: 2 | C17: 16 | D17: 101 | E17: 111 | F17: 200000 | G17: 200000 | H17: 0 | K17: - -
A18: 411111 | B18: 2 | C18: 17 | D18: 201 | E18: 111 | F18: 3650000 | G18: 3650000 | H18: 2270420.25 | K18: - -
A19: 412 | B19: 2 | C19: 18 | D19: 201 | E19: 111 | F19: 608000 | G19: 608000 | H19: 378024.99 | K19: - -
A20: 413 | B20: 2 | C20: 19 | D20: 201 | E20: 111 | F20: 4000 | G20: 4000 | H20: 0 | K20: - -
A21: 414 | B21: 2 | C21: 20 | D21: 201 | E21: 111 | F21: 96000 | G21: 96000 | H21: 66092 | K21: - -
A22: 415 | B22: 2 | C22: 21 | D22: 201 | E22: 111 | F22: 140000 | G22: 140000 | H22: 50690 | K22: - -
A23: 416 | B23: 2 | C23: 22 | D23: 201 | E23: 111 | F23: 200000 | G23: 200000 | H23: 159093.69 | K23: - -
A24: 421 | B24: 2 | C24: 23 | D24: 201 | E24: 111 | F24: 50000 | G24: 50000 | H24: 10 | K24: - -
A25: 422 | B25: 2 | C25: 24 | D25: 201 | E25: 111 | F25: 250000 | G25: 250000 | H25: 38638 | K25: - -
A26: 423 | B26: 2 | C26: 25 | D26: 201 | E26: 111 | F26: 4300000 | G26: 4300000 | H26: 1094359.07 | K26: - -
A27: 426 | B27: 2 | C27: 26 | D27: 201 | E27: 111 | F27: 1000000 | G27: 1000000 | H27: 26100 | K27: - -
A28: 512 | B28: 2 | C28: 27 | D28: 201 | E28: 111 | F28: 300000 | G28: 300000 | H28: 0 | K28: - -
A29: 423 | B29: 2 | C29: 28 | D29: 201 | E29: 111 | F29: 200000 | G29: 200000 | H29: 0 | K29: - -
A30: 423 | B30: 2 | C30: 29 | D30: 201 | E30: 111 | F30: 100000 | G30: 100000 | H30: 75420 | K30: - -
A31: 423 | B31: 2 | C31: 30 | D31: 201 | E31: 111 | F31: 100000 | G31: 100000 | H31: 100000 | K31: - -
A32: 423 | B32: 2 | C32: 31 | D32: 201 | E32: 111 | F32: 100000 | G32: 100000 | H32: 100000 | K32: - -
A33: 423 | B33: 2 | C33: 32 | D33: 201 | E33: 111 | F33: 100000 | G33: 100000 | H33: 2582.6 | K33: - -
A34: 423 | B34: 2 | C34: 33 | D34: 201 | E34: 111 | F34: 300000 | G34: 300000 | H34: 106320 | K34: - -
A35: 423 | B35: 2 | C35: 34 | D35: 301 | E35: 111 | F35: 3400000 | G35: 3400000 | H35: 2380226.96 | K35: - -
A36: 426 | B36: 2 | C36: 35 | D36: 301 | E36: 111 | F36: 1000000 | G36: 1000000 | H36: 0 | K36: - -
A37: 423 | B37: 2 | C37: 36 | D37: 301 | E37: 111 | F37: 3250000 | G37: 3250000 | H37: 1923643.65 | K37: - -
A38: 411 | B38: 2 | C38: 37 | D38: 401 | E38: 330 | F38: 2043000 | G38: 2043000 | H38: 1381285.37 | K38: - -
A39: 412 | B39: 2 | C39: 38 | D39: 401 | E39: 330 | F39: 340200 | G39: 340200 | H39: 229983.99 | K39: - -
A40: 413 | B40: 2 | C40: 39 | D40: 401 | E40: 330 | F40: 8000 | G40: 8000 | H40: 0 | K40: - -
A41: 414 | B41: 2 | C41: 40 | D41: 401 | E41: 330 | F41: 92000 | G41: 92000 | H41: 0 | K41: - -
A42: 415 | B42: 2 | C42: 41 | D42: 401 | E42: 330 | F42: 100000 | G42: 100000 | H42: 32770 | K42: - -
A43: 422 | B43: 2 | C43: 42 | D43: 401 | E43: 330 | F43: 20000 | G43: 20000 | H43: 150 | K43: - -
A44: 423 | B44: 2 | C44: 43 | D44: 401 | E44: 330 | F44: 200000 | G44: 200000 | H44: 0 | K44: - -
A45: 426 | B45: 2 | C45: 44 | D45: 401 | E45: 330 | F45: 300000 | G45: 300000 | H45: 0 | K45: - -
A46: 483 | B46: 2 | C46: 45 | D46: 401 | E46: 330 | F46: 13000000 | G46: 13000000 | H46: 12816576.3 | K46: - -
A47: 411 | B47: 2 | C47: 46 | D47: 501 | E47: 130 | F47: 128000000 | G47: 128000000 | H47: 83532784.28 | K47: - -
A48: 412 | B48: 2 | C48: 47 | D48: 501 | E48: 130 | F48: 21313000 | G48: 21313000 | H48: 13908997.53 | K48: - -
A49: 413 | B49: 2 | C49: 48 | D49: 501 | E49: 130 | F49: 380000 | G49: 380000 | H49: 4000 | K49: - -
A50: 414 | B50: 2 | C50: 49 | D50: 501 | E50: 130 | F50: 7720000 | G50: 7720000 | H50: 1443858 | K50: - -
A51: 415 | B51: 2 | C51: 50 | D51: 501 | E51: 130 | F51: 10800000 | G51: 10800000 | H51: 5313631.45 | K51: - -
A52: 416 | B52: 2 | C52: 51 | D52: 501 | E52: 130 | F52: 1800000 | G52: 1800000 | H52: 970653.98 | K52: - -
A53: 421 | B53: 2 | C53: 52 | D53: 501 | E53: 130 | F53: 16900000 | G53: 16900000 | H53: 8570117.55 | K53: - -
A54: 422 | B54: 2 | C54: 53 | D54: 501 | E54: 130 | F54: 2000000 | G54: 2000000 | H54: 735519.32 | K54: - -
A55: 423 | B55: 2 | C55: 54 | D55: 501 | E55: 130 | F55: 17000000 | G55: 17000000 | H55: 10516122.91 | K55: - -
A56: 424 | B56: 2 | C56: 55 | D56: 501 | E56: 130 | F56: 1500000 | G56: 1500000 | H56: 18240 | K56: - -
A57: 425 | B57: 2 | C57: 56 | D57: 501 | E57: 130 | F57: 2000000 | G57: 2000000 | H57: 748778.81 | K57: - -
A58: 426 | B58: 2 | C58: 57 | D58: 501 | E58: 130 | F58: 10000000 | G58: 10000000 | H58: 6419895.76 | K58: - -
A59: 482 | B59: 2 | C59: 58 | D59: 501 | E59: 130 | F59: 700000 | G59: 700000 | H59: 272431 | K59: - -
A60: 483 | B60: 2 | C60: 59 | D60: 501 | E60: 130 | F60: 50000 | G60: 50000 | H60: 0 | K60: - -
A61: 511 | B61: 2 | C61: 60 | D61: 501 | E61: 130 | F61: 100000 | G61: 100000 | H61: 0 | K61: - -
A62: 512 | B62: 2 | C62: 61 | D62: 501 | E62: 130 | F62: 3500000 | G62: 3500000 | H62: 1817820.7 | K62: - -
A63: 515 | B63: 2 | C63: 62 | D63: 501 | E63: 130 | F63: 400000 | G63: 400000 | H63: 0 | K63: - -
A64: 541 | B64: 2 | C64: 63 | D64: 501 | E64: 130 | F64: 400000 | G64: 400000 | H64: 0 | K64: - -
A65: 481 | B65: 2 | C65: 64 | D65: 501 | E65: 160 | F65: 200000 | G65: 200000 | H65: 0 | K65: - -
A66: 481 | B66: 2 | C66: 65 | D66: 501 | E66: 160 | F66: 200000 | G66: 200000 | H66: 0 | K66: - -
A67: 481 | B67: 2 | C67: 66 | D67: 501 | E67: 160 | F67: 500000 | G67: 500000 | H67: 206596 | K67: - -
A68: 481 | B68: 2 | C68: 67 | D68: 501 | E68: 160 | F68: 1000000 | G68: 1000000 | H68: 0 | K68: - -
A69: 481 | B69: 2 | C69: 68 | D69: 501 | E69: 160 | F69: 100000 | G69: 100000 | H69: 0 | K69: - -
A70: 481 | B70: 2 | C70: 69 | D70: 501 | E70: 160 | F70: 480000 | G70: 480000 | H70: 0 | K70: - -
A71: 481 | B71: 2 | C71: 70 | D71: 501 | E71: 160 | F71: 75000 | G71: 75000 | H71: 0 | K71: - -
A72: 481 | B72: 2 | C72: 71 | D72: 501 | E72: 90 | F72: 1500000 | G72: 1500000 | H72: 1350000 | K72: - -
A73: 481 | B73: 2 | C73: 72 | D73: 501 | E73: 90 | F73: 5000000 | G73: 5000000 | H73: 2000000 | K73: - -
A74: 49912 | B74: 2 | C74: 73 | D74: 501 | E74: 130 | F74: 261437 | G74: 261437 | H74: 0 | K74: - -
A75: 49911 | B75: 2 | C75: 74 | D75: 501 | E75: 130 | F75: 500000 | G75: 500000 | H75: 0 | K75: - -
A76: 423 | B76: 2 | C76: 75 | D76: 501 | E76: 160 | F76: 4000000 | G76: 4000000 | H76: 818422.2 | K76: - -
A77: 425 | B77: 2 | C77: 76 | D77: 501 | E77: 160 | F77: 19431000 | G77: 19431000 | H77: 12036657.98 | K77: - -
A78: 426 | B78: 2 | C78: 77 | D78: 501 | E78: 160 | F78: 1500000 | G78: 1500000 | H78: 708000 | K78: - -
A79: 511 | B79: 2 | C79: 78 | D79: 501 | E79: 160 | F79: 4350000 | G79: 4350000 | H79: 3658819.96 | K79: - -
A80: 423 | B80: 2 | C80: 79 | D80: 501 | E80: 620 | F80: 365000 | G80: 365000 | H80: 361271.65 | K80: - -
A81: 421 | B81: 2 | C81: 80 | D81: 501 | E81: 640 | F81: 23000000 | G81: 23000000 | H81: 15924198.9 | K81: - -
A82: 425 | B82: 2 | C82: 81 | D82: 501 | E82: 640 | F82: 4000000 | G82: 4000000 | H82: 1963130 | K82: - -
A83: 424 | B83: 2 | C83: 82 | D83: 501 | E83: 660 | F83: 1350000 | G83: 1350000 | H83: 1349286.94 | K83: - -
A84: 424 | B84: 2 | C84: 83 | D84: 501 | E84: 660 | F84: 15600000 | G84: 15600000 | H84: 14326707.04 | K84: - -
A85: 483 | B85: 2 | C85: 84 | D85: 501 | E85: 160 | F85: 500000 | G85: 500000 | H85: 108350 | K85: - -
A86: 485 | B86: 2 | C86: 85 | D86: 501 | E86: 160 | F86: 1500000 | G86: 1500000 | H86: 1096300 | K86: - -
A87: 511 | B87: 2 | C87: 86 | D87: 501 | E87: 620 | F87: 5000000 | G87: 5000000 | H87: 0 | K87: - -
A88: 423 | B88: 2 | C88: 87 | D88: 501 | E88: 630 | F88: 250000 | G88: 250000 | H88: 22880.35 | K88: - -
A89: 451 | B89: 2 | C89: 88 | D89: 501 | E89: 630 | F89: 9665000 | G89: 9665000 | H89: 3063250 | K89: - -
A90: 511 | B90: 2 | C90: 89 | D90: 501 | E90: 630 | F90: 3400000 | G90: 3400000 | H90: 0 | K90: - -
A91: 511 | B91: 2 | C91: 90 | D91: 501 | E91: 630 | F91: 250000 | G91: 250000 | H91: 87876.91 | K91: - -
A92: 511 | B92: 2 | C92: 91 | D92: 501 | E92: 630 | F92: 250000 | G92: 250000 | H92: 0 | K92: - -
A93: 511 | B93: 2 | C93: 92 | D93: 501 | E93: 630 | F93: 1500000 | G93: 1500000 | H93: 0 | K93: - -
A94: 511 | B94: 2 | C94: 93 | D94: 501 | E94: 630 | F94: 1200000 | G94: 1200000 | H94: 0 | K94: - -
A95: 511 | B95: 2 | C95: 94 | D95: 501 | E95: 630 | F95: 1300000 | G95: 1300000 | H95: 0 | K95: - -
A96: 463 | B96: 2 | C96: 95 | D96: 501 | E96: 411 | F96: 18000000 | G96: 18000000 | H96: 6648122.27 | K96: - -
A97: 454 | B97: 2 | C97: 96 | D97: 501 | E97: 411 | F97: 12000000 | G97: 12000000 | H97: 0 | K97: - -
A98: 451 | B98: 2 | C98: 97 | D98: 501 | E98: 421 | F98: 24000000 | G98: 24000000 | H98: 22915133.58 | K98: - -
A99: 423 | B99: 2 | C99: 98 | D99: 501 | E99: 421 | F99: 2500000 | G99: 2500000 | H99: 864960 | K99: - -
A100: 425 | B100: 2 | C100: 99 | D100: 501 | E100: 550 | F100: 5000 | G100: 5000 | H100: 0 | K100: - -
A101: 511 | B101: 2 | C101: 100 | D101: 501 | E101: 560 | F101: 500000 | G101: 500000 | H101: 0 | K101: - -
A102: 511 | B102: 2 | C102: 101 | D102: 501 | E102: 560 | F102: 3000000 | G102: 3000000 | H102: 0 | K102: - -
A103: 511 | B103: 2 | C103: 102 | D103: 501 | E103: 560 | F103: 2901000 | G103: 2901000 | H103: 2821004.52 | K103: - -
A104: 511 | B104: 2 | C104: 103 | D104: 501 | E104: 560 | F104: 3000000 | G104: 3000000 | H104: 0 | K104: - -
A105: 511 | B105: 2 | C105: 104 | D105: 501 | E105: 560 | F105: 3200000 | G105: 3200000 | H105: 0 | K105: - -
A106: 423 | B106: 2 | C106: 105 | D106: 501 | E106: 560 | F106: 1500000 | G106: 1500000 | H106: 0 | K106: - -
A107: 511 | B107: 2 | C107: 106 | D107: 501 | E107: 451 | F107: 15600000 | G107: 15600000 | H107: 0 | K107: - -
A108: 511 | B108: 2 | C108: 107 | D108: 501 | E108: 451 | F108: 7300000 | G108: 7300000 | H108: 4049007.6 | K108: - -
A109: 511 | B109: 2 | C109: 108 | D109: 501 | E109: 451 | F109: 600000 | G109: 600000 | H109: 0 | K109: - -
A110: 511 | B110: 2 | C110: 109 | D110: 501 | E110: 451 | F110: 1126000 | G110: 1126000 | H110: 0 | K110: - -
A111: 511 | B111: 2 | C111: 110 | D111: 501 | E111: 451 | F111: 1272000 | G111: 1272000 | H111: 0 | K111: - -
A112: 511 | B112: 2 | C112: 111 | D112: 501 | E112: 451 | F112: 732000 | G112: 732000 | H112: 0 | K112: - -
A113: 425 | B113: 2 | C113: 112 | D113: 501 | E113: 451 | F113: 2000000 | G113: 2000000 | H113: 1844130 | K113: - -
A114: 511 | B114: 2 | C114: 113 | D114: 501 | E114: 451 | F114: 2500000 | G114: 2500000 | H114: 986143.2 | K114: - -
A115: 424 | B115: 2 | C115: 114 | D115: 501 | E115: 451 | F115: 1000000 | G115: 1000000 | H115: 964986.4 | K115: - -
A116: 425 | B116: 2 | C116: 115 | D116: 501 | E116: 451 | F116: 1500000 | G116: 1500000 | H116: 1140771.87 | K116: - -
A117: 511 | B117: 2 | C117: 116 | D117: 501 | E117: 451 | F117: 2152000 | G117: 2152000 | H117: 0 | K117: - -
A118: 511 | B118: 2 | C118: 117 | D118: 501 | E118: 451 | F118: 1653000 | G118: 1653000 | H118: 0 | K118: - -
A119: 511 | B119: 2 | C119: 118 | D119: 501 | E119: 451 | F119: 1000000 | G119: 1000000 | H119: 0 | K119: - -
A120: 511 | B120: 2 | C120: 119 | D120: 501 | E120: 451 | F120: 1170000 | G120: 1170000 | H120: 0 | K120: - -
A121: 511 | B121: 2 | C121: 120 | D121: 501 | E121: 451 | F121: 900000 | G121: 900000 | H121: 0 | K121: - -
A122: 511 | B122: 2 | C122: 121 | D122: 501 | E122: 451 | F122: 830000 | G122: 830000 | H122: 0 | K122: - -
A123: 511 | B123: 2 | C123: 122 | D123: 501 | E123: 451 | F123: 2000000 | G123: 2000000 | H123: 0 | K123: - -
A124: 511 | B124: 2 | C124: 123 | D124: 501 | E124: 451 | F124: 1786000 | G124: 1786000 | H124: 1700628 | K124: - -
A125: 511 | B125: 2 | C125: 124 | D125: 501 | E125: 451 | F125: 950000 | G125: 950000 | H125: 0 | K125: - -
A126: 511 | B126: 2 | C126: 125 | D126: 501 | E126: 451 | F126: 1000000 | G126: 1000000 | H126: 0 | K126: - -
A127: 511 | B127: 2 | C127: 126 | D127: 501 | E127: 451 | F127: 1800000 | G127: 1800000 | H127: 0 | K127: - -
A128: 511 | B128: 2 | C128: 127 | D128: 501 | E128: 451 | F128: 1050000 | G128: 1050000 | H128: 0 | K128: - -
A129: 511 | B129: 2 | C129: 128 | D129: 501 | E129: 451 | F129: 920000 | G129: 920000 | H129: 0 | K129: - -
A130: 511 | B130: 2 | C130: 129 | D130: 501 | E130: 451 | F130: 1373000 | G130: 1373000 | H130: 0 | K130: - -
A131: 511 | B131: 2 | C131: 130 | D131: 501 | E131: 451 | F131: 1550000 | G131: 1550000 | H131: 0 | K131: - -
A132: 511 | B132: 2 | C132: 131 | D132: 501 | E132: 451 | F132: 3800000 | G132: 3800000 | H132: 0 | K132: - -
A133: 511 | B133: 2 | C133: 132 | D133: 501 | E133: 451 | F133: 1500000 | G133: 1500000 | H133: 0 | K133: - -
A134: 511 | B134: 2 | C134: 133 | D134: 501 | E134: 451 | F134: 1750000 | G134: 1750000 | H134: 0 | K134: - -
A135: 511 | B135: 2 | C135: 134 | D135: 501 | E135: 451 | F135: 1400000 | G135: 1400000 | H135: 0 | K135: - -
A136: 511 | B136: 2 | C136: 135 | D136: 501 | E136: 451 | F136: 1301000 | G136: 1301000 | H136: 0 | K136: - -
A137: 511 | B137: 2 | C137: 136 | D137: 501 | E137: 451 | F137: 1671000 | G137: 1671000 | H137: 0 | K137: - -
A138: 511 | B138: 2 | C138: 137 | D138: 501 | E138: 451 | F138: 972000 | G138: 972000 | H138: 0 | K138: - -
A139: 511 | B139: 2 | C139: 138 | D139: 501 | E139: 451 | F139: 1115000 | G139: 1115000 | H139: 1114530.84 | K139: - -
A140: 511 | B140: 2 | C140: 139 | D140: 501 | E140: 451 | F140: 7000000 | G140: 7000000 | H140: 0 | K140: - -
A141: 511 | B141: 2 | C141: 140 | D141: 501 | E141: 451 | F141: 2336000 | G141: 2336000 | H141: 2155615.44 | K141: - -
A142: 511 | B142: 2 | C142: 141 | D142: 501 | E142: 451 | F142: 3550000 | G142: 3550000 | H142: 0 | K142: - -
A143: 511 | B143: 2 | C143: 142 | D143: 501 | E143: 451 | F143: 2778000 | G143: 2778000 | H143: 0 | K143: - -
A144: 511 | B144: 2 | C144: 143 | D144: 501 | E144: 451 | F144: 650000 | G144: 650000 | H144: 0 | K144: - -
A145: 511 | B145: 2 | C145: 144 | D145: 501 | E145: 451 | F145: 2000000 | G145: 2000000 | H145: 0 | K145: - -
A146: 511 | B146: 2 | C146: 145 | D146: 501 | E146: 451 | F146: 3000000 | G146: 3000000 | H146: 0 | K146: - -
A147: 511 | B147: 2 | C147: 146 | D147: 501 | E147: 451 | F147: 4300000 | G147: 4300000 | H147: 0 | K147: - -
A148: 511 | B148: 2 | C148: 147 | D148: 501 | E148: 451 | F148: 2000000 | G148: 2000000 | H148: 0 | K148: - -
A149: 511 | B149: 2 | C149: 148 | D149: 501 | E149: 451 | F149: 2500000 | G149: 2500000 | H149: 0 | K149: - -
A150: 511 | B150: 2 | C150: 149 | D150: 501 | E150: 451 | F150: 900000 | G150: 900000 | H150: 0 | K150: - -
A151: 511 | B151: 2 | C151: 150 | D151: 501 | E151: 451 | F151: 391000 | G151: 391000 | H151: 0 | K151: - -
A152: 511 | B152: 2 | C152: 151 | D152: 501 | E152: 451 | F152: 1006000 | G152: 1006000 | H152: 0 | K152: - -
A153: 511 | B153: 2 | C153: 152 | D153: 501 | E153: 451 | F153: 646000 | G153: 646000 | H153: 0 | K153: - -
A154: 511 | B154: 2 | C154: 153 | D154: 501 | E154: 451 | F154: 1043000 | G154: 1043000 | H154: 0 | K154: - -
A155: 511 | B155: 2 | C155: 154 | D155: 501 | E155: 451 | F155: 1800000 | G155: 1800000 | H155: 0 | K155: - -
A156: 511 | B156: 2 | C156: 155 | D156: 501 | E156: 451 | F156: 420000 | G156: 420000 | H156: 0 | K156: - -
A157: 511 | B157: 2 | C157: 156 | D157: 501 | E157: 451 | F157: 1950000 | G157: 1950000 | H157: 0 | K157: - -
A158: 511 | B158: 2 | C158: 157 | D158: 501 | E158: 451 | F158: 800000 | G158: 800000 | H158: 0 | K158: - -
A159: 511 | B159: 2 | C159: 158 | D159: 501 | E159: 451 | F159: 1800000 | G159: 1800000 | H159: 0 | K159: - -
A160: 511 | B160: 2 | C160: 159 | D160: 501 | E160: 451 | F160: 3800000 | G160: 3800000 | H160: 0 | K160: - -
A161: 511 | B161: 2 | C161: 160 | D161: 501 | E161: 451 | F161: 1550000 | G161: 1550000 | H161: 0 | K161: - -
A162: 511 | B162: 2 | C162: 161 | D162: 501 | E162: 451 | F162: 3400000 | G162: 3400000 | H162: 0 | K162: - -
A163: 511 | B163: 2 | C163: 162 | D163: 501 | E163: 451 | F163: 1150000 | G163: 1150000 | H163: 0 | K163: - -
A164: 511 | B164: 2 | C164: 163 | D164: 501 | E164: 451 | F164: 1550000 | G164: 1550000 | H164: 0 | K164: - -
A165: 511 | B165: 2 | C165: 164 | D165: 501 | E165: 451 | F165: 800000 | G165: 800000 | H165: 0 | K165: - -
A166: 511 | B166: 2 | C166: 165 | D166: 501 | E166: 451 | F166: 1600000 | G166: 1600000 | H166: 0 | K166: - -
A167: 511 | B167: 2 | C167: 166 | D167: 501 | E167: 451 | F167: 2200000 | G167: 2200000 | H167: 0 | K167: - -
A168: 511 | B168: 2 | C168: 167 | D168: 501 | E168: 451 | F168: 380000 | G168: 380000 | H168: 0 | K168: - -
A169: 511 | B169: 2 | C169: 168 | D169: 501 | E169: 451 | F169: 320000 | G169: 320000 | H169: 0 | K169: - -
A170: 511 | B170: 2 | C170: 169 | D170: 501 | E170: 451 | F170: 1214000 | G170: 1214000 | H170: 0 | K170: - -
A171: 511 | B171: 2 | C171: 170 | D171: 501 | E171: 451 | F171: 4100000 | G171: 4100000 | H171: 0 | K171: - -
A172: 511 | B172: 2 | C172: 171 | D172: 501 | E172: 451 | F172: 3900000 | G172: 3900000 | H172: 0 | K172: - -
A173: 511 | B173: 2 | C173: 172 | D173: 501 | E173: 451 | F173: 1500000 | G173: 1500000 | H173: 0 | K173: - -
A174: 511 | B174: 2 | C174: 173 | D174: 501 | E174: 451 | F174: 792000 | G174: 792000 | H174: 0 | K174: - -
A175: 511 | B175: 2 | C175: 174 | D175: 501 | E175: 451 | F175: 520000 | G175: 520000 | H175: 0 | K175: - -
A176: 511 | B176: 2 | C176: 175 | D176: 501 | E176: 451 | F176: 1024000 | G176: 1024000 | H176: 943090.56 | K176: - -
A177: 511 | B177: 2 | C177: 176 | D177: 501 | E177: 451 | F177: 876000 | G177: 876000 | H177: 713294.76 | K177: - -
A178: 511 | B178: 2 | C178: 177 | D178: 501 | E178: 451 | F178: 1167000 | G178: 1167000 | H178: 1083374.04 | K178: - -
A179: 511 | B179: 2 | C179: 178 | D179: 501 | E179: 451 | F179: 1332000 | G179: 1332000 | H179: 1247619.36 | K179: - -
A180: 511 | B180: 2 | C180: 179 | D180: 501 | E180: 451 | F180: 620000 | G180: 620000 | H180: 0 | K180: - -
A181: 511 | B181: 2 | C181: 180 | D181: 501 | E181: 451 | F181: 750000 | G181: 750000 | H181: 0 | K181: - -
A182: 511 | B182: 2 | C182: 181 | D182: 501 | E182: 451 | F182: 672000 | G182: 672000 | H182: 0 | K182: - -
A183: 511 | B183: 2 | C183: 182 | D183: 501 | E183: 451 | F183: 3200000 | G183: 3200000 | H183: 0 | K183: - -
A184: 511 | B184: 2 | C184: 183 | D184: 501 | E184: 451 | F184: 500000 | G184: 500000 | H184: 0 | K184: - -
A185: 511 | B185: 2 | C185: 184 | D185: 501 | E185: 451 | F185: 350000 | G185: 350000 | H185: 0 | K185: - -
A186: 511 | B186: 2 | C186: 185 | D186: 501 | E186: 451 | F186: 1750000 | G186: 1750000 | H186: 0 | K186: - -
A187: 511 | B187: 2 | C187: 186 | D187: 501 | E187: 451 | F187: 977000 | G187: 977000 | H187: 806548.2 | K187: - -
A188: 511 | B188: 2 | C188: 187 | D188: 501 | E188: 451 | F188: 6000000 | G188: 6000000 | H188: 5397625.73 | K188: - -
A189: 425 | B189: 2 | C189: 188 | D189: 501 | E189: 451 | F189: 5000000 | G189: 5000000 | H189: 0 | K189: - -
A190: 511 | B190: 2 | C190: 189 | D190: 501 | E190: 451 | F190: 855000 | G190: 855000 | H190: 0 | K190: - -
A191: 511 | B191: 2 | C191: 190 | D191: 501 | E191: 451 | F191: 1585000 | G191: 1585000 | H191: 1584420 | K191: - -
A192: 511 | B192: 2 | C192: 191 | D192: 501 | E192: 451 | F192: 3048000 | G192: 3048000 | H192: 3047626.8 | K192: - -
A193: 511 | B193: 2 | C193: 192 | D193: 501 | E193: 451 | F193: 1661000 | G193: 1661000 | H193: 1660526.88 | K193: - -
A194: 511 | B194: 2 | C194: 193 | D194: 501 | E194: 451 | F194: 1415000 | G194: 1415000 | H194: 1413771.6 | K194: - -
A195: 511 | B195: 2 | C195: 194 | D195: 501 | E195: 451 | F195: 315000 | G195: 315000 | H195: 314521.2 | K195: - -
A196: 511 | B196: 2 | C196: 195 | D196: 501 | E196: 451 | F196: 653500 | G196: 653500 | H196: 652822.2 | K196: - -
A197: 511 | B197: 2 | C197: 196 | D197: 501 | E197: 451 | F197: 1373000 | G197: 1373000 | H197: 1341971.76 | K197: - -
A198: 511 | B198: 2 | C198: 197 | D198: 501 | E198: 451 | F198: 2195000 | G198: 2195000 | H198: 2193950 | K198: - -
A199: 511 | B199: 2 | C199: 198 | D199: 501 | E199: 451 | F199: 500000 | G199: 500000 | H199: 0 | K199: - -
A200: 511 | B200: 2 | C200: 199 | D200: 501 | E200: 451 | F200: 644000 | G200: 644000 | H200: 610550.45 | K200: - -
... 153 more rows

Sheet Troškovi 2022 - математика (hidden)
A1: Раздео | B1: Глава | C1: Програмска активност | D1: Функција | E1: Позиција | F1: Економска класификација | G1: ОПИС | H1: Средства из буџета | I1: Средства из осталих извора | J1: Укупно | Q1: Укупно
A2: 1 | B2: 2 | C2: 3 | D2: 4 | E2: 5 | F2: 6 | G2: 7 | H2: 8 | I2: 9 | J2: 10 | Q2: 10
A3: 1 | B3: 1.01 | G3: СКУПШТИНА ОПШТИНЕ
C5: 2101 | G5: ПРОГРАМ 16: ПОЛИТИЧКИ СИСТЕМ ЛОКАЛНЕ САМОУПРАВЕ
C6: 2101-0001 | G6: Функционисање скупштине
D7: 111 | G7: Извршни и законодавни органи, финансијски и фискални послови
E8: 1 | F8: 411 | G8: Плате, додаци и накнаде запосленима | H8: 3213500 | J8: =H8+I8 -> 3213500 | Q8: 3000000 | R8: =J8-Q8 -> 213500
E9: 2 | F9: 412 | G9: Социјални доприноси на терет послодавца | H9: 535000 | J9: 535000 | Q9: 500000 | R9: =J9-Q9 -> 35000
E10: 3 | F10: 413 | G10: Накнаде у натури | H10: 12000 | J10: 12000 | Q10: 12000 | R10: 0
E11: 4 | F11: 414 | G11: Социјална давања запосленима | H11: =100000-12000 -> 88000 | J11: 88000 | Q11: 88000 | R11: 0
E12: 5 | F12: 415 | G12: Накнаде трошкова за запослене | H12: 110000 | J12: 110000 | Q12: 110000 | R12: 0
E13: 6 | F13: 416 | G13: Награде, бонуси и остали посебни расходи | H13: 5000 | J13: 5000 | Q13: 5000 | R13: 0
E14: 7 | F14: 421 | G14: Стални трошкови | H14: 50000 | J14: 50000 | Q14: 50000 | R14: 0
E15: 8 | F15: 422 | G15: Трошкови путовања | H15: 100000 | J15: 100000 | Q15: 100000 | R15: 0
E16: 9 | F16: 423 | G16: Услуге по уговору | H16: =2000000+300000+14400000-700000 -> 16000000 | J16: 16000000 | Q16: 16000000 | R16: 0
E17: 10 | F17: 426 | G17: Материјал | H17: =2000000-200000 -> 1800000 | J17: 1800000 | Q17: 1800000 | R17: 0
E18: 11 | F18: 481 | G18: Дотација - редован рад политичких странака (порески приходи*0,105%) | H18: =452000+2000 -> 454000 | J18: 454000 | Q18: 454000 | R18: 0
E19: 12 | F19: 512 | G19: Машине и опрема | H19: 200000 | J19: 200000 | Q19: 200000 | R19: 0
G20: Функција 111: | H20: =SUBTOTAL(9,H8:H19) -> 22567500 | I20: =SUBTOTAL(9,I8:I19) -> 0 | J20: =SUBTOTAL(9,J8:J19) -> 22567500 | Q20: 22319000 | R20: 248500
G21: Програмска активност 2101-0001: | H21: =SUBTOTAL(9,H8:H19) -> 22567500 | I21: =SUBTOTAL(9,I8:I19) -> 0 | J21: =SUBTOTAL(9,J8:J19) -> 22567500 | Q21: 22319000 | R21: 248500
R22: 0
C23: 2101-0003 | G23: Подршка раду извршних органа власти и скупштине | R23: 0
D24: 111 | G24: Извршни и законодавни органи | R24: 0
E25: 13 | F25: 423 | G25: Услуге по уговору | H25: =3000000-200000-500000 -> 2300000 | J25: =H25+I25 -> 2300000 | Q25: 2300000 | R25: 0
E26: 14 | F26: 481 | G26: Дотације - Савет за безбедност општине Бујановац | H26: =1000000-500000 -> 500000 | J26: =H26+I26 -> 500000 | Q26: 500000 | R26: 0
E27: 15 | F27: 481 | G27: Дотације - Савет за међунационалне односе | H27: 100000 | J27: =H27+I27 -> 100000 | Q27: 100000 | R27: 0
E28: 16 | F28: 481 | G28: Дотације - Савет за родну равноправност | H28: =200000-100000 -> 100000 | J28: =H28+I28 -> 100000 | Q28: 100000 | R28: 0
G29: Функција 111: | H29: =SUBTOTAL(9,H25:H28) -> 3000000 | I29: =SUBTOTAL(9,I25:I28) -> 0 | J29: =SUBTOTAL(9,J25:J28) -> 3000000 | Q29: 3000000 | R29: 0
G30: Програмска активност 2101-0003: | H30: =SUBTOTAL(9,H25:H28) -> 3000000 | I30: =SUBTOTAL(9,I25:I28) -> 0 | J30: =SUBTOTAL(9,J25:J28) -> 3000000 | Q30: 3000000 | R30: 0
G31: УКУПНО ЗА ГЛАВУ 1.01: | H31: =SUBTOTAL(9,H8:H30) -> 25567500 | I31: =SUBTOTAL(9,I8:I30) -> 0 | J31: =SUBTOTAL(9,J8:J30) -> 25567500 | Q31: 25319000 | R31: 248500
G32: УКУПНО ЗА РАЗДЕО 1: | H32: =SUBTOTAL(9,H8:H30) -> 25567500 | I32: =SUBTOTAL(9,I8:I31) -> 0 | J32: =SUBTOTAL(9,J8:J31) -> 25567500 | Q32: 25319000 | R32: 248500
R33: 0
A34: 2 | B34: 2.01 | G34: ПРЕДСЕДНИК ОПШТИНЕ | R34: 0
R35: 0
C36: 2101 | G36: ПРОГРАМ 16: ПОЛИТИЧКИ СИСТЕМ ЛОКАЛНЕ САМОУПРАВЕ | R36: 0
C37: 2101-0002 | G37: Функционисање извршних органа | R37: 0
D38: 111 | G38: Извршни и законодавни органи | R38: 0
E39: 17 | F39: 411 | G39: Плате, додаци и накнаде запосленима | H39: 3692000 | J39: =H39+I39 -> 3692000 | Q39: 3650000 | R39: 42000
E40: 18 | F40: 412 | G40: Социјални доприноси на терет послодавца | H40: 615000 | J40: 615000 | Q40: 608000 | R40: 7000
E41: 19 | F41: 413 | G41: Накнаде у натури | H41: 4000 | J41: 4000 | Q41: 4000 | R41: 0
E42: 20 | F42: 414 | G42: Социјална давања запосленима | H42: =100000-4000 -> 96000 | J42: 96000 | Q42: 96000 | R42: 0
E43: 21 | F43: 415 | G43: Накнаде трошкова за запослене | H43: 140000 | J43: 140000 | Q43: 140000 | R43: 0
E44: 22 | F44: 416 | G44: Награде, бонуси и остали посебни расходи | H44: 200000 | J44: 200000 | Q44: 200000 | R44: 0
E45: 23 | F45: 421 | G45: Стални трошкови | H45: 50000 | J45: 50000 | Q45: 50000 | R45: 0
E46: 24 | F46: 422 | G46: Трошкови путовања | H46: 250000 | J46: 250000 | Q46: 250000 | R46: 0
E47: 25 | F47: 423 | G47: Услуге по уговору | H47: 4000000 | J47: 4000000 | Q47: 3300000 | R47: 700000
E48: 26 | F48: 426 | G48: Материјал | H48: 1000000 | J48: 1000000 | Q48: 1000000 | R48: 0
E49: 27 | F49: 512 | G49: Машине и опрема | H49: =300000-100000 -> 200000 | J49: 200000 | Q49: 200000 | R49: 0
G50: Функција 111: | H50: =SUBTOTAL(9,H39:H49) -> 10247000 | I50: =SUBTOTAL(9,I39:I48) -> 0 | J50: =SUBTOTAL(9,J39:J49) -> 10247000 | Q50: 9498000 | R50: 749000
G51: Програмска активност 2101-0002: | H51: =SUBTOTAL(9,H39:H49) -> 10247000 | I51: =SUBTOTAL(9,I39:I48) -> 0 | J51: =SUBTOTAL(9,J39:J49) -> 10247000 | Q51: 9498000 | R51: 749000
R52: 0
C53: 2101-0002 | G53: Функционисање извршних органа | R53: 0
D54: 111 | G54: Извршни и законодавни органи | R54: 0
E55: 28 | F55: 423 | G55: Обележавање дана Општине Бујановац | H55: 200000 | J55: =H55+I55 -> 200000 | Q55: 100000 | R55: 100000
E56: 29 | F56: 423 | G56: Обележавање дана дијаспоре | H56: 100000 | J56: 100000 | Q56: 100000 | R56: 0
E57: 30 | F57: 423 | G57: Петровдански дани | H57: 100000 | J57: 100000 | Q57: 100000 | R57: 0
E58: 31 | F58: 423 | G58: 8. април Светски дан Рома | H58: 100000 | J58: 100000 | Q58: 100000 | R58: 0
E59: 32 | F59: 423 | G59: Дреља Огореља | H59: 100000 | J59: 100000
E60: 33 | F60: 423 | G60: Мајске манифестације | H60: 300000 | J60: 300000 | Q60: 300000 | R60: 0
G61: Функција 111: | H61: =SUBTOTAL(9,H55:H60) -> 900000 | I61: =SUBTOTAL(9,I55:I60) -> 0 | J61: =SUBTOTAL(9,J55:J60) -> 900000 | Q61: 705000 | R61: 195000
G62: Програмска активност 2101-0002: | H62: =SUBTOTAL(9,H55:H60) -> 900000 | I62: =SUBTOTAL(9,I55:I60) -> 0 | J62: =SUBTOTAL(9,J55:J60) -> 900000 | Q62: 705000 | R62: 195000
G63: УКУПНО ЗА ГЛАВУ 2.01: | H63: =SUBTOTAL(9,H39:H62) -> 11147000 | I63: =SUBTOTAL(9,I39:I62) -> 0 | J63: =SUBTOTAL(9,J39:J62) -> 11147000 | Q63: 10203000 | R63: 944000
G64: УКУПНО ЗА РАЗДЕО 2: | H64: =SUBTOTAL(9,H39:H63) -> 11147000 | I64: =SUBTOTAL(9,I39:I63) -> 0 | J64: =SUBTOTAL(9,J39:J63) -> 11147000 | Q64: 10203000 | R64: 944000
R65: 0
A66: 3 | B66: 3.01 | G66: ОПШТИНСКО ВЕЋЕ | R66: 0
R67: 0
C68: 2101 | G68: ПРОГРАМ 16: ПОЛИТИЧКИ СИСТЕМ ЛОКАЛНЕ САМОУПРАВЕ | R68: 0
C69: 2101-0002 | G69: Функционисање извршних органа | R69: 0
D70: 111 | G70: Извршни и законодавни органи | R70: 0
E71: 34 | F71: 423 | G71: Услуге по уговору | H71: 3400000 | J71: =H71+I71 -> 3400000 | Q71: 3400000 | R71: 0
E72: 35 | F72: 426 | G72: Материјал | H72: 1000000 | J72: =H72+I72 -> 1000000 | Q72: 1000000 | R72: 0
G73: Функција 111: | H73: =SUBTOTAL(9,H71:H72) -> 4400000 | I73: =SUBTOTAL(9,I71:I72) -> 0 | J73: =SUBTOTAL(9,J71:J72) -> 4400000 | Q73: 4400000 | R73: =J73-Q73 -> 0
G74: Програмска активност 2101-0002: | H74: =SUBTOTAL(9,H71:H72) -> 4400000 | I74: =SUBTOTAL(9,I71:I72) -> 0 | J74: =SUBTOTAL(9,J71:J72) -> 4400000 | Q74: 4400000 | R74: 0
R75: 0
C76: 2101-0003 | G76: Подршка раду извршних органа власти и скупштине | R76: 0
D77: 111 | G77: Извршни и законодавни органи - рад комисија | R77: 0
E78: 36 | F78: 423 | G78: Услуге по уговору | H78: =3250000 -> 3250000 | J78: =H78+I78 -> 3250000 | Q78: 3250000 | R78: 0
F79: 481 | G79: Савет за унапређење услуге социјалне заштите | H79: 500000 | J79: =H79+I79 -> 500000
G80: Функција 111: | H80: =SUBTOTAL(9,H78) -> 3250000 | I80: =SUBTOTAL(9,I78) -> 0 | J80: =SUBTOTAL(9,J78) -> 3250000 | Q80: 3250000 | R80: 0
G81: Програмска активност 2101-0003: | H81: =SUBTOTAL(9,H78) -> 3250000 | I81: =SUBTOTAL(9,I78) -> 0 | J81: =SUBTOTAL(9,J78) -> 3250000 | Q81: 3250000 | R81: 0
G82: УКУПНО ЗА ГЛАВУ 3.01: | H82: =SUBTOTAL(9,H71:H81) -> 8150000 | I82: =SUBTOTAL(9,I71:I81) -> 0 | J82: =SUBTOTAL(9,J71:J81) -> 8150000 | Q82: 7650000 | R82: 500000
G83: УКУПНО ЗА РАЗДЕО 3: | H83: =SUBTOTAL(9,H71:H82) -> 8150000 | I83: =SUBTOTAL(9,I71:I82) -> 0 | J83: =SUBTOTAL(9,J71:J82) -> 8150000 | Q83: 7650000 | R83: 500000
R84: 0
A85: 4 | B85: 4.01 | G85: ПРАВОБРАНИЛАШТВО ОПШТИНЕ БУЈАНОВАЦ | R85: 0
R86: 0
C87: 0602 | G87: ПРОГРАМ 15: ЛОКАЛНА САМОУПРАВА | R87: 0
C88: 0602-0004 | G88: Правобранилаштво општине Бујановац | R88: 0
D89: 330 | G89: Судови | R89: 0
E90: 37 | F90: 411 | G90: Плате, додаци и накнаде запосленима | H90: 1789000 | J90: =H90+I90 -> 1789000 | Q90: 2043000 | R90: -254000
E91: 38 | F91: 412 | G91: Социјални доприноси на терет послодавца | H91: 298000 | J91: 298000 | Q91: 340200 | R91: -42200
E92: 39 | F92: 413 | G92: Накнаде у натури | H92: 8000 | J92: 8000 | Q92: 8000 | R92: 0
E93: 40 | F93: 414 | G93: Социјална давања запосленима | H93: =100000-8000 -> 92000 | J93: 92000 | Q93: 92000 | R93: 0
E94: 41 | F94: 415 | G94: Накнаде трошкова за запослене | H94: 100000 | J94: 100000 | Q94: 100000 | R94: 0
E95: 42 | F95: 422 | G95: Трошкови путовања | H95: 20000 | J95: 20000 | Q95: 20000 | R95: 0
E96: 43 | F96: 423 | G96: Услуге по уговору | H96: 200000 | J96: 200000 | Q96: 200000 | R96: 0
E97: 44 | F97: 426 | G97: Материјал | H97: 300000 | J97: 300000 | Q97: 300000 | R97: 0
E98: 45 | F98: 483 | G98: Новчане казне и пенали по решењу судова | H98: 16000000 | J98: 16000000 | Q98: 18000000 | R98: -2000000
G99: Функција 330: | H99: =SUBTOTAL(9,H90:H98) -> 18807000 | I99: =SUBTOTAL(9,I90:I98) -> 0 | J99: =SUBTOTAL(9,J90:J98) -> 18807000 | Q99: 21103200 | R99: -2296200
G100: Програмска активност 0602-0004: | H100: =SUBTOTAL(9,H90:H98) -> 18807000 | I100: =SUBTOTAL(9,I90:I98) -> 0 | J100: =SUBTOTAL(9,J90:J98) -> 18807000 | Q100: 21103200 | R100: -2296200
G101: УКУПНО ЗА ГЛАВУ 4.01: | H101: =SUBTOTAL(9,H90:H98) -> 18807000 | I101: =SUBTOTAL(9,I90:I98) -> 0 | J101: =SUBTOTAL(9,J90:J98) -> 18807000 | Q101: 21103200 | R101: -2296200
G102: УКУПНО ЗА РАЗДЕО 4: | H102: =SUBTOTAL(9,H90:H101) -> 18807000 | I102: =SUBTOTAL(9,I90:I101) -> 0 | J102: =SUBTOTAL(9,J90:J101) -> 18807000 | Q102: 21103200 | R102: -2296200
R103: 0
A104: 5 | B104: 5.01 | G104: ОПШТИНСКА УПРАВА | R104: 0
R105: 0
C106: 0602 | G106: ПРОГРАМ 15: ЛОКАЛНА САМОУПРАВА | R106: 0
C107: 0602-0001 | G107: Функционисање локалне самоуправе и градских општина | R107: 0
D108: 130 | G108: Опште јавне услуге | R108: 0
E109: 46 | F109: 411 | G109: Плате, додаци и накнаде запосленима | H109: 135311000 | J109: =H109+I109 -> 135311000 | Q109: 128000000 | R109: 7311000
E110: 47 | F110: 412 | G110: Социјални доприноси на терет послодавца | H110: 22549500 | J110: 22549500 | Q110: 21313000 | R110: 1236500
E111: 48 | F111: 413 | G111: Накнаде у натури | H111: =100000+280000 -> 380000 | J111: 380000 | Q111: 380000 | R111: 0
E112: 49 | F112: 414 | G112: Социјална давања запосленима | H112: =8000000-280000 -> 7720000 | J112: 7720000 | Q112: 7720000 | R112: 0
E113: 50 | F113: 415 | G113: Накнаде трошкова за запослене | H113: =11000000 -> 11000000 | J113: 11000000 | Q113: 10000000 | R113: 1000000
E114: 51 | F114: 416 | G114: Награде, бонуси и остали посебни расходи | H114: 2000000 | J114: 2000000 | Q114: 1500000 | R114: 500000
E115: 52 | F115: 421 | G115: Стални трошкови | H115: =18000000 -> 18000000 | J115: 18000000 | Q115: 16500000 | R115: 1500000
E116: 53 | F116: 422 | G116: Трошкови путовања | H116: =2000000-400000 -> 1600000 | J116: 1600000 | Q116: 1600000 | R116: 0
E117: 54 | F117: 423 | G117: Услуге по уговору | H117: 20000000 | J117: 20000000 | Q117: 17000000 | R117: 3000000
E118: 55 | F118: 424 | G118: Специјализоване услуге | H118: 1500000 | J118: 1500000 | Q118: 1000000 | R118: 500000
E119: 56 | F119: 425 | G119: Текуће поправке и одржавање | H119: 4000000 | J119: 4000000 | Q119: 1500000 | R119: 2500000
E120: 57 | F120: 426 | G120: Материјал | H120: 10000000 | J120: 10000000 | Q120: 10000000 | R120: 0
E121: 58 | F121: 482 | G121: Порези, обавезне таксе и казне | H121: 700000 | J121: 700000 | Q121: 700000 | R121: 0
E122: 59 | F122: 483 | G122: Новчане казне и пенали по решењу судова | H122: 50000 | J122: 50000 | Q122: 50000 | R122: 0
E123: 60 | F123: 511 | G123: Зграде и грађевински објекти | H123: =100000-50000 -> 50000 | J123: 50000 | Q123: 50000 | R123: 0
E124: 61 | F124: 512 | G124: Машине и опрема | H124: 5000000 | J124: 5000000 | Q124: 3500000 | R124: 1500000
E125: 62 | F125: 515 | G125: Нематеријална имовина | H125: =500000-100000 -> 400000 | J125: 400000 | Q125: 400000 | R125: 0
E126: 63 | F126: 541 | G126: Набавка земљишта | H126: =2800000-2300000-100000+600000 -> 1000000 | J126: 1000000 | Q126: 1000000 | R126: 0
G127: Функција 130: | H127: =SUBTOTAL(9,H109:H126) -> 241260500 | I127: =SUBTOTAL(9,I109:I125) -> 0 | J127: =SUBTOTAL(9,J109:J126) -> 241260500 | Q127: 222213000 | R127: 19047500
G128: Програмска активност 0602-0001: | H128: =SUBTOTAL(9,H109:H126) -> 241260500 | I128: =SUBTOTAL(9,I109:I125) -> 0 | J128: =SUBTOTAL(9,J109:J126) -> 241260500 | Q128: 222213000 | R128: 19047500
R129: 0
C130: 0602-0001 | G130: Подршка раду извршних органа власти и скупштине | R130: 0
D131: 160 | G131: Опште јавне услуге које нису класификоване на другом месту | R131: 0
E132: 64 | F132: 481 | G132: Дотације - Унија бизниса Бујановца | H132: =200000-100000 -> 100000 | J132: =H132+I132 -> 100000 | Q132: 100000 | R132: 0
E133: 65 | F133: 481 | G133: Дотација - Центар за развој Пчињског и Јабланичког округа | H133: =200000-100000 -> 100000 | J133: 100000 | Q133: 100000 | R133: 0
E134: 66 | F134: 481 | G134: Дотација - Стална конференција градова и општина (чланарина) | H134: 500000 | J134: 500000 | Q134: 500000 | R134: 0
E135: 67 | F135: 481 | G135: Дотација са страним донаторима - фондови ЕУ | H135: 2000000 | J135: 2000000 | Q135: 100000 | R135: 1900000
E136: 68 | F136: 481 | G136: Дотација - Налед | H136: 100000 | J136: 100000 | Q136: 100000 | R136: 0
E137: 69 | F137: 481 | G137: Дотације - Историјски архив Врање | H137: 480000 | J137: 480000 | Q137: 480000 | R137: 0
E138: 70 | F138: 481 | G138: Дотација - АЛДА Европска асоцијација за локалну демократију | H138: 75000 | J138: 75000 | Q138: 75000 | R138: =J138-Q138 -> 0
G139: Функција 160: | H139: =SUBTOTAL(9,H132:H138) -> 3355000 | I139: =SUBTOTAL(9,I132:I138) -> 0 | J139: =SUBTOTAL(9,J132:J138) -> 3355000 | Q139: 1455000 | R139: 1900000
G140: Програмска активност 0602-0001: | H140: =SUBTOTAL(9,H132:H138) -> 3355000 | I140: =SUBTOTAL(9,I132:I138) -> 0 | J140: =SUBTOTAL(9,J132:J138) -> 3355000 | Q140: 1455000 | R140: 1900000
R141: 0
C142: 0602-0007 | G142: Функционисање националних савета националних мањина | R142: 0
D143: 090 | G143: Социјална заштита некласификована на другом месту | R143: 0
E144: 71 | F144: 481 | G144: Дотације невладиним организацијама - Декада Рома | H144: 1700000 | J144: =H144+I144 -> 1700000 | Q144: 1500000 | R144: 200000
E145: 72 | F145: 481 | G145: Дотације невладиним организацијама - Национални савет Албанаца | H145: 5000000 | J145: =H145+I145 -> 5000000 | Q145: 5000000 | R145: 0
G146: Функција 090: | H146: =SUBTOTAL(9,H144:H145) -> 6700000 | I146: =SUBTOTAL(9,I144:I145) -> 0 | J146: =SUBTOTAL(9,J144:J145) -> 6700000 | Q146: 6500000 | R146: 200000
G147: Програмска активност 0602-0007: | H147: =SUBTOTAL(9,H144:H145) -> 6700000 | I147: =SUBTOTAL(9,I144:I145) -> 0 | J147: =SUBTOTAL(9,J144:J145) -> 6700000 | Q147: 6500000 | R147: 200000
R148: 0
C149: 0602-0009 | G149: Текућа буџетска резерва | R149: 0
D150: 130 | G150: Опште јавне услуге | R150: 0
E151: 73 | F151: 499 | G151: Текућа резерва | H151: 20000000 | J151: =H151+I151 -> 20000000 | Q151: 3300000 | R151: 16700000
G152: Функција 130: | H152: =SUBTOTAL(9,H151) -> 20000000 | I152: =SUBTOTAL(9,I151) -> 0 | J152: =SUBTOTAL(9,J151) -> 20000000 | Q152: 3300000 | R152: 16700000
G153: Програмска активност 0602-0009: | H153: =SUBTOTAL(9,H151) -> 20000000 | I153: =SUBTOTAL(9,I151) -> 0 | J153: =SUBTOTAL(9,J151) -> 20000000 | Q153: 3300000 | R153: 16700000
R154: 0
C155: 0602-0010 | G155: Стална буџетска резерва | R155: 0
D156: 130 | G156: Опште јавне услуге | R156: 0
E157: 74 | F157: 499 | G157: Стална резерва | H157: 500000 | J157: =H157+I157 -> 500000 | Q157: 500000 | R157: 0
G158: Функција 130: | H158: =SUBTOTAL(9,H157) -> 500000 | I158: =SUBTOTAL(9,I157) -> 0 | J158: =SUBTOTAL(9,J157) -> 500000 | Q158: 500000 | R158: 0
G159: Програмска активност 0602-0010: | H159: =SUBTOTAL(9,H157) -> 500000 | I159: =SUBTOTAL(9,I157) -> 0 | J159: =SUBTOTAL(9,J157) -> 500000 | Q159: 500000 | R159: 0
R160: 0
C161: 0602-0014 | G161: Ванредне ситуације | R161: 0
D162: 160 | G162: Опште јавне услуге које нису класификоване на другом месту | R162: 0
E163: 75 | F163: 423 | G163: Услуге по уговору | H163: =5000000-1000000-1000000 -> 3000000 | J163: =H163+I163 -> 3000000 | Q163: 3000000 | R163: 0
E164: 76 | F164: 425 | G164: Текуће поправке и одржавање - Хитне интервенције | H164: 2780000 | I164: 4720000 | J164: =H164+I164 -> 7500000 | Q164: 21781250 | R164: -14281250
E165: 77 | F165: 426 | G165: Материјал | H165: 1500000 | J165: =H165+I165 -> 1500000 | Q165: 1500000 | R165: 0
E166: 343 | F166: 512 | G166: Машине и опрема | H166: 500000 | J166: =H166+I166 -> 500000 | Q166: 2500000 | R166: -2000000
G167: Функција 160: | H167: =SUBTOTAL(9,H163:H166) -> 7780000 | I167: =SUBTOTAL(9,I163:I166) -> 4720000 | J167: =SUBTOTAL(9,J163:J166) -> 12500000 | Q167: 28781250 | R167: -16281250
G168: Програмска активност 0602-0014: | H168: =SUBTOTAL(9,H163:H166) -> 7780000 | I168: =SUBTOTAL(9,I163:I166) -> 4720000 | J168: =SUBTOTAL(9,J163:J166) -> 12500000 | Q168: 28781250 | R168: -16281250
R169: 0
G170: ПРОГРАМ 1: ЛОКАЛНИ РАЗВОЈ И ПРОСТОРНО ПЛАНИРАЊЕ | R170: 0
C171: 1101-0001 | G171: Просторно и урбанистичко планирање | R171: 0
D172: 160 | G172: Опште јавне услуге које нису класификоване на другом месту | R172: 0
E173: 78 | F173: 511 | G173: Зграде и грађевински објекти - Израда пројектне документације | H173: 5000000 | J173: =H173+I173 -> 5000000 | Q173: 8804000 | R173: -3804000
G174: Функција 160: | H174: =SUBTOTAL(9,H173) -> 5000000 | I174: =SUBTOTAL(9,I173) -> 0 | J174: =SUBTOTAL(9,J173) -> 5000000 | Q174: 8804000 | R174: -3804000
R175: 0
D176: 620 | G176: ЈП "ДИРЕКЦИЈА ЗА ГРАЂЕВИНСКО ЗЕМЉИШТЕ, УРБАНИЗАМ, ПУТЕВЕ И СТАМБЕНЕ ПОСЛОВЕ ОПШТИНЕ БУЈАНОВАЦ" - у Ликвидацији По Закључку о давању сагласности СО Бујановац број 04-73/2017 од 05.10.2017. године на Почетни ликвидациони извештај - број решења АПР: БД 39792/2017 - део обавеза | R176: 0
E177: 79 | F177: 423 | G177: Услуге по уговору - накнада ликвидационом управнику | J177: =H177+I177 -> 0 | Q177: 1065000 | R177: -1065000
G178: Функција 620: | H178: =SUBTOTAL(9,H177:H177) -> 0 | I178: =SUBTOTAL(9,I177) -> 0 | J178: =SUBTOTAL(9,J177:J177) -> 0 | Q178: 1065000 | R178: -1065000
G179: Програмска активност 1101-0001: | H179: =SUBTOTAL(9,H173:H178) -> 5000000 | I179: =SUBTOTAL(9,I173:I178) -> 0 | J179: =SUBTOTAL(9,J173:J178) -> 5000000 | Q179: 9869000 | R179: -4869000
R180: 0
C181: 1102 | G181: ПРОГРАМ 2: КОМУНАЛНА ДЕЛАТНОСТ | R181: 0
C182: 1102-0001 | G182: Јавна расвета | R182: 0
D183: 640 | G183: Улична расвета | R183: 0
E184: 80 | F184: 421 | G184: Стални трошкови | H184: 32500000 | J184: =H184+I184 -> 32500000 | Q184: 25000000 | R184: 7500000
E185: 81 | F185: 425 | G185: Текуће поправке и одржавање | H185: =5000000-1000000 -> 4000000 | J185: =H185+I185 -> 4000000 | Q185: 4000000 | R185: 0
G186: Функција 640: | H186: =SUBTOTAL(9,H184:H185) -> 36500000 | I186: =SUBTOTAL(9,I184:I185) -> 0 | J186: =SUBTOTAL(9,J184:J185) -> 36500000 | Q186: 29000000 | R186: 7500000
G187: Програмска активност 1102-0001: | H187: =SUBTOTAL(9,H184:H185) -> 36500000 | I187: =SUBTOTAL(9,I184:I185) -> 0 | J187: =SUBTOTAL(9,J184:J185) -> 36500000 | Q187: 29000000 | R187: 7500000
R188: 0
C189: 1102-0002 | G189: Уређење и одржавање зеленила | R189: 0
D190: 660 | G190: Послови становања и заједнице некласификоване на другом месту | R190: 0
E191: 82 | F191: 424 | G191: Специјализоване услуге - одржавање зеленила | H191: 1500000 | J191: =H191+I191 -> 1500000 | Q191: 1350000 | R191: 150000
G192: Функција 660: | H192: =SUBTOTAL(9,H191) -> 1500000 | I192: =SUBTOTAL(9,I191) -> 0 | J192: =SUBTOTAL(9,J191) -> 1500000 | Q192: 1350000 | R192: 150000
G193: Програмска активност 1102-0002: | H193: =SUBTOTAL(9,H191) -> 1500000 | I193: =SUBTOTAL(9,I191) -> 0 | J193: =SUBTOTAL(9,J191) -> 1500000 | Q193: 1350000 | R193: 150000
R194: 0
C195: 1102-0003 | G195: Јавна хигијена | R195: 0
D196: 660 | G196: Послови становања и заједнице некласификоване на другом месту | R196: 0
E197: 83 | F197: 424 | G197: Специјализоване услуге - метење улица | H197: 20000000 | J197: =H197+I197 -> 20000000 | Q197: 18000000 | R197: 2000000
E198: 350 | F198: 512 | G198: Машине и опрема - Набавка радне машине за чишћење асфалтних и бетонских површина | H198: 7000000 | I198: 7000000 | J198: =H198+I198 -> 14000000 | Q198: 14000000 | R198: 0
G199: Функција 660: | H199: =SUBTOTAL(9,H197:H198) -> 27000000 | I199: =SUBTOTAL(9,I197:I198) -> 7000000 | J199: =SUBTOTAL(9,J197:J198) -> 34000000 | Q199: 32000000 | R199: 2000000
G200: Програмска активност 1102-0003: | H200: =SUBTOTAL(9,H197:H198) -> 27000000 | I200: =SUBTOTAL(9,I197:I198) -> 7000000 | J200: =SUBTOTAL(9,J197:J198) -> 34000000 | Q200: 32000000 | R200: 2000000
R201: 0
... 1056 more rows

Sheet Odluka Budžet 2022 - Р1
A2: Na osnovu ~lana 63. Zakona o buxetskom sistemu ("Slu`beni glasnik RS", br. 54/2009, 73/2010, 101/2010, 101/2011, 93/2012, 62/2013 i 63/2013 -ispravka, 108/2013, 142/2014, 68/2015 - dr. zakon, 103/2015, 99/2016, 113/2017, 95/2018, 31/2019, 72/2019, 149/2020 и 118/2021), ~lana 32. Zakona o lokalnoj samoupravi ("Slu`beni glasnik RS", broj 129/2007 i 83/2014 - dr. zakon, 101/2016 - др. закон, 47/2018 i 111/2021 - dr. zakon) i ~lana 41. Statuta Op{tine Bujanovac ("Slu`beni glasnik Oпштине Бујановац", broj 5/2019) Skup{tina op{tine Bujanovac na sednici odr`anoj dana 19.07.2022. godine, donela je
A7: O D L U K U
A8: O REBALANSU BUXETA OP[TINE BUJANOVAC ZA 2022. GODINU
A10: I OP[TI DEO
A12: ^lan 1.
A14: Prihodi i primawa, rashodi i izdaci buxeta op{tine Bujanovac za 2022. (u daqem tekstu: buxet), sastoje se od :
A16: А. РАЧУН ПРИХОДА И ПРИМАЊА, РАСХОДА И ИЗДАТАКА
A17: 1. Укупани приходи и примања од продаје нефинансијске имовине | K17: =K18+K22 -> 1989847093
A18: 1.1. TEKUЋI PRIHODI u ~emu | K18: =K19+K20+K21 -> 1989747093
A19: - буџетска средства | K19: ='Prihodi 2022 - R1'!H6+'Prihodi 2022 - R1'!H27+'Prihodi 2022 - R1'!H41+'Prihodi 2022 - R1'!H60+'Prihodi 2022 - R1'!H69+'Prihodi 2022 - R1'!H76+'Prihodi 2022 - R1'!H95+'Prihodi 2022 - R1'!H115+'Prihodi 2022 - R1'!H128 -> 1939347093
A20: - сопствени приходи
A21: - донације | K21: ='Prihodi 2022 - R1'!D63+'Prihodi 2022 - R1'!D66 -> 50400000
A22: 1.2. ПРИМАЊА ОД ПРОДАЈЕ НЕФИНАНСИЈСКЕ ИМОВИНЕ | K22: ='Prihodi 2022 - R1'!C138 -> 100000
A23: 2. Укупни расходи и иzдаци zа набавку нефинансијске имовине | K23: =K24 -> 2049430000
A24: 2.1. ТЕКУЋИ РАСХОДИ у чему: | K24: =K25+K26+K27 -> 2049430000
A25: - текући буџетски расходи | K25: =H138 -> 1055638174
A26: - расходи из сопствених прихода
A27: - доnacije, dotacije i transferi | K27: =J138 -> 993791826
A28: БУЏЕТСКИ СУФИЦИТ/ДЕФИЦИТ | K28: =K17-K23 -> -59582907
A29: Издаци за набавку финансијске имовине (у циљу спровођења јавних политика)
A30: УКУПАН ФИСКАЛНИ СУФИЦИТ/ДЕФИЦИТ | K30: =K28 -> -59582907
A31: БУЏЕТСКИ СУФИЦИТ/ДЕФИЦИТ | K31: =K30 -> -59582907
A32: Б. РАЧУН ФИНАНСИРАЊА
A33: Примања од продаје финансијске имовине
A34: Примања од заду`ивања
A35: Неутрошена средства из преtходних година | K35: ='Prihodi 2022 - R1'!C4 -> 59582907
A36: Издаци за отплату главнице дуга
A37: НЕТО ФИНАНСИРАЊЕ
A39: Приходи и примања, расходи и издаци буџета утврђени су у следећим износима
A41: ОПИС | H41: Економска класификација | K41: Износ у динарима
A43: 1 | H43: 2 | K43: 3
A44: УКУПНИ ПРИХОДИ И ПРИМАЊА ОД ПРОДАЈЕ НЕФИНАНСИЈСКЕ ИМОВИНЕ | K44: =K46+K58+K62+K63+K61 -> 1989847093
A46: 1. Порески приходи | H46: 71 | K46: =K47+K48+K49+K50 -> 523200000
A47: 1.1. Порез на доходак, добит и капиталне добиткa (осим самодоприноса) | H47: 711 | K47: ='Prihodi 2022 - R1'!H6 -> 363900000
A48: 1.2. Самодопринос | H48: 711180
A49: 1.3. Порез на имовину | H49: 713 | K49: ='Prihodi 2022 - R1'!H27 -> 90050000
A50: 1.4. Остали порески приходи | K50: ='Prihodi 2022 - R1'!H41+'Prihodi 2022 - R1'!H60 -> 69250000
A55: ОПИС | H55: Економска класификација | K55: Износ у динарима
A57: 1 | H57: 2 | K57: 3
A58: 2. Непорески приходи, у чему: | H58: 74 | K58: ='Prihodi 2022 - R1'!H76+'Prihodi 2022 - R1'!H95+'Prihodi 2022 - R1'!H115+'Prihodi 2022 - R1'!H128 -> 68687575
A59: поједине врсте накнада са одређеном наменом (наменски приходи)
A60: приходи од продаје добара и услуга
A61: 3. Донације | H61: 731 + 732 | K61: ='Prihodi 2022 - R1'!H66+'Prihodi 2022 - R1'!H63 -> 50400000
A62: 4. Трансфери | H62: 733 | K62: ='Prihodi 2022 - R1'!H69 -> 1347459518
A63: 5. Примања од продаје нефинансијске имовине | H63: 8 | K63: ='Prihodi 2022 - R1'!H138 -> 100000
A64: УКУПНИ РАСХОДИ И ИЗДАЦИ ЗА НАБАВКУ НЕФИНАНСИЈСКЕ И ФИНАНСИЈСКЕ ИМОВИНЕ | K64: =K65+K73 -> 2049430000
A65: 1. Текући расходи | H65: 4 | K65: =K66+K67+K68+K69+K70+K71+K72 -> 968379000
A66: 1.1. Расходи за запослене | H66: 41 | K66: =L108 -> 355129500
A67: 1.2. Коришћење роба и услуга | H67: 42 | K67: =L115 -> 255933626
A68: 1.3. Отплата камата | H68: 44
A69: 1.4. Субвенције | H69: 45 | K69: =L118 -> 75589600
A70: 1.5. Социјална заштита из буџета | H70: 47 | K70: =L123 -> 46320000
A71: 1.6. Остали расходи, у чему: средства резерви | H71: 48 + 49 | K71: =L128+L130 -> 61238974
A72: 2. Трасфери | H72: 46 | K72: =L121 -> 174167300
A73: 3. Издаци за набавку нефинансијске имовине | H73: 5 | K73: =L137 -> 1081051000
A74: 4. Издаци за набавку финансијске имовине (осим 6211) | H74: 62
A75: ПРИМАЊА ОД ПРОДАЈЕ ФИНАНСИЈСКЕ ИМОВИНЕ И ЗАДУЖИВАЊА | K75: 0
A76: 1. Примања по основу отплате кредита и продаје финансијске имовине | H76: 92
A77: 2. Заду`ивање | H77: 91 | K77: 0
A78: 2.1. Заду`ивање код домаћих кредитора | H78: 911
A79: 2.2. Заду`ивање код страних кредитора | H79: 912
A80: ОТПЛАТА ДУГА И НАБАВКА ФИНАНСИЈСКЕ ИМОВИНЕ
A81: 3. Отплата дуга | H81: 61 | K81: 0
A82: 3.1. Отплата дуга домаћим кредиторима | H82: 611
A83: 3.2. Отплата дуга страним кредиторима | H83: 612
A84: 3.3. Отплата дуга по гаранцијама | H84: 613
A85: 4. Набавка финансијске имовине | H85: 6211
A87: НЕРАСПОРЕЂЕНИ ВИШАК ПРИХОДА ИЗ РАНИЈИХ ГОДИНА (класа 3, извор финансирања 13) | K87: =K35 -> 59582907
A89: НЕУТРОШЕНА СРЕДСТАВА ОД ПРИВАТИЗАЦИЈЕ ИЗ ПРЕТХОДНИХ ГОДИНА (класа 3, извор финансирања 14)
A91: Члан 2.
A93: Teku}i prihodi i primawa од продаје нефинансијске имовине са пренетим средствима из претходне године buxeta op{tine Bujanovac utvr|eni su u iznosu od 2.049.430.000,00 dinara (tabela po vrstama prihoda i primawa nalazi se u prilogu Odluke o buxetu za 2022. godinu (1-3)):
A95: Члан 3.
A97: Издаци буџета по osnovnim наменама утврђени су i raspore|eni u 2022. godini u следећим износима:
A99: еко.клас. | D99: ОПИС | H99: Средства из буџета | J99: Sredstva iz осталих извора | L99: Укупно
A100: 1 | D100: 2 | H100: 3 | J100: 4 | L100: 5
A101: 400 | D101: TEKU]I RASHODI | H101: =H108+H115+H118+H121+H123+H128+H130 -> 930254174 | J101: =J108+J115+J118+J121+J123+J128+J130 -> 38124826 | L101: =L108+L115+L118+L121+L123+L128+L130 -> 968379000
A102: 411 | D102: Плате, додаци и накнаде запосленима | H102: 274174000 | L102: =H102+J102 -> 274174000
A103: 412 | D103: Социјални доприноси на терет послодавца | H103: 45672500 | L103: =H103+J103 -> 45672500
A104: 413 | D104: Накнаде у натури | H104: 726000 | L104: 726000
A105: 414 | D105: Социјана давања запосленима | H105: 10026000 | L105: 10026000
A106: 415 | D106: Накнаде трошкова за запослене | H106: 19356000 | L106: 19356000
A107: 416 | D107: Награде, бонуси и остали пословни расхода | H107: 5175000 | L107: 5175000
A108: 410 | D108: РАСХОДИ ЗА ЗАПОСЛЕНЕ | H108: =H102+H103+H104+H105+H106+H107 -> 355129500 | J108: =J102+J103+K104+J105+J106+J107 -> 0 | L108: =L102+L103+L104+L105+L106+L107 -> 355129500
A109: 421 | D109: Стални трошкови | H109: 75591000 | L109: 75591000
A110: 422 | D110: Трошкови путовања | H110: 2512000 | L110: 2512000
A111: 423 | D111: Услуге по уговору | H111: 85766400 | J111: 6575226 | L111: 92341626
A112: 424 | D112: Специјализоване услуге | H112: 25387000 | L112: 25387000
A113: 425 | D113: Текуће поправке и одржавање | H113: 27927500 | J113: 4720000 | L113: 32647500
A114: 426 | D114: Материјал | H114: 25954500 | J114: 1500000 | L114: 27454500
A115: 420 | D115: КОРИШЋЕЊЕ УСЛУГА И РОБА | H115: =H109+H110+H111+H112+H113+H114 -> 243138400 | J115: =J109+J110+J111+J112+J113+J114 -> 12795226 | L115: =L109+L110+L111+L112+L113+L114 -> 255933626
A116: 451 | D116: Subvencije | H116: 37260000 | J116: 14329600 | L116: 51589600
A117: 454 | D117: Subvencije privatnim preduze|ima | H117: 24000000 | L117: 24000000
A118: 450 | D118: SUBVENCIJE | H118: =H116+H117 -> 61260000 | J118: =J116+J117 -> 14329600 | L118: =L116+L117 -> 75589600
A119: 463 | D119: Transferi ostalim nivoima vlasti | H119: =158607300-1440000 -> 157167300 | L119: 157167300
A120: 464 | D120: Dotacije organizacijama obaveznog soc.osigurawa | H120: 17000000 | L120: 17000000
A121: 460 | D121: DONACIJE, DOTACIJE I TRANSFERI | H121: =H119+H120 -> 174167300 | J121: =K119+J120 -> 0 | L121: =L119+L120 -> 174167300
A122: 472 | D122: Naknade za socijalnu za{titu iz buxeta | H122: 35320000 | J122: 11000000 | L122: =K122+J122+H122 -> 46320000
A123: 470 | D123: СОЦИЈАЛНО ОСИГУРАЊЕ И СОЦИЈАЛНА ЗАШ. | H123: =H122 -> 35320000 | J123: =J122 -> 11000000 | L123: =L122 -> 46320000
A124: 481 | D124: Дотације невладиним организацијама | H124: 35224360 | L124: =K124+J124+H124 -> 35224360
A125: 482 | D125: Порези , обавезне таксе и казне | H125: 2723000 | L125: 2723000
A126: 483 | D126: Нов~ане казне и пенали по решењу судова | H126: 18110000 | L126: 18110000
A127: 485 | D127: Накнада штете за неискоришћен годишњи одмор | H127: 1300000 | L127: 1300000
A128: 480 | D128: ОСТАЛИ РАСХОДИ | H128: =H124+H125+H126+H127 -> 57357360 | J128: =K124+J125+J126+K127 -> 0 | L128: =L124+L125+L126+L127 -> 57357360
A129: 499 | D129: Sredstva rezerve | H129: 3881614 | L129: 3881614
A130: 490 | D130: СРЕДСТВА РЕЗЕРВИ | H130: =H129 -> 3881614 | J130: =K129 -> 0 | L130: =L129 -> 3881614
A132: 500 | D132: KAPITALNI IZDACI | H132: =H137 -> 125384000 | J132: =J137 -> 955667000 | L132: =L137 -> 1081051000
A133: 511 | D133: Зграде и грађевински објекти | H133: 106926000 | J133: 948667000 | L133: 1055593000
A134: 512 | D134: Машине и опрема | H134: 13918000 | J134: 7000000 | L134: 20918000
A135: 515 | D135: Нематеријална имовина | H135: 540000 | L135: 540000
A136: 541 | D136: Набавка земљишта | H136: 4000000 | L136: 4000000
A137: 510 | D137: ОСНОВНА СРЕДСТВА | H137: =H133+H134+H135+H136 -> 125384000 | J137: =J133+J134+J135+J136 -> 955667000 | L137: =L133+L134+L135+L136 -> 1081051000
D138: У К У П Н I JAVNI RASHODI | H138: =H101+H137 -> 1055638174 | J138: =J101+J137 -> 993791826 | L138: =L101+L137 -> 2049430000 | M138: =M137+M130+M128+M123+M121+M118+M115+M108 -> 0
A145: Члан 4.
A146: Rashodi i izdaci iz ~lana 1 ove odluke koriste se za slede}e programe:
B148: NAZIV PROGRAMA | I148: IZNOS | L148: Struktura %
B149: Program 1: Урбанизам i prostorno planirawe | I149: =Програми!B7 -> 6000000 | L149: =I149/I166*100 -> 0.2927643296
B150: Program 2: Komunalnе delatnostи | I150: =Програми!B8 -> 108930000 | L150: =I150/I166*100 -> 5.315136404
B151: Program 3: Lokalni економски razvoj | I151: =Програми!B9 -> 49000000 | L151: =I151/I166*100 -> 2.390908692
B152: Program 4: Razvoj turizma | I152: =Програми!B10 -> 12568000 | L152: =I152/I166*100 -> 0.6132436824
B153: Program 5: Razvoj poqoprivrede | I153: =Програми!B11 -> 16400000 | L153: =I153/I166*100 -> 0.8002225009
B154: Program 6: Za{tita `ivotne sredine | I154: =Програми!B12 -> 41900000 | L154: =I154/I166*100 -> 2.044470902
B155: Program 7: Организација саобраћаја и саобраћајна инфраструктура | I155: =Програми!B13 -> 156300000 | L155: =I155/I166*100 -> 7.626510786
B156: Program 8: Pred{kolsko vaspitawe | I156: =Програми!B14 -> 123805500 | L156: =I156/I166*100 -> 6.040972368
B157: Program 9: Osnovno obrazovawe | I157: =Програми!B15 -> 953891200 | L157: =I157/I166*100 -> 46.54421961
B158: Program 10: Sredwe obrazovawe | I158: =Програми!B16 -> 57367100 | L158: =I158/I166*100 -> 2.799173429
B159: Program 11: Socijalna i de~ja za{tita | I159: =Програми!B17 -> 31550226 | L159: =I159/I166*100 -> 1.539463461
B160: Program 12: Зdravstvena za{tita | I160: =Програми!B18 -> 17600000 | L160: =I160/I166*100 -> 0.8587753668
B161: Program 13: Razvoj kulture | I161: =Програми!B19 -> 73091000 | L161: =I161/I166*100 -> 3.566406269
B162: Program 14: Razvoj sporta i omladine | I162: =Програми!B20 -> 43247000 | L162: =I162/I166*100 -> 2.110196494
B163: Program 15: Lokalna samouprava | I163: =Програми!B21 -> 297490514 | L163: =I163/I166*100 -> 14.51576848
B164: Program 16: Политички систем локалне самоуправе | I164: =Програми!B22 -> 44959860 | L164: =I164/I166*100 -> 2.193773879
B165: Program 17: Енергетска ефикасност и обновљиви извори енергије | I165: =Програми!B23 -> 15329600 | L165: =I165/I166*100 -> 0.7479933445
B166: UKUPNO ZA PROGRAM OD 1-17 | I166: =SUM(I149:K165) -> 2049430000
A201: III ИЗВРШЕЊЕ БУЏЕТА
A203: Члан 8.
A204: U 2022. godini novo zapo{qavawe }e se vr{iti u skladu sa ~lanom 27k Zakona o buxetskom sistemu i kadrovskim planom za 2022. godinu, s tim {to je realizacija zapo{qavawa uslovqena i raspolo`ivom masom sredstava za plate obezbe|enim ovom odlukom.
A207: Члан 9.
A208: За извршавање ове Одлуке одговоран је председник општине.
A209: Наредбодавац за извршење буџета је председник општине.
A211: Члан 10.
A212: Наредбодавац диретних и индиректних коriсника буџетских средстава је функционер (руководилац), односно лице које је одговорно за управљање средствима, преузимање обавеза, издавање налога за пла}ање који се извршавају из средстава органа као и издавање налога за уплату средстава која припадају буџету.
A215: Члан 11.
A216: За законито и наменско коришћење средстава распоређених овом Oдлуком, поред функционера односно руководиоца директних и индиректних корисника буџетских средстава, одговоран је начелник општинске управе.
A219: Члан 12.
A220: Oрган управе надлежан за финансије обавезан је да редовно прати извршење буџета и најмање два пута годишње информише председника општине (општинско веће), а обавезно у року од петнаест дана по истеку шестомесечног, односно деветомесечног периода.
A221: У року од петнаест дана по подношењу извештаја из става 1. овог члана општинско веће усваја и доставља извештај Скупштини општине.
A222: Извештај садржи и одступања између усвојеног буџета и извршења и образложење великих одступања.
A224: Члан 13.
A225: Oдлуку о промени апропијације из општих прихода буџета и преносу апропијације у текућу буџетску резерву, у складу са чланом 61. Закона о буџетском систему доноси општинско веће.
A227: Члан 14.
A228: Решење о употреби текуће буџетске резерве и сталне буџетске резерве на предлог локалног органа управе надлежног за финансије доноси општинско веће.
A230: Члан 15.
A231: Oдлуку о отварању буџетског фонда у складу са чланом 64. Закона о буџетском систему доноси општинско веће.
A233: Члан 16.
A234: Општинско веће одговорно је за спровођење фискалне политике и управљање јавном имовином, приходима и примањима и расходима и издацима на начин који је у складу са Законом о буџетском систему.
A236: Члан 17.
A237: Овлаш}ује се председник општине да, у складу са чланом 27ж Закона о буџетском систему, мо`е поднети захтев министраству надлежном за послове финансија за одобрење фискалног дефицита изнад утврђеног дефицита од 10%, уколико је резултат реалiзације јавних инвестиција.
A239: Члан 18.
A240: Новчана средства буџета општине, директних и индиректних корисника средстава тог буџета, као и други корисници јавних средстава који су укључени у консолидовни рачун трезора општине, воде се и депонују на консолидованом рачуну трезора.
A242: Члан 19.
A243: Распоред и коришћење средстава вршиће се у 2022. години по посебном акту (решење) које доноси председник општине, на предлог органа за финансије у оквиру следећих раздела:
A244: - Раздео 1: Скупштина општине
A245: - Раздео 2: Председник општине
A246: - Раздео 3: Општинско веће
A247: - Раздео 4: Правобранилаштво општине Бујановац
A248: - Раздео 5: Општинска управа.
A250: Члан 20.
A251: Обавезе које преузимају директни и индиректни корисници буџетских средстава морају одговарати апропијацији која им је за ту намену овом Одлуком одобрена и пренета.
A252: Изузетно корисници из става 1. овог члана, у складу са чланом 54. Закона о буџетском систему, могу преузети обавезе по уговору који се односи на капиталне издатке и захтева плаћање у више година, на основу предлога органа надлежног за послове финансија, уз сагласност општинског већа, а највише до износа исказаних у плану капиталних издатака из члана 3. ове одлуке. Корисници буџетских средстава су обавезни да пре покретања поступка јавне набавке за преузимање обавеза по уговору за капиталне пројекте прибаве сагласност органа надлежног за финансије.
A253: Корисник буџетских средстава, који одређени расход извршава из средства буџета и из других прихода, обавезан је да измирење тог расхода прво врши из прихода из тих других извора.
A254: Обавезе преузете у 2022. години у складу са одобреним апропијацијама у тој години, а неизвршене у току 2022. године, преносе се у 2023. годину и имају статус преузетих обавеза и извршавају се на терет одобрених апропијација овом одлуком.
A256: Члан 21.
A257: Преузете обавезе и све финансијске обавезе морају бити извршене искључиво на принципу готовинске основе са konsolidovanog ra~una trezora, осим ako je zakonom, odnosno aktom Vlade predvi|en druga~iji metod.
A259: Члан 22.
A260: Korisnici buxetskih sredstava preuzimaju obaveze samo на оsnovu pisanog ugovora ili drugog pravnog akta, ukoliko zakonom nije drugaчije propisano.
A261: Плаћање из буџета неће се извршити уколико нису поштоване процедуре утврђене чланом 56. став 3. Закона о буџетском систему.
A263: Члан 23.
A264: Korisnici buxetskih sredstava prilikom dodeqivawa ugovora o nabavci dobara, pru`awu usluga ili izvo|ewu gra|evinskih radova, moraju da postupe u skladu sa Zakonom o javnim nabavkama ("Slu`beni glasnik RS", broj 91/2019).
A266: Члан 24.
A267: Обавезе према корисницима буџетских средстава извршавају се сразмерно оствареним примањима буџета. Ако се у току годинe primawa смање, издаци буџета извршаваће се по приоритетима, и то: обавезе утврђене законским прописима на постојећем нивоу и минимални стални трошкови неопходни за несметано функционисање корисника буџетских средстава.
A269: Члан 25.
A270: Средства распоређена за финансирање расхода и издатака корисника буџета, преносе се на основу њиховог захтева и у складу са одобреним квотама у тромесечним плановима буџета.
A271: Уз захтев, корисници су дужни да доставе комплетну документацију за плаћање (копије).
A273: Члан 26.
A274: Новчана средства на консолидованом рачуну трезора могу се инвестирати у 2022. години само у складу са чланом 10. Закона о буџетском систему, при чему су, у складу сa истим чланом Закона, председник општине, односно лице које он овласти, одговорни за ефикасност и сигурност тог инвестирања.
A276: Члан 27.
A277: Општинско веће донеће програм рационализације којим ће обухватити све кориснике јавних средстава, укључујући и одређене критеријуме за извршење тог програма, и о томе обавестити скупштину општине.
A278: Корисник буџетских средстава не може, без претходне сагласности председника општине, засновати радни однос са новим лицима до краја 2022. године, уколико средства потребна за исплату плата тих лица нису обезбеђена у оквиру износа средстава која су, у складу са овом одлуком, предвиђена за плате том буџетском кориснику и програмом рационализације из става 1. овог члана.
A279: Члан 28.
A280: Директни и индиректни корисници буџетских средстава u 2022. godini oba~unatu ispravku vrednosti nefinasijske imovine iskazuju na teret kapitala, odnosno ne iskazuju rashod amortizacije i upotrebe sredstava za rad.
A281: Члан 29.
A282: За финансирање дефицита текуће ликvидности, који може да настане услед неуравнотежености кретања у приходима и расходима буџета, председник општине може се задужити у складу са одредбама члана 35. Закона о јавном дугу ("Службени гласник РС", број 61/2005, 107/2009, 78/2011, 68/2015, 95/2018, 91/2019 i 149/2020).
A284: Члан 30.
A285: Корисници буџетских средстава пренеће на рачун извршења буџета до 31. децембра 2022. године, средства која нису утрошена за финансирање расхода у 2022. години, која су овим корисницима пренета у складу са Одлуком о буџету општине Бујановац за 2023. годину.
A288: Члан 31.
A289: Изузетно, у случају да се буџету општине Бујановац из другог буџета (Републике, Покрајине, друге општине) определе актом наменска средства, укључујући и наменска трансферна средства за надокнаду штета услед елементарних непогода, као и у случају уговарања донације, чији износи нису могли бити познати у поступку доношења ове одлуке, орган управе надлежан за финансије на основу тог акта отвара одговарајуће апропијације за извршење расхода по том основу, у складу са чланом 5. Закона о буџетском систему.
A291: Члан 32.
A292: Плаћање са консолидованог рачуна трезора за реализацију обавеза других корисника јавних средстава, у смислу Закона о буџетском систему који су укључени у систем консолидованог рачуна трезора, неће се вршити уколико ови корисници нису добили сагласност на финансијски план на начин прописан законом, односно актом Скупштине општине и уколико тај план нису доставили Управи за трезор.
A294: Члан 33.
A295: U buxetskoj 2022. godini ne}e se vr{iti obra~un i isplata bo`i}nih, godi{wih i drugih vrsta naknada i bonusa predvi|enih posebnim i pojedina~nim kolektivnim ugovorima, za direktne i indirektne korisnike, sredstava buxeta, osim jubilarnih nagrada za zaposlene koje su to pravo stekli u 2022. godini.
... 15 more rows

Sheet Prihodi 2022 - R1
A1: PLAN PRIHODA
A2: BUXET OP[TINE BUJANOVAC
A3: ekonomska klasifik. | B3: opis | C3: sredstva iz buxeta | D3: Sredstva iz ostalih izvora | E3: Sredstva iz sopstvenih izvora | F3: Sredstva iz ostalih izvora | G3: Sredstva iz ostalih izvora | H3: Ukupno | I3: struktura u %
B4: Preneta sredstva iz predhodne godine | C4: 59582907 | H4: =C4+D4+E4+F4 -> 59582907 | I4: =H4/H143*100 -> 2.907291637
A5: 710000 | B5: Porezi | C5: =C6+C27+C41+C60 -> 523200000 | D5: =D6+D27+D41+D60 -> 0 | F5: =F6+F27+F41+F60 -> 0 | G5: =G6+G27+G41+G60 -> 0 | H5: =H6+H27+H41+H60 -> 523200000 | I5: =H5/H142*100 -> 26.29347762 | M5: =C5*0.105% -> 549360
A6: 711000 | B6: Porezi na dohodak i kapitalne dobitke koje pla}aju fizi~ka lica | C6: =C7+C9+C13+C19+C21+C23 -> 363900000 | D6: =D7+D9+D13+D19+D21+D23 -> 0 | F6: 0 | G6: 0 | H6: =C6+D6+E6+F6 -> 363900000 | I6: =H6/H142*100 -> 18.28783736 | J6: 23800000
A7: 711110 | B7: Porez na zarade | C7: =C8 -> 316238500 | D7: =D8 -> 0 | F7: 0 | H7: =C7+D7+E7+F7 -> 316238500 | I7: =H7/H142*100 -> 15.89260306
A8: 711111 | B8: Порез на зараде | C8: =295550000+20688500 -> 316238500 | H8: 316238500 | I8: =H8/H142*100 -> 15.89260306
A9: 711120 | B9: Porez na prihode od samostalnih delatnosti | C9: =C10+C11+C12 -> 21560500 | D9: =D10+D11+D12 -> 0 | F9: 0 | G9: 0 | H9: 21560500 | I9: =H9/H142*100 -> 1.083525467
A10: 711121 | B10: Порез на приходе од самосталних делатности који се плаћа према стварно оствареном приходу, по решењу Пореске управе | C10: 100000 | H10: 100000 | I10: =H10/H142*100 -> 0.005025511777
A11: 711122 | B11: Порез на приходе од самосталних делатности који се плаћа према паушално утврђеном приходу, по решењу Пореске управе | C11: 10650000 | H11: 10650000 | I11: =H11/H142*100 -> 0.5352170042
A12: 711123 | B12: Порез на приходе од самосталних делатности који се плаћа према стварно оствареном приходу самоопорезивањем | C12: =9400000+1410500 -> 10810500 | H12: 10810500 | I12: =H12/H142*100 -> 0.5432829506
A13: 711140 | B13: Porez na prihode od imovine | C13: =C14+C15+C16+C17+C18 -> 421000 | D13: =D14+D15+D16+D17+D18 -> 0 | F13: 0 | G13: 0 | H13: 421000 | I13: =H13/H142*100 -> 0.02115740458
A14: 711143 | B14: Порез на приходе од непокретности | C14: 50000 | H14: 50000 | I14: =H14/H142*100 -> 0.002512755888
A15: 711145 | B15: Порез на приходе од давања у закуп покретних ствари - по основу самоопорезивања и по решењу Пореске управе | C15: =200000+21000 -> 221000 | H15: 221000 | I15: =H15/H142*100 -> 0.01110638103
A16: 711146 | B16: Порез на приход од пољопривреде и шумарства, по решењу Пореске управе | C16: 50000 | H16: 50000 | I16: =H16/H142*100 -> 0.002512755888
A17: 711147 | B17: Порез на земљиште | C17: 50000 | H17: 50000 | I17: =H17/H142*100 -> 0.002512755888
A18: 711148 | B18: Порез на приходе од непокретности, по решењу Пореске управе | C18: 50000 | H18: 50000 | I18: =H18/H142*100 -> 0.002512755888
A19: 711160 | B19: Porez na prihode od osigurawa lica | C19: =C20 -> 0 | D19: =D20 -> 0 | F19: 0 | H19: 0 | I19: =C19/C142*100 -> 0
A20: 711161 | B20: Порез на приходе од осигурања лица | H20: 0 | I20: =C20/C142*100 -> 0
A21: 711180 | B21: Samodoprinosi | C21: =C22 -> 0 | D21: =D22 -> 0 | F21: 0 | H21: 0 | I21: =C21/C142*100 -> 0
A22: 711181 | B22: Самодоприноси | H22: 0 | I22: =C22/C142*100 -> 0
A23: 711190 | B23: Porez na druge prihode | C23: =C24+C26+C25 -> 25680000 | D23: =D24+D26+D25 -> 0 | F23: 0 | G23: 0 | H23: 25680000 | I23: =H23/H142*100 -> 1.290551424
A24: 711191 | B24: Порез на друге приходе | C24: =23750000+1680000 -> 25430000 | H24: 25430000 | I24: =H24/H142*100 -> 1.277987645
A25: 711192 | B25: Porez na neprijavqeni prihod utvr|en unakrsnom procenom | C25: 50000 | H25: 50000 | I25: =H25/H142*100 -> 0.002512755888
A26: 711193 | B26: Porez na prihode sportista i sportskih stru~waka | C26: 200000 | H26: 200000 | I26: =H26/H142*100 -> 0.01005102355
A27: 713000 | B27: Porez na imovinu | C27: =C28+C32+C34+C39 -> 90050000 | D27: =D28+D32+D34+D39 -> 0 | F27: 0 | G27: 0 | H27: 90050000 | I27: =H27/H142*100 -> 4.525473355
A28: 713120 | B28: Porez na imovinu | C28: =C29+C30+C31 -> 57000000 | D28: =D29+D30+D31 -> 0 | F28: =F29+F30+F31 -> 0 | G28: 0 | H28: 57000000 | I28: =H28/H142*100 -> 2.864541713
A29: 713121 | B29: Порез на имовину (осим на земљиште, акције и уделе) од физичких лица | C29: =32500000+2000000 -> 34500000 | H29: 34500000 | I29: =H29/H142*100 -> 1.733801563 | J29: 3500000
A30: 713122 | B30: Порез на имовину (осим на земљиште, акције и уделе) од правних лица | C30: =21000000+1500000 -> 22500000 | H30: 22500000 | I30: =H30/H142*100 -> 1.13074015
A31: 713125 | B31: Порез на имовину обвезника који воде пословне књиге | H31: 0 | I31: =C31/C142*100 -> 0
A32: 713310 | B32: Porez na nasle|e i poklon | C32: =C33 -> 11500000 | D32: =D33 -> 0 | F32: 0 | G32: 0 | H32: 11500000 | I32: =H32/H142*100 -> 0.5779338543
A33: 713311 | B33: Порез на наслеђе и поклон по решењу Пореске управе | C33: 11500000 | H33: 11500000 | I33: =H33/H142*100 -> 0.5779338543
A34: 713420 | B34: Porez na kapitalne transakcije | C34: =C35+C36+C37+C38 -> 21550000 | D34: =D35+D36+D37+D38 -> 0 | F34: 0 | G34: 0 | H34: 21550000 | I34: =H34/H142*100 -> 1.082997788
A35: 713421 | B35: Порез на пренос апсолутних права на непокретности, по решењу Пореске управе | C35: 15500000 | H35: 15500000 | I35: =H35/H142*100 -> 0.7789543254
A36: 713422 | B36: Порез на пренос апсолутних права на акцијама и другим хартијама од вредности, по решењу Пореске управе | C36: 50000 | H36: 50000 | I36: =H36/H142*100 -> 0.002512755888
A37: 713423 | B37: Порез на пренос апсолутних права на моторним возилима, пловилима и ваздухопловима, по решењу Пореске управе | C37: 6000000 | H37: 6000000 | I37: =H37/H142*100 -> 0.3015307066
A38: 713424 | B38: Порез на пренос апсолутних права у осталим случајевима, по решењу Пореске управе | H38: 0 | I38: =C38/C142*100 -> 0
A39: 713610 | B39: Porez na akcije na ime i udele | C39: =C40 -> 0 | D39: =D40 -> 0 | F39: 0 | H39: 0 | I39: =C39/C142*100 -> 0
A40: 713611 | B40: Порез на акције на име и уделе | H40: 0 | I40: =C40/C142*100 -> 0
A41: 714000 | B41: Porez na dobra i usluge | C41: =C42+C44+C46+C49+C52+C54+C58 -> 38750000 | D41: =D42+D44+D46+D49+D52+D54+D58 -> 0 | F41: =F42+F44+F46+F49+F52+F54+F58 -> 0 | G41: =G42+G44+G46+G49+G52+G54+G58 -> 0 | H41: 38750000 | I41: =H41/H142*100 -> 1.947385814
A42: 714430 | B42: Komunalna taksa za kori{}ewe reklamnih panoa | C42: =C43 -> 100000 | D42: =D43 -> 0 | F42: 0 | G42: 0 | H42: 100000 | I42: =H42/H142*100 -> 0.005025511777
A43: 714431 | B43: Комунална такса за коришћење рекламних паноа, укључујући и истицање и исписивање фирме ван пословног простора на објектима и просторима који припадају јединици локалне самоуправе(коловози, тротоари, зелене површине, бандере и сл.) | C43: 100000 | H43: 100000 | I43: =H43/H142*100 -> 0.005025511777
A44: 714440 | B44: Sredstva za vanredne situacije | C44: =C45 -> 0 | D44: =D45 -> 0 | F44: 0 | H44: 0 | I44: =C44/C142*100 -> 0
A45: 714441 | B45: Средства за противпожарну заштиту | H45: 0 | I45: =C45/C142*100 -> 0
A46: 714510 | B46: Porezi, takse I naknade na motorna vozila | C46: =C47+C48 -> 29000000 | D46: =D47+D48 -> 0 | F46: 0 | G46: 0 | H46: 29000000 | I46: =H46/H142*100 -> 1.457398415
A47: 714513 | B47: Комунална такса за држање моторних друмских и прикључних возила, осим пољопривредних возила и машина | C47: 29000000 | H47: 29000000 | I47: =H47/H142*100 -> 1.457398415
A48: 714514 | B48: Годишња накнада за друм.мот. возила, тракторе и прикључна возила | H48: 0 | I48: =C48/C142*100 -> 0
A49: 714540 | B49: Naknade za kori{}ewe dobara od op{teg interesa | C49: =C50+C51 -> 1000000 | D49: =D50 -> 0 | F49: =F50 -> 0 | G49: =G50 -> 0 | H49: 1000000 | I49: =H49/H142*100 -> 0.05025511777
A50: 714543 | B50: Накнада за промену намене обрадивог пољопривредног земљишта | C50: 1000000 | H50: 1000000 | I50: =H50/H142*100 -> 0.05025511777
A51: 714548 | B51: Naknade za supstance koje o{te}uju oznski omota~ i nak.za pl.kese | H51: 0 | I51: =H51/H143*100 -> 0
A52: 714550 | B52: Koncesione naknade i boravisne takse | C52: =C53 -> 100000 | D52: =D53 -> 0 | F52: 0 | G52: 0 | H52: 100000 | I52: =H52/H142*100 -> 0.005025511777
A53: 714552 | B53: Боравишна такса | C53: 100000 | H53: 100000 | I53: =H53/H142*100 -> 0.005025511777
A54: 714560 | B54: Op{tinske i gradske naknade | C54: =C55+C56+C57 -> 8050000 | D54: =D55+D56+D57 -> 0 | F54: =F55 -> 0 | G54: 0 | H54: 8050000 | I54: =H54/H142*100 -> 0.404553698
A55: 714562 | B55: Посебна накнада за заштиту и унапређење животне средине | C55: 5500000 | H55: 5500000 | I55: =H55/H142*100 -> 0.2764031477
A56: 714565 | B56: Naknada za kori{}ewe javnih povr{ina u poslovne i druge svrhe | C56: =2000000+500000 -> 2500000 | H56: 2500000 | I56: =H56/H142*100 -> 0.1256377944 | J56: 500000
A57: 714567 | B57: Naknada kori{}ewa javnih povr{ina zauzete gra|evinskim materijalom | C57: 50000 | H57: 50000 | I57: =H57/H142*100 -> 0.002512755888
A58: 714570 | B58: Op{tinske i gradske komunalne naknade | C58: =C59 -> 500000 | D58: =D59 -> 0 | F58: 0 | G58: 0 | H58: 500000 | I58: =H58/H142*100 -> 0.02512755888
A59: 714572 | B59: Комунална такса за држање средстава за игру („забавне игре“) | C59: 500000 | H59: 500000 | I59: =H59/H142*100 -> 0.02512755888
A60: 716000 | B60: Drugi porezi | C60: =C61 -> 30500000 | D60: =D61 -> 0 | F60: 0 | G60: 0 | H60: 30500000 | I60: =H60/H142*100 -> 1.532781092
A61: 716110 | B61: Komunalna taksa na firmu | C61: =C62 -> 30500000 | D61: 0 | F61: 0 | G61: 0 | H61: 30500000 | I61: =H61/H142*100 -> 1.532781092
A62: 716111 | B62: Комунална такса за истицање фирме на пословном простору | C62: =28500000+2000000 -> 30500000 | H62: 30500000 | I62: =H62/H142*100 -> 1.532781092 | J62: 2000000
A63: 731000 | B63: Донације од иностраних држава | D63: =D64 -> 0 | F63: =F64+F71 -> 0 | G63: 0 | H63: =SUM(C63:G63) -> 0 | I63: =H63/H142*100 -> 0
A64: 731100 | B64: Текуће донације од иностраних држава | D64: 0 | F64: =F65+F69+F70 -> 0 | G64: 0 | H64: =SUM(C64:G64) -> 0 | I64: =H64/H142*100 -> 0
A65: 731151 | B65: Текуће донације од иностраних држава у корист нивоа општина | H65: =SUM(C65:G65) -> 0 | I65: =H65/H142*100 -> 0
A66: 732000 | B66: Donacije i pomo}i od me|unarodnih organizacija | D66: =D67 -> 50400000 | H66: =D66+C66 -> 50400000 | I66: =H66/H143*100 -> 2.459220369
A67: 732250 | B67: Капиталнe donacije od me|unarodnih organizacija u korist op{tina | D67: =D68 -> 50400000 | H67: =D67+C67 -> 50400000 | I67: =H67/H142*100 -> 2.532857936
A68: 732251 | B68: Капиталнe donacije od me|unarodnih organizacija u korist op{tina | D68: =27000000+23400000 -> 50400000 | H68: 50400000 | I68: =H68/H142*100 -> 2.532857936
A69: 733000 | B69: Transferi od drugih nivoa vlasti | C69: =C70+C74 -> 391927692 | D69: =D70+D74 -> 955531826 | F69: 0 | G69: 0 | H69: 1347459518 | I69: =H69/H142*100 -> 67.71673677
A70: 733150 | B70: Teku}i transferi od drugih nivoa vlasti u korist nivoa op{tina | C70: =C71+C72+C73 -> 391927692 | D70: =D71+D72+D73 -> 43604826 | F70: 0 | G70: 0 | H70: 435532518 | I70: =H70/H142*100 -> 21.88773798
A71: 733151 | B71: Ненаменски трансфери од Републике у корист нивоа општина | C71: 391927692 | H71: 391927692 | I71: =H71/H142*100 -> 19.69637232
A72: 733152 | B72: Други текући трансфери од Републике у корист нивоа општина | D72: 11000000 | H72: 11000000 | I72: =H72/H142*100 -> 0.5528062955
A73: 733154 | B73: Текући наменски трансфери, у ужем смислу, од Републике у корист нивоа општина | D73: =26700000+5329600+575226 -> 32604826 | H73: 32604826 | I73: =H73/H142*100 -> 1.63855937
A74: 733250 | B74: Kapitalni transferi od drugih nivoa vlasti u korist nivoa op{tina | D74: =D75 -> 911927000 | F74: =F75 -> 0 | G74: 0 | H74: 911927000 | I74: =H74/H142*100 -> 45.82899878
A75: 733251 | B75: Капитални трансфери од других нивоа власти у корист нивоа општина | D75: =903327000+8000000+6500000-5900000 -> 911927000 | H75: 911927000 | I75: =H75/H142*100 -> 45.82899878 | M75: 94620000+6000000
A76: 741000 | B76: Prihodi od imovine | C76: =C77+C79+C84+C81+C93 -> 2800000 | F76: =F77+F79+F84+F81 -> 0 | G76: 0 | H76: =C76+D76+E76+F76 -> 2800000 | I76: =H76/H142*100 -> 0.1407143298
A77: 741150 | B77: Kamate na sredstva konsolidovanog ra~una trezora op{tina | C77: =C78 -> 0 | F77: =F78 -> 0 | G77: 0 | H77: 0 | I77: =H77/H142*100 -> 0
A78: 741151 | B78: Приходи буџета општине од камата на средства консолидованог рачуна трезора укључена у депозит банака | H78: 0 | I78: =H78/H142*100 -> 0
A79: 741410 | B79: Prihod od imovine | C79: =C80 -> 0 | F79: =F80 -> 0 | H79: 0 | I79: =C79/C142*100 -> 0
A80: 741411 | B80: Приход од имовине који припада имаоцима полисе осигурања | H80: =C80+D80+E80+F80 -> 0 | I80: =C80/C142*100 -> 0
A81: 741520 | B81: Накнада за коришћење шумског и пољопривредног земљишта | C81: =C82+C83 -> 100000 | F81: =F82+F83 -> 0 | G81: 0 | H81: 100000 | I81: =H81/H142*100 -> 0.005025511777
A82: 741522 | B82: Sredstva ostvarena od davawa u zakup poqoprivrednog zemqi{ta, odnosno poqoprivrednog objekta u dr`avnoj svojini | C82: 50000 | H82: 50000 | I82: =H82/H142*100 -> 0.002512755888
A83: 741526 | B83: Naknada za kori{}ewe {uma i {umskog zemqi{ta | C83: 50000 | H83: 50000 | I83: =H83/H142*100 -> 0.002512755888
A84: 741530 | B84: Naknada za kori{}ewe prostora i gra|evinskog zemqi{ta | C84: =C85+C86+C87+C88+C90+C89 -> 2000000 | F84: =F85+F86+F87+F88+F90 -> 0 | G84: 0 | H84: 2000000 | I84: =H84/H142*100 -> 0.1005102355
A85: 741531 | B85: Комунална такса за коришћење простора на јавним површинама или испред пословног простора у пословне сврхе, осим ради продаје штампе, књига и других публикација, производа старих и уметничких заната и домаће радиности | C85: 2000000 | H85: 2000000 | I85: =H85/H142*100 -> 0.1005102355
A86: 741532 | B86: Комунална такса за коришћење простора за паркирање друмских моторних и прикључних возила на уређеним и обележеним местима | H86: 0 | I86: =H86/H142*100 -> 0
A87: 741533 | B87: Комунална такса за коришћење слободних површина за кампове, постављање шатора или друге облике привременог коришћења | H87: 0 | I87: =H87/H142*100 -> 0
A88: 741534 | B88: Накнада за коришћење gradskog грађевинског земљишта | H88: 0 | I88: =H88/H143*100 -> 0
A89: 741534 | B89: Naknada za kori{}ewe gradskog gra|evinskog zemwi{ta | H89: =SUM(C89:G89) -> 0 | I89: =H89/H142*100 -> 0
A90: 741535 | B90: Комунална такса за заузеће јавне површине грађевинским материјалом | H90: 0 | I90: =H90/H142*100 -> 0
A91: 741542 | B91: Накнада за коришћење природног лековитог фактора | H91: 0 | I91: =C91/C142*100 -> 0
A92: 741560 | B92: Накнада за воде | H92: 0 | I92: =C92/C142*100 -> 0
A93: 741500 | B93: Накнада за коришћење дрвета | C93: =C94 -> 700000 | F93: =F97+F105+F110+F95 -> 0 | G93: =G97+G105+G110+G95 -> 0 | H93: =C93+D93+E93+F93 -> 700000 | I93: =H93/H142*100 -> 0.03517858244
A94: 741596 | B94: Накнада за коришћење дрвета | C94: =500000+200000 -> 700000 | H94: 700000 | I94: =H94/H142*100 -> 0.03517858244 | J94: 200000
A95: 742000 | B95: Prihodi od prodaje dobara i usluga | C95: =C98+C106+C111+C96+C113 -> 43600000 | F95: =F98+F106+F111+F96 -> 0 | G95: 0 | H95: =C95+D95+E95+F95 -> 43600000 | I95: =H95/H142*100 -> 2.191123135
A96: 742120 | B96: Prihodi od prodaje dobara i usluga ili zakupa od strane tr`i{nih organizacija u korist nivoa Republike | C96: =C97 -> 0 | F96: =F97 -> 0 | G96: 0 | H96: 0 | I96: =H96/H142*100 -> 0
A97: 742126 | B97: Накнада конверзије права у корист нивоа Republike | H97: 0 | I97: =H97/H142*100 -> 0
A98: 742150 | B98: Prihodi od prodaje dobara i usluga ili zakupa od strane tr`i{nih organizacija u korist nivoa op{tina | C98: =C99+C101+C102+C103+C104+C100+C105 -> 14900000 | E98: =E99+E101+E102+E103+E104+E100+E105 -> 0 | F98: 0 | G98: 0 | H98: 14900000 | I98: =H98/H142*100 -> 0.7488012548
A99: 742152 | B99: Приходи од davawa u zakup, odnosno na kori{}ewe nepokretnosti u dr`avnoj svojini koje koriste op{tine i indirektni korisnici wihovog buxeta | H99: 0 | I99: =C99/C142*100 -> 0
A100: 742152 | B100: Приходи од davawa u zakup, odnosno na kori{}ewe nepokretnosti u dr`avnoj svojini koje koriste op{tine i indirektni korisnici wihovog buxeta | C100: 50000 | H100: =C100+D100+E100+F100 -> 50000 | I100: =H100/H142*100 -> 0.002512755888
A101: 742153 | B101: Приходи од закупнине за грађевинско земљиште у корист нивоа општина | C101: 900000 | H101: 900000 | I101: =H101/H142*100 -> 0.04522960599
A102: 742154 | B102: Накнада по основу конверзије права коришћења у право својине у корист нивоа општине | H102: 0 | I102: =H102/H142*100 -> 0
A103: 742155 | B103: Приходи од давања у закуп, односно на коришћење непокретности у општинској својини које користе општине и индиректни корисници њиховог буџета | C103: 8950000 | H103: 8950000 | I103: =H103/H142*100 -> 0.449783304
A104: 742156 | B104: Prihodi ostvareni po osnovu pru`awa usluga boravka dece u pred{kolskim ustanovama u korist nivoa op{tina | H104: 0 | I104: =H104/H143*100 -> 0
A105: 742156 | B105: Prihodi ostvareni po osnovu pru`awa usluga boravka dece u pred{kolskim ustanovama u korist nivoa op{tina | C105: 5000000 | H105: 5000000 | I105: =H105/H142*100 -> 0.2512755888
A106: 742250 | B106: Takse u korist nivoa op{tina | C106: =C107+C108+C109+C110 -> 28700000 | F106: =F107+F108+F109+F110 -> 0 | G106: 0 | H106: 28700000 | I106: =H106/H142*100 -> 1.44232188
A107: 742251 | B107: Општинске административне таксе | C107: 8700000 | H107: 8700000 | I107: =H107/H142*100 -> 0.4372195246
A108: 742252 | B108: Накнада за обавезни здравствени преглед биља | H108: 0 | I108: =C108/C142*100 -> 0
A109: 742253 | B109: Накнада за уређивање грађевинског земљишта | C109: 19000000 | H109: 19000000 | I109: =H109/H142*100 -> 0.9548472376
A110: 742255 | B110: Такса за озакоњење објеката | C110: 1000000 | H110: 1000000 | I110: =H110/H142*100 -> 0.05025511777
A111: 742350 | B111: Prihodi op{tinskih organa od sporedne prodaje dobara i usluga koje vr{e dr`avne netr`i{ne jedinice | C111: =C112 -> 0 | D111: =D112 -> 0 | F111: 0 | G111: 0 | H111: 0 | I111: =H111/H142*100 -> 0
A112: 742351 | B112: Приходи koji svojom delatno{}u ostvare organi i organizacije op{tina | H112: 0 | I112: =H112/H142*100 -> 0
A113: 742370 | B113: Prihodi indirektnih korisnika buxeta lokalne samouprave koji se ostvaruju dodatnim aktivnostima | C113: =C114 -> 0 | H113: =SUM(C113:G113) -> 0 | I113: =H113/H142*100 -> 0
A114: 742372 | B114: Prihodi indirektnih korisnika buxeta lokalne samouprave koji se ostvaruju dodatnim aktivnostima | H114: =SUM(C114:G114) -> 0 | I114: =H114/H142*100 -> 0
A115: 743000 | B115: Nov~ane kazne i oduzeta imovinska korist | C115: =C116+C118+C126 -> 15600000 | F115: =F116+F118 -> 0 | G115: 0 | H115: 15600000 | I115: =H115/H142*100 -> 0.7839798372
A116: 743320 | B116: Prihodi od nov~anih kazni za prekr{aje u korist nivoa Republike | C116: =C117 -> 14500000 | F116: =F117 -> 0 | G116: 0 | H116: 14500000 | I116: =H116/H142*100 -> 0.7286992076
A117: 743324 | B117: Приходи од новчаних казни за прекршаје, предвиђене прописима о безбедности саобраћаја на путевима | C117: =12000000+2500000 -> 14500000 | H117: 14500000 | I117: =H117/H142*100 -> 0.7286992076 | J117: 2500000
A118: 743350 | B118: Приходи од новчаних казни izre~enih у прекршајном поступку за прекршаје прописане актом скупштине општине | C118: =C119+C125 -> 1000000 | F118: =F119 -> 0 | G118: 0 | H118: 1000000 | I118: =H118/H142*100 -> 0.05025511777
A119: 743351 | B119: Приходи од новчаних казни изрe~ених у прекршајном поступку за прекршаје прописане актом скупштине општине | C119: 1000000 | H119: 1000000 | I119: =H119/H142*100 -> 0.05025511777
A120: 744000 | B120: Dobrovoqni transferi od fizi~kih i pravnih lica | D120: =D121+D123 -> 0 | F120: 0 | H120: 0 | I120: =H120/H143*100 -> 0
A121: 744150 | B121: Teku}i dobrovoqni transferi od fizi~kih i pravnih lica u korist nivoa op{tina | D121: =D122 -> 0 | F121: 0 | H121: 0
A122: 744151 | B122: Текући добровољни трансфери од физичких и правних лица у корист нивоа op{tina | H122: 0
A123: 744250 | B123: Kapitalni dobrovoqni transferi od fizi~kih i pravnih lica u korist nivoa op{tina | D123: =D124 -> 0 | F123: 0 | H123: 0
A124: 744251 | B124: Капитални добровољни трансфери од физичких и правних лица у корист нивоа op{tina | H124: 0
A125: 743353 | B125: Prihodi od mandatnih kazni i kazni izre~enih u upravnom postupku u korist nivoa op{tine | H125: 0 | I125: =H125/H142*100 -> 0
A126: 743920 | B126: Prihodi od poreskog duga 5% na dan prinudne naplate LPA | C126: =C127 -> 100000 | H126: =SUM(C126:G126) -> 100000 | I126: =H126/H142*100 -> 0.005025511777
A127: 743924 | B127: Prihodi od poreskog duga 5% na dan prinudne naplate LPA | C127: 100000 | H127: =SUM(C127:G127) -> 100000 | I127: =H127/H142*100 -> 0.005025511777
A128: 745000 | B128: Me{oviti i neodre|eni prihodi | C128: =C129 -> 6687575 | F128: =F129 -> 0 | G128: 0 | H128: 6687575 | I128: =H128/H142*100 -> 0.3360848692
A129: 745150 | B129: Me{oviti i neodre|eni prihodi u korist nivoa op{tina | C129: =C130+C131 -> 6687575 | F129: =F130+F131 -> 0 | G129: 0 | H129: 6687575 | I129: =H11/H142*100 -> 0.5352170042
A130: 745151 | B130: Остали приходи у корист нивоа општина | C130: =4845308+1841867+400 -> 6687575 | H130: 6687575 | I130: =H130/H142*100 -> 0.3360848692 | J130: 1841867
A131: 745152 | B131: Закупнина за стан у државној својини у корист нивоа општина | H131: 0 | I131: =C131/C142*100 -> 0
A132: 772000 | B132: Меморандумске ставке за рефундацију расхода иѕ предходне године | C132: =C133 -> 0 | D132: =D133 -> 0 | F132: 0 | G132: 0 | H132: 0 | I132: =H132/H142*100 -> 0
A133: 772110 | B133: Меморандумске ставке за рефундацију расхода иѕ предходне године | C133: =C134 -> 0 | D133: 0 | F133: 0 | G133: 0 | H133: 0 | I133: =H133/H142*100 -> 0
A134: 772111 | B134: Меморандумске ставке за рефундацију расхода иѕ предходне године | H134: 0 | I134: =H134/H142*100 -> 0
A135: 791000 | B135: Приходи из буџета | C135: =C136 -> 0 | D135: =D136 -> 0 | F135: 0 | G135: 0 | H135: 0 | I135: =H135/H142*100 -> 0
A136: 791110 | B136: Приходи из буџета | C136: =C137 -> 0 | D136: 0 | F136: 0 | G136: 0 | H136: 0 | I136: =H136/H142*100 -> 0
A137: 791111 | B137: Приходи из буџета | D137: =20000000-20000000 -> 0 | H137: =C137+D137+E137+G137 -> 0 | I137: =H137/H142*100 -> 0
A138: 811000 | B138: Primawa od prodaje osnovnih sredstava | C138: =C139 -> 100000 | F138: =F139 -> 0 | G138: 0 | H138: 100000 | I138: =H138/H142*100 -> 0.005025511777
A139: 811150 | B139: Primawa od prodaje nepokretnosti u korist nivoa op{tina | C139: =C141+C140 -> 100000 | F139: =F141 -> 0 | G139: =G141 -> 0 | H139: 100000 | I139: =H139/H142*100 -> 0.005025511777
A140: 811152 | B140: Prihodi od prodaje stanova u korist nivoa op{tine | H140: =SUM(C140:G140) -> 0 | I140: =H140/H143*100 -> 0
A141: 811153 | B141: Примања од отплате станова у корист нивоа општина | C141: 100000 | H141: 100000 | I141: =H141/H142*100 -> 0.005025511777
B142: UKUPNO TEKU]I PRIHODI I PRIMAWA | C142: =C6+C27+C41+C60+C69+C76+C95+C115+C132+C135+C138+C128 -> 983915267 | D142: =D6+D27+D41+D60+D69+D76+D95+D115+D120+D132+D135+D138+D128+D63+D66 -> 1005931826 | E142: =E6+E27+E41+E60+E69+E76+E95+E115+E120+E132+E135+E138+E128+E63 -> 0 | F142: =F6+F27+F41+F60+F69+F76+F95+F115+F120+F132+F135+F138+F128 -> 0 | G142: =G6+G27+G41+G60+G69+G76+G95+G115+G120+G132+G135+G138+G128 -> 0 | H142: =C142+D142+E142+F142+G142 -> 1989847093 | I142: =(C142+D142+E142+G142)/H142*100 -> 100
B143: UKUPNO PRENETA SREDSTVA TEKU]I PRIHODI I PRIMAWA | C143: =C142+C4 -> 1043498174 | D143: 1005931826 | E143: 0 | F143: 0 | G143: 0 | H143: 2049430000 | I143: =(C143+D143+E143+G143)/H143*100 -> 100

Sheet Функ.клас 2022 - R1
A2: ^lan 5.
A3: Izdaci buxeta, po funkcionalnoj klasifikaciji, utvr|eni su i raspore|eni u slede}im iznosima:
A5: Функције | B5: Функционална класификација | C5: Средства из буџета | D5: Структура % | E5: Средства из осталих извора | F5: Укупна средства
A6: 1 | B6: 2 | C6: 3 | D6: 4 | E6: 5 | F6: 6
A7: 000 | B7: СОЦИЈАЛНА ЗАШТИТА | C7: =SUBTOTAL(9,C8:C9) -> 31875000 | D7: =C7/$C$56*100 -> 3.019500505 | E7: =SUBTOTAL(9,E8:E9) -> 6575226 | F7: =SUBTOTAL(9,F8:F9) -> 38450226
A8: 070 | B8: Социјална помоћ угроженом становништву, некласификована на другом месту | C8: 12260000 | D8: 1.161382783 | F8: =C8+E8 -> 12260000
A9: 090 | B9: Социјална заштита некласификована на другом месту | C9: 19615000 | D9: 1.858117723 | E9: 6575226 | F9: =C9+E9 -> 26190226
A10: 100 | B10: ОПШТЕ ЈАВНЕ УСЛУГЕ | C10: =SUBTOTAL(9,C11:C14) -> 320023374 | D10: 30.31563104 | F10: =SUBTOTAL(9,F11:F14) -> 324743374
A11: 110 | B11: Извршни законодавни органи, финансијски и фискални послови и спољни послови | C11: =SUBTOTAL(9,C12) -> 44959860 | D11: 4.259021804 | E11: =SUBTOTAL(9,E12) -> 0 | F11: =SUBTOTAL(9,F12) -> 44959860
A12: 111 | B12: Извршни и законодавни органи | C12: 44959860 | D12: 4.259021804 | F12: =C12+E12 -> 44959860
A13: 130 | B13: Опште услуге | C13: 248154514 | D13: 23.50753507 | F13: =C13+E13 -> 248154514 | J13: 100
A14: 160 | B14: Опште јавне услуге некласификоване на другом месту | C14: 26909000 | D14: 2.549074168 | E14: 4720000 | F14: =C14+E14 -> 31629000
A15: 300 | B15: ЈАВНИ РЕД И БЕЗБЕДНОСТ | C15: =SUBTOTAL(9,C16) -> 18807000 | D15: 1.781576345 | F15: =SUBTOTAL(9,F16) -> 18807000
A16: 330 | B16: Судови | C16: 18807000 | D16: 1.781576345 | F16: =C16+E16 -> 18807000 | L16: 762961000
A17: 400 | B17: ЕКОНОМСКИ ПОСЛОВИ | C17: =SUBTOTAL(9,C18:C25) -> 170068000 | D17: 16.1104443 | E17: =SUBTOTAL(9,E18:E25) -> 64200000 | F17: =SUBTOTAL(9,F18:F25) -> 234268000
A18: 410 | B18: Општи економски и комерцијални послови и послови по питању рада | C18: =SUBTOTAL(9,C19) -> 49000000 | D18: 4.641741954 | E18: =SUBTOTAL(9,E19) -> 0 | F18: =SUBTOTAL(9,F19) -> 49000000
A19: 411 | B19: Општи економски и комерцијални послови | C19: 49000000 | D19: 4.641741954 | F19: =C19+E19 -> 49000000
A20: 420 | B20: Пољопривреда, шумарство, лов и риболов | C20: =SUBTOTAL(9,C21) -> 12400000 | D20: 1.174644903 | F20: =SUBTOTAL(9,F21) -> 16400000
A21: 421 | B21: Пољопривреда | C21: 12400000 | D21: 1.174644903 | E21: 4000000 | F21: =C21+E21 -> 16400000
A22: 450 | B22: Саобраћај | C22: =SUBTOTAL(9,C23) -> 96100000 | D22: 9.103497995 | F22: =SUBTOTAL(9,F23) -> 156300000
A23: 451 | B23: Друмски саобраћај | C23: 96100000 | D23: 9.103497995 | E23: 60200000 | F23: =C23+E23 -> 156300000
A24: 470 | B24: Остале делатности | C24: =SUBTOTAL(9,C25) -> 12568000 | D24: 1.190559446 | F24: =SUBTOTAL(9,F25) -> 12568000
A25: 473 | B25: Туризам | C25: 12568000 | D25: 1.190559446 | F25: =C25+E25 -> 12568000
A26: 500 | B26: ЗАШТИТА ЖИВОТНЕ СРЕДИНЕ | C26: =SUBTOTAL(9,C27:C27) -> 7400000 | D26: 0.7009977644 | E26: =SUBTOTAL(9,E27:E27) -> 34500000 | F26: =SUBTOTAL(9,F27:F27) -> 41900000
A27: 560 | B27: Заштита животне средине некласификована на другом месту | C27: 7400000 | D27: 0.7009977644 | E27: 34500000 | F27: =C27+E27 -> 41900000
A28: 600 | B28: ПОСЛОВИ СТАНОВАЊА И ЗАЈЕДНИЦЕ | C28: =SUBTOTAL(9,C29:C32) -> 91130000 | D28: 8.632692739 | F28: =SUBTOTAL(9,F29:F32) -> 122259600
A29: 620 | B29: Развој заједнице | C29: 1000000 | D29: 0.09472942762 | F29: =C29+E29 -> 1000000
A30: 630 | B30: Водоснабдевање | C30: 17830000 | D30: 1.689025695 | E30: 11000000 | F30: =C30+E30 -> 28830000
A31: 640 | B31: Улична расвета | C31: 45800000 | D31: 4.338607785 | E31: 13129600 | F31: =C31+E31 -> 58929600
A32: 660 | B32: Послови становања и заједнице некласификоване на другом месту | C32: 26500000 | D32: 2.510329832 | E32: 7000000 | F32: =C32+E32 -> 33500000
A38: Функције | B38: Функционална класификација | C38: Средства из буџета | D38: Структура % | E38: Средства из осталих извора | F38: Укупна средства
A39: 1 | B39: 2 | C39: 3 | D39: 4 | E39: 5 | F39: 6
A41: 700 | B41: ЗДРАВСТВО | C41: =SUBTOTAL(9,C42:C43) -> 17600000 | D41: =C41/$C$56*100 -> 1.667237926 | E41: =SUBTOTAL(9,E42:E43) -> 0 | F41: =SUBTOTAL(9,F42:F43) -> 17600000
A42: 721 | B42: Опште медицинске услуге | C42: 400000 | D42: 0.03789177105 | F42: =C42+E42 -> 400000
A43: 740 | B43: Услуге јавног здравства | C43: 17200000 | D43: 1.629346155 | F43: =C43+E43 -> 17200000
A44: 800 | B44: РЕКРЕАЦИЈА, СПОРТ, КУЛТУРА И ВЕРЕ | C44: =SUBTOTAL(9,C45:C49) -> 109838000 | D44: 10.40489087 | E44: =SUBTOTAL(9,E45:E49) -> 6500000 | F44: =SUBTOTAL(9,F45:F49) -> 116338000
A45: 810 | B45: Услуге рекреације и спорта | C45: 36747000 | D45: 3.481022277 | E45: 6500000 | F45: =C45+E45 -> 43247000
A46: 820 | B46: Услуге културе | C46: 58441000 | D46: 5.53608248 | F46: =C46+E46 -> 58441000
A47: 830 | B47: Услуге емитовања и штампања | C47: 6000000 | D47: 0.5683765657 | F47: =C47+E47 -> 6000000
A48: 840 | B48: Verske i ostale usluge zajednice | C48: 4500000 | D48: 0.4262824243 | F48: =C48+E48 -> 4500000
A49: 860 | B49: Rekreacija, sport, kultura i vere, neklasifikovano na drugom mestu | C49: 4150000 | D49: 0.3931271246 | F49: =C49+E49 -> 4150000
A50: 900 | B50: ОБРАЗОВАЊЕ | D50: 0 | E50: =SUBTOTAL(9,E51:E55) -> 846167000 | F50: 1135063800
A51: 910 | B51: Предшколско и основно образовање | C51: =SUBTOTAL(9,C52:C53) -> 215095700 | D51: 20.37589255 | F51: =SUBTOTAL(9,F52:F53) -> 1048762700
A52: 911 | B52: Предшколско образовање | C52: 123805500 | D52: 11.72802415 | F52: =C52++E52 -> 123805500
A53: 912 | B53: Основно образовање | C53: 91290200 | D53: 8.647868394 | E53: 833667000 | F53: =C53+E53 -> 924957200
A54: 920 | B54: Средње образовање | C54: 28507100 | D54: 2.700461266 | F54: =C54+E54 -> 28507100
A55: 960 | B55: Помоћне услуге образовању | C55: 45294000 | D55: 4.290674695 | E55: 12500000 | F55: =C55+E55 -> 57794000
B56: УКУПНО | C56: =SUBTOTAL(9,C7:C55)-3 -> 1055638174 | D56: 100 | E56: =SUBTOTAL(9,E7:E55)-5 -> 993791826 | F56: =SUBTOTAL(9,F7:F55)-6 -> 2049430000
A59: II ПОСЕБАН ДЕО
A61: ^lan 6.
A64: Ukupni rashodi i izdaci, ukqu~uju}i rashode za otplatu glavnice duga, u iznosu od 2.049.430.000,00 динара, финансирани из свих извора финансирања распоређују се по корисницима и врстама издатака.

Sheet Прог.актив. 2022 - R1
A1: ^lan 7.
A2: Sredstva buxeta u iznosu od 1.055.638.174,00 dinara, sredstva iz осталих извора u iznosu od 993.791.826,00 dinara, utvr|eni su i raspore|eni po programskoj klasifikaciji u 2022. godinи:
A5: Шифра | C5: Назив | D5: Средства из буџета | E5: Средства из осталих извора | F5: Укупна средства | G5: Надлежни орган
A6: Програм | B6: Програмска активност/ Пројекат
A7: 1 | B7: 2 | C7: 3 | D7: 4 | E7: 5 | F7: 6 | G7: 7
A8: 1101 | C8: Програм 1. Локални развој и просторно планирање | D8: =SUBTOTAL(9,D9:D9) -> 6000000 | E8: =SUBTOTAL(9,E9:E9) -> 0 | F8: =SUBTOTAL(9,F9:F9) -> 6000000
B9: 1101-0001 | C9: Стратешко, просторно и урбанистичко планирање | D9: 6000000 | F9: =D9+E9 -> 6000000 | G9: Општинска управа
A10: 1102 | C10: Програм 2. Комунална делатност | D10: =SUBTOTAL(9,D11:D16) -> 88130000 | E10: =SUBTOTAL(9,E11:E16) -> 20800000 | F10: =SUBTOTAL(9,F11:F16) -> 108930000
B11: 1102-0001 | C11: Јавна расвета | D11: 40800000 | E11: 2800000 | F11: =D11+E11 -> 43600000 | G11: Општинска управа
B12: 1102-0002 | C12: Уређење и одржавање зеленила | D12: 1500000 | F12: 1500000 | G12: Општинска управа
B13: 1102-0003 | C13: Јавна хигијена | D13: 25000000 | E13: 7000000 | F13: 32000000 | G13: Општинска управа
B14: 1102-0004 | C14: Зоохигијена | D14: 2000000 | F14: 2000000 | G14: Општинска управа
B15: 1102-0005 | C15: Уређивање, одржавање и коришћење пијаца | D15: 1000000 | F15: 1000000 | G15: Општинска управа
B16: 1102-0008 | C16: Водоснабдевање | D16: 17830000 | E16: 11000000 | F16: 28830000 | G16: Општинска управа
A17: 1501 | C17: Програм 3. Локални економски развој | D17: =SUBTOTAL(9,D18:D19) -> 49000000 | E17: =SUBTOTAL(9,E18:E19) -> 0 | F17: 49000000
B18: 1501-0002 | C18: Стручна пракса | D18: 25000000 | F18: =D18+E18 -> 25000000 | G18: Општинска управа
B19: 1501-0003 | C19: Подстицај за развој предузетништва | D19: 24000000 | F19: =D19+E19 -> 24000000 | G19: Општинска управа/KLER
A20: 1502 | C20: Програм 4. Развој туризма | D20: =SUBTOTAL(9,D21:D21) -> 12568000 | E20: =SUBTOTAL(9,E21:E21) -> 0 | F20: =SUBTOTAL(9,F21:F21) -> 12568000
B21: 1502-0001 | C21: Управљањем развојем туризма | D21: 12568000 | F21: =D21+E21 -> 12568000 | G21: Туристичка организација
A22: 0101 | C22: Програм 5. Развој пољопривреде | D22: =SUBTOTAL(9,D23:D23) -> 12400000 | E22: =SUBTOTAL(9,E23:E23) -> 4000000 | F22: =SUBTOTAL(9,F23:F23) -> 16400000
B23: 0101-0002 | C23: Мере подршке руралном развоју | D23: 12400000 | E23: 4000000 | F23: =D23+E23 -> 16400000 | G23: ОU/Odeqewe za privredu
A24: 0401 | C24: Програм 6. Заштита животне средине | D24: =SUBTOTAL(9,D25:D27) -> 7400000 | E24: =SUBTOTAL(9,E25:E27) -> 34500000 | F24: =SUBTOTAL(9,F25:F27) -> 41900000
B25: 0401-0004 | C25: Управљање отпадним водама и канализациона инфраструктура | E25: 2900000 | F25: =D25+E25 -> 2900000 | G25: Општинска управа
B26: 0401-0005 | C26: Управљање комуналним отпадом | D26: 5900000 | E26: 31600000 | F26: =D26+E26 -> 37500000 | G26: Општинска управа
B27: 0401-0006 | C27: Одрживо управљање осталим врстама отпада | D27: 1500000 | F27: =D27+E27 -> 1500000 | G27: Општинска управа
A28: 0701 | C28: Програм 7. Путна инфраструктура | D28: =SUBTOTAL(9,D29:D95) -> 96100000 | E28: =SUBTOTAL(9,E29:E95) -> 60200000 | F28: =SUBTOTAL(9,F29:F95) -> 156300000
B29: 0701-5001 | C29: =VLOOKUP(B29,'Troškovi 2022 - R1'!$C$266:$G$628,5,FALSE) -> Реконструкција улице Петра Драпшина у Бујановцу са тротоарима, Л=200м | E29: 4950000 | F29: =D29+E29 -> 4950000 | G29: Општинска управа
B30: 0701-5002 | C30: =VLOOKUP(B30,'Troškovi 2022 - R1'!$C$266:$G$628,5,FALSE) -> Реконструкција улице Војводе Степе Степановића до кривине са тротоарима, Л=450м | D30: 1142000 | E30: 15459000 | F30: 16601000 | G30: Општинска управа
B31: 0701-5003 | C31: =VLOOKUP(B31,'Troškovi 2022 - R1'!$C$266:$G$628,5,FALSE) -> Асфалтирање пута у селу Спанчевац, средњи рид код Живка, Л=550м, Б=2,5м+2џ0,5м | E31: 5000000 | F31: 5000000 | G31: Општинска управа
B32: 0701-5004 | C32: =VLOOKUP(B32,'Troškovi 2022 - R1'!$C$266:$G$628,5,FALSE) -> Асфалтирање улице у селу Раковац, Л=270м, Б=4м | E32: 3700000 | F32: 3700000 | G32: Општинска управа
B33: 0701-5005 | C33: =VLOOKUP(B33,'Troškovi 2022 - R1'!$C$266:$G$628,5,FALSE) -> Асфалтирање пута поред слатине у селу Осларе, Л=250м, Б=2,5м+2џ0,5м | D33: 682000 | E33: 2500000 | F33: 3182000 | G33: Општинска управа
B34: 0701-5006 | C34: =VLOOKUP(B34,'Troškovi 2022 - R1'!$C$266:$G$628,5,FALSE) -> Асфалтирање улице у селу Самољица код Фитора, Л=250м | D34: 407000 | E34: 2100000 | F34: 2507000 | G34: Општинска управа
B35: 0701-5007 | C35: =VLOOKUP(B35,'Troškovi 2022 - R1'!$C$266:$G$628,5,FALSE) -> Зимско одржавање путева | D35: 4900000 | F35: =D35+E35 -> 4900000 | G35: Општинска управа
B36: 0701-5008 | C36: =VLOOKUP(B36,'Troškovi 2022 - R1'!$C$266:$G$628,5,FALSE) -> Стручни надзор | D36: 10000000 | F36: 10000000 | G36: Општинска управа
B37: 0701-5009 | C37: =VLOOKUP(B37,'Troškovi 2022 - R1'!$C$266:$G$628,5,FALSE) -> Вертикална и хоризонтална сигнализација | D37: 2500000 | F37: 2500000 | G37: Општинска управа
B38: 0701-5010 | C38: =VLOOKUP(B38,'Troškovi 2022 - R1'!$C$266:$G$628,5,FALSE) -> Текуће поправке и одржавање - Одржавање пружних прелаза | D38: 1950000 | F38: 1950000 | G38: Општинска управа
B39: 0701-5011 | C39: =VLOOKUP(B39,'Troškovi 2022 - R1'!$C$266:$G$628,5,FALSE) -> Асфалтирање улице код Ферида у селу Велики Трновац, Л=130м | D39: 819000 | E39: 860000 | F39: 1679000 | G39: Општинска управа
B40: 0701-5012 | C40: =VLOOKUP(B40,'Troškovi 2022 - R1'!$C$266:$G$628,5,FALSE) -> Асфалтирање улице код Адема Чикара у селу Велики Трновац, Л=110м | E40: 1417000 | F40: 1417000 | G40: Општинска управа
B41: 0701-5013 | C41: =VLOOKUP(B41,'Troškovi 2022 - R1'!$C$266:$G$628,5,FALSE) -> Асфалтирање улице код Даута у Биљачи, Л=130м | D41: 1778000 | E41: 950000 | F41: 2728000 | G41: Општинска управа
B42: 0701-5014 | C42: =VLOOKUP(B42,'Troškovi 2022 - R1'!$C$266:$G$628,5,FALSE) -> Асфалтирање улице код Бенчу у селу Велики Трновац, Л=110м | D42: 36000 | E42: 970000 | F42: 1006000 | G42: Општинска управа
B43: 0701-5015 | C43: =VLOOKUP(B43,'Troškovi 2022 - R1'!$C$266:$G$628,5,FALSE) -> Асфалтирање улице у селу Велики Трновац код Бују Џафу | D43: 1818000 | F43: 1818000 | G43: Општинска управа
B44: 0701-5016 | C44: =VLOOKUP(B44,'Troškovi 2022 - R1'!$C$266:$G$628,5,FALSE) -> Изградња улице у селу Биљача код Фадиља - поплочавање, Л=160м | D44: 1200000 | E44: 1760000 | F44: 2960000 | G44: Општинска управа
B45: 0701-5017 | C45: =VLOOKUP(B45,'Troškovi 2022 - R1'!$C$266:$G$628,5,FALSE) -> Асфалтирање улице код Фатона у селу Самољица, Л=140м | D45: 829000 | E45: 300000 | F45: 1129000 | G45: Општинска управа
B46: 0701-5018 | C46: =VLOOKUP(B46,'Troškovi 2022 - R1'!$C$266:$G$628,5,FALSE) -> Асфалтирање улице у селу Велики Трновац код Метина - Штеке Л=300м, Б=3,5м | D46: 129000 | E46: 2600000 | F46: 2729000 | G46: Општинска управа
B47: 0701-5019 | C47: =VLOOKUP(B47,'Troškovi 2022 - R1'!$C$266:$G$628,5,FALSE) -> Асфалтирање улице у селу Лучане код професора Хевзију, Л=150м | D47: 109000 | E47: 1350000 | F47: 1459000 | G47: Општинска управа
B48: 0701-5020 | C48: =VLOOKUP(B48,'Troškovi 2022 - R1'!$C$266:$G$628,5,FALSE) -> Асфалтирање улице у селу Летовица код Нехата, Л=227м | D48: 319000 | E48: 1600000 | F48: 1919000 | G48: Општинска управа
B49: 0701-5021 | C49: =VLOOKUP(B49,'Troškovi 2022 - R1'!$C$266:$G$628,5,FALSE) -> Асфалтирање улице у Бујановцу код Љуана, Л=60м | E49: 630000 | F49: 630000 | G49: Општинска управа
B50: 0701-5022 | C50: =VLOOKUP(B50,'Troškovi 2022 - R1'!$C$266:$G$628,5,FALSE) -> Асфалтирање улице у селу Велики Трновац код Зулћу Бугара, Л=100м | E50: 846000 | F50: 846000 | G50: Општинска управа
B51: 0701-5023 | C51: =VLOOKUP(B51,'Troškovi 2022 - R1'!$C$266:$G$628,5,FALSE) -> Асфалтирање улице у селу Летовица код Ефраима - из 2019. године | E51: 423000 | F51: 423000 | G51: Општинска управа
B52: 0701-5024 | C52: =VLOOKUP(B52,'Troškovi 2022 - R1'!$C$266:$G$628,5,FALSE) -> Асфалтирање улице у селу Летовица код Зитових - из 2019. године | E52: 523000 | F52: 523000 | G52: Општинска управа
B53: 0701-5025 | C53: =VLOOKUP(B53,'Troškovi 2022 - R1'!$C$266:$G$628,5,FALSE) -> Асфалтирање улице у селу Несалце код професора Реџепа, Л=120м, Б=4,5м | D53: 1100000 | F53: 1100000 | G53: Општинска управа
B54: 0701-5026 | C54: =VLOOKUP(B54,'Troškovi 2022 - R1'!$C$266:$G$628,5,FALSE) -> Асфалтирање улице у селу Летовица код хаџи Абдулаха - из 2019. године | E54: 782000 | F54: 782000 | G54: Општинска управа
B55: 0701-5027 | C55: =VLOOKUP(B55,'Troškovi 2022 - R1'!$C$266:$G$628,5,FALSE) -> Асфалтирање улице у селу Летовица код Наипа - из 2019. године | E55: 1275000 | F55: 1275000 | G55: Општинска управа
B56: 0701-5028 | C56: =VLOOKUP(B56,'Troškovi 2022 - R1'!$C$266:$G$628,5,FALSE) -> Асфалтирање улице код Менсура у Бујановцу - из 2020. године | D56: 140000 | E56: 732000 | F56: 872000 | G56: Општинска управа
B57: 0701-5029 | C57: =VLOOKUP(B57,'Troškovi 2022 - R1'!$C$266:$G$628,5,FALSE) -> Асфалтирање улице у селу Самољица код учитеља Исе, Л=433м | D57: 3156000 | E57: 2557000 | F57: 5713000 | G57: Општинска управа
B58: 0701-5030 | C58: =VLOOKUP(B58,'Troškovi 2022 - R1'!$C$266:$G$628,5,FALSE) -> Изградња улице у селу Осларе - махала Мухаџер, Л=180м, Б=4м | D58: 537000 | E58: 1880000 | F58: 2417000 | G58: Општинска управа
B59: 0701-5031 | C59: =VLOOKUP(B59,'Troškovi 2022 - R1'!$C$266:$G$628,5,FALSE) -> Асфалтирање улице у селу Турија код Измира, Л=200м, Б=3м | D59: 1000 | F59: 1000 | G59: Општинска управа
B60: 0701-5032 | C60: =VLOOKUP(B60,'Troškovi 2022 - R1'!$C$266:$G$628,5,FALSE) -> Асфалтирање улице у селу Турија код Агрона, Л=110м, Б=3м | D60: 720000 | F60: 720000 | G60: Општинска управа
B61: 0701-5033 | C61: =VLOOKUP(B61,'Troškovi 2022 - R1'!$C$266:$G$628,5,FALSE) -> Асфалтирање улице у селу Биљача код Авни Синани, Л=104м | D61: 1229000 | F61: 1229000 | G61: Општинска управа
B62: 0701-5034 | C62: =VLOOKUP(B62,'Troškovi 2022 - R1'!$C$266:$G$628,5,FALSE) -> Асфалтирање улице у селу Несалце код Зифе, Л=120м, Б=3м | D62: 935000 | F62: 935000 | G62: Општинска управа
B63: 0701-5035 | C63: =VLOOKUP(B63,'Troškovi 2022 - R1'!$C$266:$G$628,5,FALSE) -> Асфалтирање улице у селу Добросин код Џавита, Л=190м, Б=3м | D63: 2221000 | F63: 2221000 | G63: Општинска управа
B64: 0701-5036 | C64: =VLOOKUP(B64,'Troškovi 2022 - R1'!$C$266:$G$628,5,FALSE) -> Асфалтирање улице у селу Кончуљ код Рагмије, Л=67м | D64: 645000 | F64: 645000 | G64: Општинска управа
B65: 0701-5037 | C65: =VLOOKUP(B65,'Troškovi 2022 - R1'!$C$266:$G$628,5,FALSE) -> Асфалтирање улице у селу Кончуљ код Авдуша, Л=56м | D65: 517000 | F65: 517000 | G65: Општинска управа
B66: 0701-5038 | C66: =VLOOKUP(B66,'Troškovi 2022 - R1'!$C$266:$G$628,5,FALSE) -> Асфалтирање улице у селу Кончуљ код Генти, Л=56м | D66: 510000 | F66: 510000 | G66: Општинска управа
B67: 0701-5039 | C67: =VLOOKUP(B67,'Troškovi 2022 - R1'!$C$266:$G$628,5,FALSE) -> Асфалтирање улице у селу Кончуљ код Хекурана, Л=60м | D67: 514000 | F67: 514000 | G67: Општинска управа
B68: 0701-5040 | C68: =VLOOKUP(B68,'Troškovi 2022 - R1'!$C$266:$G$628,5,FALSE) -> Регулација тротоара у селу Лучане, Л=130м, Б=2м | D68: 1161000 | F68: 1161000 | G68: Општинска управа
B69: 0701-5041 | C69: =VLOOKUP(B69,'Troškovi 2022 - R1'!$C$266:$G$628,5,FALSE) -> Асфалтирање улице у селу Летовица код Јетмира, Л=104м | D69: 1080000 | F69: 1080000 | G69: Општинска управа
B70: 0701-5042 | C70: =VLOOKUP(B70,'Troškovi 2022 - R1'!$C$266:$G$628,5,FALSE) -> Асфалтирање улице у селу Лучане код Екрема, Л=105м | D70: 773000 | F70: 773000 | G70: Општинска управа
B71: 0701-5043 | C71: =VLOOKUP(B71,'Troškovi 2022 - R1'!$C$266:$G$628,5,FALSE) -> Асфалтирање улице у селу Летовица код Есата, Л=170м | D71: 1173000 | E71: 610000 | F71: 1783000 | G71: Општинска управа
B72: 0701-5044 | C72: =VLOOKUP(B72,'Troškovi 2022 - R1'!$C$266:$G$628,5,FALSE) -> Асфалтирање улице у селу Летовица код Љему, Л=63м | E72: 645000 | F72: 645000 | G72: Општинска управа
B73: 0701-5045 | C73: =VLOOKUP(B73,'Troškovi 2022 - R1'!$C$266:$G$628,5,FALSE) -> Асфалтирање улице у селу Летовица код Ћенана, Л=60м | D73: 401000 | F73: 401000 | G73: Општинска управа
B74: 0701-5046 | C74: =VLOOKUP(B74,'Troškovi 2022 - R1'!$C$266:$G$628,5,FALSE) -> Асфалтирање улице у селу Биљача код Шемсу, Л=430м, Б=3м | D74: 528000 | E74: 3781000 | F74: 4309000 | G74: Општинска управа
B75: 0701-5047 | C75: =VLOOKUP(B75,'Troškovi 2022 - R1'!$C$266:$G$628,5,FALSE) -> Асфалтирање улице Лопардински пут код Бекима - из 2018. године | D75: =1100000-563500 -> 536500 | F75: 536500 | G75: Општинска управа
B76: 0701-5048 | C76: =VLOOKUP(B76,'Troškovi 2022 - R1'!$C$266:$G$628,5,FALSE) -> Асфалтирање улице код Бесника у Бујановцу, Л=250м | D76: 2163000 | F76: 2163000 | G76: Општинска управа
B77: 0701-5049 | C77: =VLOOKUP(B77,'Troškovi 2022 - R1'!$C$266:$G$628,5,FALSE) -> Асфалтирање пута у селу Турија код хоџе | D77: 560000 | F77: 560000 | G77: Општинска управа
B78: 0701-5050 | C78: =VLOOKUP(B78,'Troškovi 2022 - R1'!$C$266:$G$628,5,FALSE) -> Асфалтирање улице у селу Велики Трновац код Куштрима | D78: 2485000 | F78: 2485000 | G78: Општинска управа
B79: 0701-5051 | C79: =VLOOKUP(B79,'Troškovi 2022 - R1'!$C$266:$G$628,5,FALSE) -> Асфалтирање улице у Бујановцу Ново насеље, прва десно бедем - из 2021. године | D79: 3500000 | F79: 3500000 | G79: Општинска управа
B80: 0701-5052 | C80: =VLOOKUP(B80,'Troškovi 2022 - R1'!$C$266:$G$628,5,FALSE) -> Асфалтирање улица Врбанска и код Рамадана у Бујановцу | D80: 4041000 | F80: 4041000 | G80: Општинска управа
B81: 0701-5053 | C81: =VLOOKUP(B81,'Troškovi 2022 - R1'!$C$266:$G$628,5,FALSE) -> Асфалтирање улица код Лукмана и код хоџе у Бујановцу | D81: 2392000 | F81: 2392000 | G81: Општинска управа
B82: 0701-5054 | C82: =VLOOKUP(B82,'Troškovi 2022 - R1'!$C$266:$G$628,5,FALSE) -> Асфалтирање улице у селу Велики Трновац код Орхана у Струкарској махали, Л=202м | D82: 1880000 | F82: 1880000 | G82: Општинска управа
B83: 0701-5055 | C83: =VLOOKUP(B83,'Troškovi 2022 - R1'!$C$266:$G$628,5,FALSE) -> Асфалтирање улице код Фарука-Пура у селу Велики Трновац | D83: 876000 | F83: 876000 | G83: Општинска управа
B84: 0701-5056 | C84: =VLOOKUP(B84,'Troškovi 2022 - R1'!$C$266:$G$628,5,FALSE) -> Асфалтирање улице у селу Велики Трновац код Љуљи, Л=280м, Б=4м | D84: 3150000 | F84: 3150000 | G84: Општинска управа
B85: 0701-5057 | C85: =VLOOKUP(B85,'Troškovi 2022 - R1'!$C$266:$G$628,5,FALSE) -> Асфалтирање улице у селу Лопардинце са каналом, Л=65м, Б=3м | D85: 1499000 | F85: 1499000 | G85: Општинска управа
B86: 0701-5058 | C86: =VLOOKUP(B86,'Troškovi 2022 - R1'!$C$266:$G$628,5,FALSE) -> Асфалтирање улице у селу Кршевица од пута до моста, Л=200м, Б=2,5м+2џ0,5м | D86: 2000000 | F86: 2000000 | G86: Општинска управа
B87: 0701-5059 | C87: =VLOOKUP(B87,'Troškovi 2022 - R1'!$C$266:$G$628,5,FALSE) -> Асфалтирање улице у селу Осларе код гробља, Л=400м, Б=3м | D87: 2750000 | F87: 2750000 | G87: Општинска управа
B88: 0701-5060 | C88: =VLOOKUP(B88,'Troškovi 2022 - R1'!$C$266:$G$628,5,FALSE) -> Изградња тротоара на деоници пута од Св. Петке до Кленика - из 2018. године | D88: 1750000 | F88: 1750000 | G88: Општинска управа
B89: 0701-5061 | C89: =VLOOKUP(B89,'Troškovi 2022 - R1'!$C$266:$G$1050,5,FALSE) -> Рад механизације на поправци локалних путева са насипањем (булдожер, грејдер, ваљак) | D89: 4800000 | F89: 4800000 | G89: Општинска управа
B90: 0701-5062 | C90: =VLOOKUP(B90,'Troškovi 2022 - R1'!$C$1:$G$1050,5,FALSE) -> Крпљење ударних рупа на територији општине Бујановац | D90: 2990000 | F90: 2990000 | G90: Општинска управа
B91: 0701-5063 | C91: =VLOOKUP(B91,'Troškovi 2022 - R1'!$C$266:$G$679,5,FALSE) -> Летње одржавање путева (издизање улеглих шахти и сливника, интервенције на улегнућима коловоза и постављање заштитних ограда - банкина) | D91: 2000000 | F91: 2000000 | G91: Општинска управа
B92: 0701-5064 | C92: =VLOOKUP(B92,'Troškovi 2022 - R1'!$C$266:$G$679,5,FALSE) -> Асфалтирање улице у селу Велики Трновац код Шефата | D92: 4142000 | F92: 4142000 | G92: Општинска управа
B93: 0701-5065 | C93: =VLOOKUP(B93,'Troškovi 2022 - R1'!$C$266:$G$679,5,FALSE) -> Асфалтирање улице у селу Велики Трновац код Самета | D93: 818500 | F93: 818500 | G93: Општинска управа
B94: 0701-5066 | C94: =VLOOKUP(B94,'Troškovi 2022 - R1'!$C$266:$G$679,5,FALSE) -> Асфалтирање улице у селу Клиновац, махала Скримаци, Л=520м, Б=2,3м+2џ0,5м | D94: 4758000 | F94: 4758000 | G94: Општинска управа
B95: 0701-5075 | C95: =VLOOKUP(B95,'Troškovi 2022 - R1'!$C$266:$G$679,5,FALSE) -> ПДВ за пројекте из 2017. године | D95: 1050000 | F95: 1050000 | G95: Општинска управа
A96: 2002 | C96: Програм 8. Предшколско васпитање | D96: =SUBTOTAL(9,D97) -> 123805500 | E96: =SUBTOTAL(9,E97) -> 0 | F96: 123805500
B97: 2002-0002 | C97: Функционисање предшколских установа | D97: 123805500 | F97: =D97+E97 -> 123805500 | G97: ПУ "Наша радост"
A98: 2003 | C98: Програм 9. Основно образовање | D98: =SUBTOTAL(9,D99:D108) -> 118724200 | E98: =SUBTOTAL(9,E99:E108) -> 835167000 | F98: =SUBTOTAL(9,F99:F108) -> 953891200
B99: 2003-0001 | C99: Функционисање основних школа | D99: =108260200-1440000 -> 106820200 | E99: 1500000 | F99: =D99+E99 -> 108320200 | G99: Општинска управа
B100: 2003-5067 | C100: =VLOOKUP(B100,'Troškovi 2022 - R1'!$C$266:$G$1050,5,FALSE) -> Реконструкција ОШ "Сами Фрашери" Лучане, истурено одељење у селу Кончуљ | D100: 2604000 | E100: 2340000 | F100: =D100+E100 -> 4944000 | G100: Општинска управа
B101: 2003-5068 | C101: =VLOOKUP(B101,'Troškovi 2022 - R1'!$C$266:$G$1050,5,FALSE) -> Реконструкција спортске сале ОШ "Бранко Радичевић" Бујановац са партерним уређењем - Друга фаза | E101: 150550000 | F101: 150550000 | G101: Општинска управа
B102: 2003-5069 | C102: =VLOOKUP(B102,'Troškovi 2022 - R1'!$C$266:$G$1050,5,FALSE) -> Реконструкција ОШ "Десанка Максимовић" Биљача | E102: 209550000 | F102: 209550000 | G102: Општинска управа
B103: 2003-5070 | C103: =VLOOKUP(B103,'Troškovi 2022 - R1'!$C$266:$G$1050,5,FALSE) -> Реконструкција објекта ССШ "Свети Сава" Бујановац | E103: 293132000 | F103: 293132000 | G103: Општинска управа
B104: 2003-5071 | C104: =VLOOKUP(B104,'Troškovi 2022 - R1'!$C$266:$G$1050,5,FALSE) -> Изградња спортске сале ОШ "Мухарем Кадриу" Велики Трновац | E104: 86855000 | F104: 86855000 | G104: Општинска управа
B105: 2003-5072 | C105: =VLOOKUP(B105,'Troškovi 2022 - R1'!$C$266:$G$1050,5,FALSE) -> Реконструкција ОШ "Сами Фрашери" Лучане | D105: 6000000 | E105: 46240000 | F105: 52240000 | G105: Општинска управа
B106: 2003-5073 | C106: =VLOOKUP(B106,'Troškovi 2022 - R1'!$C$266:$G$1050,5,FALSE) -> Санација објекта ОШ "Бранко Радичевић" Бујановац, истурено одељење у Раковцу | D106: 1860000 | E106: 18000000 | F106: 19860000 | G106: Општинска управа
B107: 2003-5074 | C107: =VLOOKUP(B107,'Troškovi 2022 - R1'!$C$266:$G$1050,5,FALSE) -> Мултифункционална подлога за школске спортске терене | E107: 27000000 | F107: 27000000 | G107: Општинска управа
B108: 2003-5076 | C108: =VLOOKUP(B108,'Troškovi 2022 - R1'!$C$266:$G$1050,5,FALSE) -> Енергетска санација објекта ОШ "Сами Фрашери" Лучане, истурено одељење у селу Кончуљ - израда термичког омотача фасаде | D108: 1440000 | F108: 1440000 | G108: Општинска управа
A109: 2004 | C109: Програм 10. Средње образовање | D109: =SUBTOTAL(9,D110) -> 46367100 | E109: =SUBTOTAL(9,E110) -> 11000000 | F109: 57367100
B110: 2004-0001 | C110: Функционисање средњих школа | D110: 46367100 | E110: 11000000 | F110: =D110+E110 -> 57367100 | G110: Општинска управа
A111: 0902 | C111: Програм 11. Социјална и дечија заштита | D111: =SUBTOTAL(9,D112:D116) -> 24975000 | E111: =SUBTOTAL(9,E112:E116) -> 6575226 | F111: 31550226
B112: 0902-0001 | C112: Једнократне помоћи и други облици помоћи | D112: 10300000 | F112: =D112+E112 -> 10300000 | G112: ОU/Centar za soc.rad
B113: 0902-0002 | C113: Породични и домски смештај, прихватилишта и друге врсте смештаја | D113: 3400000 | F113: =D113+E113 -> 3400000 | G113: Општинска управа
B114: 0902-0005 | C114: Обављање делатности установа социјалне заштите | D114: 1000000 | F114: =D114+E114 -> 1000000 | G114: ОО Црвени крст
B115: 0902-0019 | C115: Подршка деци и породици са децом | D115: 9315000 | E115: 6575226 | F115: =D115+E115 -> 15890226 | G115: Општинска управа
B116: 0902-0021 | C116: Подршка особама са инвалидитетом | D116: 960000 | F116: =D116+E116 -> 960000 | G116: Општинска управа
A117: 1801 | C117: Програм 12. Примарна здравствена заштита | D117: =SUBTOTAL(9,D118:D119) -> 17600000 | E117: =SUBTOTAL(9,E118:E119) -> 0 | F117: 17600000
B118: 1801-0001 | C118: Функционисање установа примарне здравствене заштите | D118: 17200000 | F118: =D118+E118 -> 17200000 | G118: OU/DZ/Apoteka
B119: 1801-0002 | C119: Мртвозорство | D119: 400000 | F119: =D119+E119 -> 400000 | G119: ОУ/ДЗ
A120: 1201 | C120: Програм 13. Развој културе | D120: =SUBTOTAL(9,D121:D128) -> 73091000 | E120: =SUBTOTAL(9,E121:E128) -> 0 | F120: =SUBTOTAL(9,F121:F128) -> 73091000
B121: 1201-0001 | C121: Функционисање локалних установа културе | D121: 57491000 | F121: =D121+E121 -> 57491000 | G121: ДУ "Вук Караџић" и Библиотека
B122: 1201-0002 | C122: Јачање културне продукције и уметничког стваралаштва | D122: 4150000 | F122: =D122+E122 -> 4150000 | G122: Општинска управа
B123: 1201-0003 | C123: Унапређење система очувања и представљања културно-историјског наслеђа | D123: 4500000 | F123: =D123+E123 -> 4500000 | G123: Општинска управа
B124: 1201-0004 | C124: Остваривање и унапређивање јавног интереса у области јавног информисања | D124: 6000000 | F124: 6000000 | G124: Општинска управа
B125: 1201-4001 | C125: Манифестација вредне руке | D125: 150000 | F125: 150000 | G125: ДУ "Вук Караџић"
B126: 1201-4002 | C126: Манифестација најлепше ускршње јаје | D126: 100000 | F126: 100000 | G126: ДУ "Вук Караџић"
B127: 1201-4003 | C127: Манифестација културно лето | D127: 400000 | F127: 400000 | G127: ДУ "Вук Караџић"
B128: 1201-4004 | C128: Јануарске манифестације | D128: 300000 | F128: 300000 | G128: ДУ "Вук Караџић"
A129: 1301 | C129: Програм 14. Развој спорта и омладине | D129: =SUBTOTAL(9,D130:D133) -> 36747000 | E129: =SUBTOTAL(9,E130:E133) -> 6500000 | F129: =SUBTOTAL(9,F130:F133) -> 43247000
B130: 1301-0001 | C130: Подршка локалним спорским организацијама, удружењима и савезима | D130: 9050000 | F130: =D130+E130 -> 9050000 | G130: Општинска управа
B131: 1301-0002 | C131: Изградња спортског терена у ОШ "Вук Стефановић Караџић" Левосоје, одељење у Ослару | E131: 6500000 | F131: 6500000 | G131: Општинска управа
B132: 1301-0004 | C132: Функционисање локалних спортских установа | D132: 25697000 | F132: 25697000 | G132: KСЦ "Младост"
B133: 1301-0005 | C133: Спровођење омlaдинске политике | D133: 2000000 | F133: 2000000 | G133: Општинска управа
A134: 0602 | C134: Програм 15. Локална самоуправа | D134: =SUBTOTAL(9,D135:D141) -> 292770514 | E134: =SUBTOTAL(9,E135:E141) -> 4720000 | F134: 297490514
B135: 0602-0001 | C135: Подршка раду извршних органа власти и скупштине | D135: 249747900 | F135: =D135+E135 -> 249747900 | G135: Општинска управа
B136: 0602-0002 | C136: Функционисање месних заједница | D136: 5654000 | F136: =D136+E136 -> 5654000 | G136: ОU/Месне заједнице
B137: 0602-0004 | C137: Правобранилаштво општине Бујановац | D137: 18807000 | F137: =D137+E137 -> 18807000 | G137: OJP
B138: 0602-0007 | C138: Функционисање националних савета националних мањина | D138: 6900000 | F138: 6900000 | G138: Општинска управа
B139: 0602-0009 | C139: Текућа буџетска резерва | D139: 3381614 | F139: 3381614 | G139: Општинска управа
B140: 0602-0010 | C140: Стална буџетска резерва | D140: 500000 | F140: 500000 | G140: Општинска управа
B141: 0602-0014 | C141: Ванредне ситуације | D141: 7780000 | E141: 4720000 | F141: 12500000 | G141: Општинска управа
A142: 2101 | C142: Програм 16: Политички систем локалне самоуправе | D142: =SUBTOTAL(9,D143:D145) -> 44959860 | E142: =SUBTOTAL(9,E143:E145) -> 0 | F142: 44959860
B143: 2101-0001 | C143: Функционисање скупштине | D143: 22662860 | F143: =D143+E143 -> 22662860 | G143: Скупштина
B144: 2101-0002 | C144: Функционисање извршних органа | D144: 15547000 | F144: =D144+E144 -> 15547000 | G144: Председник/ОV
B145: 2101-0003 | C145: Подршка раду извршних органа власти и скупштине | D145: 6750000 | F145: =D145+E145 -> 6750000 | G145: Скупштина
A146: 0501 | C146: Програм 17: Енергетска ефикасност и обновљиви извори енергије | D146: =SUBTOTAL(9,D147:D147) -> 5000000 | E146: =SUBTOTAL(9,E147:E147) -> 10329600 | F146: =SUBTOTAL(9,F147:F147) -> 15329600
B147: 0501-0001 | C147: Енергетски менаџмент | D147: 5000000 | E147: 10329600 | F147: =D147+E147 -> 15329600 | G147: Општинска управа
C148: UKUPNO | D148: =SUBTOTAL(9,D8:D147) -> 1055638174 | E148: =SUBTOTAL(9,E8:E147) -> 993791826 | F148: =SUBTOTAL(9,F8:F147) -> 2049430000

Sheet Sheet1 (hidden)
A3: Row Labels | B3: Sum of Укупно
A4: 1 | B4: 1240000
A5: 2 | B5: 222000
A6: 3 | B6: 20000
A7: 4 | B7: 5000
A8: 5 | B8: 50010
A9: 6 | B9: 16500000
A10: 7 | B10: 100000
A11: 8 | B11: 170000
A12: 9 | B12: 367000
A13: 10 | B13: 2750000
A14: 11 | B14: 200000
A15: 12 | B15: 50000
A16: 13 | B16: 50000
A17: 14 | B17: 2821000
A18: 15 | B18: 505000
A19: 16 | B19: 50000
A20: 17 | B20: 60000
A21: 18 | B21: 150000
A22: 19 | B22: 2720000
A23: 20 | B23: 50000
A24: 21 | B24: 350000
A25: 22 | B25: 200000
A26: 23 | B26: 200000
A27: 24 | B27: 4620000
A28: 25 | B28: 50000
A29: 26 | B29: 3000000
A30: 27 | B30: 1926000
A31: 28 | B31: 345000
A32: 29 | B32: 20000
A33: 30 | B33: 20000
A34: 31 | B34: 10000
A35: 32 | B35: 220000
A36: 33 | B36: 3000000
A37: 34 | B37: 115025000
A38: 35 | B38: 20590000
A39: 36 | B39: 300000
A40: 37 | B40: 1000000
A41: 38 | B41: 6250000
A42: 39 | B42: 1500000
A43: 40 | B43: 13800000
A44: 41 | B44: 2000000
A45: 42 | B45: 15000000
A46: 43 | B46: 2200000
A47: 44 | B47: 2000000
A48: 45 | B48: 9000000
A49: 46 | B49: 10000000
A50: 47 | B50: 600000
A51: 48 | B51: 50000
A52: 49 | B52: 10000
A53: 50 | B53: 1000000
A54: 51 | B54: 200000
A55: 52 | B55: 3000000
A56: 53 | B56: 200000
A57: 54 | B57: 200000
A58: 55 | B58: 50000
A59: 56 | B59: 500000
A60: 57 | B60: 1000000
A61: 58 | B61: 100000
A62: 59 | B62: 470000
A63: 60 | B63: 1000000
A64: 61 | B64: 3000000
A65: 62 | B65: 10000000
A66: 63 | B66: 500000
A67: 64 | B67: 1000000
A68: 65 | B68: 850000
A69: 66 | B69: 12000000
A70: 67 | B70: 3463000
A71: 69 | B71: 18000000
A72: 70 | B72: 2000000
A73: 71 | B73: 1200000
A74: 72 | B74: 12000000
A75: 73 | B75: 200000
A76: 74 | B76: 1600000
A77: 75 | B77: 350000
A78: 76 | B78: 10250000
A79: 77 | B79: 15000000
A80: 78 | B80: 10000000
A81: 79 | B81: 20000000
A82: 80 | B82: 2000000
A83: 81 | B83: 400000
A84: 82 | B84: 0
A85: 83 | B85: 0
A86: 84 | B86: 0
A87: 85 | B87: 0
A88: 86 | B88: 0
A89: 87 | B89: 0
A90: 88 | B90: 0
A91: 89 | B91: 10000000
A92: 90 | B92: 1500000
A93: 91 | B93: 0
A94: 92 | B94: 0
A95: 93 | B95: 0
A96: 94 | B96: 20000000
A97: 95 | B97: 14000000
A98: 96 | B98: 40000000
A99: 97 | B99: 0
A100: 98 | B100: 0
A101: 99 | B101: 0
A102: 100 | B102: 0
A103: 101 | B103: 0
A104: 102 | B104: 0
A105: 103 | B105: 0
A106: 104 | B106: 3000000
A107: 105 | B107: 2000000
A108: 106 | B108: 2000000
A109: 107 | B109: 1200000
A110: 108 | B110: 0
A111: 109 | B111: 0
A112: 110 | B112: 0
A113: 111 | B113: 0
A114: 112 | B114: 0
A115: 113 | B115: 0
A116: 114 | B116: 0
A117: 115 | B117: 0
A118: 116 | B118: 0
A119: 117 | B119: 0
A120: 118 | B120: 0
A121: 119 | B121: 0
A122: 120 | B122: 0
A123: 121 | B123: 0
A124: 122 | B124: 0
A125: 123 | B125: 0
A126: 124 | B126: 0
A127: 125 | B127: 0
A128: 126 | B128: 0
A129: 127 | B129: 0
A130: 128 | B130: 0
A131: 129 | B131: 0
A132: 130 | B132: 0
A133: 131 | B133: 0
A134: 132 | B134: 0
A135: 133 | B135: 0
A136: 134 | B136: 0
A137: 135 | B137: 0
A138: 136 | B138: 0
A139: 137 | B139: 0
A140: 138 | B140: 0
A141: 139 | B141: 0
A142: 140 | B142: 0
A143: 141 | B143: 0
A144: 142 | B144: 0
A145: 143 | B145: 0
A146: 144 | B146: 0
A147: 145 | B147: 0
A148: 146 | B148: 0
A149: 147 | B149: 0
A150: 148 | B150: 0
A151: 149 | B151: 0
A152: 150 | B152: 0
A153: 151 | B153: 0
A154: 152 | B154: 0
A155: 153 | B155: 0
A156: 154 | B156: 0
A157: 155 | B157: 0
A158: 156 | B158: 0
A159: 157 | B159: 0
A160: 158 | B160: 0
A161: 159 | B161: 0
A162: 160 | B162: 0
A163: 161 | B163: 0
A164: 162 | B164: 0
A165: 163 | B165: 0
A166: 164 | B166: 0
A167: 165 | B167: 0
A168: 166 | B168: 0
A169: 167 | B169: 0
A170: 168 | B170: 0
A171: 169 | B171: 0
A172: 170 | B172: 0
A173: 171 | B173: 0
A174: 172 | B174: 0
A175: 173 | B175: 0
A176: 174 | B176: 0
A177: 175 | B177: 0
A178: 176 | B178: 0
A179: 177 | B179: 0
A180: 178 | B180: 0
A181: 179 | B181: 0
A182: 180 | B182: 0
A183: 181 | B183: 0
A184: 182 | B184: 0
A185: 183 | B185: 0
A186: 184 | B186: 0
A187: 185 | B187: 0
A188: 186 | B188: 0
A189: 187 | B189: 0
A190: 188 | B190: 0
A191: 189 | B191: 0
A192: 190 | B192: 0
A193: 191 | B193: 0
A194: 192 | B194: 31487300
A195: 193 | B195: 24608110
A196: 194 | B196: 1730000
A197: 195 | B197: 716500
A198: 196 | B198: 5724000
A199: 197 | B199: 4158500
A200: 198 | B200: 0
A201: 199 | B201: 0
A202: 200 | B202: 4265559
... 158 more rows

Sheet Sheet2 (hidden)
A3: Row Labels | B3: Sum of Укупно
A4: 1 | B4: 3213500
A5: 2 | B5: 535000
A6: 3 | B6: 12000
A7: 4 | B7: 88000
A8: 5 | B8: 110010
A9: 6 | B9: 5000
A10: 7 | B10: 50000
A11: 8 | B11: 100000
A12: 9 | B12: 16000000
A13: 10 | B13: 1800000
A14: 11 | B14: 549360
A15: 12 | B15: 200000
A16: 13 | B16: 2300000
A17: 14 | B17: 500000
A18: 15 | B18: 100000
A19: 16 | B19: 100000
A20: 17 | B20: 3692000
A21: 18 | B21: 615000
A22: 19 | B22: 4000
A23: 20 | B23: 96000
A24: 21 | B24: 140000
A25: 22 | B25: 200000
A26: 23 | B26: 50000
A27: 24 | B27: 250000
A28: 25 | B28: 4000000
A29: 26 | B29: 1000000
A30: 27 | B30: 200000
A31: 28 | B31: 200000
A32: 29 | B32: 100000
A33: 30 | B33: 100000
A34: 31 | B34: 100000
A35: 32 | B35: 100000
A36: 33 | B36: 300000
A37: 34 | B37: 3400000
A38: 35 | B38: 1000000
A39: 36 | B39: 3250000
A40: 37 | B40: 500000
A41: 38 | B41: 1789000
A42: 39 | B42: 298000
A43: 40 | B43: 8000
A44: 41 | B44: 92000
A45: 42 | B45: 100000
A46: 43 | B46: 20000
A47: 44 | B47: 200000
A48: 45 | B48: 300000
A49: 46 | B49: 16000000
A50: 47 | B50: 135311000
A51: 48 | B51: 22549500
A52: 49 | B52: 380000
A53: 50 | B53: 7720000
A54: 51 | B54: 11000000
A55: 52 | B55: 2000000
A56: 53 | B56: 18000000
A57: 54 | B57: 1600000
A58: 55 | B58: 19912400
A59: 56 | B59: 1500000
A60: 57 | B60: 4000000
A61: 58 | B61: 10000000
A62: 59 | B62: 2500000
A63: 60 | B63: 50000
A64: 61 | B64: 50000
A65: 62 | B65: 3500000
A66: 63 | B66: 200000
A67: 64 | B67: 4000000
A68: 65 | B68: 100000
A69: 66 | B69: 100000
A70: 67 | B70: 500000
A71: 68 | B71: 4000000
A72: 69 | B72: 100000
A73: 70 | B73: 600000
A74: 71 | B74: 75000
A75: 72 | B75: 1900000
A76: 73 | B76: 5000000
A77: 74 | B77: 3381614
A78: 75 | B78: 500000
A79: 76 | B79: 3000000
A80: 77 | B80: 7500000
A81: 78 | B81: 1500000
A82: 79 | B82: 500000
A83: 80 | B83: 6000000
A84: 81 | B84: 36000000
A85: 82 | B85: 4000000
A86: 83 | B86: 2800000
A87: 84 | B87: 1500000
A88: 85 | B88: 18000000
A89: 86 | B89: 14000000
A90: 87 | B90: 700000
A91: 88 | B91: 1300000
A92: 89 | B92: 1000000
A93: 90 | B93: 250000
A94: 91 | B94: 16260000
A95: 92 | B95: 1200000
A96: 93 | B96: 120000
A97: 94 | B97: 1000000
A98: 95 | B98: 5000000
A99: 96 | B99: 5000000
A100: 97 | B100: 25000000
A101: 98 | B101: 24000000
A102: 99 | B102: 14000000
A103: 100 | B103: 2000000
A104: 101 | B104: 2900000
A105: 102 | B105: 37500000
A106: 103 | B106: 1500000
A107: 104 | B107: 4950000
A108: 105 | B108: 16601000
A109: 106 | B109: 5000000
A110: 107 | B110: 3700000
A111: 108 | B111: 3182000
A112: 109 | B112: 2507000
A113: 110 | B113: 4900000
A114: 111 | B114: 10000000
A115: 112 | B115: 2500000
A116: 113 | B116: 1950000
A117: 114 | B117: 1679000
A118: 115 | B118: 1417000
A119: 116 | B119: 2728000
A120: 117 | B120: 1006000
A121: 118 | B121: 1818000
A122: 119 | B122: 2960000
A123: 120 | B123: 1129000
A124: 121 | B124: 2729000
A125: 122 | B125: 1459000
A126: 123 | B126: 1919000
A127: 124 | B127: 630000
A128: 125 | B128: 846000
A129: 126 | B129: 423000
A130: 127 | B130: 523000
A131: 128 | B131: 1100000
A132: 129 | B132: 782000
A133: 130 | B133: 1275000
A134: 131 | B134: 872000
A135: 132 | B135: 5713000
A136: 133 | B136: 2417000
A137: 134 | B137: 1000
A138: 135 | B138: 720000
A139: 136 | B139: 1229000
A140: 137 | B140: 935000
A141: 138 | B141: 2221000
A142: 139 | B142: 645000
A143: 140 | B143: 517000
A144: 141 | B144: 510000
A145: 142 | B145: 514000
A146: 143 | B146: 1161000
A147: 144 | B147: 1080000
A148: 145 | B148: 773000
A149: 146 | B149: 1783000
A150: 147 | B150: 645000
A151: 148 | B151: 401000
A152: 149 | B152: 4309000
A153: 150 | B153: 536500
A154: 151 | B154: 2163000
A155: 152 | B155: 560000
A156: 153 | B156: 2485000
A157: 154 | B157: 3500000
A158: 155 | B158: 4041000
A159: 156 | B159: 2392000
A160: 157 | B160: 1880000
A161: 158 | B161: 876000
A162: 159 | B162: 3150000
A163: 160 | B163: 1499000
A164: 161 | B164: 2000000
A165: 162 | B165: 2750000
A166: 163 | B166: 1750000
A167: 164 | B167: 4800000
A168: 165 | B168: 2990000
A169: 166 | B169: 2000000
A170: 167 | B170: 4142000
A171: 168 | B171: 818500
A172: 169 | B172: 4758000
A173: 170 | B173: 33429400
A174: 171 | B174: 35976800
A175: 172 | B175: 1450500
A176: 173 | B176: 594000
A177: 174 | B177: 4150000
A178: 175 | B178: 3785500
A179: 176 | B179: 4944000
A180: 177 | B180: 150550000
A181: 178 | B181: 209550000
A182: 179 | B182: 293132000
A183: 180 | B183: 86855000
A184: 181 | B184: 52240000
A185: 182 | B185: 19860000
A186: 183 | B186: 27000000
A187: 184 | B187: 6754000
A188: 185 | B188: 600000
A189: 186 | B189: 350000
A190: 187 | B190: 500000
A191: 188 | B191: 2500000
A192: 189 | B192: 650000
A193: 190 | B193: 2300000
A194: 191 | B194: 1500000
A195: 192 | B195: 360000
A196: 193 | B196: 1500000
A197: 194 | B197: 11720000
A198: 195 | B198: 200000
A199: 196 | B199: 15304400
A200: 197 | B200: 8170700
A201: 198 | B201: 1841000
A202: 199 | B202: 649000
... 132 more rows

Sheet Sheet3 (hidden)
B3: Values
A4: Row Labels | B4: Sum of Средства из буџета | C4: Sum of Средства из осталих извора | D4: Sum of Укупно
A5: Програмска активност 0101-0002: | B5: 22400000 | C5: 0 | D5: 22400000
A6: Програмска активност 0401-0001: | B6: 8450000 | C6: 0 | D6: 8450000
A7: Програмска активност 0401-0004: | B7: 11400000 | C7: 0 | D7: 11400000
A8: Програмска активност 0401-0005: | B8: 0 | C8: 10000000 | D8: 10000000
A9: Програмска активност 0401-0006: | B9: 1500000 | C9: 0 | D9: 1500000
A10: Програмска активност 0501-0001: | B10: 0 | C10: 18833520 | D10: 18833520
A11: Програмска активност 0602-0001: | B11: 207770000 | C11: 0 | D11: 207770000
A12: Програмска активност 0602-0002: | B12: 6970000 | C12: 0 | D12: 6970000
A13: Програмска активност 0602-0004: | B13: 5541000 | C13: 0 | D13: 5541000
A14: Програмска активност 0602-0007: | B14: 6200000 | C14: 0 | D14: 6200000
A15: Програмска активност 0602-0009: | B15: 10197600 | C15: 0 | D15: 10197600
A16: Програмска активност 0602-0010: | B16: 500000 | C16: 0 | D16: 500000
A17: Програмска активност 0602-0014: | B17: 1850000 | C17: 0 | D17: 1850000
A18: Програмска активност 0901-0001: | B18: 9500000 | C18: 0 | D18: 9500000
A19: Програмска активност 0901-0002: | B19: 3100000 | C19: 0 | D19: 3100000
A20: Програмска активност 0901-0005: | B20: 500000 | C20: 0 | D20: 500000
A21: Програмска активност 0901-0006: | B21: 2950000 | C21: 3050000 | D21: 6000000
A22: Програмска активност 0901-0007: | B22: 540000 | C22: 3200000 | D22: 3740000
A23: Програмска активност 1101-0001: | B23: 41497000 | C23: 0 | D23: 41497000
A24: Програмска активност 1101-0002: | B24: 300000 | C24: 0 | D24: 300000
A25: Програмска активност 1102-0001: | B25: 20000000 | C25: 0 | D25: 20000000
A26: Програмска активност 1102-0002: | B26: 1350000 | C26: 0 | D26: 1350000
A27: Програмска активност 1102-0003: | B27: 12000000 | C27: 0 | D27: 12000000
A28: Програмска активност 1102-0004: | B28: 1800000 | C28: 0 | D28: 1800000
A29: Програмска активност 1102-0005: | B29: 0 | C29: 5000000 | D29: 5000000
A30: Програмска активност 1102-0008: | B30: 18622000 | C30: 11000000 | D30: 29622000
A31: Програмска активност 1102-01: | B31: 7000000 | C31: 0 | D31: 7000000
A32: Програмска активност 1201-0001: | B32: 42842000 | C32: 0 | D32: 42842000
A33: Програмска активност 1201-0002: | B33: 5330000 | C33: 0 | D33: 5330000
A34: Програмска активност 1201-0003: | B34: 3300000 | C34: 0 | D34: 3300000
A35: Програмска активност 1201-0004: | B35: 5000000 | C35: 0 | D35: 5000000
A36: Програмска активност 1301-0001: | B36: 10650000 | C36: 0 | D36: 10650000
A37: Програмска активност 1301-0004: | B37: 22056200 | C37: 0 | D37: 22056200
A38: Програмска активност 1301-0005: | B38: 800000 | C38: 0 | D38: 800000
A39: Програмска активност 1501-0002: | B39: 15000000 | C39: 0 | D39: 15000000
A40: Програмска активност 1501-0003: | B40: 10000000 | C40: 0 | D40: 10000000
A41: Програмска активност 1502-0001: | B41: 9026500 | C41: 0 | D41: 9026500
A42: Програмска активност 1801-0001: | B42: 22600000 | C42: 0 | D42: 22600000
A43: Програмска активност 1801-0002: | B43: 400000 | C43: 0 | D43: 400000
A44: Програмска активност 2001-0001: | B44: 110543000 | C44: 0 | D44: 110543000
A45: Програмска активност 2002-0001: | B45: 73364200 | C45: 4700000 | D45: 78064200
A46: Програмска активност 2003-0001: | B46: 37327500 | C46: 7200000 | D46: 44527500
A47: Програмска активност 2101-0001: | B47: 18694000 | C47: 0 | D47: 18694000
A48: Програмска активност 2101-0002: | B48: 12376000 | C48: 0 | D48: 12376000
A49: Програмска активност 2101-0003: | B49: 6350000 | C49: 0 | D49: 6350000
A50: Пројекат 0701-01 | B50: 1150000 | C50: 0 | D50: 1150000
A51: Пројекат 0701-02 | B51: 500000 | C51: 0 | D51: 500000
A52: Пројекат 0701-03 | B52: 950000 | C52: 0 | D52: 950000
A53: Пројекат 0701-04 | B53: 2970000 | C53: 74000000 | D53: 76970000
A54: Пројекат 0701-05 | B54: 1020000 | C54: 0 | D54: 1020000
A55: Пројекат 0701-06 | B55: 2980000 | C55: 0 | D55: 2980000
A56: Пројекат 0701-07 | B56: 3000000 | C56: 0 | D56: 3000000
A57: Пројекат 0701-08 | B57: 2000000 | C57: 0 | D57: 2000000
A58: Пројекат 0701-09 | B58: 2000000 | C58: 0 | D58: 2000000
A59: Пројекат 0701-10 | B59: 1200000 | C59: 0 | D59: 1200000
A60: Пројекат 0701-11 | B60: 1200000 | C60: 0 | D60: 1200000
A61: Пројекат 0701-12 | B61: 5990000 | C61: 0 | D61: 5990000
A62: Пројекат 0701-13 | B62: 1500000 | C62: 0 | D62: 1500000
A63: Пројекат 0701-14 | B63: 600000 | C63: 0 | D63: 600000
A64: Пројекат 0701-15 | B64: 500000 | C64: 0 | D64: 500000
A65: Пројекат 0701-16 | B65: 500000 | C65: 0 | D65: 500000
A66: Пројекат 0701-17 | B66: 500000 | C66: 0 | D66: 500000
A67: Пројекат 0701-18 | B67: 900000 | C67: 0 | D67: 900000
A68: Пројекат 0701-19 | B68: 400000 | C68: 0 | D68: 400000
A69: Пројекат 0701-20 | B69: 300000 | C69: 0 | D69: 300000
A70: Пројекат 0701-21 | B70: 500000 | C70: 0 | D70: 500000
A71: Пројекат 0701-22 | B71: 400000 | C71: 0 | D71: 400000
A72: Пројекат 0701-23 | B72: 500000 | C72: 0 | D72: 500000
A73: Пројекат 0701-24 | B73: 500000 | C73: 0 | D73: 500000
A74: Пројекат 0701-25 | B74: 400000 | C74: 0 | D74: 400000
A75: Пројекат 0701-26 | B75: 600000 | C75: 0 | D75: 600000
A76: Пројекат 0701-27 | B76: 750000 | C76: 0 | D76: 750000
A77: Пројекат 0701-28 | B77: 1850000 | C77: 0 | D77: 1850000
A78: Пројекат 0701-29 | B78: 600000 | C78: 0 | D78: 600000
A79: Пројекат 0701-30 | B79: 2250000 | C79: 0 | D79: 2250000
A80: Пројекат 0701-31 | B80: 3780000 | C80: 0 | D80: 3780000
A81: Пројекат 0701-32 | B81: 4000000 | C81: 0 | D81: 4000000
A82: Пројекат 0701-33 | B82: 2590000 | C82: 0 | D82: 2590000
A83: Пројекат 0701-34 | B83: 1970000 | C83: 0 | D83: 1970000
A84: Пројекат 0701-35 | B84: 4050000 | C84: 0 | D84: 4050000
A85: Пројекат 0701-36 | B85: 2290000 | C85: 0 | D85: 2290000
A86: Пројекат 0701-37 | B86: 1000000 | C86: 0 | D86: 1000000
A87: Пројекат 0701-38 | B87: 300000 | C87: 0 | D87: 300000
A88: Пројекат 0701-39 | B88: 3500000 | C88: 0 | D88: 3500000
A89: Пројекат 0701-40 | B89: 1983000 | C89: 0 | D89: 1983000
A90: Пројекат 0701-41 | B90: 4000000 | C90: 0 | D90: 4000000
A91: Пројекат 0701-42 | B91: 1500000 | C91: 0 | D91: 1500000
A92: Пројекат 0701-43 | B92: 300000 | C92: 0 | D92: 300000
A93: Пројекат 0701-44 | B93: 900000 | C93: 0 | D93: 900000
A94: Пројекат 0701-45 | B94: 500000 | C94: 0 | D94: 500000
A95: Пројекат 0701-46 | B95: 500000 | C95: 0 | D95: 500000
A96: Пројекат 0701-47 | B96: 2000000 | C96: 0 | D96: 2000000
A97: Пројекат 0701-48 | B97: 1000000 | C97: 0 | D97: 1000000
A98: Пројекат 0701-49 | B98: 500000 | C98: 0 | D98: 500000
A99: Пројекат 0701-50 | B99: 500000 | C99: 0 | D99: 500000
A100: Пројекат 0701-51 | B100: 650000 | C100: 0 | D100: 650000
A101: Пројекат 0701-52 | B101: 500000 | C101: 0 | D101: 500000
A102: Пројекат 0701-53 | B102: 500000 | C102: 0 | D102: 500000
A103: Пројекат 0701-54 | B103: 5000000 | C103: 0 | D103: 5000000
A104: Пројекат 0701-55 | B104: 400000 | C104: 0 | D104: 400000
A105: Пројекат 0701-56 | B105: 600000 | C105: 0 | D105: 600000
A106: Пројекат 0701-57 | B106: 13000000 | C106: 0 | D106: 13000000
A107: Пројекат 0701-58 | B107: 500000 | C107: 0 | D107: 500000
A108: Пројекат 0701-59 | B108: 600000 | C108: 0 | D108: 600000
A109: Пројекат 0701-60 | B109: 800000 | C109: 0 | D109: 800000
A110: Пројекат 0701-61 | B110: 500000 | C110: 0 | D110: 500000
A111: Пројекат 0701-62 | B111: 300000 | C111: 0 | D111: 300000
A112: Пројекат 0701-63 | B112: 300000 | C112: 0 | D112: 300000
A113: Пројекат 0701-64 | B113: 400000 | C113: 0 | D113: 400000
A114: Пројекат 0701-65 | B114: 400000 | C114: 0 | D114: 400000
A115: Пројекат 0701-66 | B115: 6000000 | C115: 0 | D115: 6000000
A116: Пројекат 0701-67 | B116: 2000000 | C116: 0 | D116: 2000000
A117: Пројекат 0701-68 | B117: 500000 | C117: 0 | D117: 500000
A118: Пројекат 0701-69 | B118: 400000 | C118: 0 | D118: 400000
A119: Пројекат 1201-01 | B119: 150000 | C119: 0 | D119: 150000
A120: Пројекат 1201-02 | B120: 150000 | C120: 0 | D120: 150000
A121: Пројекат 1201-03 | B121: 400000 | C121: 0 | D121: 400000
A122: Пројекат 1301-01: | B122: 500000 | C122: 0 | D122: 500000
A123: Пројекат 1301-02: | B123: 700000 | C123: 0 | D123: 700000
A124: Пројекат 1301-03: | B124: 710000 | C124: 0 | D124: 710000
A125: Grand Total | B125: 919230000 | C125: 136983520 | D125: 1056213520

Sheet Sheet5 (hidden)
B3: Values
A4: Row Labels | B4: Sum of Средства из буџета | C4: Sum of Средства из осталих извора | D4: Sum of Укупно
A5: Програмска активност 0101-0002: | B5: 22400000 | C5: 0 | D5: 22400000
A6: Програмска активност 0401-0001: | B6: 8450000 | C6: 0 | D6: 8450000
A7: Програмска активност 0401-0004: | B7: 11400000 | C7: 0 | D7: 11400000
A8: Програмска активност 0401-0005: | B8: 0 | C8: 10000000 | D8: 10000000
A9: Програмска активност 0401-0006: | B9: 1500000 | C9: 0 | D9: 1500000
A10: Програмска активност 0501-0001: | B10: 0 | C10: 18833520 | D10: 18833520
A11: Програмска активност 0602-0001: | B11: 207770000 | C11: 0 | D11: 207770000
A12: Програмска активност 0602-0002: | B12: 6970000 | C12: 0 | D12: 6970000
A13: Програмска активност 0602-0004: | B13: 5541000 | C13: 0 | D13: 5541000
A14: Програмска активност 0602-0007: | B14: 6200000 | C14: 0 | D14: 6200000
A15: Програмска активност 0602-0009: | B15: 10197600 | C15: 0 | D15: 10197600
A16: Програмска активност 0602-0010: | B16: 500000 | C16: 0 | D16: 500000
A17: Програмска активност 0602-0014: | B17: 1850000 | C17: 0 | D17: 1850000
A18: Програмска активност 0901-0001: | B18: 9500000 | C18: 0 | D18: 9500000
A19: Програмска активност 0901-0002: | B19: 3100000 | C19: 0 | D19: 3100000
A20: Програмска активност 0901-0005: | B20: 500000 | C20: 0 | D20: 500000
A21: Програмска активност 0901-0006: | B21: 2950000 | C21: 3050000 | D21: 6000000
A22: Програмска активност 0901-0007: | B22: 540000 | C22: 3200000 | D22: 3740000
A23: Програмска активност 1101-0001: | B23: 41497000 | C23: 0 | D23: 41497000
A24: Програмска активност 1101-0002: | B24: 300000 | C24: 0 | D24: 300000
A25: Програмска активност 1102-0001: | B25: 20000000 | C25: 0 | D25: 20000000
A26: Програмска активност 1102-0002: | B26: 1350000 | C26: 0 | D26: 1350000
A27: Програмска активност 1102-0003: | B27: 12000000 | C27: 0 | D27: 12000000
A28: Програмска активност 1102-0004: | B28: 1800000 | C28: 0 | D28: 1800000
A29: Програмска активност 1102-0005: | B29: 0 | C29: 5000000 | D29: 5000000
A30: Програмска активност 1102-0008: | B30: 18622000 | C30: 11000000 | D30: 29622000
A31: Програмска активност 1102-01: | B31: 7000000 | C31: 0 | D31: 7000000
A32: Програмска активност 1201-0001: | B32: 42842000 | C32: 0 | D32: 42842000
A33: Програмска активност 1201-0002: | B33: 5330000 | C33: 0 | D33: 5330000
A34: Програмска активност 1201-0003: | B34: 3300000 | C34: 0 | D34: 3300000
A35: Програмска активност 1201-0004: | B35: 5000000 | C35: 0 | D35: 5000000
A36: Програмска активност 1301-0001: | B36: 10650000 | C36: 0 | D36: 10650000
A37: Програмска активност 1301-0004: | B37: 22056200 | C37: 0 | D37: 22056200
A38: Програмска активност 1301-0005: | B38: 800000 | C38: 0 | D38: 800000
A39: Програмска активност 1501-0002: | B39: 15000000 | C39: 0 | D39: 15000000
A40: Програмска активност 1501-0003: | B40: 10000000 | C40: 0 | D40: 10000000
A41: Програмска активност 1502-0001: | B41: 9026500 | C41: 0 | D41: 9026500
A42: Програмска активност 1801-0001: | B42: 22600000 | C42: 0 | D42: 22600000
A43: Програмска активност 1801-0002: | B43: 400000 | C43: 0 | D43: 400000
A44: Програмска активност 2001-0001: | B44: 110543000 | C44: 0 | D44: 110543000
A45: Програмска активност 2002-0001: | B45: 73364200 | C45: 4700000 | D45: 78064200
A46: Програмска активност 2003-0001: | B46: 37327500 | C46: 7200000 | D46: 44527500
A47: Програмска активност 2101-0001: | B47: 18694000 | C47: 0 | D47: 18694000
A48: Програмска активност 2101-0002: | B48: 12376000 | C48: 0 | D48: 12376000
A49: Програмска активност 2101-0003: | B49: 6350000 | C49: 0 | D49: 6350000
A50: Пројекат 0701-01 | B50: 1150000 | C50: 0 | D50: 1150000
A51: Пројекат 0701-02 | B51: 500000 | C51: 0 | D51: 500000
A52: Пројекат 0701-03 | B52: 950000 | C52: 0 | D52: 950000
A53: Пројекат 0701-04 | B53: 2970000 | C53: 74000000 | D53: 76970000
A54: Пројекат 0701-05 | B54: 1020000 | C54: 0 | D54: 1020000
A55: Пројекат 0701-06 | B55: 2980000 | C55: 0 | D55: 2980000
A56: Пројекат 0701-07 | B56: 3000000 | C56: 0 | D56: 3000000
A57: Пројекат 0701-08 | B57: 2000000 | C57: 0 | D57: 2000000
A58: Пројекат 0701-09 | B58: 2000000 | C58: 0 | D58: 2000000
A59: Пројекат 0701-10 | B59: 1200000 | C59: 0 | D59: 1200000
A60: Пројекат 0701-11 | B60: 1200000 | C60: 0 | D60: 1200000
A61: Пројекат 0701-12 | B61: 5990000 | C61: 0 | D61: 5990000
A62: Пројекат 0701-13 | B62: 1500000 | C62: 0 | D62: 1500000
A63: Пројекат 0701-14 | B63: 600000 | C63: 0 | D63: 600000
A64: Пројекат 0701-15 | B64: 500000 | C64: 0 | D64: 500000
A65: Пројекат 0701-16 | B65: 500000 | C65: 0 | D65: 500000
A66: Пројекат 0701-17 | B66: 500000 | C66: 0 | D66: 500000
A67: Пројекат 0701-18 | B67: 900000 | C67: 0 | D67: 900000
A68: Пројекат 0701-19 | B68: 400000 | C68: 0 | D68: 400000
A69: Пројекат 0701-20 | B69: 300000 | C69: 0 | D69: 300000
A70: Пројекат 0701-21 | B70: 500000 | C70: 0 | D70: 500000
A71: Пројекат 0701-22 | B71: 400000 | C71: 0 | D71: 400000
A72: Пројекат 0701-23 | B72: 500000 | C72: 0 | D72: 500000
A73: Пројекат 0701-24 | B73: 500000 | C73: 0 | D73: 500000
A74: Пројекат 0701-25 | B74: 400000 | C74: 0 | D74: 400000
A75: Пројекат 0701-26 | B75: 600000 | C75: 0 | D75: 600000
A76: Пројекат 0701-27 | B76: 750000 | C76: 0 | D76: 750000
A77: Пројекат 0701-28 | B77: 1850000 | C77: 0 | D77: 1850000
A78: Пројекат 0701-29 | B78: 600000 | C78: 0 | D78: 600000
A79: Пројекат 0701-30 | B79: 2250000 | C79: 0 | D79: 2250000
A80: Пројекат 0701-31 | B80: 3780000 | C80: 0 | D80: 3780000
A81: Пројекат 0701-32 | B81: 4000000 | C81: 0 | D81: 4000000
A82: Пројекат 0701-33 | B82: 2590000 | C82: 0 | D82: 2590000
A83: Пројекат 0701-34 | B83: 1970000 | C83: 0 | D83: 1970000
A84: Пројекат 0701-35 | B84: 4050000 | C84: 0 | D84: 4050000
A85: Пројекат 0701-36 | B85: 2290000 | C85: 0 | D85: 2290000
A86: Пројекат 0701-37 | B86: 1000000 | C86: 0 | D86: 1000000
A87: Пројекат 0701-38 | B87: 300000 | C87: 0 | D87: 300000
A88: Пројекат 0701-39 | B88: 3500000 | C88: 0 | D88: 3500000
A89: Пројекат 0701-40 | B89: 1983000 | C89: 0 | D89: 1983000
A90: Пројекат 0701-41 | B90: 4000000 | C90: 0 | D90: 4000000
A91: Пројекат 0701-42 | B91: 1500000 | C91: 0 | D91: 1500000
A92: Пројекат 0701-43 | B92: 300000 | C92: 0 | D92: 300000
A93: Пројекат 0701-44 | B93: 900000 | C93: 0 | D93: 900000
A94: Пројекат 0701-45 | B94: 500000 | C94: 0 | D94: 500000
A95: Пројекат 0701-46 | B95: 500000 | C95: 0 | D95: 500000
A96: Пројекат 0701-47 | B96: 2000000 | C96: 0 | D96: 2000000
A97: Пројекат 0701-48 | B97: 1000000 | C97: 0 | D97: 1000000
A98: Пројекат 0701-49 | B98: 500000 | C98: 0 | D98: 500000
A99: Пројекат 0701-50 | B99: 500000 | C99: 0 | D99: 500000
A100: Пројекат 0701-51 | B100: 650000 | C100: 0 | D100: 650000
A101: Пројекат 0701-52 | B101: 500000 | C101: 0 | D101: 500000
A102: Пројекат 0701-53 | B102: 500000 | C102: 0 | D102: 500000
A103: Пројекат 0701-54 | B103: 5000000 | C103: 0 | D103: 5000000
A104: Пројекат 0701-55 | B104: 400000 | C104: 0 | D104: 400000
A105: Пројекат 0701-56 | B105: 600000 | C105: 0 | D105: 600000
A106: Пројекат 0701-57 | B106: 13000000 | C106: 0 | D106: 13000000
A107: Пројекат 0701-58 | B107: 500000 | C107: 0 | D107: 500000
A108: Пројекат 0701-59 | B108: 600000 | C108: 0 | D108: 600000
A109: Пројекат 0701-60 | B109: 800000 | C109: 0 | D109: 800000
A110: Пројекат 0701-61 | B110: 500000 | C110: 0 | D110: 500000
A111: Пројекат 0701-62 | B111: 300000 | C111: 0 | D111: 300000
A112: Пројекат 0701-63 | B112: 300000 | C112: 0 | D112: 300000
A113: Пројекат 0701-64 | B113: 400000 | C113: 0 | D113: 400000
A114: Пројекат 0701-65 | B114: 400000 | C114: 0 | D114: 400000
A115: Пројекат 0701-66 | B115: 6000000 | C115: 0 | D115: 6000000
A116: Пројекат 0701-67 | B116: 2000000 | C116: 0 | D116: 2000000
A117: Пројекат 0701-68 | B117: 500000 | C117: 0 | D117: 500000
A118: Пројекат 0701-69 | B118: 400000 | C118: 0 | D118: 400000
A119: Пројекат 1201-01 | B119: 150000 | C119: 0 | D119: 150000
A120: Пројекат 1201-02 | B120: 150000 | C120: 0 | D120: 150000
A121: Пројекат 1201-03 | B121: 400000 | C121: 0 | D121: 400000
A122: Пројекат 1301-01: | B122: 500000 | C122: 0 | D122: 500000
A123: Пројекат 1301-02: | B123: 700000 | C123: 0 | D123: 700000
A124: Пројекат 1301-03: | B124: 710000 | C124: 0 | D124: 710000
A125: Пројекат 0701-70 | B125: 450000 | C125: 0 | D125: 450000
A126: Пројекат 0701-71 | B126: 450000 | C126: 0 | D126: 450000
A127: Пројекат 0701-72 | B127: 450000 | C127: 0 | D127: 450000
A128: Пројекат 0701-73 | B128: 450000 | C128: 0 | D128: 450000
A129: Пројекат 0701-74 | B129: 500000 | C129: 0 | D129: 500000
A130: Пројекат 0701-75 | B130: 1000000 | C130: 0 | D130: 1000000
A131: Пројекат 0701-76 | B131: 950000 | C131: 0 | D131: 950000
A132: Grand Total | B132: 923480000 | C132: 136983520 | D132: 1060463520

Sheet Sheet8 (hidden)
B3: Values
A4: Row Labels | B4: Sum of Средства из буџета | C4: Sum of Средства из осталих извора | D4: Sum of Укупно
A5: Програмска активност 0101-0002: | B5: 12400000 | C5: 4000000 | D5: 16400000
A6: Програмска активност 0401-0004: | B6: 0 | C6: 2900000 | D6: 2900000
A7: Програмска активност 0401-0006: | B7: 1500000 | C7: 0 | D7: 1500000
A8: Програмска активност 0501-0001: | B8: 5000000 | C8: 10329600 | D8: 15329600
A9: Програмска активност 0602-0001: | B9: 249747900 | C9: 0 | D9: 249747900
A10: Програмска активност 0602-0002: | B10: 5654000 | C10: 0 | D10: 5654000
A11: Програмска активност 0602-0004: | B11: 18807000 | C11: 0 | D11: 18807000
A12: Програмска активност 0602-0007: | B12: 6900000 | C12: 0 | D12: 6900000
A13: Програмска активност 0602-0009: | B13: 3381614 | C13: 0 | D13: 3381614
A14: Програмска активност 0602-0010: | B14: 500000 | C14: 0 | D14: 500000
A15: Програмска активност 0602-0014: | B15: 7780000 | C15: 4720000 | D15: 12500000
A16: Програмска активност 1101-0001: | B16: 6000000 | C16: 0 | D16: 6000000
A17: Програмска активност 1102-0001: | B17: 40800000 | C17: 2800000 | D17: 43600000
A18: Програмска активност 1102-0002: | B18: 1500000 | C18: 0 | D18: 1500000
A19: Програмска активност 1102-0003: | B19: 25000000 | C19: 7000000 | D19: 32000000
A20: Програмска активност 1102-0004: | B20: 2000000 | C20: 0 | D20: 2000000
A21: Програмска активност 1102-0005: | B21: 1000000 | C21: 0 | D21: 1000000
A22: Програмска активност 1102-0008: | B22: 17830000 | C22: 11000000 | D22: 28830000
A23: Програмска активност 1201-0001: | B23: 57491000 | C23: 0 | D23: 57491000
A24: Програмска активност 1201-0002: | B24: 4150000 | C24: 0 | D24: 4150000
A25: Програмска активност 1201-0003: | B25: 4500000 | C25: 0 | D25: 4500000
A26: Програмска активност 1201-0004: | B26: 6000000 | C26: 0 | D26: 6000000
A27: Програмска активност 1301-0001: | B27: 9050000 | C27: 0 | D27: 9050000
A28: Програмска активност 1301-0004: | B28: 25697000 | C28: 0 | D28: 25697000
A29: Програмска активност 1301-0005: | B29: 2000000 | C29: 0 | D29: 2000000
A30: Програмска активност 1501-0002: | B30: 25000000 | C30: 0 | D30: 25000000
A31: Програмска активност 1501-0003: | B31: 24000000 | C31: 0 | D31: 24000000
A32: Програмска активност 1502-0001: | B32: 12568000 | C32: 0 | D32: 12568000
A33: Програмска активност 1801-0001: | B33: 17200000 | C33: 0 | D33: 17200000
A34: Програмска активност 1801-0002: | B34: 400000 | C34: 0 | D34: 400000
A35: Програмска активност 2003-0001: | B35: 106820200 | C35: 1500000 | D35: 108320200
A36: Програмска активност 2101-0001: | B36: 22662860 | C36: 0 | D36: 22662860
A37: Програмска активност 2101-0002: | B37: 15547000 | C37: 0 | D37: 15547000
A38: Програмска активност 2101-0003: | B38: 6750000 | C38: 0 | D38: 6750000
A39: Grand Total | B39: 745636574 | C39: 44249600 | D39: 789886174

Sheet Sheet10 (hidden)
B3: Values
A4: Row Labels | B4: Sum of Средства из буџета | C4: Sum of Средства из осталих извора | D4: Sum of Укупно
A5: Програмска активност 0101-0002: | B5: 12400000 | C5: 4000000 | D5: 16400000
A6: Програмска активност 0401-0004: | B6: 0 | C6: 2900000 | D6: 2900000
A7: Програмска активност 0401-0006: | B7: 1500000 | C7: 0 | D7: 1500000
A8: Програмска активност 0501-0001: | B8: 5000000 | C8: 10329600 | D8: 15329600
A9: Програмска активност 0602-0001: | B9: 249747900 | C9: 0 | D9: 249747900
A10: Програмска активност 0602-0002: | B10: 5654000 | C10: 0 | D10: 5654000
A11: Програмска активност 0602-0004: | B11: 18807000 | C11: 0 | D11: 18807000
A12: Програмска активност 0602-0007: | B12: 6900000 | C12: 0 | D12: 6900000
A13: Програмска активност 0602-0009: | B13: 3381614 | C13: 0 | D13: 3381614
A14: Програмска активност 0602-0010: | B14: 500000 | C14: 0 | D14: 500000
A15: Програмска активност 0602-0014: | B15: 7780000 | C15: 4720000 | D15: 12500000
A16: Програмска активност 1101-0001: | B16: 6000000 | C16: 0 | D16: 6000000
A17: Програмска активност 1102-0001: | B17: 40800000 | C17: 2800000 | D17: 43600000
A18: Програмска активност 1102-0002: | B18: 1500000 | C18: 0 | D18: 1500000
A19: Програмска активност 1102-0003: | B19: 25000000 | C19: 7000000 | D19: 32000000
A20: Програмска активност 1102-0004: | B20: 2000000 | C20: 0 | D20: 2000000
A21: Програмска активност 1102-0005: | B21: 1000000 | C21: 0 | D21: 1000000
A22: Програмска активност 1102-0008: | B22: 17830000 | C22: 11000000 | D22: 28830000
A23: Програмска активност 1201-0001: | B23: 57491000 | C23: 0 | D23: 57491000
A24: Програмска активност 1201-0002: | B24: 4150000 | C24: 0 | D24: 4150000
A25: Програмска активност 1201-0003: | B25: 4500000 | C25: 0 | D25: 4500000
A26: Програмска активност 1201-0004: | B26: 6000000 | C26: 0 | D26: 6000000
A27: Програмска активност 1301-0001: | B27: 9050000 | C27: 0 | D27: 9050000
A28: Програмска активност 1301-0004: | B28: 25697000 | C28: 0 | D28: 25697000
A29: Програмска активност 1301-0005: | B29: 2000000 | C29: 0 | D29: 2000000
A30: Програмска активност 1501-0002: | B30: 25000000 | C30: 0 | D30: 25000000
A31: Програмска активност 1501-0003: | B31: 24000000 | C31: 0 | D31: 24000000
A32: Програмска активност 1502-0001: | B32: 12568000 | C32: 0 | D32: 12568000
A33: Програмска активност 1801-0001: | B33: 17200000 | C33: 0 | D33: 17200000
A34: Програмска активност 1801-0002: | B34: 400000 | C34: 0 | D34: 400000
A35: Програмска активност 2003-0001: | B35: 106820200 | C35: 1500000 | D35: 108320200
A36: Програмска активност 2101-0001: | B36: 22662860 | C36: 0 | D36: 22662860
A37: Програмска активност 2101-0002: | B37: 15547000 | C37: 0 | D37: 15547000
A38: Програмска активност 2101-0003: | B38: 6750000 | C38: 0 | D38: 6750000
A39: Grand Total | B39: 745636574 | C39: 44249600 | D39: 789886174

Sheet Sheet11 (hidden)
B3: Values
A4: Row Labels | B4: Sum of Средства из буџета | C4: Sum of Средства из осталих извора | D4: Sum of Укупно
A5: 411 | B5: 274174000 | D5: 274174000
A6: 412 | B6: 45672500 | D6: 45672500
A7: 413 | B7: 726000 | D7: 726000
A8: 414 | B8: 10026000 | D8: 10026000
A9: 415 | B9: 19356000 | D9: 19356000
A10: 416 | B10: 5175000 | D10: 5175000
A11: 421 | B11: 75591000 | D11: 75591000
A12: 422 | B12: 2512000 | D12: 2512000
A13: 423 | B13: 85766400 | C13: 6575226 | D13: 92341626
A14: 424 | B14: 25387000 | D14: 25387000
A15: 425 | B15: 27927500 | C15: 4720000 | D15: 32647500
A16: 426 | B16: 25954500 | C16: 1500000 | D16: 27454500
A17: 451 | B17: 37260000 | C17: 14329600 | D17: 51589600
A18: 454 | B18: 24000000 | D18: 24000000
A19: 463 | B19: 157167300 | D19: 157167300
A20: 464 | B20: 17000000 | D20: 17000000
A21: 472 | B21: 35320000 | C21: 11000000 | D21: 46320000
A22: 481 | B22: 35224360 | D22: 35224360
A23: 482 | B23: 2723000 | D23: 2723000
A24: 483 | B24: 18110000 | D24: 18110000
A25: 485 | B25: 1300000 | D25: 1300000
A26: 511 | B26: 106926000 | C26: 948667000 | D26: 1055593000
A27: 512 | B27: 13918000 | C27: 7000000 | D27: 20918000
A28: 515 | B28: 540000 | D28: 540000
A29: 541 | B29: 4000000 | D29: 4000000
A30: Grand Total | B30: 1051756560 | C30: 993791826 | D30: 2045548386

Sheet Sheet12 (hidden)
B3: Values
A4: Row Labels | B4: Sum of Средства из буџета | C4: Sum of Средства из осталих извора | D4: Sum of Укупно
A5: Програмска активност 0101-0002: | B5: 12400000 | C5: 4000000 | D5: 16400000
A6: Програмска активност 0401-0004: | B6: 0 | C6: 2900000 | D6: 2900000
A7: Програмска активност 0401-0006: | B7: 1500000 | C7: 0 | D7: 1500000
A8: Програмска активност 0501-0001: | B8: 5000000 | C8: 10329600 | D8: 15329600
A9: Програмска активност 0602-0001: | B9: 249747900 | C9: 0 | D9: 249747900
A10: Програмска активност 0602-0002: | B10: 5654000 | C10: 0 | D10: 5654000
A11: Програмска активност 0602-0004: | B11: 18807000 | C11: 0 | D11: 18807000
A12: Програмска активност 0602-0007: | B12: 6900000 | C12: 0 | D12: 6900000
A13: Програмска активност 0602-0009: | B13: 3381614 | C13: 0 | D13: 3381614
A14: Програмска активност 0602-0010: | B14: 500000 | C14: 0 | D14: 500000
A15: Програмска активност 0602-0014: | B15: 7780000 | C15: 4720000 | D15: 12500000
A16: Програмска активност 1101-0001: | B16: 6000000 | C16: 0 | D16: 6000000
A17: Програмска активност 1102-0001: | B17: 40800000 | C17: 2800000 | D17: 43600000
A18: Програмска активност 1102-0002: | B18: 1500000 | C18: 0 | D18: 1500000
A19: Програмска активност 1102-0003: | B19: 25000000 | C19: 7000000 | D19: 32000000
A20: Програмска активност 1102-0004: | B20: 2000000 | C20: 0 | D20: 2000000
A21: Програмска активност 1102-0005: | B21: 1000000 | C21: 0 | D21: 1000000
A22: Програмска активност 1102-0008: | B22: 17830000 | C22: 11000000 | D22: 28830000
A23: Програмска активност 1201-0001: | B23: 57491000 | C23: 0 | D23: 57491000
A24: Програмска активност 1201-0002: | B24: 4150000 | C24: 0 | D24: 4150000
A25: Програмска активност 1201-0003: | B25: 4500000 | C25: 0 | D25: 4500000
A26: Програмска активност 1201-0004: | B26: 6000000 | C26: 0 | D26: 6000000
A27: Програмска активност 1301-0001: | B27: 9050000 | C27: 0 | D27: 9050000
A28: Програмска активност 1301-0004: | B28: 25697000 | C28: 0 | D28: 25697000
A29: Програмска активност 1301-0005: | B29: 2000000 | C29: 0 | D29: 2000000
A30: Програмска активност 1501-0002: | B30: 25000000 | C30: 0 | D30: 25000000
A31: Програмска активност 1501-0003: | B31: 24000000 | C31: 0 | D31: 24000000
A32: Програмска активност 1502-0001: | B32: 12568000 | C32: 0 | D32: 12568000
A33: Програмска активност 1801-0001: | B33: 17200000 | C33: 0 | D33: 17200000
A34: Програмска активност 1801-0002: | B34: 400000 | C34: 0 | D34: 400000
A35: Програмска активност 2003-0001: | B35: 106820200 | C35: 1500000 | D35: 108320200
A36: Програмска активност 2101-0001: | B36: 22662860 | C36: 0 | D36: 22662860
A37: Програмска активност 2101-0002: | B37: 15547000 | C37: 0 | D37: 15547000
A38: Програмска активност 2101-0003: | B38: 6750000 | C38: 0 | D38: 6750000
A39: Grand Total | B39: 745636574 | C39: 44249600 | D39: 789886174

Sheet Sheet13 (hidden)
B3: Values
A4: Row Labels | B4: Sum of Средства из буџета | C4: Sum of Средства из осталих извора | D4: Sum of Укупно
A5: Програмска активност 0101-0002: | B5: 12400000 | C5: 4000000 | D5: 16400000
A6: Програмска активност 0401-0004: | B6: 0 | C6: 2900000 | D6: 2900000
A7: Програмска активност 0401-0006: | B7: 1500000 | C7: 0 | D7: 1500000
A8: Програмска активност 0501-0001: | B8: 5000000 | C8: 10329600 | D8: 15329600
A9: Програмска активност 0602-0001: | B9: 249747900 | C9: 0 | D9: 249747900
A10: Програмска активност 0602-0002: | B10: 5654000 | C10: 0 | D10: 5654000
A11: Програмска активност 0602-0004: | B11: 18807000 | C11: 0 | D11: 18807000
A12: Програмска активност 0602-0007: | B12: 6900000 | C12: 0 | D12: 6900000
A13: Програмска активност 0602-0009: | B13: 3381614 | C13: 0 | D13: 3381614
A14: Програмска активност 0602-0010: | B14: 500000 | C14: 0 | D14: 500000
A15: Програмска активност 0602-0014: | B15: 7780000 | C15: 4720000 | D15: 12500000
A16: Програмска активност 1101-0001: | B16: 6000000 | C16: 0 | D16: 6000000
A17: Програмска активност 1102-0001: | B17: 40800000 | C17: 2800000 | D17: 43600000
A18: Програмска активност 1102-0002: | B18: 1500000 | C18: 0 | D18: 1500000
A19: Програмска активност 1102-0003: | B19: 25000000 | C19: 7000000 | D19: 32000000
A20: Програмска активност 1102-0004: | B20: 2000000 | C20: 0 | D20: 2000000
A21: Програмска активност 1102-0005: | B21: 1000000 | C21: 0 | D21: 1000000
A22: Програмска активност 1102-0008: | B22: 17830000 | C22: 11000000 | D22: 28830000
A23: Програмска активност 1201-0001: | B23: 57491000 | C23: 0 | D23: 57491000
A24: Програмска активност 1201-0002: | B24: 4150000 | C24: 0 | D24: 4150000
A25: Програмска активност 1201-0003: | B25: 4500000 | C25: 0 | D25: 4500000
A26: Програмска активност 1201-0004: | B26: 6000000 | C26: 0 | D26: 6000000
A27: Програмска активност 1301-0001: | B27: 9050000 | C27: 0 | D27: 9050000
A28: Програмска активност 1301-0004: | B28: 25697000 | C28: 0 | D28: 25697000
A29: Програмска активност 1301-0005: | B29: 2000000 | C29: 0 | D29: 2000000
A30: Програмска активност 1501-0002: | B30: 25000000 | C30: 0 | D30: 25000000
A31: Програмска активност 1501-0003: | B31: 24000000 | C31: 0 | D31: 24000000
A32: Програмска активност 1502-0001: | B32: 12568000 | C32: 0 | D32: 12568000
A33: Програмска активност 1801-0001: | B33: 17200000 | C33: 0 | D33: 17200000
A34: Програмска активност 1801-0002: | B34: 400000 | C34: 0 | D34: 400000
A35: Програмска активност 2003-0001: | B35: 106820200 | C35: 1500000 | D35: 108320200
A36: Програмска активност 2101-0001: | B36: 22662860 | C36: 0 | D36: 22662860
A37: Програмска активност 2101-0002: | B37: 15547000 | C37: 0 | D37: 15547000
A38: Програмска активност 2101-0003: | B38: 6750000 | C38: 0 | D38: 6750000
A39: Grand Total | B39: 745636574 | C39: 44249600 | D39: 789886174

Sheet Sheet15 (hidden)
B3: Values
A4: Row Labels | B4: Sum of Средства из буџета | C4: Sum of Средства из осталих извора | D4: Sum of Укупно
A5: 1 | B5: 3213500 | D5: 3213500
A6: 2 | B6: 535000 | D6: 535000
A7: 3 | B7: 12000 | D7: 12000
A8: 4 | B8: 88000 | D8: 88000
A9: 5 | B9: 110008 | C9: 9 | D9: 110010
A10: 6 | B10: 5000 | D10: 5000
A11: 7 | B11: 50000 | D11: 50000
A12: 8 | B12: 100000 | D12: 100000
A13: 9 | B13: 16000000 | D13: 16000000
A14: 10 | B14: 1800000 | D14: 1800000
A15: 11 | B15: 549360 | D15: 549360
A16: 12 | B16: 200000 | D16: 200000
A17: 13 | B17: 2300000 | D17: 2300000
A18: 14 | B18: 500000 | D18: 500000
A19: 15 | B19: 100000 | D19: 100000
A20: 16 | B20: 100000 | D20: 100000
A21: 17 | B21: 3692000 | D21: 3692000
A22: 18 | B22: 615000 | D22: 615000
A23: 19 | B23: 4000 | D23: 4000
A24: 20 | B24: 96000 | D24: 96000
A25: 21 | B25: 140000 | D25: 140000
A26: 22 | B26: 200000 | D26: 200000
A27: 23 | B27: 50000 | D27: 50000
A28: 24 | B28: 250000 | D28: 250000
A29: 25 | B29: 4000000 | D29: 4000000
A30: 26 | B30: 1000000 | D30: 1000000
A31: 27 | B31: 200000 | D31: 200000
A32: 28 | B32: 200000 | D32: 200000
A33: 29 | B33: 100000 | D33: 100000
A34: 30 | B34: 100000 | D34: 100000
A35: 31 | B35: 100000 | D35: 100000
A36: 32 | B36: 100000 | D36: 100000
A37: 33 | B37: 300000 | D37: 300000
A38: 34 | B38: 3400000 | D38: 3400000
A39: 35 | B39: 1000000 | D39: 1000000
A40: 36 | B40: 3250000 | D40: 3250000
A41: 37 | B41: 500000 | D41: 500000
A42: 38 | B42: 1789000 | D42: 1789000
A43: 39 | B43: 298000 | D43: 298000
A44: 40 | B44: 8000 | D44: 8000
A45: 41 | B45: 92000 | D45: 92000
A46: 42 | B46: 100000 | D46: 100000
A47: 43 | B47: 20000 | D47: 20000
A48: 44 | B48: 200000 | D48: 200000
A49: 45 | B49: 300000 | D49: 300000
A50: 46 | B50: 16000000 | D50: 16000000
A51: 47 | B51: 135311000 | D51: 135311000
A52: 48 | B52: 22549500 | D52: 22549500
A53: 49 | B53: 380000 | D53: 380000
A54: 50 | B54: 7720000 | D54: 7720000
A55: 51 | B55: 11000000 | D55: 11000000
A56: 52 | B56: 2000000 | D56: 2000000
A57: 53 | B57: 18000000 | D57: 18000000
A58: 54 | B58: 1600000 | D58: 1600000
A59: 55 | B59: 19912400 | D59: 19912400
A60: 56 | B60: 1500000 | D60: 1500000
A61: 57 | B61: 4000000 | D61: 4000000
A62: 58 | B62: 10000000 | D62: 10000000
A63: 59 | B63: 2500000 | D63: 2500000
A64: 60 | B64: 50000 | D64: 50000
A65: 61 | B65: 50000 | D65: 50000
A66: 62 | B66: 3500000 | D66: 3500000
A67: 63 | B67: 200000 | D67: 200000
A68: 64 | B68: 4000000 | D68: 4000000
A69: 65 | B69: 100000 | D69: 100000
A70: 66 | B70: 100000 | D70: 100000
A71: 67 | B71: 500000 | D71: 500000
A72: 68 | B72: 4000000 | D72: 4000000
A73: 69 | B73: 100000 | D73: 100000
A74: 70 | B74: 600000 | D74: 600000
A75: 71 | B75: 75000 | D75: 75000
A76: 72 | B76: 1900000 | D76: 1900000
A77: 73 | B77: 5000000 | D77: 5000000
A78: 74 | B78: 3381614 | D78: 3381614
A79: 75 | B79: 500000 | D79: 500000
A80: 76 | B80: 3000000 | D80: 3000000
A81: 77 | B81: 2780000 | C81: 4720000 | D81: 7500000
A82: 78 | B82: 1500000 | D82: 1500000
A83: 79 | B83: 500000 | D83: 500000
A84: 80 | B84: 6000000 | D84: 6000000
A85: 81 | B85: 36000000 | D85: 36000000
A86: 82 | B86: 4000000 | D86: 4000000
A87: 83 | C87: 2800000 | D87: 2800000
A88: 84 | B88: 1500000 | D88: 1500000
A89: 85 | B89: 18000000 | D89: 18000000
A90: 86 | B90: 7000000 | C90: 7000000 | D90: 14000000
A91: 87 | B91: 700000 | D91: 700000
A92: 88 | B92: 1300000 | D92: 1300000
A93: 89 | B93: 1000000 | D93: 1000000
A94: 90 | B94: 250000 | D94: 250000
A95: 91 | B95: 16260000 | D95: 16260000
A96: 92 | B96: 1200000 | D96: 1200000
A97: 93 | B97: 120000 | D97: 120000
A98: 94 | C98: 1000000 | D98: 1000000
A99: 95 | C99: 5000000 | D99: 5000000
A100: 96 | C100: 5000000 | D100: 5000000
A101: 97 | B101: 25000000 | D101: 25000000
A102: 98 | B102: 24000000 | D102: 24000000
A103: 99 | B103: 10000000 | C103: 4000000 | D103: 14000000
A104: 100 | B104: 2000000 | D104: 2000000
A105: 101 | C105: 2900000 | D105: 2900000
A106: 102 | B106: 5900000 | C106: 31600000 | D106: 37500000
A107: 103 | B107: 1500000 | D107: 1500000
A108: 104 | C108: 4950000 | D108: 4950000
A109: 105 | B109: 1142000 | C109: 15459000 | D109: 16601000
A110: 106 | C110: 5000000 | D110: 5000000
A111: 107 | C111: 3700000 | D111: 3700000
A112: 108 | B112: 682000 | C112: 2500000 | D112: 3182000
A113: 109 | B113: 407000 | C113: 2100000 | D113: 2507000
A114: 110 | B114: 4900000 | D114: 4900000
A115: 111 | B115: 10000000 | D115: 10000000
A116: 112 | B116: 2500000 | D116: 2500000
A117: 113 | B117: 1950000 | D117: 1950000
A118: 114 | B118: 819000 | C118: 860000 | D118: 1679000
A119: 115 | C119: 1417000 | D119: 1417000
A120: 116 | B120: 1778000 | C120: 950000 | D120: 2728000
A121: 117 | B121: 36000 | C121: 970000 | D121: 1006000
A122: 118 | B122: 1818000 | D122: 1818000
A123: 119 | B123: 1200000 | C123: 1760000 | D123: 2960000
A124: 120 | B124: 829000 | C124: 300000 | D124: 1129000
A125: 121 | B125: 129000 | C125: 2600000 | D125: 2729000
A126: 122 | B126: 109000 | C126: 1350000 | D126: 1459000
A127: 123 | B127: 319000 | C127: 1600000 | D127: 1919000
A128: 124 | C128: 630000 | D128: 630000
A129: 125 | C129: 846000 | D129: 846000
A130: 126 | C130: 423000 | D130: 423000
A131: 127 | C131: 523000 | D131: 523000
A132: 128 | B132: 1100000 | D132: 1100000
A133: 129 | C133: 782000 | D133: 782000
A134: 130 | C134: 1275000 | D134: 1275000
A135: 131 | B135: 140000 | C135: 732000 | D135: 872000
A136: 132 | B136: 3156000 | C136: 2557000 | D136: 5713000
A137: 133 | B137: 537000 | C137: 1880000 | D137: 2417000
A138: 134 | B138: 1000 | D138: 1000
A139: 135 | B139: 720000 | D139: 720000
A140: 136 | B140: 1229000 | D140: 1229000
A141: 137 | B141: 935000 | D141: 935000
A142: 138 | B142: 2221000 | D142: 2221000
A143: 139 | B143: 645000 | D143: 645000
A144: 140 | B144: 517000 | D144: 517000
A145: 141 | B145: 510000 | D145: 510000
A146: 142 | B146: 514000 | D146: 514000
A147: 143 | B147: 1161000 | D147: 1161000
A148: 144 | B148: 1080000 | D148: 1080000
A149: 145 | B149: 773000 | D149: 773000
A150: 146 | B150: 1173000 | C150: 610000 | D150: 1783000
A151: 147 | C151: 645000 | D151: 645000
A152: 148 | B152: 401000 | D152: 401000
A153: 149 | B153: 528000 | C153: 3781000 | D153: 4309000
A154: 150 | B154: 536500 | D154: 536500
A155: 151 | B155: 2163000 | D155: 2163000
A156: 152 | B156: 560000 | D156: 560000
A157: 153 | B157: 2485000 | D157: 2485000
A158: 154 | B158: 3500000 | D158: 3500000
A159: 155 | B159: 4041000 | D159: 4041000
A160: 156 | B160: 2392000 | D160: 2392000
A161: 157 | B161: 1880000 | D161: 1880000
A162: 158 | B162: 876000 | D162: 876000
A163: 159 | B163: 3150000 | D163: 3150000
A164: 160 | B164: 1499000 | D164: 1499000
A165: 161 | B165: 2000000 | D165: 2000000
A166: 162 | B166: 2750000 | D166: 2750000
A167: 163 | B167: 1750000 | D167: 1750000
A168: 164 | B168: 4800000 | D168: 4800000
A169: 165 | B169: 2990000 | D169: 2990000
A170: 166 | B170: 2000000 | D170: 2000000
A171: 167 | B171: 4142000 | D171: 4142000
A172: 168 | B172: 818500 | D172: 818500
A173: 169 | B173: 4758000 | D173: 4758000
A174: 170 | B174: 33429400 | D174: 33429400
A175: 171 | B175: 35976800 | D175: 35976800
A176: 172 | B176: 1450500 | D176: 1450500
A177: 173 | B177: 594000 | D177: 594000
A178: 174 | B178: 4150000 | D178: 4150000
A179: 175 | B179: 3785500 | D179: 3785500
A180: 176 | B180: 2604000 | C180: 2340000 | D180: 4944000
A181: 177 | C181: 150550000 | D181: 150550000
A182: 178 | C182: 209550000 | D182: 209550000
A183: 179 | C183: 293132000 | D183: 293132000
A184: 180 | C184: 86855000 | D184: 86855000
A185: 181 | B185: 6000000 | C185: 46240000 | D185: 52240000
A186: 182 | B186: 1860000 | C186: 18000000 | D186: 19860000
A187: 183 | C187: 27000000 | D187: 27000000
A188: 184 | B188: 6754000 | D188: 6754000
A189: 185 | B189: 600000 | D189: 600000
A190: 186 | B190: 350000 | D190: 350000
A191: 187 | B191: 500000 | D191: 500000
A192: 188 | B192: 2500000 | D192: 2500000
A193: 189 | B193: 650000 | D193: 650000
A194: 190 | B194: 2300000 | D194: 2300000
A195: 191 | B195: 1500000 | D195: 1500000
A196: 192 | B196: 360000 | D196: 360000
A197: 193 | C197: 1500000 | D197: 1500000
A198: 194 | B198: 11720000 | D198: 11720000
A199: 195 | B199: 200000 | D199: 200000
A200: 196 | B200: 15304400 | D200: 15304400
A201: 197 | B201: 8170700 | D201: 8170700
A202: 198 | B202: 1841000 | D202: 1841000
... 133 more rows

Sheet Sheet17 (hidden)
B3: Values
A4: Row Labels | B4: Sum of Средства из буџета | C4: Sum of Средства из осталих извора | D4: Sum of Укупно
A5: Програмска активност 0101-0002: | B5: 12400000 | C5: 4000000 | D5: 16400000
A6: Програмска активност 0401-0004: | B6: 0 | C6: 2900000 | D6: 2900000
A7: Програмска активност 0401-0005: | B7: 5900000 | C7: 31600000 | D7: 37500000
A8: Програмска активност 0401-0006: | B8: 1500000 | C8: 0 | D8: 1500000
A9: Програмска активност 0501-0001: | B9: 5000000 | C9: 10329600 | D9: 15329600
A10: Програмска активност 0602-0001: | B10: 249747900 | C10: 0 | D10: 249747900
A11: Програмска активност 0602-0002: | B11: 5654000 | C11: 0 | D11: 5654000
A12: Програмска активност 0602-0004: | B12: 18807000 | C12: 0 | D12: 18807000
A13: Програмска активност 0602-0007: | B13: 6900000 | C13: 0 | D13: 6900000
A14: Програмска активност 0602-0009: | B14: 3381614 | C14: 0 | D14: 3381614
A15: Програмска активност 0602-0010: | B15: 500000 | C15: 0 | D15: 500000
A16: Програмска активност 0602-0014: | B16: 7780000 | C16: 4720000 | D16: 12500000
A17: Програмска активност 0902-0001: | B17: 10300000 | C17: 0 | D17: 10300000
A18: Програмска активност 0902-0002: | B18: 3400000 | C18: 0 | D18: 3400000
A19: Програмска активност 0902-0005: | B19: 1000000 | C19: 0 | D19: 1000000
A20: Програмска активност 0902-0019: | B20: 9315000 | C20: 6575226 | D20: 15890226
A21: Програмска активност 0902-0021: | B21: 960000 | C21: 0 | D21: 960000
A22: Програмска активност 1101-0001: | B22: 6000000 | C22: 0 | D22: 6000000
A23: Програмска активност 1102-0001: | B23: 40800000 | C23: 2800000 | D23: 43600000
A24: Програмска активност 1102-0002: | B24: 1500000 | C24: 0 | D24: 1500000
A25: Програмска активност 1102-0003: | B25: 25000000 | C25: 7000000 | D25: 32000000
A26: Програмска активност 1102-0004: | B26: 2000000 | C26: 0 | D26: 2000000
A27: Програмска активност 1102-0005: | B27: 1000000 | C27: 0 | D27: 1000000
A28: Програмска активност 1102-0008: | B28: 17830000 | C28: 11000000 | D28: 28830000
A29: Програмска активност 1201-0001: | B29: 57491000 | C29: 0 | D29: 57491000
A30: Програмска активност 1201-0002: | B30: 4150000 | C30: 0 | D30: 4150000
A31: Програмска активност 1201-0003: | B31: 4500000 | C31: 0 | D31: 4500000
A32: Програмска активност 1201-0004: | B32: 6000000 | C32: 0 | D32: 6000000
A33: Програмска активност 1301-0001: | B33: 9050000 | C33: 0 | D33: 9050000
A34: Програмска активност 1301-0004: | B34: 25697000 | C34: 0 | D34: 25697000
A35: Програмска активност 1301-0005: | B35: 2000000 | C35: 0 | D35: 2000000
A36: Програмска активност 1501-0002: | B36: 25000000 | C36: 0 | D36: 25000000
A37: Програмска активност 1501-0003: | B37: 24000000 | C37: 0 | D37: 24000000
A38: Програмска активност 1502-0001: | B38: 12568000 | C38: 0 | D38: 12568000
A39: Програмска активност 1801-0001: | B39: 17200000 | C39: 0 | D39: 17200000
A40: Програмска активност 1801-0002: | B40: 400000 | C40: 0 | D40: 400000
A41: Програмска активност 2002-0002: | B41: 123805500 | C41: 0 | D41: 123805500
A42: Програмска активност 2003-0001: | B42: 106820200 | C42: 1500000 | D42: 108320200
A43: Програмска активност 2004-0001: | B43: 46367100 | C43: 11000000 | D43: 57367100
A44: Програмска активност 2101-0001: | B44: 22662860 | C44: 0 | D44: 22662860
A45: Програмска активност 2101-0002: | B45: 15547000 | C45: 0 | D45: 15547000
A46: Програмска активност 2101-0003: | B46: 6750000 | C46: 0 | D46: 6750000
A47: Пројекат 0701-5001 | B47: 0 | C47: 4950000 | D47: 4950000
A48: Пројекат 0701-5002 | B48: 1142000 | C48: 15459000 | D48: 16601000
A49: Пројекат 0701-5003 | B49: 0 | C49: 5000000 | D49: 5000000
A50: Пројекат 0701-5004 | B50: 0 | C50: 3700000 | D50: 3700000
A51: Пројекат 0701-5005 | B51: 682000 | C51: 2500000 | D51: 3182000
A52: Пројекат 0701-5006 | B52: 407000 | C52: 2100000 | D52: 2507000
A53: Пројекат 0701-5007 | B53: 4900000 | C53: 0 | D53: 4900000
A54: Пројекат 0701-5008 | B54: 10000000 | C54: 0 | D54: 10000000
A55: Пројекат 0701-5009 | B55: 2500000 | C55: 0 | D55: 2500000
A56: Пројекат 0701-5010 | B56: 1950000 | C56: 0 | D56: 1950000
A57: Пројекат 0701-5011 | B57: 819000 | C57: 860000 | D57: 1679000
A58: Пројекат 0701-5012 | B58: 0 | C58: 1417000 | D58: 1417000
A59: Пројекат 0701-5013 | B59: 1778000 | C59: 950000 | D59: 2728000
A60: Пројекат 0701-5014 | B60: 36000 | C60: 970000 | D60: 1006000
A61: Пројекат 0701-5015 | B61: 1818000 | C61: 0 | D61: 1818000
A62: Пројекат 0701-5016 | B62: 1200000 | C62: 1760000 | D62: 2960000
A63: Пројекат 0701-5017 | B63: 829000 | C63: 300000 | D63: 1129000
A64: Пројекат 0701-5018 | B64: 129000 | C64: 2600000 | D64: 2729000
A65: Пројекат 0701-5019 | B65: 109000 | C65: 1350000 | D65: 1459000
A66: Пројекат 0701-5020 | B66: 319000 | C66: 1600000 | D66: 1919000
A67: Пројекат 0701-5021 | B67: 0 | C67: 630000 | D67: 630000
A68: Пројекат 0701-5022 | B68: 0 | C68: 846000 | D68: 846000
A69: Пројекат 0701-5023 | B69: 0 | C69: 423000 | D69: 423000
A70: Пројекат 0701-5024 | B70: 0 | C70: 523000 | D70: 523000
A71: Пројекат 0701-5025 | B71: 1100000 | C71: 0 | D71: 1100000
A72: Пројекат 0701-5026 | B72: 0 | C72: 782000 | D72: 782000
A73: Пројекат 0701-5027 | B73: 0 | C73: 1275000 | D73: 1275000
A74: Пројекат 0701-5028 | B74: 140000 | C74: 732000 | D74: 872000
A75: Пројекат 0701-5029 | B75: 3156000 | C75: 2557000 | D75: 5713000
A76: Пројекат 0701-5030 | B76: 537000 | C76: 1880000 | D76: 2417000
A77: Пројекат 0701-5031 | B77: 1000 | C77: 0 | D77: 1000
A78: Пројекат 0701-5032 | B78: 720000 | C78: 0 | D78: 720000
A79: Пројекат 0701-5033 | B79: 1229000 | C79: 0 | D79: 1229000
A80: Пројекат 0701-5034 | B80: 935000 | C80: 0 | D80: 935000
A81: Пројекат 0701-5035 | B81: 2221000 | C81: 0 | D81: 2221000
A82: Пројекат 0701-5036 | B82: 645000 | C82: 0 | D82: 645000
A83: Пројекат 0701-5037 | B83: 517000 | C83: 0 | D83: 517000
A84: Пројекат 0701-5038 | B84: 510000 | C84: 0 | D84: 510000
A85: Пројекат 0701-5039 | B85: 514000 | C85: 0 | D85: 514000
A86: Пројекат 0701-5040 | B86: 1161000 | C86: 0 | D86: 1161000
A87: Пројекат 0701-5041 | B87: 1080000 | C87: 0 | D87: 1080000
A88: Пројекат 0701-5042 | B88: 773000 | C88: 0 | D88: 773000
A89: Пројекат 0701-5043 | B89: 1173000 | C89: 610000 | D89: 1783000
A90: Пројекат 0701-5044 | B90: 0 | C90: 645000 | D90: 645000
A91: Пројекат 0701-5045 | B91: 401000 | C91: 0 | D91: 401000
A92: Пројекат 0701-5046 | B92: 528000 | C92: 3781000 | D92: 4309000
A93: Пројекат 0701-5047 | B93: 536500 | C93: 0 | D93: 536500
A94: Пројекат 0701-5048 | B94: 2163000 | C94: 0 | D94: 2163000
A95: Пројекат 0701-5049 | B95: 560000 | C95: 0 | D95: 560000
A96: Пројекат 0701-5050 | B96: 2485000 | C96: 0 | D96: 2485000
A97: Пројекат 0701-5051 | B97: 3500000 | C97: 0 | D97: 3500000
A98: Пројекат 0701-5052 | B98: 4041000 | C98: 0 | D98: 4041000
A99: Пројекат 0701-5053 | B99: 2392000 | C99: 0 | D99: 2392000
A100: Пројекат 0701-5054 | B100: 1880000 | C100: 0 | D100: 1880000
A101: Пројекат 0701-5055 | B101: 876000 | C101: 0 | D101: 876000
A102: Пројекат 0701-5056 | B102: 3150000 | C102: 0 | D102: 3150000
A103: Пројекат 0701-5057 | B103: 1499000 | C103: 0 | D103: 1499000
A104: Пројекат 0701-5058 | B104: 2000000 | C104: 0 | D104: 2000000
A105: Пројекат 0701-5059 | B105: 2750000 | C105: 0 | D105: 2750000
A106: Пројекат 0701-5060 | B106: 1750000 | C106: 0 | D106: 1750000
A107: Пројекат 0701-5061 | B107: 4800000 | C107: 0 | D107: 4800000
A108: Пројекат 0701-5062 | B108: 2990000 | C108: 0 | D108: 2990000
A109: Пројекат 0701-5063 | B109: 2000000 | C109: 0 | D109: 2000000
A110: Пројекат 0701-5064 | B110: 4142000 | C110: 0 | D110: 4142000
A111: Пројекат 1201-4001 | B111: 150000 | C111: 0 | D111: 150000
A112: Пројекат 1201-4002 | B112: 100000 | C112: 0 | D112: 100000
A113: Пројекат 1201-4003 | B113: 400000 | C113: 0 | D113: 400000
A114: Пројекат 1201-4004 | B114: 300000 | C114: 0 | D114: 300000
A115: Пројекат 2003-5067: | B115: 2604000 | C115: 2340000 | D115: 4944000
A116: Пројекат 2003-5068: | B116: 0 | C116: 150550000 | D116: 150550000
A117: Пројекат 2003-5069: | B117: 0 | C117: 209550000 | D117: 209550000
A118: Пројекат 2003-5070: | B118: 0 | C118: 293132000 | D118: 293132000
A119: Пројекат 2003-5071: | B119: 0 | C119: 86855000 | D119: 86855000
A120: Пројекат 2003-5072: | B120: 6000000 | C120: 46240000 | D120: 52240000
A121: Grand Total | B121: 1045711674 | C121: 942291826 | D121: 1988003500

Sheet Sheet16 (hidden)
B3: Values
A4: Row Labels | B4: Sum of Средства из буџета | C4: Sum of Средства из осталих извора | D4: Sum of Укупно
A5: Програмска активност 0101-0002: | B5: 12400000 | C5: 4000000 | D5: 16400000
A6: Програмска активност 0401-0004: | B6: 0 | C6: 2900000 | D6: 2900000
A7: Програмска активност 0401-0005: | B7: 5900000 | C7: 31600000 | D7: 37500000
A8: Програмска активност 0401-0006: | B8: 1500000 | C8: 0 | D8: 1500000
A9: Програмска активност 0501-0001: | B9: 5000000 | C9: 10329600 | D9: 15329600
A10: Програмска активност 0602-0001: | B10: 249747900 | C10: 0 | D10: 249747900
A11: Програмска активност 0602-0002: | B11: 5654000 | C11: 0 | D11: 5654000
A12: Програмска активност 0602-0004: | B12: 18807000 | C12: 0 | D12: 18807000
A13: Програмска активност 0602-0007: | B13: 6900000 | C13: 0 | D13: 6900000
A14: Програмска активност 0602-0009: | B14: 3381614 | C14: 0 | D14: 3381614
A15: Програмска активност 0602-0010: | B15: 500000 | C15: 0 | D15: 500000
A16: Програмска активност 0602-0014: | B16: 7780000 | C16: 4720000 | D16: 12500000
A17: Програмска активност 0902-0001: | B17: 10300000 | C17: 0 | D17: 10300000
A18: Програмска активност 0902-0002: | B18: 3400000 | C18: 0 | D18: 3400000
A19: Програмска активност 0902-0005: | B19: 1000000 | C19: 0 | D19: 1000000
A20: Програмска активност 0902-0019: | B20: 9315000 | C20: 6575226 | D20: 15890226
A21: Програмска активност 0902-0021: | B21: 960000 | C21: 0 | D21: 960000
A22: Програмска активност 1101-0001: | B22: 6000000 | C22: 0 | D22: 6000000
A23: Програмска активност 1102-0001: | B23: 40800000 | C23: 2800000 | D23: 43600000
A24: Програмска активност 1102-0002: | B24: 1500000 | C24: 0 | D24: 1500000
A25: Програмска активност 1102-0003: | B25: 25000000 | C25: 7000000 | D25: 32000000
A26: Програмска активност 1102-0004: | B26: 2000000 | C26: 0 | D26: 2000000
A27: Програмска активност 1102-0005: | B27: 1000000 | C27: 0 | D27: 1000000
A28: Програмска активност 1102-0008: | B28: 17830000 | C28: 11000000 | D28: 28830000
A29: Програмска активност 1201-0001: | B29: 57491000 | C29: 0 | D29: 57491000
A30: Програмска активност 1201-0002: | B30: 4150000 | C30: 0 | D30: 4150000
A31: Програмска активност 1201-0003: | B31: 4500000 | C31: 0 | D31: 4500000
A32: Програмска активност 1201-0004: | B32: 6000000 | C32: 0 | D32: 6000000
A33: Програмска активност 1301-0001: | B33: 9050000 | C33: 0 | D33: 9050000
A34: Програмска активност 1301-0002: | B34: 0 | C34: 6500000 | D34: 6500000
A35: Програмска активност 1301-0004: | B35: 25697000 | C35: 0 | D35: 25697000
A36: Програмска активност 1301-0005: | B36: 2000000 | C36: 0 | D36: 2000000
A37: Програмска активност 1501-0002: | B37: 25000000 | C37: 0 | D37: 25000000
A38: Програмска активност 1501-0003: | B38: 24000000 | C38: 0 | D38: 24000000
A39: Програмска активност 1502-0001: | B39: 12568000 | C39: 0 | D39: 12568000
A40: Програмска активност 1801-0001: | B40: 17200000 | C40: 0 | D40: 17200000
A41: Програмска активност 1801-0002: | B41: 400000 | C41: 0 | D41: 400000
A42: Програмска активност 2002-0002: | B42: 123805500 | C42: 0 | D42: 123805500
A43: Програмска активност 2003-0001: | B43: 106820200 | C43: 1500000 | D43: 108320200
A44: Програмска активност 2004-0001: | B44: 46367100 | C44: 11000000 | D44: 57367100
A45: Програмска активност 2101-0001: | B45: 22662860 | C45: 0 | D45: 22662860
A46: Програмска активност 2101-0002: | B46: 15547000 | C46: 0 | D46: 15547000
A47: Програмска активност 2101-0003: | B47: 6750000 | C47: 0 | D47: 6750000
A48: Пројекат 0701-5001 | B48: 0 | C48: 4950000 | D48: 4950000
A49: Пројекат 0701-5002 | B49: 1142000 | C49: 15459000 | D49: 16601000
A50: Пројекат 0701-5003 | B50: 0 | C50: 5000000 | D50: 5000000
A51: Пројекат 0701-5004 | B51: 0 | C51: 3700000 | D51: 3700000
A52: Пројекат 0701-5005 | B52: 682000 | C52: 2500000 | D52: 3182000
A53: Пројекат 0701-5006 | B53: 407000 | C53: 2100000 | D53: 2507000
A54: Пројекат 0701-5007 | B54: 4900000 | C54: 0 | D54: 4900000
A55: Пројекат 0701-5008 | B55: 10000000 | C55: 0 | D55: 10000000
A56: Пројекат 0701-5009 | B56: 2500000 | C56: 0 | D56: 2500000
A57: Пројекат 0701-5010 | B57: 1950000 | C57: 0 | D57: 1950000
A58: Пројекат 0701-5011 | B58: 819000 | C58: 860000 | D58: 1679000
A59: Пројекат 0701-5012 | B59: 0 | C59: 1417000 | D59: 1417000
A60: Пројекат 0701-5013 | B60: 1778000 | C60: 950000 | D60: 2728000
A61: Пројекат 0701-5014 | B61: 36000 | C61: 970000 | D61: 1006000
A62: Пројекат 0701-5015 | B62: 1818000 | C62: 0 | D62: 1818000
A63: Пројекат 0701-5016 | B63: 1200000 | C63: 1760000 | D63: 2960000
A64: Пројекат 0701-5017 | B64: 829000 | C64: 300000 | D64: 1129000
A65: Пројекат 0701-5018 | B65: 129000 | C65: 2600000 | D65: 2729000
A66: Пројекат 0701-5019 | B66: 109000 | C66: 1350000 | D66: 1459000
A67: Пројекат 0701-5020 | B67: 319000 | C67: 1600000 | D67: 1919000
A68: Пројекат 0701-5021 | B68: 0 | C68: 630000 | D68: 630000
A69: Пројекат 0701-5022 | B69: 0 | C69: 846000 | D69: 846000
A70: Пројекат 0701-5023 | B70: 0 | C70: 423000 | D70: 423000
A71: Пројекат 0701-5024 | B71: 0 | C71: 523000 | D71: 523000
A72: Пројекат 0701-5025 | B72: 1100000 | C72: 0 | D72: 1100000
A73: Пројекат 0701-5026 | B73: 0 | C73: 782000 | D73: 782000
A74: Пројекат 0701-5027 | B74: 0 | C74: 1275000 | D74: 1275000
A75: Пројекат 0701-5028 | B75: 140000 | C75: 732000 | D75: 872000
A76: Пројекат 0701-5029 | B76: 3156000 | C76: 2557000 | D76: 5713000
A77: Пројекат 0701-5030 | B77: 537000 | C77: 1880000 | D77: 2417000
A78: Пројекат 0701-5031 | B78: 1000 | C78: 0 | D78: 1000
A79: Пројекат 0701-5032 | B79: 720000 | C79: 0 | D79: 720000
A80: Пројекат 0701-5033 | B80: 1229000 | C80: 0 | D80: 1229000
A81: Пројекат 0701-5034 | B81: 935000 | C81: 0 | D81: 935000
A82: Пројекат 0701-5035 | B82: 2221000 | C82: 0 | D82: 2221000
A83: Пројекат 0701-5036 | B83: 645000 | C83: 0 | D83: 645000
A84: Пројекат 0701-5037 | B84: 517000 | C84: 0 | D84: 517000
A85: Пројекат 0701-5038 | B85: 510000 | C85: 0 | D85: 510000
A86: Пројекат 0701-5039 | B86: 514000 | C86: 0 | D86: 514000
A87: Пројекат 0701-5040 | B87: 1161000 | C87: 0 | D87: 1161000
A88: Пројекат 0701-5041 | B88: 1080000 | C88: 0 | D88: 1080000
A89: Пројекат 0701-5042 | B89: 773000 | C89: 0 | D89: 773000
A90: Пројекат 0701-5043 | B90: 1173000 | C90: 610000 | D90: 1783000
A91: Пројекат 0701-5044 | B91: 0 | C91: 645000 | D91: 645000
A92: Пројекат 0701-5045 | B92: 401000 | C92: 0 | D92: 401000
A93: Пројекат 0701-5046 | B93: 528000 | C93: 3781000 | D93: 4309000
A94: Пројекат 0701-5047 | B94: 536500 | C94: 0 | D94: 536500
A95: Пројекат 0701-5048 | B95: 2163000 | C95: 0 | D95: 2163000
A96: Пројекат 0701-5049 | B96: 560000 | C96: 0 | D96: 560000
A97: Пројекат 0701-5050 | B97: 2485000 | C97: 0 | D97: 2485000
A98: Пројекат 0701-5051 | B98: 3500000 | C98: 0 | D98: 3500000
A99: Пројекат 0701-5052 | B99: 4041000 | C99: 0 | D99: 4041000
A100: Пројекат 0701-5053 | B100: 2392000 | C100: 0 | D100: 2392000
A101: Пројекат 0701-5054 | B101: 1880000 | C101: 0 | D101: 1880000
A102: Пројекат 0701-5055 | B102: 876000 | C102: 0 | D102: 876000
A103: Пројекат 0701-5056 | B103: 3150000 | C103: 0 | D103: 3150000
A104: Пројекат 0701-5057 | B104: 1499000 | C104: 0 | D104: 1499000
A105: Пројекат 0701-5058 | B105: 2000000 | C105: 0 | D105: 2000000
A106: Пројекат 0701-5059 | B106: 2750000 | C106: 0 | D106: 2750000
A107: Пројекат 0701-5060 | B107: 1750000 | C107: 0 | D107: 1750000
A108: Пројекат 0701-5061 | B108: 4800000 | C108: 0 | D108: 4800000
A109: Пројекат 0701-5062 | B109: 2990000 | C109: 0 | D109: 2990000
A110: Пројекат 0701-5063 | B110: 2000000 | C110: 0 | D110: 2000000
A111: Пројекат 0701-5064 | B111: 4142000 | C111: 0 | D111: 4142000
A112: Пројекат 0701-5065 | B112: 818500 | C112: 0 | D112: 818500
A113: Пројекат 0701-5066 | B113: 4758000 | C113: 0 | D113: 4758000
A114: Пројекат 1201-4001 | B114: 150000 | C114: 0 | D114: 150000
A115: Пројекат 1201-4002 | B115: 100000 | C115: 0 | D115: 100000
A116: Пројекат 1201-4003 | B116: 400000 | C116: 0 | D116: 400000
A117: Пројекат 1201-4004 | B117: 300000 | C117: 0 | D117: 300000
A118: Пројекат 2003-5067: | B118: 2604000 | C118: 2340000 | D118: 4944000
A119: Пројекат 2003-5068: | B119: 0 | C119: 150550000 | D119: 150550000
A120: Пројекат 2003-5069: | B120: 0 | C120: 209550000 | D120: 209550000
A121: Пројекат 2003-5070: | B121: 0 | C121: 293132000 | D121: 293132000
A122: Пројекат 2003-5071: | B122: 0 | C122: 86855000 | D122: 86855000
A123: Пројекат 2003-5072: | B123: 6000000 | C123: 46240000 | D123: 52240000
A124: Пројекат 2003-5073: | B124: 1860000 | C124: 18000000 | D124: 19860000
A125: Пројекат 2003-5074: | B125: 0 | C125: 27000000 | D125: 27000000
A126: Grand Total | B126: 1053148174 | C126: 993791826 | D126: 2046940000

Sheet Sheet18 (hidden)
B3: Values
A4: Row Labels | B4: Sum of Средства из буџета | C4: Sum of Средства из осталих извора | D4: Sum of Укупно
A5: Програмска активност 0101-0002: | B5: 12400000 | C5: 4000000 | D5: 16400000
A6: Програмска активност 0401-0004: | B6: 0 | C6: 2900000 | D6: 2900000
A7: Програмска активност 0401-0005: | B7: 5900000 | C7: 31600000 | D7: 37500000
A8: Програмска активност 0401-0006: | B8: 1500000 | C8: 0 | D8: 1500000
A9: Програмска активност 0501-0001: | B9: 5000000 | C9: 10329600 | D9: 15329600
A10: Програмска активност 0602-0001: | B10: 249747900 | C10: 0 | D10: 249747900
A11: Програмска активност 0602-0002: | B11: 5654000 | C11: 0 | D11: 5654000
A12: Програмска активност 0602-0004: | B12: 18807000 | C12: 0 | D12: 18807000
A13: Програмска активност 0602-0007: | B13: 6900000 | C13: 0 | D13: 6900000
A14: Програмска активност 0602-0009: | B14: 3381614 | C14: 0 | D14: 3381614
A15: Програмска активност 0602-0010: | B15: 500000 | C15: 0 | D15: 500000
A16: Програмска активност 0602-0014: | B16: 7780000 | C16: 4720000 | D16: 12500000
A17: Програмска активност 0902-0001: | B17: 10300000 | C17: 0 | D17: 10300000
A18: Програмска активност 0902-0002: | B18: 3400000 | C18: 0 | D18: 3400000
A19: Програмска активност 0902-0005: | B19: 1000000 | C19: 0 | D19: 1000000
A20: Програмска активност 0902-0019: | B20: 9315000 | C20: 6575226 | D20: 15890226
A21: Програмска активност 0902-0021: | B21: 960000 | C21: 0 | D21: 960000
A22: Програмска активност 1101-0001: | B22: 6000000 | C22: 0 | D22: 6000000
A23: Програмска активност 1102-0001: | B23: 40800000 | C23: 2800000 | D23: 43600000
A24: Програмска активност 1102-0002: | B24: 1500000 | C24: 0 | D24: 1500000
A25: Програмска активност 1102-0003: | B25: 25000000 | C25: 7000000 | D25: 32000000
A26: Програмска активност 1102-0004: | B26: 2000000 | C26: 0 | D26: 2000000
A27: Програмска активност 1102-0005: | B27: 1000000 | C27: 0 | D27: 1000000
A28: Програмска активност 1102-0008: | B28: 17830000 | C28: 11000000 | D28: 28830000
A29: Програмска активност 1201-0001: | B29: 57491000 | C29: 0 | D29: 57491000
A30: Програмска активност 1201-0002: | B30: 4150000 | C30: 0 | D30: 4150000
A31: Програмска активност 1201-0003: | B31: 4500000 | C31: 0 | D31: 4500000
A32: Програмска активност 1201-0004: | B32: 6000000 | C32: 0 | D32: 6000000
A33: Програмска активност 1301-0001: | B33: 9050000 | C33: 0 | D33: 9050000
A34: Програмска активност 1301-0002: | B34: 0 | C34: 6500000 | D34: 6500000
A35: Програмска активност 1301-0004: | B35: 25697000 | C35: 0 | D35: 25697000
A36: Програмска активност 1301-0005: | B36: 2000000 | C36: 0 | D36: 2000000
A37: Програмска активност 1501-0002: | B37: 25000000 | C37: 0 | D37: 25000000
A38: Програмска активност 1501-0003: | B38: 24000000 | C38: 0 | D38: 24000000
A39: Програмска активност 1502-0001: | B39: 12568000 | C39: 0 | D39: 12568000
A40: Програмска активност 1801-0001: | B40: 17200000 | C40: 0 | D40: 17200000
A41: Програмска активност 1801-0002: | B41: 400000 | C41: 0 | D41: 400000
A42: Програмска активност 2002-0002: | B42: 123805500 | C42: 0 | D42: 123805500
A43: Програмска активност 2003-0001: | B43: 106820200 | C43: 1500000 | D43: 108320200
A44: Програмска активност 2004-0001: | B44: 46367100 | C44: 11000000 | D44: 57367100
A45: Програмска активност 2101-0001: | B45: 22662860 | C45: 0 | D45: 22662860
A46: Програмска активност 2101-0002: | B46: 15547000 | C46: 0 | D46: 15547000
A47: Програмска активност 2101-0003: | B47: 6750000 | C47: 0 | D47: 6750000
A48: Пројекат 0701-5001 | B48: 0 | C48: 4950000 | D48: 4950000
A49: Пројекат 0701-5002 | B49: 1142000 | C49: 15459000 | D49: 16601000
A50: Пројекат 0701-5003 | B50: 0 | C50: 5000000 | D50: 5000000
A51: Пројекат 0701-5004 | B51: 0 | C51: 3700000 | D51: 3700000
A52: Пројекат 0701-5005 | B52: 682000 | C52: 2500000 | D52: 3182000
A53: Пројекат 0701-5006 | B53: 407000 | C53: 2100000 | D53: 2507000
A54: Пројекат 0701-5007 | B54: 4900000 | C54: 0 | D54: 4900000
A55: Пројекат 0701-5008 | B55: 10000000 | C55: 0 | D55: 10000000
A56: Пројекат 0701-5009 | B56: 2500000 | C56: 0 | D56: 2500000
A57: Пројекат 0701-5010 | B57: 1950000 | C57: 0 | D57: 1950000
A58: Пројекат 0701-5011 | B58: 819000 | C58: 860000 | D58: 1679000
A59: Пројекат 0701-5012 | B59: 0 | C59: 1417000 | D59: 1417000
A60: Пројекат 0701-5013 | B60: 1778000 | C60: 950000 | D60: 2728000
A61: Пројекат 0701-5014 | B61: 36000 | C61: 970000 | D61: 1006000
A62: Пројекат 0701-5015 | B62: 1818000 | C62: 0 | D62: 1818000
A63: Пројекат 0701-5016 | B63: 1200000 | C63: 1760000 | D63: 2960000
A64: Пројекат 0701-5017 | B64: 829000 | C64: 300000 | D64: 1129000
A65: Пројекат 0701-5018 | B65: 129000 | C65: 2600000 | D65: 2729000
A66: Пројекат 0701-5019 | B66: 109000 | C66: 1350000 | D66: 1459000
A67: Пројекат 0701-5020 | B67: 319000 | C67: 1600000 | D67: 1919000
A68: Пројекат 0701-5021 | B68: 0 | C68: 630000 | D68: 630000
A69: Пројекат 0701-5022 | B69: 0 | C69: 846000 | D69: 846000
A70: Пројекат 0701-5023 | B70: 0 | C70: 423000 | D70: 423000
A71: Пројекат 0701-5024 | B71: 0 | C71: 523000 | D71: 523000
A72: Пројекат 0701-5025 | B72: 1100000 | C72: 0 | D72: 1100000
A73: Пројекат 0701-5026 | B73: 0 | C73: 782000 | D73: 782000
A74: Пројекат 0701-5027 | B74: 0 | C74: 1275000 | D74: 1275000
A75: Пројекат 0701-5028 | B75: 140000 | C75: 732000 | D75: 872000
A76: Пројекат 0701-5029 | B76: 3156000 | C76: 2557000 | D76: 5713000
A77: Пројекат 0701-5030 | B77: 537000 | C77: 1880000 | D77: 2417000
A78: Пројекат 0701-5031 | B78: 1000 | C78: 0 | D78: 1000
A79: Пројекат 0701-5032 | B79: 720000 | C79: 0 | D79: 720000
A80: Пројекат 0701-5033 | B80: 1229000 | C80: 0 | D80: 1229000
A81: Пројекат 0701-5034 | B81: 935000 | C81: 0 | D81: 935000
A82: Пројекат 0701-5035 | B82: 2221000 | C82: 0 | D82: 2221000
A83: Пројекат 0701-5036 | B83: 645000 | C83: 0 | D83: 645000
A84: Пројекат 0701-5037 | B84: 517000 | C84: 0 | D84: 517000
A85: Пројекат 0701-5038 | B85: 510000 | C85: 0 | D85: 510000
A86: Пројекат 0701-5039 | B86: 514000 | C86: 0 | D86: 514000
A87: Пројекат 0701-5040 | B87: 1161000 | C87: 0 | D87: 1161000
A88: Пројекат 0701-5041 | B88: 1080000 | C88: 0 | D88: 1080000
A89: Пројекат 0701-5042 | B89: 773000 | C89: 0 | D89: 773000
A90: Пројекат 0701-5043 | B90: 1173000 | C90: 610000 | D90: 1783000
A91: Пројекат 0701-5044 | B91: 0 | C91: 645000 | D91: 645000
A92: Пројекат 0701-5045 | B92: 401000 | C92: 0 | D92: 401000
A93: Пројекат 0701-5046 | B93: 528000 | C93: 3781000 | D93: 4309000
A94: Пројекат 0701-5047 | B94: 536500 | C94: 0 | D94: 536500
A95: Пројекат 0701-5048 | B95: 2163000 | C95: 0 | D95: 2163000
A96: Пројекат 0701-5049 | B96: 560000 | C96: 0 | D96: 560000
A97: Пројекат 0701-5050 | B97: 2485000 | C97: 0 | D97: 2485000
A98: Пројекат 0701-5051 | B98: 3500000 | C98: 0 | D98: 3500000
A99: Пројекат 0701-5052 | B99: 4041000 | C99: 0 | D99: 4041000
A100: Пројекат 0701-5053 | B100: 2392000 | C100: 0 | D100: 2392000
A101: Пројекат 0701-5054 | B101: 1880000 | C101: 0 | D101: 1880000
A102: Пројекат 0701-5055 | B102: 876000 | C102: 0 | D102: 876000
A103: Пројекат 0701-5056 | B103: 3150000 | C103: 0 | D103: 3150000
A104: Пројекат 0701-5057 | B104: 1499000 | C104: 0 | D104: 1499000
A105: Пројекат 0701-5058 | B105: 2000000 | C105: 0 | D105: 2000000
A106: Пројекат 0701-5059 | B106: 2750000 | C106: 0 | D106: 2750000
A107: Пројекат 0701-5060 | B107: 1750000 | C107: 0 | D107: 1750000
A108: Пројекат 0701-5061 | B108: 4800000 | C108: 0 | D108: 4800000
A109: Пројекат 0701-5062 | B109: 2990000 | C109: 0 | D109: 2990000
A110: Пројекат 0701-5063 | B110: 2000000 | C110: 0 | D110: 2000000
A111: Пројекат 0701-5064 | B111: 4142000 | C111: 0 | D111: 4142000
A112: Пројекат 0701-5065 | B112: 818500 | C112: 0 | D112: 818500
A113: Пројекат 0701-5066 | B113: 4758000 | C113: 0 | D113: 4758000
A114: Пројекат 0701-5075 | B114: 1050000 | C114: 0 | D114: 1050000
A115: Пројекат 1201-4001 | B115: 150000 | C115: 0 | D115: 150000
A116: Пројекат 1201-4002 | B116: 100000 | C116: 0 | D116: 100000
A117: Пројекат 1201-4003 | B117: 400000 | C117: 0 | D117: 400000
A118: Пројекат 1201-4004 | B118: 300000 | C118: 0 | D118: 300000
A119: Пројекат 2003-5067: | B119: 2604000 | C119: 2340000 | D119: 4944000
A120: Пројекат 2003-5068: | B120: 0 | C120: 150550000 | D120: 150550000
A121: Пројекат 2003-5069: | B121: 0 | C121: 209550000 | D121: 209550000
A122: Пројекат 2003-5070: | B122: 0 | C122: 293132000 | D122: 293132000
A123: Пројекат 2003-5071: | B123: 0 | C123: 86855000 | D123: 86855000
A124: Пројекат 2003-5072: | B124: 6000000 | C124: 46240000 | D124: 52240000
A125: Пројекат 2003-5073: | B125: 1860000 | C125: 18000000 | D125: 19860000
A126: Пројекат 2003-5074: | B126: 0 | C126: 27000000 | D126: 27000000
A127: Пројекат 2003-5076: | B127: 1440000 | C127: 0 | D127: 1440000
A128: Grand Total | B128: 1055638174 | C128: 993791826 | D128: 2049430000

Sheet Troškovi 2022 - R1
A1: Раздео | B1: Глава | C1: Програмска активност | D1: Функција | E1: Позиција | F1: Економска класификација | G1: ОПИС | H1: Средства из буџета | I1: Средства из осталих извора | J1: Укупно | O1: Укупно
A2: 1 | B2: 2 | C2: 3 | D2: 4 | E2: 5 | F2: 6 | G2: 7 | H2: 8 | I2: 9 | J2: 10 | O2: 10
A3: 1 | B3: 1.01 | G3: СКУПШТИНА ОПШТИНЕ
C5: 2101 | G5: ПРОГРАМ 16: ПОЛИТИЧКИ СИСТЕМ ЛОКАЛНЕ САМОУПРАВЕ
C6: 2101-0001 | G6: Функционисање скупштине
D7: 111 | G7: Извршни и законодавни органи, финансијски и фискални послови
E8: 1 | F8: 411 | G8: Плате, додаци и накнаде запосленима | H8: 3213500 | J8: =H8+I8 -> 3213500 | K8: =IF(E8="","",VLOOKUP(E8,Izvrsenje27.6!C:H,6,FALSE)) -> 1564434.6 | N8: =J8-O8 -> 0 | O8: 3213500
E9: 2 | F9: 412 | G9: Социјални доприноси на терет послодавца | H9: 535000 | J9: 535000 | K9: =IF(E9="","",VLOOKUP(E9,Izvrsenje27.6!C:H,6,FALSE)) -> 252656.2 | N9: =J9-O9 -> 0 | O9: 535000
E10: 3 | F10: 413 | G10: Накнаде у натури | H10: 12000 | J10: 12000 | K10: =IF(E10="","",VLOOKUP(E10,Izvrsenje27.6!C:H,6,FALSE)) -> 0 | N10: 0 | O10: 12000
E11: 4 | F11: 414 | G11: Социјална давања запосленима | H11: =100000-12000 -> 88000 | J11: 88000 | K11: =IF(E11="","",VLOOKUP(E11,Izvrsenje27.6!C:H,6,FALSE)) -> 0 | N11: 0 | O11: 88000
E12: 5 | F12: 415 | G12: Накнаде трошкова за запослене | H12: 110000 | J12: 110000 | K12: =IF(E12="","",VLOOKUP(E12,Izvrsenje27.6!C:H,6,FALSE)) -> 38966.78 | N12: 0 | O12: 110000
E13: 6 | F13: 416 | G13: Награде, бонуси и остали посебни расходи | H13: 5000 | J13: 5000 | K13: =IF(E13="","",VLOOKUP(E13,Izvrsenje27.6!C:H,6,FALSE)) -> 0 | N13: 0 | O13: 5000
E14: 7 | F14: 421 | G14: Стални трошкови | H14: 50000 | J14: 50000 | K14: =IF(E14="","",VLOOKUP(E14,Izvrsenje27.6!C:H,6,FALSE)) -> 7 | N14: 0 | O14: 50000
E15: 8 | F15: 422 | G15: Трошкови путовања | H15: 100000 | J15: 100000 | K15: =IF(E15="","",VLOOKUP(E15,Izvrsenje27.6!C:H,6,FALSE)) -> 7870 | N15: 0 | O15: 100000
E16: 9 | F16: 423 | G16: Услуге по уговору | H16: =2000000+300000+14400000-700000 -> 16000000 | J16: 16000000 | K16: =IF(E16="","",VLOOKUP(E16,Izvrsenje27.6!C:H,6,FALSE)) -> 7206275.21 | N16: 0 | O16: 16000000
E17: 10 | F17: 426 | G17: Материјал | H17: =2000000-200000 -> 1800000 | J17: 1800000 | K17: =IF(E17="","",VLOOKUP(E17,Izvrsenje27.6!C:H,6,FALSE)) -> 189750 | N17: 0 | O17: 1800000
E18: 11 | F18: 481 | G18: Дотација - редован рад политичких странака (порески приходи 523.200.000*0,105%) | H18: 549360 | J18: 549360 | K18: =IF(E18="","",VLOOKUP(E18,Izvrsenje27.6!C:H,6,FALSE)) -> 113450.45 | N18: 31260 | O18: 518100
E19: 12 | F19: 512 | G19: Машине и опрема | H19: 200000 | J19: 200000 | K19: =IF(E19="","",VLOOKUP(E19,Izvrsenje27.6!C:H,6,FALSE)) -> 0 | N19: 0 | O19: 200000
G20: Функција 111: | H20: =SUBTOTAL(9,H8:H19) -> 22662860 | I20: =SUBTOTAL(9,I8:I19) -> 0 | J20: =SUBTOTAL(9,J8:J19) -> 22662860 | K20: =IF(E20="","",VLOOKUP(E20,Izvrsenje27.6!C:H,6,FALSE)) ->  | N20: 31260 | O20: 22631600
G21: Програмска активност 2101-0001: | H21: =SUBTOTAL(9,H8:H19) -> 22662860 | I21: =SUBTOTAL(9,I8:I19) -> 0 | J21: =SUBTOTAL(9,J8:J19) -> 22662860 | K21: =IF(E21="","",VLOOKUP(E21,Izvrsenje27.6!C:H,6,FALSE)) ->  | N21: 31260 | O21: 22631600
K22: =IF(E22="","",VLOOKUP(E22,Izvrsenje27.6!C:H,6,FALSE)) ->  | N22: 0
C23: 2101-0003 | G23: Подршка раду извршних органа власти и скупштине | K23: =IF(E23="","",VLOOKUP(E23,Izvrsenje27.6!C:H,6,FALSE)) ->  | N23: 0
D24: 111 | G24: Извршни и законодавни органи | K24: =IF(E24="","",VLOOKUP(E24,Izvrsenje27.6!C:H,6,FALSE)) ->  | N24: 0
E25: 13 | F25: 423 | G25: Услуге по уговору | H25: =3000000-200000-500000 -> 2300000 | J25: =H25+I25 -> 2300000 | K25: =IF(E25="","",VLOOKUP(E25,Izvrsenje27.6!C:H,6,FALSE)) -> 683117.8 | N25: 0 | O25: 2300000
E26: 14 | F26: 481 | G26: Дотације - Савет за безбедност општине Бујановац | H26: =1000000-500000 -> 500000 | J26: =H26+I26 -> 500000 | K26: =IF(E26="","",VLOOKUP(E26,Izvrsenje27.6!C:H,6,FALSE)) -> 250000 | N26: 0 | O26: 500000
E27: 15 | F27: 481 | G27: Дотације - Савет за међунационалне односе | H27: 100000 | J27: =H27+I27 -> 100000 | K27: =IF(E27="","",VLOOKUP(E27,Izvrsenje27.6!C:H,6,FALSE)) -> 0 | N27: 0 | O27: 100000
E28: 16 | F28: 481 | G28: Дотације - Савет за родну равноправност | H28: =200000-100000 -> 100000 | J28: =H28+I28 -> 100000 | K28: =IF(E28="","",VLOOKUP(E28,Izvrsenje27.6!C:H,6,FALSE)) -> 0 | N28: 0 | O28: 100000
G29: Функција 111: | H29: =SUBTOTAL(9,H25:H28) -> 3000000 | I29: =SUBTOTAL(9,I25:I28) -> 0 | J29: =SUBTOTAL(9,J25:J28) -> 3000000 | K29: =IF(E29="","",VLOOKUP(E29,Izvrsenje27.6!C:H,6,FALSE)) ->  | N29: 0 | O29: 3000000
G30: Програмска активност 2101-0003: | H30: =SUBTOTAL(9,H25:H28) -> 3000000 | I30: =SUBTOTAL(9,I25:I28) -> 0 | J30: =SUBTOTAL(9,J25:J28) -> 3000000 | K30: =IF(E30="","",VLOOKUP(E30,Izvrsenje27.6!C:H,6,FALSE)) ->  | N30: 0 | O30: 3000000
G31: УКУПНО ЗА ГЛАВУ 1.01: | H31: =SUBTOTAL(9,H8:H30) -> 25662860 | I31: =SUBTOTAL(9,I8:I30) -> 0 | J31: =SUBTOTAL(9,J8:J30) -> 25662860 | K31: =IF(E31="","",VLOOKUP(E31,Izvrsenje27.6!C:H,6,FALSE)) ->  | N31: 31260 | O31: 25631600
G32: УКУПНО ЗА РАЗДЕО 1: | H32: =SUBTOTAL(9,H8:H30) -> 25662860 | I32: =SUBTOTAL(9,I8:I31) -> 0 | J32: =SUBTOTAL(9,J8:J31) -> 25662860 | K32: =IF(E32="","",VLOOKUP(E32,Izvrsenje27.6!C:H,6,FALSE)) ->  | N32: 31260 | O32: 25631600
K33: =IF(E33="","",VLOOKUP(E33,Izvrsenje27.6!C:H,6,FALSE)) ->  | N33: 0
A34: 2 | B34: 2.01 | G34: ПРЕДСЕДНИК ОПШТИНЕ | K34: =IF(E34="","",VLOOKUP(E34,Izvrsenje27.6!C:H,6,FALSE)) ->  | N34: 0
K35: =IF(E35="","",VLOOKUP(E35,Izvrsenje27.6!C:H,6,FALSE)) ->  | N35: 0
C36: 2101 | G36: ПРОГРАМ 16: ПОЛИТИЧКИ СИСТЕМ ЛОКАЛНЕ САМОУПРАВЕ | K36: =IF(E36="","",VLOOKUP(E36,Izvrsenje27.6!C:H,6,FALSE)) ->  | N36: 0
C37: 2101-0002 | G37: Функционисање извршних органа | K37: =IF(E37="","",VLOOKUP(E37,Izvrsenje27.6!C:H,6,FALSE)) ->  | N37: 0
D38: 111 | G38: Извршни и законодавни органи | K38: =IF(E38="","",VLOOKUP(E38,Izvrsenje27.6!C:H,6,FALSE)) ->  | N38: 0
E39: 17 | F39: 411 | G39: Плате, додаци и накнаде запосленима | H39: 3692000 | J39: =H39+I39 -> 3692000 | K39: =IF(E39="","",VLOOKUP(E39,Izvrsenje27.6!C:H,6,FALSE)) -> 1803190.74 | N39: 0 | O39: 3692000
E40: 18 | F40: 412 | G40: Социјални доприноси на терет послодавца | H40: 615000 | J40: 615000 | K40: =IF(E40="","",VLOOKUP(E40,Izvrsenje27.6!C:H,6,FALSE)) -> 291215.32 | N40: 0 | O40: 615000
E41: 19 | F41: 413 | G41: Накнаде у натури | H41: 4000 | J41: 4000 | K41: =IF(E41="","",VLOOKUP(E41,Izvrsenje27.6!C:H,6,FALSE)) -> 0 | N41: 0 | O41: 4000
E42: 20 | F42: 414 | G42: Социјална давања запосленима | H42: =100000-4000 -> 96000 | J42: 96000 | K42: =IF(E42="","",VLOOKUP(E42,Izvrsenje27.6!C:H,6,FALSE)) -> 0 | N42: 0 | O42: 96000
E43: 21 | F43: 415 | G43: Накнаде трошкова за запослене | H43: 140000 | J43: 140000 | K43: =IF(E43="","",VLOOKUP(E43,Izvrsenje27.6!C:H,6,FALSE)) -> 60049 | N43: 0 | O43: 140000
E44: 22 | F44: 416 | G44: Награде, бонуси и остали посебни расходи | H44: 200000 | J44: 200000 | K44: =IF(E44="","",VLOOKUP(E44,Izvrsenje27.6!C:H,6,FALSE)) -> 0 | N44: 0 | O44: 200000
E45: 23 | F45: 421 | G45: Стални трошкови | H45: 50000 | J45: 50000 | K45: =IF(E45="","",VLOOKUP(E45,Izvrsenje27.6!C:H,6,FALSE)) -> 12 | N45: 0 | O45: 50000
E46: 24 | F46: 422 | G46: Трошкови путовања | H46: 250000 | J46: 250000 | K46: =IF(E46="","",VLOOKUP(E46,Izvrsenje27.6!C:H,6,FALSE)) -> 4129 | N46: 0 | O46: 250000
E47: 25 | F47: 423 | G47: Услуге по уговору | H47: 4000000 | J47: 4000000 | K47: =IF(E47="","",VLOOKUP(E47,Izvrsenje27.6!C:H,6,FALSE)) -> 890474.87 | N47: 0 | O47: 4000000
E48: 26 | F48: 426 | G48: Материјал | H48: 1000000 | J48: 1000000 | K48: =IF(E48="","",VLOOKUP(E48,Izvrsenje27.6!C:H,6,FALSE)) -> 123531 | N48: 0 | O48: 1000000
E49: 27 | F49: 512 | G49: Машине и опрема | H49: =300000-100000 -> 200000 | J49: 200000 | K49: =IF(E49="","",VLOOKUP(E49,Izvrsenje27.6!C:H,6,FALSE)) -> 0 | N49: 0 | O49: 200000
G50: Функција 111: | H50: =SUBTOTAL(9,H39:H49) -> 10247000 | I50: =SUBTOTAL(9,I39:I48) -> 0 | J50: =SUBTOTAL(9,J39:J49) -> 10247000 | K50: =IF(E50="","",VLOOKUP(E50,Izvrsenje27.6!C:H,6,FALSE)) ->  | N50: 0 | O50: 10247000
G51: Програмска активност 2101-0002: | H51: =SUBTOTAL(9,H39:H49) -> 10247000 | I51: =SUBTOTAL(9,I39:I48) -> 0 | J51: =SUBTOTAL(9,J39:J49) -> 10247000 | K51: =IF(E51="","",VLOOKUP(E51,Izvrsenje27.6!C:H,6,FALSE)) ->  | N51: 0 | O51: 10247000
K52: =IF(E52="","",VLOOKUP(E52,Izvrsenje27.6!C:H,6,FALSE)) ->  | N52: 0
C53: 2101-0002 | G53: Функционисање извршних органа | K53: =IF(E53="","",VLOOKUP(E53,Izvrsenje27.6!C:H,6,FALSE)) ->  | N53: 0
D54: 111 | G54: Извршни и законодавни органи | K54: =IF(E54="","",VLOOKUP(E54,Izvrsenje27.6!C:H,6,FALSE)) ->  | N54: 0
E55: 28 | F55: 423 | G55: Обележавање дана Општине Бујановац | H55: 200000 | J55: =H55+I55 -> 200000 | K55: =IF(E55="","",VLOOKUP(E55,Izvrsenje27.6!C:H,6,FALSE)) -> 0 | N55: 0 | O55: 200000
E56: 29 | F56: 423 | G56: Обележавање дана дијаспоре | H56: 100000 | J56: 100000 | K56: =IF(E56="","",VLOOKUP(E56,Izvrsenje27.6!C:H,6,FALSE)) -> 0 | N56: 0 | O56: 100000
E57: 30 | F57: 423 | G57: Петровдански дани | H57: 100000 | J57: 100000 | K57: =IF(E57="","",VLOOKUP(E57,Izvrsenje27.6!C:H,6,FALSE)) -> 0 | N57: 0 | O57: 100000
E58: 31 | F58: 423 | G58: 8. април Светски дан Рома | H58: 100000 | J58: 100000 | K58: =IF(E58="","",VLOOKUP(E58,Izvrsenje27.6!C:H,6,FALSE)) -> 100000 | N58: 0 | O58: 100000
E59: 32 | F59: 423 | G59: Дреља Огореља | H59: 100000 | J59: 100000 | K59: =IF(E59="","",VLOOKUP(E59,Izvrsenje27.6!C:H,6,FALSE)) -> 71949 | N59: 0 | O59: 100000
E60: 33 | F60: 423 | G60: Мајске манифестације | H60: 300000 | J60: 300000 | K60: =IF(E60="","",VLOOKUP(E60,Izvrsenje27.6!C:H,6,FALSE)) -> 0 | N60: 0 | O60: 300000
G61: Функција 111: | H61: =SUBTOTAL(9,H55:H60) -> 900000 | I61: =SUBTOTAL(9,I55:I60) -> 0 | J61: =SUBTOTAL(9,J55:J60) -> 900000 | K61: =IF(E61="","",VLOOKUP(E61,Izvrsenje27.6!C:H,6,FALSE)) ->  | N61: 0 | O61: 900000
G62: Програмска активност 2101-0002: | H62: =SUBTOTAL(9,H55:H60) -> 900000 | I62: =SUBTOTAL(9,I55:I60) -> 0 | J62: =SUBTOTAL(9,J55:J60) -> 900000 | K62: =IF(E62="","",VLOOKUP(E62,Izvrsenje27.6!C:H,6,FALSE)) ->  | N62: 0 | O62: 900000
G63: УКУПНО ЗА ГЛАВУ 2.01: | H63: =SUBTOTAL(9,H39:H62) -> 11147000 | I63: =SUBTOTAL(9,I39:I62) -> 0 | J63: =SUBTOTAL(9,J39:J62) -> 11147000 | K63: =IF(E63="","",VLOOKUP(E63,Izvrsenje27.6!C:H,6,FALSE)) ->  | N63: 0 | O63: 11147000
G64: УКУПНО ЗА РАЗДЕО 2: | H64: =SUBTOTAL(9,H39:H63) -> 11147000 | I64: =SUBTOTAL(9,I39:I63) -> 0 | J64: =SUBTOTAL(9,J39:J63) -> 11147000 | K64: =IF(E64="","",VLOOKUP(E64,Izvrsenje27.6!C:H,6,FALSE)) ->  | N64: 0 | O64: 11147000
K65: =IF(E65="","",VLOOKUP(E65,Izvrsenje27.6!C:H,6,FALSE)) ->  | N65: 0
A66: 3 | B66: 3.01 | G66: ОПШТИНСКО ВЕЋЕ | K66: =IF(E66="","",VLOOKUP(E66,Izvrsenje27.6!C:H,6,FALSE)) ->  | N66: 0
K67: =IF(E67="","",VLOOKUP(E67,Izvrsenje27.6!C:H,6,FALSE)) ->  | N67: 0
C68: 2101 | G68: ПРОГРАМ 16: ПОЛИТИЧКИ СИСТЕМ ЛОКАЛНЕ САМОУПРАВЕ | K68: =IF(E68="","",VLOOKUP(E68,Izvrsenje27.6!C:H,6,FALSE)) ->  | N68: 0
C69: 2101-0002 | G69: Функционисање извршних органа | K69: =IF(E69="","",VLOOKUP(E69,Izvrsenje27.6!C:H,6,FALSE)) ->  | N69: 0
D70: 111 | G70: Извршни и законодавни органи | K70: =IF(E70="","",VLOOKUP(E70,Izvrsenje27.6!C:H,6,FALSE)) ->  | N70: 0
E71: 34 | F71: 423 | G71: Услуге по уговору | H71: 3400000 | J71: =H71+I71 -> 3400000 | K71: =IF(E71="","",VLOOKUP(E71,Izvrsenje27.6!C:H,6,FALSE)) -> 2012759.39 | N71: 0 | O71: 3400000
E72: 35 | F72: 426 | G72: Материјал | H72: 1000000 | J72: =H72+I72 -> 1000000 | K72: =IF(E72="","",VLOOKUP(E72,Izvrsenje27.6!C:H,6,FALSE)) -> 0 | N72: 0 | O72: 1000000
G73: Функција 111: | H73: =SUBTOTAL(9,H71:H72) -> 4400000 | I73: =SUBTOTAL(9,I71:I72) -> 0 | J73: =SUBTOTAL(9,J71:J72) -> 4400000 | K73: =IF(E73="","",VLOOKUP(E73,Izvrsenje27.6!C:H,6,FALSE)) ->  | N73: =J73-O73 -> 0 | O73: 4400000
G74: Програмска активност 2101-0002: | H74: =SUBTOTAL(9,H71:H72) -> 4400000 | I74: =SUBTOTAL(9,I71:I72) -> 0 | J74: =SUBTOTAL(9,J71:J72) -> 4400000 | K74: =IF(E74="","",VLOOKUP(E74,Izvrsenje27.6!C:H,6,FALSE)) ->  | N74: 0 | O74: 4400000
K75: =IF(E75="","",VLOOKUP(E75,Izvrsenje27.6!C:H,6,FALSE)) ->  | N75: 0
C76: 2101-0003 | G76: Подршка раду извршних органа власти и скупштине | K76: =IF(E76="","",VLOOKUP(E76,Izvrsenje27.6!C:H,6,FALSE)) ->  | N76: 0
D77: 111 | G77: Извршни и законодавни органи - рад комисија | K77: =IF(E77="","",VLOOKUP(E77,Izvrsenje27.6!C:H,6,FALSE)) ->  | N77: 0
E78: 36 | F78: 423 | G78: Услуге по уговору | H78: =3250000 -> 3250000 | J78: =H78+I78 -> 3250000 | K78: =IF(E78="","",VLOOKUP(E78,Izvrsenje27.6!C:H,6,FALSE)) -> 1255256.9 | N78: 0 | O78: 3250000
E79: 37 | F79: 481 | G79: Савет за унапређење услуга социјалне заштите | H79: 500000 | J79: =H79+I79 -> 500000 | K79: =IF(E79="","",VLOOKUP(E79,Izvrsenje27.6!C:H,6,FALSE)) -> 0 | N79: 0 | O79: 500000
G80: Функција 111: | H80: =SUBTOTAL(9,H78:H79) -> 3750000 | I80: =SUBTOTAL(9,I78:I79) -> 0 | J80: =SUBTOTAL(9,J78:J79) -> 3750000 | K80: =IF(E80="","",VLOOKUP(E80,Izvrsenje27.6!C:H,6,FALSE)) ->  | N80: 0 | O80: 3750000
G81: Програмска активност 2101-0003: | H81: =SUBTOTAL(9,H78:H79) -> 3750000 | I81: =SUBTOTAL(9,I78:I79) -> 0 | J81: =SUBTOTAL(9,J78:J79) -> 3750000 | K81: =IF(E81="","",VLOOKUP(E81,Izvrsenje27.6!C:H,6,FALSE)) ->  | N81: 0 | O81: 3750000
G82: УКУПНО ЗА ГЛАВУ 3.01: | H82: =SUBTOTAL(9,H71:H81) -> 8150000 | I82: =SUBTOTAL(9,I71:I81) -> 0 | J82: =SUBTOTAL(9,J71:J81) -> 8150000 | K82: =IF(E82="","",VLOOKUP(E82,Izvrsenje27.6!C:H,6,FALSE)) ->  | N82: 0 | O82: 8150000
G83: УКУПНО ЗА РАЗДЕО 3: | H83: =SUBTOTAL(9,H71:H82) -> 8150000 | I83: =SUBTOTAL(9,I71:I82) -> 0 | J83: =SUBTOTAL(9,J71:J82) -> 8150000 | K83: =IF(E83="","",VLOOKUP(E83,Izvrsenje27.6!C:H,6,FALSE)) ->  | N83: 0 | O83: 8150000
K84: =IF(E84="","",VLOOKUP(E84,Izvrsenje27.6!C:H,6,FALSE)) ->  | N84: 0
A85: 4 | B85: 4.01 | G85: ПРАВОБРАНИЛАШТВО ОПШТИНЕ БУЈАНОВАЦ | K85: =IF(E85="","",VLOOKUP(E85,Izvrsenje27.6!C:H,6,FALSE)) ->  | N85: 0
K86: =IF(E86="","",VLOOKUP(E86,Izvrsenje27.6!C:H,6,FALSE)) ->  | N86: 0
C87: 0602 | G87: ПРОГРАМ 15: ЛОКАЛНА САМОУПРАВА | K87: =IF(E87="","",VLOOKUP(E87,Izvrsenje27.6!C:H,6,FALSE)) ->  | N87: 0
C88: 0602-0004 | G88: Правобранилаштво општине Бујановац | K88: =IF(E88="","",VLOOKUP(E88,Izvrsenje27.6!C:H,6,FALSE)) ->  | N88: 0
D89: 330 | G89: Судови | K89: =IF(E89="","",VLOOKUP(E89,Izvrsenje27.6!C:H,6,FALSE)) ->  | N89: 0
E90: 38 | F90: 411 | G90: Плате, додаци и накнаде запосленима | H90: 1789000 | J90: =H90+I90 -> 1789000 | K90: =IF(E90="","",VLOOKUP(E90,Izvrsenje27.6!C:H,6,FALSE)) -> 1036579.43 | N90: 0 | O90: 1789000
E91: 39 | F91: 412 | G91: Социјални доприноси на терет послодавца | H91: 298000 | J91: 298000 | K91: =IF(E91="","",VLOOKUP(E91,Izvrsenje27.6!C:H,6,FALSE)) -> 167407.56 | N91: 0 | O91: 298000
E92: 40 | F92: 413 | G92: Накнаде у натури | H92: 8000 | J92: 8000 | K92: =IF(E92="","",VLOOKUP(E92,Izvrsenje27.6!C:H,6,FALSE)) -> 0 | N92: 0 | O92: 8000
E93: 41 | F93: 414 | G93: Социјална давања запосленима | H93: =100000-8000 -> 92000 | J93: 92000 | K93: =IF(E93="","",VLOOKUP(E93,Izvrsenje27.6!C:H,6,FALSE)) -> 0 | N93: 0 | O93: 92000
E94: 42 | F94: 415 | G94: Накнаде трошкова за запослене | H94: 100000 | J94: 100000 | K94: =IF(E94="","",VLOOKUP(E94,Izvrsenje27.6!C:H,6,FALSE)) -> 17550 | N94: 0 | O94: 100000
E95: 43 | F95: 422 | G95: Трошкови путовања | H95: 20000 | J95: 20000 | K95: =IF(E95="","",VLOOKUP(E95,Izvrsenje27.6!C:H,6,FALSE)) -> 0 | N95: 0 | O95: 20000
E96: 44 | F96: 423 | G96: Услуге по уговору | H96: 200000 | J96: 200000 | K96: =IF(E96="","",VLOOKUP(E96,Izvrsenje27.6!C:H,6,FALSE)) -> 0 | N96: 0 | O96: 200000
E97: 45 | F97: 426 | G97: Материјал | H97: 300000 | J97: 300000 | K97: =IF(E97="","",VLOOKUP(E97,Izvrsenje27.6!C:H,6,FALSE)) -> 0 | N97: 0 | O97: 300000
E98: 46 | F98: 483 | G98: Новчане казне и пенали по решењу судова | H98: 16000000 | J98: 16000000 | K98: =IF(E98="","",VLOOKUP(E98,Izvrsenje27.6!C:H,6,FALSE)) -> 6662526.42 | N98: 0 | O98: 16000000
G99: Функција 330: | H99: =SUBTOTAL(9,H90:H98) -> 18807000 | I99: =SUBTOTAL(9,I90:I98) -> 0 | J99: =SUBTOTAL(9,J90:J98) -> 18807000 | K99: =IF(E99="","",VLOOKUP(E99,Izvrsenje27.6!C:H,6,FALSE)) ->  | N99: 0 | O99: 18807000
G100: Програмска активност 0602-0004: | H100: =SUBTOTAL(9,H90:H98) -> 18807000 | I100: =SUBTOTAL(9,I90:I98) -> 0 | J100: =SUBTOTAL(9,J90:J98) -> 18807000 | K100: =IF(E100="","",VLOOKUP(E100,Izvrsenje27.6!C:H,6,FALSE)) ->  | N100: 0 | O100: 18807000
G101: УКУПНО ЗА ГЛАВУ 4.01: | H101: =SUBTOTAL(9,H90:H98) -> 18807000 | I101: =SUBTOTAL(9,I90:I98) -> 0 | J101: =SUBTOTAL(9,J90:J98) -> 18807000 | K101: =IF(E101="","",VLOOKUP(E101,Izvrsenje27.6!C:H,6,FALSE)) ->  | N101: 0 | O101: 18807000
G102: УКУПНО ЗА РАЗДЕО 4: | H102: =SUBTOTAL(9,H90:H101) -> 18807000 | I102: =SUBTOTAL(9,I90:I101) -> 0 | J102: =SUBTOTAL(9,J90:J101) -> 18807000 | K102: =IF(E102="","",VLOOKUP(E102,Izvrsenje27.6!C:H,6,FALSE)) ->  | N102: 0 | O102: 18807000
K103: =IF(E103="","",VLOOKUP(E103,Izvrsenje27.6!C:H,6,FALSE)) ->  | N103: 0
A104: 5 | B104: 5.01 | G104: ОПШТИНСКА УПРАВА | K104: =IF(E104="","",VLOOKUP(E104,Izvrsenje27.6!C:H,6,FALSE)) ->  | N104: 0
K105: =IF(E105="","",VLOOKUP(E105,Izvrsenje27.6!C:H,6,FALSE)) ->  | N105: 0
C106: 0602 | G106: ПРОГРАМ 15: ЛОКАЛНА САМОУПРАВА | K106: =IF(E106="","",VLOOKUP(E106,Izvrsenje27.6!C:H,6,FALSE)) ->  | N106: 0
C107: 0602-0001 | G107: Функционисање локалне самоуправе и градских општина | K107: =IF(E107="","",VLOOKUP(E107,Izvrsenje27.6!C:H,6,FALSE)) ->  | N107: 0
D108: 130 | G108: Опште јавне услуге | K108: =IF(E108="","",VLOOKUP(E108,Izvrsenje27.6!C:H,6,FALSE)) ->  | N108: 0
E109: 47 | F109: 411 | G109: Плате, додаци и накнаде запосленима | H109: 135311000 | J109: =H109+I109 -> 135311000 | K109: =IF(E109="","",VLOOKUP(E109,Izvrsenje27.6!C:H,6,FALSE)) -> 63932301.16 | N109: 0 | O109: 135311000
E110: 48 | F110: 412 | G110: Социјални доприноси на терет послодавца | H110: 22549500 | J110: 22549500 | K110: =IF(E110="","",VLOOKUP(E110,Izvrsenje27.6!C:H,6,FALSE)) -> 10325066.55 | N110: 0 | O110: 22549500
E111: 49 | F111: 413 | G111: Накнаде у натури | H111: =100000+280000 -> 380000 | J111: 380000 | K111: =IF(E111="","",VLOOKUP(E111,Izvrsenje27.6!C:H,6,FALSE)) -> 0 | N111: 0 | O111: 380000
E112: 50 | F112: 414 | G112: Социјална давања запосленима | H112: =8000000-280000 -> 7720000 | J112: 7720000 | K112: =IF(E112="","",VLOOKUP(E112,Izvrsenje27.6!C:H,6,FALSE)) -> 1103093.33 | N112: 0 | O112: 7720000
E113: 51 | F113: 415 | G113: Накнаде трошкова за запослене | H113: =11000000 -> 11000000 | J113: 11000000 | K113: =IF(E113="","",VLOOKUP(E113,Izvrsenje27.6!C:H,6,FALSE)) -> 4014755.55 | N113: 0 | O113: 11000000
E114: 52 | F114: 416 | G114: Награде, бонуси и остали посебни расходи | H114: 2000000 | J114: 2000000 | K114: =IF(E114="","",VLOOKUP(E114,Izvrsenje27.6!C:H,6,FALSE)) -> 285821.78 | N114: 0 | O114: 2000000
E115: 53 | F115: 421 | G115: Стални трошкови | H115: =18000000 -> 18000000 | J115: 18000000 | K115: =IF(E115="","",VLOOKUP(E115,Izvrsenje27.6!C:H,6,FALSE)) -> 7043213.46 | N115: 0 | O115: 18000000
E116: 54 | F116: 422 | G116: Трошкови путовања | H116: =2000000-400000 -> 1600000 | J116: 1600000 | K116: =IF(E116="","",VLOOKUP(E116,Izvrsenje27.6!C:H,6,FALSE)) -> 622387.22 | N116: 0 | O116: 1600000
E117: 55 | F117: 423 | G117: Услуге по уговору | H117: =20000000-87600 -> 19912400 | J117: 19912400 | K117: =IF(E117="","",VLOOKUP(E117,Izvrsenje27.6!C:H,6,FALSE)) -> 7048782.68 | N117: 0 | O117: 19912400
E118: 56 | F118: 424 | G118: Специјализоване услуге | H118: 1500000 | J118: 1500000 | K118: =IF(E118="","",VLOOKUP(E118,Izvrsenje27.6!C:H,6,FALSE)) -> 180000 | N118: 0 | O118: 1500000
E119: 57 | F119: 425 | G119: Текуће поправке и одржавање | H119: 4000000 | J119: 4000000 | K119: =IF(E119="","",VLOOKUP(E119,Izvrsenje27.6!C:H,6,FALSE)) -> 1256986.5 | N119: 0 | O119: 4000000
E120: 58 | F120: 426 | G120: Материјал | H120: 10000000 | J120: 10000000 | K120: =IF(E120="","",VLOOKUP(E120,Izvrsenje27.6!C:H,6,FALSE)) -> 4793940.62 | N120: 0 | O120: 10000000
E121: 59 | F121: 482 | G121: Порези, обавезне таксе и казне | H121: =700000+1800000 -> 2500000 | J121: 2500000 | K121: =IF(E121="","",VLOOKUP(E121,Izvrsenje27.6!C:H,6,FALSE)) -> 855398.3 | N121: 1800000 | O121: 700000
E122: 60 | F122: 483 | G122: Новчане казне и пенали по решењу судова | H122: 50000 | J122: 50000 | K122: =IF(E122="","",VLOOKUP(E122,Izvrsenje27.6!C:H,6,FALSE)) -> 0 | N122: 0 | O122: 50000
E123: 61 | F123: 511 | G123: Зграде и грађевински објекти | H123: =100000-50000 -> 50000 | J123: 50000 | K123: =IF(E123="","",VLOOKUP(E123,Izvrsenje27.6!C:H,6,FALSE)) -> 0 | N123: 0 | O123: 50000
E124: 62 | F124: 512 | G124: Машине и опрема | H124: =5000000-1500000 -> 3500000 | J124: 3500000 | K124: =IF(E124="","",VLOOKUP(E124,Izvrsenje27.6!C:H,6,FALSE)) -> 794357 | N124: 0 | O124: 3500000
E125: 63 | F125: 515 | G125: Нематеријална имовина | H125: =500000-100000-200000 -> 200000 | J125: 200000 | K125: =IF(E125="","",VLOOKUP(E125,Izvrsenje27.6!C:H,6,FALSE)) -> 0 | N125: -200000 | O125: 400000
E126: 64 | F126: 541 | G126: Набавка земљишта | H126: =2800000-2300000-100000+600000+2000000+1000000 -> 4000000 | J126: 4000000 | K126: =IF(E126="","",VLOOKUP(E126,Izvrsenje27.6!C:H,6,FALSE)) -> 0 | N126: 3000000 | O126: 1000000
G127: Функција 130: | H127: =SUBTOTAL(9,H109:H126) -> 244272900 | I127: =SUBTOTAL(9,I109:I125) -> 0 | J127: =SUBTOTAL(9,J109:J126) -> 244272900 | K127: =IF(E127="","",VLOOKUP(E127,Izvrsenje27.6!C:H,6,FALSE)) ->  | N127: 4600000 | O127: 239672900
G128: Програмска активност 0602-0001: | H128: =SUBTOTAL(9,H109:H126) -> 244272900 | I128: =SUBTOTAL(9,I109:I125) -> 0 | J128: =SUBTOTAL(9,J109:J126) -> 244272900 | K128: =IF(E128="","",VLOOKUP(E128,Izvrsenje27.6!C:H,6,FALSE)) ->  | N128: 4600000 | O128: 239672900
K129: =IF(E129="","",VLOOKUP(E129,Izvrsenje27.6!C:H,6,FALSE)) ->  | N129: 0
C130: 0602-0001 | G130: Подршка раду извршних органа власти и скупштине | K130: =IF(E130="","",VLOOKUP(E130,Izvrsenje27.6!C:H,6,FALSE)) ->  | N130: 0
D131: 160 | G131: Опште јавне услуге које нису класификоване на другом месту | K131: =IF(E131="","",VLOOKUP(E131,Izvrsenje27.6!C:H,6,FALSE)) ->  | N131: 0
E132: 65 | F132: 481 | G132: Дотације - Унија бизниса Бујановца | H132: =200000-100000 -> 100000 | J132: =H132+I132 -> 100000 | K132: =IF(E132="","",VLOOKUP(E132,Izvrsenje27.6!C:H,6,FALSE)) -> 0 | N132: 0 | O132: 100000
E133: 66 | F133: 481 | G133: Дотација - Центар за развој Пчињског и Јабланичког округа | H133: =200000-100000 -> 100000 | J133: 100000 | K133: =IF(E133="","",VLOOKUP(E133,Izvrsenje27.6!C:H,6,FALSE)) -> 0 | N133: 0 | O133: 100000
E134: 67 | F134: 481 | G134: Дотација - Стална конференција градова и општина (чланарина) | H134: 500000 | J134: 500000 | K134: =IF(E134="","",VLOOKUP(E134,Izvrsenje27.6!C:H,6,FALSE)) -> 72997 | N134: 0 | O134: 500000
E135: 68 | F135: 481 | G135: Дотација са страним донаторима | H135: =2000000+2000000 -> 4000000 | J135: 4000000 | K135: =IF(E135="","",VLOOKUP(E135,Izvrsenje27.6!C:H,6,FALSE)) -> 0 | N135: 2000000 | O135: 2000000
E136: 69 | F136: 481 | G136: Дотација - Налед | H136: 100000 | J136: 100000 | K136: =IF(E136="","",VLOOKUP(E136,Izvrsenje27.6!C:H,6,FALSE)) -> 0 | N136: 0 | O136: 100000
E137: 70 | F137: 481 | G137: Дотације - Историјски архив Врање | H137: 600000 | J137: 600000 | K137: =IF(E137="","",VLOOKUP(E137,Izvrsenje27.6!C:H,6,FALSE)) -> 300000 | N137: =J137-O137 -> 0 | O137: 600000
E138: 71 | F138: 481 | G138: Дотација - АЛДА Европска асоцијација за локалну демократију | H138: 75000 | J138: 75000 | K138: =IF(E138="","",VLOOKUP(E138,Izvrsenje27.6!C:H,6,FALSE)) -> 0 | N138: 0 | O138: 75000
G139: Функција 160: | H139: =SUBTOTAL(9,H132:H138) -> 5475000 | I139: =SUBTOTAL(9,I132:I138) -> 0 | J139: =SUBTOTAL(9,J132:J138) -> 5475000 | K139: =IF(E139="","",VLOOKUP(E139,Izvrsenje27.6!C:H,6,FALSE)) ->  | N139: 2000000 | O139: 3475000
G140: Програмска активност 0602-0001: | H140: =SUBTOTAL(9,H132:H138) -> 5475000 | I140: =SUBTOTAL(9,I132:I138) -> 0 | J140: =SUBTOTAL(9,J132:J138) -> 5475000 | K140: =IF(E140="","",VLOOKUP(E140,Izvrsenje27.6!C:H,6,FALSE)) ->  | N140: 2000000 | O140: 3475000
K141: =IF(E141="","",VLOOKUP(E141,Izvrsenje27.6!C:H,6,FALSE)) ->  | N141: 0
C142: 0602-0007 | G142: Функционисање националних савета националних мањина | K142: =IF(E142="","",VLOOKUP(E142,Izvrsenje27.6!C:H,6,FALSE)) ->  | N142: 0
D143: 090 | G143: Социјална заштита некласификована на другом месту | K143: =IF(E143="","",VLOOKUP(E143,Izvrsenje27.6!C:H,6,FALSE)) ->  | N143: 0
E144: 72 | F144: 481 | G144: Дотације невладиним организацијама - Декада Рома | H144: =1700000-200000+400000 -> 1900000 | J144: =H144+I144 -> 1900000 | K144: =IF(E144="","",VLOOKUP(E144,Izvrsenje27.6!C:H,6,FALSE)) -> 500000 | N144: 0 | O144: 1900000
E145: 73 | F145: 481 | G145: Дотације невладиним организацијама - Национални савет Албанаца | H145: 5000000 | J145: =H145+I145 -> 5000000 | K145: =IF(E145="","",VLOOKUP(E145,Izvrsenje27.6!C:H,6,FALSE)) -> 1000000 | N145: 0 | O145: 5000000
G146: Функција 090: | H146: =SUBTOTAL(9,H144:H145) -> 6900000 | I146: =SUBTOTAL(9,I144:I145) -> 0 | J146: =SUBTOTAL(9,J144:J145) -> 6900000 | K146: =IF(E146="","",VLOOKUP(E146,Izvrsenje27.6!C:H,6,FALSE)) ->  | N146: 0 | O146: 6900000
G147: Програмска активност 0602-0007: | H147: =SUBTOTAL(9,H144:H145) -> 6900000 | I147: =SUBTOTAL(9,I144:I145) -> 0 | J147: =SUBTOTAL(9,J144:J145) -> 6900000 | K147: =IF(E147="","",VLOOKUP(E147,Izvrsenje27.6!C:H,6,FALSE)) ->  | N147: 0 | O147: 6900000
K148: =IF(E148="","",VLOOKUP(E148,Izvrsenje27.6!C:H,6,FALSE)) ->  | N148: 0
C149: 0602-0009 | G149: Текућа буџетска резерва | K149: =IF(E149="","",VLOOKUP(E149,Izvrsenje27.6!C:H,6,FALSE)) ->  | N149: 0
D150: 130 | G150: Опште јавне услуге | K150: =IF(E150="","",VLOOKUP(E150,Izvrsenje27.6!C:H,6,FALSE)) ->  | N150: 0
E151: 74 | F151: 499 | G151: Текућа резерва | H151: =20000000-10000000-390000-4000000-2000000-120000-3488000+2000000+1000000+919614-400000-140000 -> 3381614 | J151: =H151+I151 -> 3381614 | K151: =IF(E151="","",VLOOKUP(E151,Izvrsenje27.6!C:H,6,FALSE)) -> 0 | N151: -2228386 | O151: 5610000
G152: Функција 130: | H152: =SUBTOTAL(9,H151) -> 3381614 | I152: =SUBTOTAL(9,I151) -> 0 | J152: =SUBTOTAL(9,J151) -> 3381614 | K152: =IF(E152="","",VLOOKUP(E152,Izvrsenje27.6!C:H,6,FALSE)) ->  | N152: -2228386 | O152: 5610000
G153: Програмска активност 0602-0009: | H153: =SUBTOTAL(9,H151) -> 3381614 | I153: =SUBTOTAL(9,I151) -> 0 | J153: =SUBTOTAL(9,J151) -> 3381614 | K153: =IF(E153="","",VLOOKUP(E153,Izvrsenje27.6!C:H,6,FALSE)) ->  | N153: -2228386 | O153: 5610000
K154: =IF(E154="","",VLOOKUP(E154,Izvrsenje27.6!C:H,6,FALSE)) ->  | N154: 0
C155: 0602-0010 | G155: Стална буџетска резерва | K155: =IF(E155="","",VLOOKUP(E155,Izvrsenje27.6!C:H,6,FALSE)) ->  | N155: 0
D156: 130 | G156: Опште јавне услуге | K156: =IF(E156="","",VLOOKUP(E156,Izvrsenje27.6!C:H,6,FALSE)) ->  | N156: 0
E157: 75 | F157: 499 | G157: Стална резерва | H157: 500000 | J157: =H157+I157 -> 500000 | K157: =IF(E157="","",VLOOKUP(E157,Izvrsenje27.6!C:H,6,FALSE)) -> 0 | N157: 0 | O157: 500000
G158: Функција 130: | H158: =SUBTOTAL(9,H157) -> 500000 | I158: =SUBTOTAL(9,I157) -> 0 | J158: =SUBTOTAL(9,J157) -> 500000 | K158: =IF(E158="","",VLOOKUP(E158,Izvrsenje27.6!C:H,6,FALSE)) ->  | N158: 0 | O158: 500000
G159: Програмска активност 0602-0010: | H159: =SUBTOTAL(9,H157) -> 500000 | I159: =SUBTOTAL(9,I157) -> 0 | J159: =SUBTOTAL(9,J157) -> 500000 | K159: =IF(E159="","",VLOOKUP(E159,Izvrsenje27.6!C:H,6,FALSE)) ->  | N159: 0 | O159: 500000
K160: =IF(E160="","",VLOOKUP(E160,Izvrsenje27.6!C:H,6,FALSE)) ->  | N160: 0
C161: 0602-0014 | G161: Ванредне ситуације | K161: =IF(E161="","",VLOOKUP(E161,Izvrsenje27.6!C:H,6,FALSE)) ->  | N161: 0
D162: 160 | G162: Опште јавне услуге које нису класификоване на другом месту | K162: =IF(E162="","",VLOOKUP(E162,Izvrsenje27.6!C:H,6,FALSE)) ->  | N162: 0
E163: 76 | F163: 423 | G163: Услуге по уговору | H163: =5000000-1000000-1000000 -> 3000000 | J163: =H163+I163 -> 3000000 | K163: =IF(E163="","",VLOOKUP(E163,Izvrsenje27.6!C:H,6,FALSE)) -> 193050 | N163: 0 | O163: 3000000
E164: 77 | F164: 425 | G164: Текуће поправке и одржавање - Хитне интервенције | H164: 2780000 | I164: 4720000 | J164: =H164+I164 -> 7500000 | K164: =IF(E164="","",VLOOKUP(E164,Izvrsenje27.6!C:H,6,FALSE)) -> 0 | N164: 0 | O164: 7500000
E165: 78 | F165: 426 | G165: Материјал | H165: 1500000 | J165: =H165+I165 -> 1500000 | K165: =IF(E165="","",VLOOKUP(E165,Izvrsenje27.6!C:H,6,FALSE)) -> 0 | N165: 0 | O165: 1500000 | T165: 5
E166: 79 | F166: 512 | G166: Машине и опрема | H166: 500000 | J166: =H166+I166 -> 500000 | K166: =IF(E166="","",VLOOKUP(E166,Izvrsenje27.6!C:H,6,FALSE)) -> 0 | N166: 0 | O166: 500000
G167: Функција 160: | H167: =SUBTOTAL(9,H163:H166) -> 7780000 | I167: =SUBTOTAL(9,I163:I166) -> 4720000 | J167: =SUBTOTAL(9,J163:J166) -> 12500000 | K167: =IF(E167="","",VLOOKUP(E167,Izvrsenje27.6!C:H,6,FALSE)) ->  | N167: 0 | O167: 12500000
G168: Програмска активност 0602-0014: | H168: =SUBTOTAL(9,H163:H166) -> 7780000 | I168: =SUBTOTAL(9,I163:I166) -> 4720000 | J168: =SUBTOTAL(9,J163:J166) -> 12500000 | K168: =IF(E168="","",VLOOKUP(E168,Izvrsenje27.6!C:H,6,FALSE)) ->  | N168: 0 | O168: 12500000
K169: =IF(E169="","",VLOOKUP(E169,Izvrsenje27.6!C:H,6,FALSE)) ->  | N169: 0
G170: ПРОГРАМ 1: ЛОКАЛНИ РАЗВОЈ И ПРОСТОРНО ПЛАНИРАЊЕ | K170: =IF(E170="","",VLOOKUP(E170,Izvrsenje27.6!C:H,6,FALSE)) ->  | N170: 0
C171: 1101-0001 | G171: Просторно и урбанистичко планирање | K171: =IF(E171="","",VLOOKUP(E171,Izvrsenje27.6!C:H,6,FALSE)) ->  | N171: 0
D172: 160 | G172: Опште јавне услуге које нису класификоване на другом месту | K172: =IF(E172="","",VLOOKUP(E172,Izvrsenje27.6!C:H,6,FALSE)) ->  | N172: 0
E173: 80 | F173: 511 | G173: Зграде и грађевински објекти - Израда пројектне документације | H173: =5000000+1000000 -> 6000000 | J173: =H173+I173 -> 6000000 | K173: =IF(E173="","",VLOOKUP(E173,Izvrsenje27.6!C:H,6,FALSE)) -> 1810968 | N173: 0 | O173: 6000000
G174: Функција 160: | H174: =SUBTOTAL(9,H173) -> 6000000 | I174: =SUBTOTAL(9,I173) -> 0 | J174: =SUBTOTAL(9,J173) -> 6000000 | K174: =IF(E174="","",VLOOKUP(E174,Izvrsenje27.6!C:H,6,FALSE)) ->  | N174: 0 | O174: 6000000
G175: Програмска активност 1101-0001: | H175: =SUBTOTAL(9,H173:H174) -> 6000000 | I175: =SUBTOTAL(9,I173:I174) -> 0 | J175: =SUBTOTAL(9,J173:J174) -> 6000000 | K175: =IF(E175="","",VLOOKUP(E175,Izvrsenje27.6!C:H,6,FALSE)) ->  | N175: 0 | O175: 6000000
K176: =IF(E176="","",VLOOKUP(E176,Izvrsenje27.6!C:H,6,FALSE)) ->  | N176: 0
C177: 1102 | G177: ПРОГРАМ 2: КОМУНАЛНА ДЕЛАТНОСТ | K177: =IF(E177="","",VLOOKUP(E177,Izvrsenje27.6!C:H,6,FALSE)) ->  | N177: 0
C178: 1102-0001 | G178: Јавна расвета | K178: =IF(E178="","",VLOOKUP(E178,Izvrsenje27.6!C:H,6,FALSE)) ->  | N178: 0
D179: 640 | G179: Улична расвета | K179: =IF(E179="","",VLOOKUP(E179,Izvrsenje27.6!C:H,6,FALSE)) ->  | N179: 0
E180: 81 | F180: 421 | G180: Стални трошкови | H180: =32500000+3500000 -> 36000000 | J180: =H180+I180 -> 36000000 | K180: =IF(E180="","",VLOOKUP(E180,Izvrsenje27.6!C:H,6,FALSE)) -> 14834979.69 | N180: 3500000 | O180: 32500000
E181: 326 | F181: 424 | G181: Специјализоване услуге | H181: 800000 | J181: =H181+I181 -> 800000
E182: 82 | F182: 425 | G182: Текуће поправке и одржавање | H182: =5000000-1000000 -> 4000000 | J182: =H182+I182 -> 4000000 | K182: =IF(E182="","",VLOOKUP(E182,Izvrsenje27.6!C:H,6,FALSE)) -> 0 | N182: 0 | O182: 4000000
E183: 83 | F183: 511 | G183: Улична расвета у селу Куштица | I183: 2800000 | J183: =H183+I183 -> 2800000 | K183: =IF(E183="","",VLOOKUP(E183,Izvrsenje27.6!C:H,6,FALSE)) -> 0 | N183: 0 | O183: 2800000 | T183: 7
G184: Функција 640: | H184: =SUBTOTAL(9,H180:H183) -> 40800000 | I184: =SUBTOTAL(9,I180:I183) -> 2800000 | J184: =SUBTOTAL(9,J180:J183) -> 43600000 | K184: =IF(E184="","",VLOOKUP(E184,Izvrsenje27.6!C:H,6,FALSE)) ->  | N184: 4300000 | O184: 39300000
G185: Програмска активност 1102-0001: | H185: =SUBTOTAL(9,H180:H183) -> 40800000 | I185: =SUBTOTAL(9,I180:I183) -> 2800000 | J185: =SUBTOTAL(9,J180:J183) -> 43600000 | K185: =IF(E185="","",VLOOKUP(E185,Izvrsenje27.6!C:H,6,FALSE)) ->  | N185: 4300000 | O185: 39300000
K186: =IF(E186="","",VLOOKUP(E186,Izvrsenje27.6!C:H,6,FALSE)) ->  | N186: 0
C187: 1102-0002 | G187: Уређење и одржавање зеленила | K187: =IF(E187="","",VLOOKUP(E187,Izvrsenje27.6!C:H,6,FALSE)) ->  | N187: 0
D188: 660 | G188: Послови становања и заједнице некласификоване на другом месту | K188: =IF(E188="","",VLOOKUP(E188,Izvrsenje27.6!C:H,6,FALSE)) ->  | N188: 0
E189: 84 | F189: 424 | G189: Специјализоване услуге - одржавање зеленила | H189: 1500000 | J189: =H189+I189 -> 1500000 | K189: =IF(E189="","",VLOOKUP(E189,Izvrsenje27.6!C:H,6,FALSE)) -> 287200.76 | N189: 0 | O189: 1500000
G190: Функција 660: | H190: =SUBTOTAL(9,H189) -> 1500000 | I190: =SUBTOTAL(9,I189) -> 0 | J190: =SUBTOTAL(9,J189) -> 1500000 | K190: =IF(E190="","",VLOOKUP(E190,Izvrsenje27.6!C:H,6,FALSE)) ->  | N190: 0 | O190: 1500000
G191: Програмска активност 1102-0002: | H191: =SUBTOTAL(9,H189) -> 1500000 | I191: =SUBTOTAL(9,I189) -> 0 | J191: =SUBTOTAL(9,J189) -> 1500000 | K191: =IF(E191="","",VLOOKUP(E191,Izvrsenje27.6!C:H,6,FALSE)) ->  | N191: 0 | O191: 1500000
K192: =IF(E192="","",VLOOKUP(E192,Izvrsenje27.6!C:H,6,FALSE)) ->  | N192: 0
C193: 1102-0003 | G193: Јавна хигијена | K193: =IF(E193="","",VLOOKUP(E193,Izvrsenje27.6!C:H,6,FALSE)) ->  | N193: 0
D194: 660 | G194: Послови становања и заједнице некласификоване на другом месту | K194: =IF(E194="","",VLOOKUP(E194,Izvrsenje27.6!C:H,6,FALSE)) ->  | N194: 0
E195: 85 | F195: 424 | G195: Специјализоване услуге - метење улица | H195: =20000000-2000000 -> 18000000 | J195: =H195+I195 -> 18000000 | K195: =IF(E195="","",VLOOKUP(E195,Izvrsenje27.6!C:H,6,FALSE)) -> 8487586.8 | N195: 0 | O195: 18000000
E196: 86 | F196: 512 | G196: Машине и опрема - Набавка радне машине за чишћење асфалтних и бетонских површина | H196: 7000000 | I196: 7000000 | J196: =H196+I196 -> 14000000 | K196: =IF(E196="","",VLOOKUP(E196,Izvrsenje27.6!C:H,6,FALSE)) -> 0 | N196: 0 | O196: 14000000 | T196: 7
G197: Функција 660: | H197: =SUBTOTAL(9,H195:H196) -> 25000000 | I197: =SUBTOTAL(9,I195:I196) -> 7000000 | J197: =SUBTOTAL(9,J195:J196) -> 32000000 | K197: =IF(E197="","",VLOOKUP(E197,Izvrsenje27.6!C:H,6,FALSE)) ->  | N197: 0 | O197: 32000000
G198: Програмска активност 1102-0003: | H198: =SUBTOTAL(9,H195:H196) -> 25000000 | I198: =SUBTOTAL(9,I195:I196) -> 7000000 | J198: =SUBTOTAL(9,J195:J196) -> 32000000 | K198: =IF(E198="","",VLOOKUP(E198,Izvrsenje27.6!C:H,6,FALSE)) ->  | N198: 0 | O198: 32000000
K199: =IF(E199="","",VLOOKUP(E199,Izvrsenje27.6!C:H,6,FALSE)) ->  | N199: 0
C200: 1102-0004 | G200: Зоохигијена | K200: =IF(E200="","",VLOOKUP(E200,Izvrsenje27.6!C:H,6,FALSE)) ->  | N200: 0
D201: 160 | G201: Опште јавне услуге некласификоване на другом месту | K201: =IF(E201="","",VLOOKUP(E201,Izvrsenje27.6!C:H,6,FALSE)) ->  | N201: 0
... 884 more rows

Sheet Sheet14 (hidden)
A1: 5 | B1: 5.03 | G1: ТУРИСТИЧКА ОРГАНИЗАЦИЈА БУЈАНОВАЦ
C2: 1502 | G2: ПРОГРАМ 4: РАЗВОЈ ТУРИЗМА
C3: 1502-0001 | G3: Управљањем развојем туризма
D4: 473 | G4: Туризам
E5: Позиција | F5: Екн. Кл. | G5: Опис | H5: План по ребалансу | I5: Извршење | J5: % извршења
E6: 254 | F6: 411 | G6: Плате, додаци и накнаде запосленима | H6: 4900000 | I6: 4504731.31 | J6: =I6/H6 -> 0.9193329204
E7: 255 | F7: 412 | G7: Социјални доприноси на терет послодавца | H7: 840000 | I7: 750037.8 | J7: =I7/H7 -> 0.8929021429
E8: 256 | F8: 413 | G8: Накнаде у натури | H8: 40000 | I8: 0 | J8: 0
E9: 257 | F9: 414 | G9: Социјална давања запосленима | H9: 110000 | I9: 0 | J9: 0
E10: 258 | F10: 415 | G10: Накнаде трошкова за запослене | H10: 400000 | I10: 389098.55 | J10: 0.972746375
E11: 259 | F11: 416 | G11: Награде запосленима и остали посебни расходи | H11: 132000 | I11: 128259.11 | J11: 0.9716599242
E12: 260 | F12: 421 | G12: Стални трошкови | H12: 385000 | I12: 291903.58 | J12: 0.7581911169
E13: 261 | F13: 422 | G13: Трошкови путовања | H13: 70000 | I13: 0 | J13: 0
E14: 262 | F14: 423 | G14: Услуге по уговору | H14: 2937000 | I14: 1755280.46 | J14: 0.5976440109
E15: 263 | F15: 424 | G15: Специјализоване услуге | H15: 100000 | I15: 53800 | J15: 0.538
E16: 264 | F16: 425 | G16: Текуће поправке и одржавање | H16: 15000 | I16: 1800 | J16: 0.12
E17: 265 | F17: 426 | G17: Материјал | H17: 98000 | I17: 38247.88 | J17: 0.3902844898
E18: 334 | F18: 465 | G18: Остале текуће дотације по закону | H18: 34000 | I18: 33913.19 | J18: 0.9974467647
E19: 266 | F19: 482 | G19: Порези, обавезне таксе и казне | H19: 10000 | I19: 0 | J19: 0
E20: 267 | F20: 483 | G20: Новчане казне и пенали по решењу судова | H20: 175000 | I20: 0 | J20: 0
E21: 268 | F21: 512 | G21: Машине и опрема | H21: 100000 | I21: 0 | J21: 0
G22: Функција 473: | H22: 10346000 | I22: =SUBTOTAL(9,I6:I21) -> 7947071.88 | J22: 0.7681298937
G23: Програмска активност 1502-0001: | H23: 10346000 | I23: =SUBTOTAL(9,I6:I21) -> 7947071.88 | J23: 0.7681298937
G24: УКУПНО ЗА ГЛАВУ 5.03: | H24: 10346000 | I24: =SUBTOTAL(9,I6:I21) -> 7947071.88 | J24: 0.7681298937
A26: 5 | B26: 5.04 | G26: ПРЕДШКОЛСКО ВАСПИТАЊЕ
C27: 2001 | G27: ПРОГРАМ 8: ПРЕДШКОЛСКО ВАСПИТАЊЕ
C28: 2001-0001 | G28: Функционисање предшколских установа
D29: 911 | G29: Предшколско образовање
E30: Позиција | F30: Екн. Кл. | G30: Опис | H30: План по ребалансу | I30: Извршење | J30: % извршења
E31: 269 | F31: 411 | G31: Плате, додаци и накнаде запосленима | H31: 77260000 | I31: =71556196.16+6565643.71 -> 78121839.87 | J31: =I31/H31 -> 1.011155059
E32: 270 | F32: 412 | G32: Социјални доприноси на терет послодавца | H32: 13255000 | I32: =11914106.88+1093179.8 -> 13007286.68 | J32: =I32/H32 -> 0.9813117073
E33: 356 | F33: 413 | G33: Накнаде у натури | H33: 60000 | I33: 37012.44 | J33: 0.616874
E34: 271 | F34: 414 | G34: Социјална давања запосленима | H34: 450000 | I34: 393602 | J34: 0.8746711111
E35: 272 | F35: 415 | G35: Накнаде трошкова за запослене | H35: 3290000 | I35: 2652575.83 | J35: 0.8062540517
E36: 273 | F36: 416 | G36: Награде, бонуси и остали посебни расходи | H36: 1500000 | I36: 795900.98 | J36: 0.5306006533
E37: 274 | F37: 421 | G37: Стални трошкови | H37: 6254000 | I37: 5284616.03 | J37: 0.8449977662
E38: 275 | F38: 422 | G38: Трошкови путовања | H38: 120000 | I38: 77137.14 | J38: 0.6428095
E39: 276 | F39: 423 | G39: Услуге по уговору | H39: 2750000 | I39: 2557718.88 | J39: 0.9300795927
E40: 277 | F40: 424 | G40: Специјализоване услуге | H40: 540000 | I40: 394048 | J40: 0.7297185185
E41: 278 | F41: 425 | G41: Текуће поправке и одржавање | H41: 1095000 | I41: 781295.75 | J41: 0.7135121005
E42: 279 | F42: 426 | G42: Материјал | H42: 5689500 | I42: 5588034.06 | J42: 0.982166106
E43: 335 | F43: 465 | G43: Остале текуће дотације по закону | H43: 583600 | I43: 583588.06 | J43: 0.9999795408
E44: 280 | F44: 482 | G44: Порези, обавезне таксе и казне | H44: 15000 | I44: 4000 | J44: 0.2666666667
E45: 281 | F45: 483 | G45: Новчане казне и пенали по решењу судова | H45: 450000 | I45: 440460.95 | J45: 0.9788021111
E46: 282 | F46: 511 | G46: Зграде и грађевински објекти | H46: 800000 | I46: 349895.6 | J46: 0.4373695
E47: 283 | F47: 512 | G47: Машине и опрема | H47: 1269500 | I47: 1207760 | J47: 0.9513666798
G48: Функција 911: | H48: 115381600 | I48: =SUBTOTAL(9,I31:I47) -> 112276772.3 | J48: 0.9730907898
G49: Програмска активност 2001-0001: | H49: 115381600 | I49: =SUBTOTAL(9,I31:I47) -> 112276772.3 | J49: 0.9730907898
G50: УКУПНО ЗА ГЛАВУ 5.04: | H50: 115381600 | I50: =SUBTOTAL(9,I31:I47) -> 112276772.3 | J50: 0.9730907898
A52: 5 | B52: 5.05 | G52: ДОМ КУЛТУРЕ ''ВУК КАРАЏИЋ'' БУЈАНОВАЦ
C53: 1201 | G53: ПРОГРАМ 13: Развој културе
C54: 1201-0001 | G54: Функционисање локалних установа културе
D55: 820 | G55: Установе културе
E56: Позиција | F56: Екн. Кл. | G56: Опис | H56: План по ребалансу | I56: Извршење | J56: % извршења
E57: 284 | F57: 411 | G57: Плате, додаци и накнаде запосленима | H57: 12100000 | I57: 11883563.4 | J57: =I57/H57 -> 0.9821126777
E58: 285 | F58: 412 | G58: Социјални доприноси на терет послодавца | H58: 2075500 | I58: 1978613.06 | J58: 0.9533187473
E59: 286 | F59: 414 | G59: Социјална давања запосленима | H59: 90000 | I59: 0 | J59: 0
E60: 287 | F60: 415 | G60: Накнаде трошкова за запослене | H60: 890000 | I60: 759141.52 | J60: 0.852968
E61: 288 | F61: 416 | G61: Награде запосленима и остали посебни расходи | H61: 558000 | I61: 512592.67 | J61: 0.9186248566
E62: 289 | F62: 421 | G62: Стални трошкови | H62: 11866000 | I62: 7065984.65 | J62: 0.5954815987
E63: 290 | F63: 422 | G63: Трошкови путовања | H63: 70000 | I63: 4515.59 | J63: 0.06450842857
E64: 291 | F64: 423 | G64: Услуге по уговору | H64: 3285000 | I64: 2758330.68 | J64: 0.839674484
E65: 292 | F65: 424 | G65: Специјализоване услуге | H65: 440000 | I65: 325910 | J65: 0.7407045455
E66: 293 | F66: 425 | G66: Текуће поправке и одржавање | H66: 150000 | I66: 4200 | J66: 0.028
E67: 294 | F67: 426 | G67: Материјал | H67: 200000 | I67: 123941.72 | J67: 0.6197086
E68: 336 | F68: 465 | G68: Остале текуће дотације по закону | H68: 65600 | I68: 65584.51 | J68: 0.999763872
E69: 295 | F69: 482 | G69: Порези, обавезне таксе и казне | H69: 50000 | I69: 7233 | J69: 0.14466
E70: 296 | F70: 512 | G70: Машине и опрема | H70: 210000 | I70: 0 | J70: 0
G71: Функција 820: | H71: 32050100 | I71: =SUBTOTAL(9,I57:I70) -> 25489610.8 | J71: 0.7953051878
G72: Програмска активност 1201-0001: | H72: 32050100 | I72: =SUBTOTAL(9,I57:I70) -> 25489610.8 | J72: 0.7953051878
D73: 820 | G73: Установе културе
C74: 1201-01 | G74: Манифестација вредне руке
E75: 297 | F75: 423 | G75: Услуге по уговору | H75: 100000 | I75: 0 | J75: =I75/H75 -> 0
E76: 298 | F76: 426 | G76: Материјал | H76: 50000 | I76: 0 | J76: 0
G77: Функција 820: | H77: 150000 | I77: =SUBTOTAL(9,I75:I76) -> 0 | J77: 0
G78: Пројекат 1201-01 | H78: 150000 | I78: =SUBTOTAL(9,I75:I76) -> 0 | J78: 0
D79: 820 | G79: Установе културе
C80: 1201-02 | G80: Манифестација најлепше ускршње јаје
E81: 299 | F81: 423 | G81: Услуге по уговору | H81: 5000 | I81: 0 | J81: =I81/H81 -> 0
E82: 300 | F82: 426 | G82: Материјал | H82: 5000 | I82: 0 | J82: 0
G83: Функција 820: | H83: 10000 | I83: =SUBTOTAL(9,I81:I82) -> 0 | J83: 0
G84: Пројекат 1201-02 | H84: 10000 | I84: =SUBTOTAL(9,I81:I82) -> 0 | J84: 0
D85: 820 | G85: Установе културе
C86: 1201-03 | G86: Манифестација културно лето
E87: 301 | F87: 423 | G87: Услуге по уговору | H87: 5000 | I87: 0 | J87: =I87/H87 -> 0
E88: 302 | F88: 426 | G88: Материјал | H88: 5000 | I88: 0 | J88: 0
G89: Функција 820: | H89: 10000 | I89: =SUBTOTAL(9,I87:I88) -> 0 | J89: 0
G90: Пројекат 1201-03 | H90: 10000 | I90: =SUBTOTAL(9,I87:I88) -> 0 | J90: 0
G91: УКУПНО ЗА ГЛАВУ 5.05: | H91: 32220100 | I91: =SUBTOTAL(9,I57:I90) -> 25489610.8 | J91: 0.791108991
A92: 5 | B92: 5.06 | G92: БИБЛИОТЕКА ''14.НОВЕМБАР'' БУЈАНОВАЦ
C93: 1201 | G93: ПРОГРАМ 13: Развој културе
C94: 1201-0001 | G94: Функционисање локалних установа културе
D95: 820 | G95: Установе културе
E96: Позиција | F96: Екн. Кл. | G96: Опис | H96: План по ребалансу | I96: Извршење | J96: % извршења
E97: 303 | F97: 411 | G97: Плате, додаци и накнаде запосленима | H97: 11600000 | I97: 11557700.62 | J97: =I97/H97 -> 0.9963535017
E98: 304 | F98: 412 | G98: Социјални доприноси на терет послодавца | H98: 1990000 | I98: 1924357.06 | J98: 0.967013598
E99: 305 | F99: 414 | G99: Социјална давања запосленима | H99: 60000 | I99: 30000 | J99: 0.5
E100: 306 | F100: 415 | G100: Накнаде трошкова за запослене | H100: 660000 | I100: 535186.45 | J100: 0.8108885606
E101: 307 | F101: 416 | G101: Награде, бонуси и остали посебни расходи | H101: 170000 | I101: 166140.78 | J101: 0.9772987059
E102: 308 | F102: 421 | G102: Стални трошкови | H102: 155000 | I102: 102515.05 | J102: 0.6613874194
E103: 309 | F103: 422 | G103: Трошкови путовања | H103: 115000 | I103: 100312.6 | J103: 0.8722834783
E104: 310 | F104: 423 | G104: Услуге по уговору | H104: 2655000 | I104: 2320828.43 | J104: 0.8741350019
E105: 311 | F105: 425 | G105: Текуће поправке и одржавање | H105: 70000 | I105: 3600 | J105: 0.05142857143
E106: 312 | F106: 426 | G106: Материјал | H106: 185000 | I106: 121224.93 | J106: 0.6552698919
E107: 337 | F107: 465 | G107: Остале текуће дотације по закону | H107: 86300 | I107: 86227.13 | J107: 0.9991556199
E108: 313 | F108: 482 | G108: Порези , обавезне таксе и казне | H108: 20000 | I108: 7233 | J108: 0.36165
E109: 314 | F109: 512 | G109: Машине и опрема | H109: 200000 | I109: 187942.01 | J109: 0.93971005
E110: 315 | F110: 515 | G110: Нематеријална имовина | H110: 490000 | I110: 340602.65 | J110: 0.695107449
G111: Функција 820: | H111: 18456300 | I111: =SUBTOTAL(9,I97:I110) -> 17483870.71 | J111: 0.9473117965
G112: Програмска активност 1201-0001: | H112: 18456300 | I112: =SUBTOTAL(9,I97:I110) -> 17483870.71 | J112: 0.9473117965
G113: УКУПНО ЗА ГЛАВУ 5.06: | H113: 18456300 | I113: =SUBTOTAL(9,I97:I110) -> 17483870.71 | J113: 0.9473117965
A116: 5 | B116: 5.07 | G116: СПОРТСКИ ЦЕНТАР ''МЛАДОСТ'' БУЈАНОВАЦ
C117: 1301 | G117: ПРОГРАМ 14: Развој спорта и омладине
C118: 1301-0004 | G118: Функционисање локалних спортских установа
D119: 810 | G119: Услуге рекреације и спорта
E120: Позиција | F120: Екн. Кл. | G120: Опис | H120: План по ребалансу | I120: Извршење | J120: % извршења
E121: 316 | F121: 411 | G121: Плате, додаци и накнаде запосленима | H121: 11000000 | I121: 9682967.88 | J121: =I121/H121 -> 0.8802698073
E122: 317 | F122: 412 | G122: Социјални доприноси на терет послодавца | H122: 1890000 | I122: 1612214.14 | J122: 0.8530233545
E123: 318 | F123: 413 | G123: Накнаде у натури | H123: 80000 | I123: 0 | J123: 0
E124: 319 | F124: 414 | G124: Социјална давања запосленима | H124: 100000 | I124: 0 | J124: 0
E125: 320 | F125: 415 | G125: Накнаде трошкова за запослене | H125: 700000 | I125: 576004.91 | J125: 0.8228641571
E126: 321 | F126: 416 | G126: Награде запосленима и остали посебни расходи | H126: 70000 | I126: 62375.66 | J126: 0.8910808571
E127: 322 | F127: 421 | G127: Стални трошкови | H127: 1602000 | I127: 1174064.03 | J127: 0.7328739263
E128: 323 | F128: 422 | G128: Трошкови путовања | H128: 50000 | I128: 44880 | J128: 0.8976
E129: 324 | F129: 423 | G129: Услуге по уговору | H129: 2080000 | I129: 1589923.71 | J129: 0.764386399
E130: 325 | F130: 425 | G130: Текуће поправке и одржавање | H130: 550000 | I130: 64402.94 | J130: 0.1170962545
E131: 326 | F131: 426 | G131: Материјал | H131: 480000 | I131: 225602.66 | J131: 0.4700055417
E132: 338 | F132: 465 | G132: Остале текуће дотације по закону | H132: 50300 | I132: 50286.68 | J132: 0.9997351889
E133: 327 | F133: 482 | G133: Порези , обавезне таксе и казне | H133: 120000 | I133: 0 | J133: 0
E134: 328 | F134: 511 | G134: Зграде и грађевински објекти | H134: 1000000 | I134: 106436.4 | J134: 0.1064364
E135: 329 | F135: 512 | G135: Машине и опрема | H135: 200000 | I135: 47250 | J135: 0.23625
G136: Функција 810: | H136: 19972300 | I136: =SUBTOTAL(9,I121:I135) -> 15236409.01 | J136: 0.7628770352
G137: Програмска активност 1301-0004: | H137: 19972300 | I137: =SUBTOTAL(9,I121:I135) -> 15236409.01 | J137: 0.7628770352
G138: УКУПНО ЗА ГЛАВУ 5.07: | H138: 19972300 | I138: =SUBTOTAL(9,I121:I135) -> 15236409.01 | J138: 0.7628770352

Sheet OB_RAS (2) (hidden)
A1: konto | B1: broj | C1: pozicija | D1: glava | E1: funkcija | F1: plan | G1: kvota | H1: izvrsenje | I1: korisnik | J1: vreme | K1: datump
A2: 465112 | B2: 2 | C2: 330 | D2: 101 | E2: 111 | F2: 12200 | G2: 12200 | H2: 12172.16 | K2: - -
A3: 465112 | B3: 2 | C3: 331 | D3: 201 | E3: 111 | F3: 27700 | G3: 27700 | H3: 27681.14 | K3: - -
A4: 465112 | B4: 2 | C4: 332 | D4: 401 | E4: 330 | F4: 13700 | G4: 13700 | H4: 13629.21 | K4: - -
A5: 463141 | B5: 2 | C5: 200 | D5: 501 | E5: 960 | F5: 5239000 | G5: 5239000 | H5: 1545517.33 | K5: - -
A6: 463141 | B6: 2 | C6: 201 | D6: 501 | E6: 960 | F6: 400000 | G6: 400000 | H6: 259329.29 | K6: - -
A7: 463141 | B7: 2 | C7: 202 | D7: 501 | E7: 960 | F7: 300000 | G7: 300000 | H7: 34600 | K7: - -
A8: 463141 | B8: 2 | C8: 203 | D8: 501 | E8: 960 | F8: 1000000 | G8: 1000000 | H8: 116250 | K8: - -
A9: 463141 | B9: 2 | C9: 204 | D9: 501 | E9: 960 | F9: 2500000 | G9: 2500000 | H9: 1196154 | K9: - -
A10: 463141 | B10: 2 | C10: 205 | D10: 501 | E10: 960 | F10: 900000 | G10: 900000 | H10: 832221.17 | K10: - -
A11: 463141 | B11: 2 | C11: 206 | D11: 501 | E11: 920 | F11: 1644000 | G11: 1644000 | H11: 981540.15 | K11: - -
A12: 463141 | B12: 2 | C12: 207 | D12: 501 | E12: 960 | F12: 60000 | G12: 60000 | H12: 0 | K12: - -
A13: 463141 | B13: 2 | C13: 208 | D13: 501 | E13: 920 | F13: 13598000 | G13: 13598000 | H13: 11668925.3 | K13: - -
A14: 463141 | B14: 2 | C14: 209 | D14: 501 | E14: 920 | F14: 6180000 | G14: 6180000 | H14: 5191613.56 | K14: - -
A15: 463141 | B15: 2 | C15: 210 | D15: 501 | E15: 920 | F15: 2334000 | G15: 2334000 | H15: 1553216 | K15: - -
A16: 463141 | B16: 2 | C16: 211 | D16: 501 | E16: 920 | F16: 436000 | G16: 436000 | H16: 168422.4 | K16: - -
A17: 463141 | B17: 2 | C17: 212 | D17: 501 | E17: 920 | F17: 1272000 | G17: 1272000 | H17: 678488.58 | K17: - -
A18: 463141 | B18: 2 | C18: 213 | D18: 501 | E18: 920 | F18: 1600000 | G18: 1600000 | H18: 1041249.01 | K18: - -
A19: 463141 | B19: 2 | C19: 214 | D19: 501 | E19: 960 | F19: 1320000 | G19: 1320000 | H19: 919757.39 | K19: - -
A20: 463141 | B20: 2 | C20: 215 | D20: 501 | E20: 960 | F20: 500000 | G20: 500000 | H20: 135244.78 | K20: - -
A21: 463141 | B21: 2 | C21: 216 | D21: 501 | E21: 960 | F21: 750000 | G21: 750000 | H21: 747870 | K21: - -
A22: 472 | B22: 2 | C22: 217 | D22: 501 | E22: 960 | F22: 7440000 | G22: 7440000 | H22: 5208000 | K22: - -
A23: 472 | B23: 2 | C23: 218 | D23: 501 | E23: 960 | F23: 10000000 | G23: 10000000 | H23: 9988000 | K23: - -
A24: 463141 | B24: 2 | C24: 219 | D24: 501 | E24: 70 | F24: 4850000 | G24: 4850000 | H24: 4060965.67 | K24: - -
A25: 472 | B25: 2 | C25: 220 | D25: 501 | E25: 70 | F25: 4000000 | G25: 4000000 | H25: 3559458 | K25: - -
A26: 472 | B26: 2 | C26: 221 | D26: 501 | E26: 90 | F26: 700000 | G26: 700000 | H26: 367622.8 | K26: - -
A27: 472 | B27: 2 | C27: 222 | D27: 501 | E27: 90 | F27: 1200000 | G27: 1200000 | H27: 1192310 | K27: - -
A28: 472 | B28: 2 | C28: 223 | D28: 501 | E28: 90 | F28: 600000 | G28: 600000 | H28: 126395.12 | K28: - -
A29: 481 | B29: 2 | C29: 224 | D29: 501 | E29: 70 | F29: 500000 | G29: 500000 | H29: 500000 | K29: - -
A30: 423 | B30: 2 | C30: 225 | D30: 501 | E30: 90 | F30: 700000 | G30: 700000 | H30: 0 | K30: - -
A31: 423 | B31: 2 | C31: 226 | D31: 501 | E31: 90 | F31: 750000 | G31: 750000 | H31: 594339.72 | K31: - -
A32: 423 | B32: 2 | C32: 227 | D32: 501 | E32: 90 | F32: 7085363 | G32: 7085363 | H32: 4609108.3 | K32: - -
A33: 472 | B33: 2 | C33: 228 | D33: 501 | E33: 70 | F33: 660000 | G33: 660000 | H33: 480000 | K33: - -
A34: 464112 | B34: 2 | C34: 229 | D34: 501 | E34: 740 | F34: 17500000 | G34: 17500000 | H34: 15673332.51 | K34: - -
A35: 423 | B35: 2 | C35: 230 | D35: 501 | E35: 740 | F35: 50000 | G35: 50000 | H35: 0 | K35: - -
A36: 464112 | B36: 2 | C36: 231 | D36: 501 | E36: 740 | F36: 2000000 | G36: 2000000 | H36: 1750000 | K36: - -
A37: 423 | B37: 2 | C37: 232 | D37: 501 | E37: 721 | F37: 400000 | G37: 400000 | H37: 255660.33 | K37: - -
A38: 481 | B38: 2 | C38: 233 | D38: 501 | E38: 860 | F38: 2000000 | G38: 2000000 | H38: 2000000 | K38: - -
A39: 481 | B39: 2 | C39: 234 | D39: 501 | E39: 860 | F39: 2000000 | G39: 2000000 | H39: 1935000 | K39: - -
A40: 481 | B40: 2 | C40: 235 | D40: 501 | E40: 860 | F40: 130000 | G40: 130000 | H40: 130000 | K40: - -
A41: 481 | B41: 2 | C41: 236 | D41: 501 | E41: 840 | F41: 2000000 | G41: 2000000 | H41: 2000000 | K41: - -
A42: 481 | B42: 2 | C42: 237 | D42: 501 | E42: 840 | F42: 2300000 | G42: 2300000 | H42: 2300000 | K42: - -
A43: 451 | B43: 2 | C43: 238 | D43: 501 | E43: 830 | F43: 5000000 | G43: 5000000 | H43: 240000 | K43: - -
A44: 481 | B44: 2 | C44: 239 | D44: 501 | E44: 810 | F44: 8000000 | G44: 8000000 | H44: 3115000 | K44: - -
A45: 481 | B45: 2 | C45: 240 | D45: 501 | E45: 810 | F45: 1000000 | G45: 1000000 | H45: 780000 | K45: - -
A46: 481 | B46: 2 | C46: 241 | D46: 501 | E46: 810 | F46: 600000 | G46: 600000 | H46: 249067.45 | K46: - -
A47: 511 | B47: 2 | C47: 242 | D47: 501 | E47: 810 | F47: 2340000 | G47: 2340000 | H47: 0 | K47: - -
A48: 511 | B48: 2 | C48: 243 | D48: 501 | E48: 640 | F48: 3290000 | G48: 3290000 | H48: 3289680 | K48: - -
A49: 465112 | B49: 2 | C49: 333 | D49: 501 | E49: 130 | F49: 822600 | G49: 822600 | H49: 822585.46 | K49: - -
A50: 463141 | B50: 2 | C50: 339 | D50: 501 | E50: 912 | F50: 1950000 | G50: 1950000 | H50: 1914760 | K50: - -
A51: 463141 | B51: 2 | C51: 340 | D51: 501 | E51: 960 | F51: 400000 | G51: 400000 | H51: 399450 | K51: - -
A52: 424 | B52: 2 | C52: 341 | D52: 501 | E52: 550 | F52: 600000 | G52: 600000 | H52: 499445 | K52: - -
A53: 463141 | B53: 2 | C53: 342 | D53: 501 | E53: 960 | F53: 250000 | G53: 250000 | H53: 250000 | K53: - -
A54: 425 | B54: 2 | C54: 343 | D54: 501 | E54: 630 | F54: 43500 | G54: 43500 | H54: 43008 | K54: - -
A55: 423 | B55: 2 | C55: 344 | D55: 501 | E55: 721 | F55: 150000 | G55: 150000 | H55: 150000 | K55: - -
A56: 426 | B56: 2 | C56: 345 | D56: 501 | E56: 960 | F56: 1300000 | G56: 1300000 | H56: 1239964 | K56: - -
A57: 511 | B57: 2 | C57: 346 | D57: 501 | E57: 560 | F57: 300000 | G57: 300000 | H57: 0 | K57: - -
A58: 511 | B58: 2 | C58: 347 | D58: 501 | E58: 451 | F58: 1822000 | G58: 1822000 | H58: 1804117.14 | K58: - -
A59: 511 | B59: 2 | C59: 348 | D59: 501 | E59: 451 | F59: 419000 | G59: 419000 | H59: 416787 | K59: - -
A60: 511 | B60: 2 | C60: 349 | D60: 501 | E60: 451 | F60: 837000 | G60: 837000 | H60: 0 | K60: - -
A61: 511 | B61: 2 | C61: 350 | D61: 501 | E61: 451 | F61: 1215000 | G61: 1215000 | H61: 0 | K61: - -
A62: 511 | B62: 2 | C62: 351 | D62: 501 | E62: 451 | F62: 453000 | G62: 453000 | H62: 0 | K62: - -
A63: 511 | B63: 2 | C63: 352 | D63: 501 | E63: 451 | F63: 661000 | G63: 661000 | H63: 0 | K63: - -
A64: 511 | B64: 2 | C64: 353 | D64: 501 | E64: 451 | F64: 1411000 | G64: 1411000 | H64: 0 | K64: - -
A65: 511 | B65: 2 | C65: 354 | D65: 501 | E65: 451 | F65: 3600000 | G65: 3600000 | H65: 0 | K65: - -
A66: 425 | B66: 2 | C66: 355 | D66: 501 | E66: 912 | F66: 235000000 | G66: 235000000 | H66: 0 | K66: - -
A67: 425 | B67: 2 | C67: 357 | D67: 501 | E67: 912 | F67: 1300000 | G67: 1300000 | H67: 0 | K67: - -
A68: 425 | B68: 2 | C68: 358 | D68: 501 | E68: 560 | F68: 103200 | G68: 103200 | H68: 103200 | K68: - -
A69: 451191 | B69: 2 | C69: 359 | D69: 501 | E69: 550 | F69: 300000 | G69: 300000 | H69: 300000 | K69: - -
A70: 421 | B70: 2 | C70: 244 | D70: 502 | E70: 160 | F70: 200000 | G70: 200000 | H70: 121426.65 | K70: - -
A71: 422 | B71: 2 | C71: 245 | D71: 502 | E71: 160 | F71: 50000 | G71: 50000 | H71: 24650 | K71: - -
A72: 423 | B72: 2 | C72: 246 | D72: 502 | E72: 160 | F72: 1000000 | G72: 1000000 | H72: 898021.05 | K72: - -
A73: 424 | B73: 2 | C73: 247 | D73: 502 | E73: 160 | F73: 80000 | G73: 80000 | H73: 15000 | K73: - -
A74: 425 | B74: 2 | C74: 248 | D74: 502 | E74: 160 | F74: 1300000 | G74: 1300000 | H74: 1106412.14 | K74: - -
A75: 426 | B75: 2 | C75: 249 | D75: 502 | E75: 160 | F75: 700000 | G75: 700000 | H75: 544375.47 | K75: - -
A76: 482 | B76: 2 | C76: 250 | D76: 502 | E76: 160 | F76: 50000 | G76: 50000 | H76: 0 | K76: - -
A77: 483 | B77: 2 | C77: 251 | D77: 502 | E77: 160 | F77: 100000 | G77: 100000 | H77: 0 | K77: - -
A78: 511 | B78: 2 | C78: 252 | D78: 502 | E78: 160 | F78: 3832000 | G78: 3832000 | H78: 1595026.56 | K78: - -
A79: 512 | B79: 2 | C79: 253 | D79: 502 | E79: 160 | F79: 150000 | G79: 150000 | H79: 46260 | K79: - -
A80: 411 | B80: 2 | C80: 254 | D80: 503 | E80: 473 | F80: 4900000 | G80: 4900000 | H80: 4093899.18 | K80: - -
A81: 412 | B81: 2 | C81: 255 | D81: 503 | E81: 473 | F81: 840000 | G81: 840000 | H81: 681634.25 | K81: - -
A82: 413 | B82: 2 | C82: 256 | D82: 503 | E82: 473 | F82: 40000 | G82: 40000 | H82: 0 | K82: - -
A83: 414 | B83: 2 | C83: 257 | D83: 503 | E83: 473 | F83: 110000 | G83: 110000 | H83: 0 | K83: - -
A84: 415 | B84: 2 | C84: 258 | D84: 503 | E84: 473 | F84: 400000 | G84: 400000 | H84: 389098.55 | K84: - -
A85: 416 | B85: 2 | C85: 259 | D85: 503 | E85: 473 | F85: 132000 | G85: 132000 | H85: 128259.11 | K85: - -
A86: 421 | B86: 2 | C86: 260 | D86: 503 | E86: 473 | F86: 385000 | G86: 385000 | H86: 291903.58 | K86: - -
A87: 422 | B87: 2 | C87: 261 | D87: 503 | E87: 473 | F87: 70000 | G87: 70000 | H87: 0 | K87: - -
A88: 423 | B88: 2 | C88: 262 | D88: 503 | E88: 473 | F88: 2937000 | G88: 2937000 | H88: 1755280.46 | K88: - -
A89: 424 | B89: 2 | C89: 263 | D89: 503 | E89: 473 | F89: 100000 | G89: 100000 | H89: 53800 | K89: - -
A90: 425 | B90: 2 | C90: 264 | D90: 503 | E90: 473 | F90: 15000 | G90: 15000 | H90: 1800 | K90: - -
A91: 426 | B91: 2 | C91: 265 | D91: 503 | E91: 473 | F91: 98000 | G91: 98000 | H91: 38247.88 | K91: - -
A92: 482 | B92: 2 | C92: 266 | D92: 503 | E92: 473 | F92: 10000 | G92: 10000 | H92: 0 | K92: - -
A93: 483 | B93: 2 | C93: 267 | D93: 503 | E93: 473 | F93: 175000 | G93: 175000 | H93: 0 | K93: - -
A94: 512 | B94: 2 | C94: 268 | D94: 503 | E94: 473 | F94: 100000 | G94: 100000 | H94: 0 | K94: - -
A95: 465112 | B95: 2 | C95: 334 | D95: 503 | E95: 473 | F95: 34000 | G95: 34000 | H95: 33913.19 | K95: - -
A96: 411 | B96: 2 | C96: 269 | D96: 504 | E96: 911 | F96: 77260000 | G96: 77260000 | H96: 71556196.16 | K96: - -
A97: 412 | B97: 2 | C97: 270 | D97: 504 | E97: 911 | F97: 13255000 | G97: 13255000 | H97: 11914106.88 | K97: - -
A98: 414 | B98: 2 | C98: 271 | D98: 504 | E98: 911 | F98: 450000 | G98: 450000 | H98: 393602 | K98: - -
A99: 415 | B99: 2 | C99: 272 | D99: 504 | E99: 911 | F99: 3290000 | G99: 3290000 | H99: 2652575.83 | K99: - -
A100: 416 | B100: 2 | C100: 273 | D100: 504 | E100: 911 | F100: 1500000 | G100: 1500000 | H100: 795900.98 | K100: - -
A101: 421 | B101: 2 | C101: 274 | D101: 504 | E101: 911 | F101: 6254000 | G101: 6254000 | H101: 5284616.03 | K101: - -
A102: 422 | B102: 2 | C102: 275 | D102: 504 | E102: 911 | F102: 120000 | G102: 120000 | H102: 77137.14 | K102: - -
A103: 423 | B103: 2 | C103: 276 | D103: 504 | E103: 911 | F103: 2750000 | G103: 2750000 | H103: 2557718.88 | K103: - -
A104: 424 | B104: 2 | C104: 277 | D104: 504 | E104: 911 | F104: 540000 | G104: 540000 | H104: 394048 | K104: - -
A105: 425 | B105: 2 | C105: 278 | D105: 504 | E105: 911 | F105: 1095000 | G105: 1095000 | H105: 781295.75 | K105: - -
A106: 426 | B106: 2 | C106: 279 | D106: 504 | E106: 911 | F106: 5689500 | G106: 5689500 | H106: 5588034.06 | K106: - -
A107: 482 | B107: 2 | C107: 280 | D107: 504 | E107: 911 | F107: 15000 | G107: 15000 | H107: 4000 | K107: - -
A108: 483 | B108: 2 | C108: 281 | D108: 504 | E108: 911 | F108: 450000 | G108: 450000 | H108: 440460.95 | K108: - -
A109: 511 | B109: 2 | C109: 282 | D109: 504 | E109: 911 | F109: 800000 | G109: 800000 | H109: 349895.6 | K109: - -
A110: 512 | B110: 2 | C110: 283 | D110: 504 | E110: 911 | F110: 1269500 | G110: 1269500 | H110: 1207760 | K110: - -
A111: 465112 | B111: 2 | C111: 335 | D111: 504 | E111: 911 | F111: 583600 | G111: 583600 | H111: 583588.06 | K111: - -
A112: 413 | B112: 2 | C112: 356 | D112: 504 | E112: 911 | F112: 60000 | G112: 60000 | H112: 37012.44 | K112: - -
A113: 411 | B113: 2 | C113: 284 | D113: 505 | E113: 820 | F113: 12100000 | G113: 12100000 | H113: 10885043.54 | K113: - -
A114: 412 | B114: 2 | C114: 285 | D114: 505 | E114: 820 | F114: 2075500 | G114: 2075500 | H114: 1812359.54 | K114: - -
A115: 414 | B115: 2 | C115: 286 | D115: 505 | E115: 820 | F115: 90000 | G115: 90000 | H115: 0 | K115: - -
A116: 415 | B116: 2 | C116: 287 | D116: 505 | E116: 820 | F116: 890000 | G116: 890000 | H116: 759141.52 | K116: - -
A117: 416 | B117: 2 | C117: 288 | D117: 505 | E117: 820 | F117: 558000 | G117: 558000 | H117: 512592.67 | K117: - -
A118: 421 | B118: 2 | C118: 289 | D118: 505 | E118: 820 | F118: 11866000 | G118: 11866000 | H118: 7065984.65 | K118: - -
A119: 422 | B119: 2 | C119: 290 | D119: 505 | E119: 820 | F119: 70000 | G119: 70000 | H119: 4515.59 | K119: - -
A120: 423 | B120: 2 | C120: 291 | D120: 505 | E120: 820 | F120: 3285000 | G120: 3285000 | H120: 2758330.68 | K120: - -
A121: 424 | B121: 2 | C121: 292 | D121: 505 | E121: 820 | F121: 440000 | G121: 440000 | H121: 325910 | K121: - -
A122: 425 | B122: 2 | C122: 293 | D122: 505 | E122: 820 | F122: 150000 | G122: 150000 | H122: 4200 | K122: - -
A123: 426 | B123: 2 | C123: 294 | D123: 505 | E123: 820 | F123: 200000 | G123: 200000 | H123: 123941.72 | K123: - -
A124: 482 | B124: 2 | C124: 295 | D124: 505 | E124: 820 | F124: 50000 | G124: 50000 | H124: 7233 | K124: - -
A125: 512 | B125: 2 | C125: 296 | D125: 505 | E125: 820 | F125: 210000 | G125: 210000 | H125: 0 | K125: - -
A126: 423 | B126: 2 | C126: 297 | D126: 505 | E126: 820 | F126: 100000 | G126: 100000 | H126: 0 | K126: - -
A127: 426 | B127: 2 | C127: 298 | D127: 505 | E127: 820 | F127: 50000 | G127: 50000 | H127: 0 | K127: - -
A128: 423 | B128: 2 | C128: 299 | D128: 505 | E128: 820 | F128: 5000 | G128: 5000 | H128: 0 | K128: - -
A129: 426 | B129: 2 | C129: 300 | D129: 505 | E129: 820 | F129: 5000 | G129: 5000 | H129: 0 | K129: - -
A130: 423 | B130: 2 | C130: 301 | D130: 505 | E130: 820 | F130: 5000 | G130: 5000 | H130: 0 | K130: - -
A131: 426 | B131: 2 | C131: 302 | D131: 505 | E131: 820 | F131: 5000 | G131: 5000 | H131: 0 | K131: - -
A132: 465112 | B132: 2 | C132: 336 | D132: 505 | E132: 820 | F132: 65600 | G132: 65600 | H132: 65584.51 | K132: - -
A133: 411 | B133: 2 | C133: 303 | D133: 506 | E133: 820 | F133: 11600000 | G133: 11600000 | H133: 10546163.93 | K133: - -
A134: 412 | B134: 2 | C134: 304 | D134: 506 | E134: 820 | F134: 1990000 | G134: 1990000 | H134: 1755936.22 | K134: - -
A135: 414 | B135: 2 | C135: 305 | D135: 506 | E135: 820 | F135: 60000 | G135: 60000 | H135: 30000 | K135: - -
A136: 415 | B136: 2 | C136: 306 | D136: 506 | E136: 820 | F136: 660000 | G136: 660000 | H136: 535186.45 | K136: - -
A137: 416 | B137: 2 | C137: 307 | D137: 506 | E137: 820 | F137: 170000 | G137: 170000 | H137: 166140.78 | K137: - -
A138: 421 | B138: 2 | C138: 308 | D138: 506 | E138: 820 | F138: 155000 | G138: 155000 | H138: 102515.05 | K138: - -
A139: 422 | B139: 2 | C139: 309 | D139: 506 | E139: 820 | F139: 115000 | G139: 115000 | H139: 100312.6 | K139: - -
A140: 423 | B140: 2 | C140: 310 | D140: 506 | E140: 820 | F140: 2655000 | G140: 2655000 | H140: 2320828.43 | K140: - -
A141: 425 | B141: 2 | C141: 311 | D141: 506 | E141: 820 | F141: 70000 | G141: 70000 | H141: 3600 | K141: - -
A142: 426 | B142: 2 | C142: 312 | D142: 506 | E142: 820 | F142: 185000 | G142: 185000 | H142: 121224.93 | K142: - -
A143: 482 | B143: 2 | C143: 313 | D143: 506 | E143: 820 | F143: 20000 | G143: 20000 | H143: 7233 | K143: - -
A144: 512 | B144: 2 | C144: 314 | D144: 506 | E144: 820 | F144: 200000 | G144: 200000 | H144: 187942.01 | K144: - -
A145: 515 | B145: 2 | C145: 315 | D145: 506 | E145: 820 | F145: 490000 | G145: 490000 | H145: 340602.65 | K145: - -
A146: 465112 | B146: 2 | C146: 337 | D146: 506 | E146: 820 | F146: 86300 | G146: 86300 | H146: 86227.13 | K146: - -
A147: 411 | B147: 2 | C147: 316 | D147: 507 | E147: 810 | F147: 11000000 | G147: 11000000 | H147: 9682967.88 | K147: - -
A148: 412 | B148: 2 | C148: 317 | D148: 507 | E148: 810 | F148: 1890000 | G148: 1890000 | H148: 1612214.14 | K148: - -
A149: 413 | B149: 2 | C149: 318 | D149: 507 | E149: 810 | F149: 80000 | G149: 80000 | H149: 0 | K149: - -
A150: 414 | B150: 2 | C150: 319 | D150: 507 | E150: 810 | F150: 100000 | G150: 100000 | H150: 0 | K150: - -
A151: 415 | B151: 2 | C151: 320 | D151: 507 | E151: 810 | F151: 700000 | G151: 700000 | H151: 576004.91 | K151: - -
A152: 416 | B152: 2 | C152: 321 | D152: 507 | E152: 810 | F152: 70000 | G152: 70000 | H152: 62375.66 | K152: - -
A153: 421 | B153: 2 | C153: 322 | D153: 507 | E153: 810 | F153: 1602000 | G153: 1602000 | H153: 1174064.03 | K153: - -
A154: 422 | B154: 2 | C154: 323 | D154: 507 | E154: 810 | F154: 50000 | G154: 50000 | H154: 44880 | K154: - -
A155: 423 | B155: 2 | C155: 324 | D155: 507 | E155: 810 | F155: 2080000 | G155: 2080000 | H155: 1589923.71 | K155: - -
A156: 425 | B156: 2 | C156: 325 | D156: 507 | E156: 810 | F156: 550000 | G156: 550000 | H156: 64402.94 | K156: - -
A157: 426 | B157: 2 | C157: 326 | D157: 507 | E157: 810 | F157: 480000 | G157: 480000 | H157: 225602.66 | K157: - -
A158: 482 | B158: 2 | C158: 327 | D158: 507 | E158: 810 | F158: 120000 | G158: 120000 | H158: 0 | K158: - -
A159: 511 | B159: 2 | C159: 328 | D159: 507 | E159: 810 | F159: 1000000 | G159: 1000000 | H159: 106436.4 | K159: - -
A160: 512 | B160: 2 | C160: 329 | D160: 507 | E160: 810 | F160: 200000 | G160: 200000 | H160: 47250 | K160: - -
A161: 465112 | B161: 2 | C161: 338 | D161: 507 | E161: 810 | F161: 50300 | G161: 50300 | H161: 50286.68 | K161: - -

Sheet OB_RAS (hidden)
A1: konto | B1: broj | C1: pozicija | D1: glava | E1: funkcija | F1: plan | G1: kvota | H1: izvrsenje | I1: korisnik | J1: vreme | K1: datump
A2: 411111 | B2: 1 | C2: 1 | D2: 101 | E2: 111 | F2: 1345000 | G2: 784583.33 | H2: 781389.95 | K2: - -
A3: 412111 | B3: 1 | C3: 2 | D3: 101 | E3: 111 | F3: 231000 | G3: 134750 | H3: 130101.44 | K3: - -
A4: 414 | B4: 1 | C4: 3 | D4: 101 | E4: 111 | F4: 37000 | G4: 21583.33 | H4: 0 | K4: - -
A5: 416 | B5: 1 | C5: 4 | D5: 101 | E5: 111 | F5: 5000 | G5: 2916.67 | H5: 0 | K5: - -
A6: 421 | B6: 1 | C6: 5 | D6: 101 | E6: 111 | F6: 50000 | G6: 29166.67 | H6: 5 | K6: - -
A7: 422 | B7: 1 | C7: 6 | D7: 101 | E7: 111 | F7: 50000 | G7: 29166.67 | H7: 5689 | K7: - -
A8: 423 | B8: 1 | C8: 7 | D8: 101 | E8: 111 | F8: 16000000 | G8: 9333333.33 | H8: 7153523.42 | K8: - -
A9: 426 | B9: 1 | C9: 8 | D9: 101 | E9: 111 | F9: 50000 | G9: 29166.67 | H9: 43100 | K9: - -
A10: 481 | B10: 1 | C10: 9 | D10: 101 | E10: 111 | F10: 306300 | G10: 178675 | H10: 0 | K10: - -
A11: 481 | B11: 1 | C11: 10 | D11: 101 | E11: 111 | F11: 459500 | G11: 268041.67 | H11: 153167 | K11: - -
A12: 416 | B12: 1 | C12: 11 | D12: 101 | E12: 160 | F12: 3000000 | G12: 1750000 | H12: 3000000 | K12: - -
A13: 423 | B13: 1 | C13: 12 | D13: 101 | E13: 160 | F13: 1500000 | G13: 875000 | H13: 1500000 | K13: - -
A14: 426 | B14: 1 | C14: 13 | D14: 101 | E14: 160 | F14: 500000 | G14: 291666.67 | H14: 500000 | K14: - -
A15: 423 | B15: 1 | C15: 14 | D15: 101 | E15: 111 | F15: 2700000 | G15: 1575000 | H15: 1579530.5 | K15: - -
A16: 481 | B16: 1 | C16: 15 | D16: 101 | E16: 111 | F16: 500000 | G16: 291666.67 | H16: 200000 | K16: - -
A17: 481 | B17: 1 | C17: 16 | D17: 101 | E17: 111 | F17: 50000 | G17: 29166.67 | H17: 0 | K17: - -
A18: 481 | B18: 1 | C18: 17 | D18: 101 | E18: 111 | F18: 50000 | G18: 29166.67 | H18: 0 | K18: - -
A19: 465112 | B19: 1 | C19: 330 | D19: 101 | E19: 111 | F19: 12200 | G19: 7116.67 | H19: 12172.16 | K19: - -
A20: 411111 | B20: 1 | C20: 18 | D20: 201 | E20: 111 | F20: 3165000 | G20: 1846250 | H20: 1846610.42 | K20: - -
A21: 412 | B21: 1 | C21: 19 | D21: 201 | E21: 111 | F21: 543000 | G21: 316750 | H21: 307460.61 | K21: - -
A22: 414 | B22: 1 | C22: 20 | D22: 201 | E22: 111 | F22: 84000 | G22: 49000 | H22: 0 | K22: - -
A23: 416 | B23: 1 | C23: 21 | D23: 201 | E23: 111 | F23: 60000 | G23: 35000 | H23: 0 | K23: - -
A24: 421 | B24: 1 | C24: 22 | D24: 201 | E24: 111 | F24: 100000 | G24: 58333.33 | H24: 11 | K24: - -
A25: 422 | B25: 1 | C25: 23 | D25: 201 | E25: 111 | F25: 250000 | G25: 145833.33 | H25: 11171 | K25: - -
A26: 423 | B26: 1 | C26: 24 | D26: 201 | E26: 111 | F26: 2750000 | G26: 1604166.67 | H26: 1249359.59 | K26: - -
A27: 426 | B27: 1 | C27: 25 | D27: 201 | E27: 111 | F27: 100000 | G27: 58333.33 | H27: 35755.99 | K27: - -
A28: 423 | B28: 1 | C28: 26 | D28: 201 | E28: 111 | F28: 200000 | G28: 116666.67 | H28: 0 | K28: - -
A29: 423 | B29: 1 | C29: 27 | D29: 201 | E29: 111 | F29: 200000 | G29: 116666.67 | H29: 0 | K29: - -
A30: 423 | B30: 1 | C30: 28 | D30: 201 | E30: 111 | F30: 200000 | G30: 116666.67 | H30: 0 | K30: - -
A31: 423 | B31: 1 | C31: 29 | D31: 201 | E31: 111 | F31: 200000 | G31: 116666.67 | H31: 0 | K31: - -
A32: 423 | B32: 1 | C32: 30 | D32: 201 | E32: 111 | F32: 500000 | G32: 291666.67 | H32: 0 | K32: - -
A33: 423 | B33: 1 | C33: 31 | D33: 201 | E33: 111 | F33: 500000 | G33: 291666.67 | H33: 0 | K33: - -
A34: 423 | B34: 1 | C34: 32 | D34: 201 | E34: 111 | F34: 300000 | G34: 175000 | H34: 300000 | K34: - -
A35: 465112 | B35: 1 | C35: 331 | D35: 201 | E35: 111 | F35: 27700 | G35: 16158.33 | H35: 27681.14 | K35: - -
A36: 423 | B36: 1 | C36: 33 | D36: 301 | E36: 111 | F36: 5000000 | G36: 2916666.67 | H36: 2419524.15 | K36: - -
A37: 426 | B37: 1 | C37: 34 | D37: 301 | E37: 111 | F37: 20000 | G37: 11666.67 | H37: 0 | K37: - -
A38: 423 | B38: 1 | C38: 35 | D38: 301 | E38: 111 | F38: 3250000 | G38: 1895833.33 | H38: 2009113.07 | K38: - -
A39: 411 | B39: 1 | C39: 36 | D39: 401 | E39: 330 | F39: 1935000 | G39: 1128750 | H39: 1131229.65 | K39: - -
A40: 412 | B40: 1 | C40: 37 | D40: 401 | E40: 330 | F40: 332000 | G40: 193666.67 | H40: 188349.76 | K40: - -
A41: 414 | B41: 1 | C41: 38 | D41: 401 | E41: 330 | F41: 44000 | G41: 25666.67 | H41: 0 | K41: - -
A42: 422 | B42: 1 | C42: 39 | D42: 401 | E42: 330 | F42: 20000 | G42: 11666.67 | H42: 0 | K42: - -
A43: 423 | B43: 1 | C43: 40 | D43: 401 | E43: 330 | F43: 50000 | G43: 29166.67 | H43: 16586.8 | K43: - -
A44: 426 | B44: 1 | C44: 41 | D44: 401 | E44: 330 | F44: 20000 | G44: 11666.67 | H44: 0 | K44: - -
A45: 483 | B45: 1 | C45: 42 | D45: 401 | E45: 330 | F45: 14000000 | G45: 8166666.67 | H45: 1838449.7 | K45: - -
A46: 411111 | B46: 1 | C46: 43 | D46: 501 | E46: 130 | F46: 122350000 | G46: 71370833.33 | H46: 70624083.92 | K46: - -
A47: 412 | B47: 1 | C47: 44 | D47: 501 | E47: 130 | F47: 20985000 | G47: 12241250 | H47: 11758910.25 | K47: - -
A48: 413 | B48: 1 | C48: 45 | D48: 501 | E48: 130 | F48: 100000 | G48: 58333.33 | H48: 0 | K48: - -
A49: 414 | B49: 1 | C49: 46 | D49: 501 | E49: 130 | F49: 6823070 | G49: 3980124.17 | H49: 1004253.35 | K49: - -
A50: 415 | B50: 1 | C50: 47 | D50: 501 | E50: 130 | F50: 6000000 | G50: 3500000 | H50: 4183257.14 | K50: - -
A51: 416 | B51: 1 | C51: 48 | D51: 501 | E51: 130 | F51: 1500000 | G51: 875000 | H51: 662792.89 | K51: - -
A52: 421 | B52: 1 | C52: 49 | D52: 501 | E52: 130 | F52: 15000000 | G52: 8750000 | H52: 8777305.84 | K52: - -
A53: 422 | B53: 1 | C53: 50 | D53: 501 | E53: 130 | F53: 2000000 | G53: 1166666.67 | H53: 927682.43 | K53: - -
A54: 423 | B54: 1 | C54: 51 | D54: 501 | E54: 130 | F54: 16000000 | G54: 9333333.33 | H54: 10085549.96 | K54: - -
A55: 424 | B55: 1 | C55: 52 | D55: 501 | E55: 130 | F55: 1200000 | G55: 700000 | H55: 337386.98 | K55: - -
A56: 425 | B56: 1 | C56: 53 | D56: 501 | E56: 130 | F56: 2000000 | G56: 1166666.67 | H56: 1383069.85 | K56: - -
A57: 426 | B57: 1 | C57: 54 | D57: 501 | E57: 130 | F57: 14000000 | G57: 8166666.67 | H57: 6171644.46 | K57: - -
A58: 482 | B58: 1 | C58: 55 | D58: 501 | E58: 130 | F58: 500000 | G58: 291666.67 | H58: 163896 | K58: - -
A59: 483 | B59: 1 | C59: 56 | D59: 501 | E59: 130 | F59: 20000 | G59: 11666.67 | H59: 17870 | K59: - -
A60: 511 | B60: 1 | C60: 57 | D60: 501 | E60: 130 | F60: 10000 | G60: 5833.33 | H60: 0 | K60: - -
A61: 512 | B61: 1 | C61: 58 | D61: 501 | E61: 130 | F61: 4500000 | G61: 2625000 | H61: 951472.1 | K61: - -
A62: 515 | B62: 1 | C62: 59 | D62: 501 | E62: 130 | F62: 100000 | G62: 58333.33 | H62: 0 | K62: - -
A63: 541 | B63: 1 | C63: 60 | D63: 501 | E63: 130 | F63: 2500000 | G63: 1458333.33 | H63: 2717946.73 | K63: - -
A64: 481 | B64: 1 | C64: 61 | D64: 501 | E64: 160 | F64: 400000 | G64: 233333.33 | H64: 200000 | K64: - -
A65: 481 | B65: 1 | C65: 62 | D65: 501 | E65: 160 | F65: 200000 | G65: 116666.67 | H65: 0 | K65: - -
A66: 481 | B66: 1 | C66: 63 | D66: 501 | E66: 160 | F66: 200000 | G66: 116666.67 | H66: 0 | K66: - -
A67: 481 | B67: 1 | C67: 64 | D67: 501 | E67: 160 | F67: 500000 | G67: 291666.67 | H67: 66430 | K67: - -
A68: 481 | B68: 1 | C68: 65 | D68: 501 | E68: 160 | F68: 1000000 | G68: 583333.33 | H68: 690396.6 | K68: - -
A69: 481 | B69: 1 | C69: 66 | D69: 501 | E69: 160 | F69: 100000 | G69: 58333.33 | H69: 0 | K69: - -
A70: 481 | B70: 1 | C70: 67 | D70: 501 | E70: 160 | F70: 480000 | G70: 280000 | H70: 0 | K70: - -
A71: 481 | B71: 1 | C71: 68 | D71: 501 | E71: 160 | F71: 75000 | G71: 43750 | H71: 0 | K71: - -
A72: 481 | B72: 1 | C72: 69 | D72: 501 | E72: 90 | F72: 1500000 | G72: 875000 | H72: 0 | K72: - -
A73: 481 | B73: 1 | C73: 70 | D73: 501 | E73: 90 | F73: 5000000 | G73: 2916666.67 | H73: 2000000 | K73: - -
A74: 49912 | B74: 1 | C74: 71 | D74: 501 | E74: 130 | F74: 3204000 | G74: 1869000 | H74: 0 | K74: - -
A75: 49911 | B75: 1 | C75: 72 | D75: 501 | E75: 130 | F75: 500000 | G75: 291666.67 | H75: 0 | K75: - -
A76: 423 | B76: 1 | C76: 73 | D76: 501 | E76: 160 | F76: 2250000 | G76: 1312500 | H76: 2301516.71 | K76: - -
A77: 425 | B77: 1 | C77: 74 | D77: 501 | E77: 160 | F77: 850000 | G77: 495833.33 | H77: 1489584.8 | K77: - -
A78: 426 | B78: 1 | C78: 75 | D78: 501 | E78: 160 | F78: 200000 | G78: 116666.67 | H78: 551455.6 | K78: - -
A79: 511 | B79: 1 | C79: 76 | D79: 501 | E79: 160 | F79: 10000000 | G79: 5833333.33 | H79: 7149780 | K79: - -
A80: 423 | B80: 1 | C80: 77 | D80: 501 | E80: 620 | F80: 800000 | G80: 466666.67 | H80: 433525.98 | K80: - -
A81: 415 | B81: 1 | C81: 78 | D81: 501 | E81: 620 | F81: 270000 | G81: 157500 | H81: 0 | K81: - -
A82: 421 | B82: 1 | C82: 79 | D82: 501 | E82: 620 | F82: 2759000 | G82: 1609416.67 | H82: 0 | K82: - -
A83: 423 | B83: 1 | C83: 80 | D83: 501 | E83: 620 | F83: 128000 | G83: 74666.67 | H83: 0 | K83: - -
A84: 424 | B84: 1 | C84: 81 | D84: 501 | E84: 620 | F84: 958000 | G84: 558833.33 | H84: 0 | K84: - -
A85: 425 | B85: 1 | C85: 82 | D85: 501 | E85: 620 | F85: 3877000 | G85: 2261583.33 | H85: 0 | K85: - -
A86: 426 | B86: 1 | C86: 83 | D86: 501 | E86: 620 | F86: 169000 | G86: 98583.33 | H86: 0 | K86: - -
A87: 482 | B87: 1 | C87: 84 | D87: 501 | E87: 620 | F87: 6000 | G87: 3500 | H87: 0 | K87: - -
A88: 483 | B88: 1 | C88: 85 | D88: 501 | E88: 620 | F88: 6900000 | G88: 4025000 | H88: 145605.02 | K88: - -
A89: 511 | B89: 1 | C89: 86 | D89: 501 | E89: 620 | F89: 5289000 | G89: 3085250 | H89: 100 | K89: - -
A90: 512 | B90: 1 | C90: 87 | D90: 501 | E90: 620 | F90: 50000 | G90: 29166.67 | H90: 0 | K90: - -
A91: 421 | B91: 1 | C91: 88 | D91: 501 | E91: 640 | F91: 23000000 | G91: 13416666.67 | H91: 12897831.5 | K91: - -
A92: 425 | B92: 1 | C92: 89 | D92: 501 | E92: 640 | F92: 3000000 | G92: 1750000 | H92: 2470836 | K92: - -
A93: 424 | B93: 1 | C93: 90 | D93: 501 | E93: 660 | F93: 1350000 | G93: 787500 | H93: 216655.78 | K93: - -
A94: 424 | B94: 1 | C94: 91 | D94: 501 | E94: 660 | F94: 10000000 | G94: 5833333.33 | H94: 8131745.03 | K94: - -
A95: 483 | B95: 1 | C95: 92 | D95: 501 | E95: 160 | F95: 500000 | G95: 291666.67 | H95: 275005.98 | K95: - -
A96: 485 | B96: 1 | C96: 93 | D96: 501 | E96: 160 | F96: 1900000 | G96: 1108333.33 | H96: 441000 | K96: - -
A97: 511 | B97: 1 | C97: 94 | D97: 501 | E97: 620 | F97: 500000 | G97: 291666.67 | H97: 0 | K97: - -
A98: 423 | B98: 1 | C98: 95 | D98: 501 | E98: 630 | F98: 850000 | G98: 495833.33 | H98: 576311.79 | K98: - -
A99: 451 | B99: 1 | C99: 96 | D99: 501 | E99: 630 | F99: 5250000 | G99: 3062500 | H99: 0 | K99: - -
A100: 511 | B100: 1 | C100: 97 | D100: 501 | E100: 630 | F100: 9300000 | G100: 5425000 | H100: 0 | K100: - -
A101: 511 | B101: 1 | C101: 98 | D101: 501 | E101: 630 | F101: 3400000 | G101: 1983333.33 | H101: 0 | K101: - -
A102: 511 | B102: 1 | C102: 99 | D102: 501 | E102: 630 | F102: 1500000 | G102: 875000 | H102: 298992 | K102: - -
A103: 511 | B103: 1 | C103: 100 | D103: 501 | E103: 630 | F103: 3000000 | G103: 1750000 | H103: 0 | K103: - -
A104: 511 | B104: 1 | C104: 101 | D104: 501 | E104: 630 | F104: 600000 | G104: 350000 | H104: 0 | K104: - -
A105: 463 | B105: 1 | C105: 102 | D105: 501 | E105: 630 | F105: 40000000 | G105: 23333333.33 | H105: 411830.5 | K105: - -
A106: 454 | B106: 1 | C106: 103 | D106: 501 | E106: 411 | F106: 8000000 | G106: 4666666.67 | H106: 1400000 | K106: - -
A107: 451 | B107: 1 | C107: 104 | D107: 501 | E107: 421 | F107: 27500000 | G107: 16041666.67 | H107: 1675474 | K107: - -
A108: 423 | B108: 1 | C108: 105 | D108: 501 | E108: 421 | F108: 2000000 | G108: 1166666.67 | H108: 1207680 | K108: - -
A109: 425 | B109: 1 | C109: 106 | D109: 501 | E109: 550 | F109: 1500000 | G109: 875000 | H109: 0 | K109: - -
A110: 511 | B110: 1 | C110: 107 | D110: 501 | E110: 550 | F110: 3000000 | G110: 1750000 | H110: 0 | K110: - -
A111: 511 | B111: 1 | C111: 108 | D111: 501 | E111: 550 | F111: 5115830 | G111: 2984234.17 | H111: 2953014 | K111: - -
A112: 511 | B112: 1 | C112: 109 | D112: 501 | E112: 550 | F112: 834800 | G112: 486966.67 | H112: 832809.6 | K112: - -
A113: 511 | B113: 1 | C113: 110 | D113: 501 | E113: 550 | F113: 700000 | G113: 408333.33 | H113: 659983.2 | K113: - -
A114: 511 | B114: 1 | C114: 111 | D114: 501 | E114: 550 | F114: 1137840 | G114: 663740 | H114: 1135830 | K114: - -
A115: 511 | B115: 1 | C115: 112 | D115: 501 | E115: 560 | F115: 850000 | G115: 495833.33 | H115: 823264.8 | K115: - -
A116: 511 | B116: 1 | C116: 113 | D116: 501 | E116: 560 | F116: 500000 | G116: 291666.67 | H116: 0 | K116: - -
A117: 511 | B117: 1 | C117: 114 | D117: 501 | E117: 560 | F117: 855600 | G117: 499100 | H117: 527769 | K117: - -
A118: 511 | B118: 1 | C118: 115 | D118: 501 | E118: 560 | F118: 1054910 | G118: 615364.17 | H118: 613931.4 | K118: - -
A119: 511 | B119: 1 | C119: 116 | D119: 501 | E119: 560 | F119: 1000000 | G119: 583333.33 | H119: 0 | K119: - -
A120: 511 | B120: 1 | C120: 117 | D120: 501 | E120: 560 | F120: 7000000 | G120: 4083333.33 | H120: 0 | K120: - -
A121: 511 | B121: 1 | C121: 118 | D121: 501 | E121: 560 | F121: 1000000 | G121: 583333.33 | H121: 0 | K121: - -
A122: 511 | B122: 1 | C122: 119 | D122: 501 | E122: 560 | F122: 5950000 | G122: 3470833.33 | H122: 5674332 | K122: - -
A123: 511 | B123: 1 | C123: 120 | D123: 501 | E123: 560 | F123: 6665000 | G123: 3887916.67 | H123: 3748020 | K123: - -
A124: 423 | B124: 1 | C124: 121 | D124: 501 | E124: 560 | F124: 2000000 | G124: 1166666.67 | H124: 1433520 | K124: - -
A125: 511 | B125: 1 | C125: 122 | D125: 501 | E125: 451 | F125: 1300000 | G125: 758333.33 | H125: 849968 | K125: - -
A126: 511 | B126: 1 | C126: 123 | D126: 501 | E126: 451 | F126: 650000 | G126: 379166.67 | H126: 331476.8 | K126: - -
A127: 511 | B127: 1 | C127: 124 | D127: 501 | E127: 451 | F127: 1200000 | G127: 700000 | H127: 784760 | K127: - -
A128: 511 | B128: 1 | C128: 125 | D128: 501 | E128: 451 | F128: 16000000 | G128: 9333333.33 | H128: 5494123.2 | K128: - -
A129: 511 | B129: 1 | C129: 126 | D129: 501 | E129: 451 | F129: 13000000 | G129: 7583333.33 | H129: 0 | K129: - -
A130: 511 | B130: 1 | C130: 127 | D130: 501 | E130: 451 | F130: 25000000 | G130: 14583333.33 | H130: 0 | K130: - -
A131: 511 | B131: 1 | C131: 128 | D131: 501 | E131: 451 | F131: 2000000 | G131: 1166666.67 | H131: 2069156.4 | K131: - -
A132: 511 | B132: 1 | C132: 129 | D132: 501 | E132: 451 | F132: 380000 | G132: 221666.67 | H132: 0 | K132: - -
A133: 511 | B133: 1 | C133: 130 | D133: 501 | E133: 451 | F133: 3760000 | G133: 2193333.33 | H133: 0 | K133: - -
A134: 511 | B134: 1 | C134: 131 | D134: 501 | E134: 451 | F134: 3000000 | G134: 1750000 | H134: 0 | K134: - -
A135: 511 | B135: 1 | C135: 132 | D135: 501 | E135: 451 | F135: 7385000 | G135: 4307916.67 | H135: 0 | K135: - -
A136: 425 | B136: 1 | C136: 133 | D136: 501 | E136: 451 | F136: 3000000 | G136: 1750000 | H136: 2829600 | K136: - -
A137: 425 | B137: 1 | C137: 134 | D137: 501 | E137: 451 | F137: 3000000 | G137: 1750000 | H137: 1921080 | K137: - -
A138: 511 | B138: 1 | C138: 135 | D138: 501 | E138: 451 | F138: 2500000 | G138: 1458333.33 | H138: 1454825.86 | K138: - -
A139: 424 | B139: 1 | C139: 136 | D139: 501 | E139: 451 | F139: 1200000 | G139: 700000 | H139: 592560 | K139: - -
A140: 425 | B140: 1 | C140: 137 | D140: 501 | E140: 451 | F140: 1500000 | G140: 875000 | H140: 717087.67 | K140: - -
A141: 511 | B141: 1 | C141: 138 | D141: 501 | E141: 451 | F141: 2500000 | G141: 1458333.33 | H141: 0 | K141: - -
A142: 511 | B142: 1 | C142: 139 | D142: 501 | E142: 451 | F142: 900000 | G142: 525000 | H142: 488803.68 | K142: - -
A143: 511 | B143: 1 | C143: 140 | D143: 501 | E143: 451 | F143: 1000000 | G143: 583333.33 | H143: 0 | K143: - -
A144: 511 | B144: 1 | C144: 141 | D144: 501 | E144: 451 | F144: 355000 | G144: 207083.33 | H144: 295385.48 | K144: - -
A145: 511 | B145: 1 | C145: 142 | D145: 501 | E145: 451 | F145: 183080 | G145: 106796.67 | H145: 152564.08 | K145: - -
A146: 511 | B146: 1 | C146: 143 | D146: 501 | E146: 451 | F146: 288420 | G146: 168245 | H146: 0 | K146: - -
A147: 511 | B147: 1 | C147: 144 | D147: 501 | E147: 451 | F147: 584490 | G147: 340952.5 | H147: 0 | K147: - -
A148: 511 | B148: 1 | C148: 145 | D148: 501 | E148: 451 | F148: 222700 | G148: 129908.33 | H148: 0 | K148: - -
A149: 511 | B149: 1 | C149: 146 | D149: 501 | E149: 451 | F149: 2259260 | G149: 1317901.67 | H149: 2259260 | K149: - -
A150: 511 | B150: 1 | C150: 147 | D150: 501 | E150: 451 | F150: 700000 | G150: 408333.33 | H150: 0 | K150: - -
A151: 511 | B151: 1 | C151: 148 | D151: 501 | E151: 451 | F151: 473750 | G151: 276354.17 | H151: 0 | K151: - -
A152: 511 | B152: 1 | C152: 149 | D152: 501 | E152: 451 | F152: 715020 | G152: 417095 | H152: 0 | K152: - -
A153: 511 | B153: 1 | C153: 150 | D153: 501 | E153: 451 | F153: 827550 | G153: 482737.5 | H153: 689621.4 | K153: - -
A154: 511 | B154: 1 | C154: 151 | D154: 501 | E154: 451 | F154: 221050 | G154: 128945.83 | H154: 0 | K154: - -
A155: 511 | B155: 1 | C155: 152 | D155: 501 | E155: 451 | F155: 600000 | G155: 350000 | H155: 0 | K155: - -
A156: 425 | B156: 1 | C156: 153 | D156: 501 | E156: 451 | F156: 650000 | G156: 379166.67 | H156: 0 | K156: - -
A157: 511 | B157: 1 | C157: 154 | D157: 501 | E157: 451 | F157: 660000 | G157: 385000 | H157: 0 | K157: - -
A158: 511 | B158: 1 | C158: 155 | D158: 501 | E158: 451 | F158: 1450000 | G158: 845833.33 | H158: 0 | K158: - -
A159: 511 | B159: 1 | C159: 156 | D159: 501 | E159: 451 | F159: 3950000 | G159: 2304166.67 | H159: 0 | K159: - -
A160: 511 | B160: 1 | C160: 157 | D160: 501 | E160: 451 | F160: 4700000 | G160: 2741666.67 | H160: 0 | K160: - -
A161: 423 | B161: 1 | C161: 158 | D161: 501 | E161: 451 | F161: 2000000 | G161: 1166666.67 | H161: 0 | K161: - -
A162: 511 | B162: 1 | C162: 159 | D162: 501 | E162: 451 | F162: 3930000 | G162: 2292500 | H162: 0 | K162: - -
A163: 511 | B163: 1 | C163: 160 | D163: 501 | E163: 451 | F163: 1100000 | G163: 641666.67 | H163: 0 | K163: - -
A164: 511 | B164: 1 | C164: 161 | D164: 501 | E164: 451 | F164: 1750000 | G164: 1020833.33 | H164: 0 | K164: - -
A165: 511 | B165: 1 | C165: 162 | D165: 501 | E165: 451 | F165: 1100000 | G165: 641666.67 | H165: 0 | K165: - -
A166: 511 | B166: 1 | C166: 163 | D166: 501 | E166: 451 | F166: 1000000 | G166: 583333.33 | H166: 0 | K166: - -
A167: 511 | B167: 1 | C167: 164 | D167: 501 | E167: 451 | F167: 300000 | G167: 175000 | H167: 0 | K167: - -
A168: 511 | B168: 1 | C168: 165 | D168: 501 | E168: 451 | F168: 1360000 | G168: 793333.33 | H168: 1359934.2 | K168: - -
A169: 511 | B169: 1 | C169: 166 | D169: 501 | E169: 451 | F169: 228300 | G169: 133175 | H169: 0 | K169: - -
A170: 511 | B170: 1 | C170: 167 | D170: 501 | E170: 451 | F170: 168700 | G170: 98408.33 | H170: 3915.2 | K170: - -
A171: 511 | B171: 1 | C171: 168 | D171: 501 | E171: 451 | F171: 209460 | G171: 122185 | H171: 69090 | K171: - -
A172: 511 | B172: 1 | C172: 169 | D172: 501 | E172: 451 | F172: 4163950 | G172: 2428970.83 | H172: 0 | K172: - -
A173: 511 | B173: 1 | C173: 170 | D173: 501 | E173: 451 | F173: 5000000 | G173: 2916666.67 | H173: 0 | K173: - -
A174: 511 | B174: 1 | C174: 171 | D174: 501 | E174: 451 | F174: 1209940 | G174: 705798.33 | H174: 1209940.14 | K174: - -
A175: 511 | B175: 1 | C175: 172 | D175: 501 | E175: 451 | F175: 4322800 | G175: 2521633.33 | H175: 0 | K175: - -
A176: 511 | B176: 1 | C176: 173 | D176: 501 | E176: 451 | F176: 5000000 | G176: 2916666.67 | H176: 2015408.76 | K176: - -
A177: 511 | B177: 1 | C177: 174 | D177: 501 | E177: 451 | F177: 1269690 | G177: 740652.5 | H177: 0 | K177: - -
A178: 511 | B178: 1 | C178: 175 | D178: 501 | E178: 451 | F178: 1096990 | G178: 639910.83 | H178: 1096981.8 | K178: - -
A179: 511 | B179: 1 | C179: 176 | D179: 501 | E179: 451 | F179: 1412390 | G179: 823894.17 | H179: 1320000 | K179: - -
A180: 511 | B180: 1 | C180: 177 | D180: 501 | E180: 451 | F180: 1161630 | G180: 677617.5 | H180: 0 | K180: - -
A181: 511 | B181: 1 | C181: 178 | D181: 501 | E181: 451 | F181: 2500000 | G181: 1458333.33 | H181: 0 | K181: - -
A182: 511 | B182: 1 | C182: 179 | D182: 501 | E182: 451 | F182: 1276930 | G182: 744875.83 | H182: 0 | K182: - -
A183: 511 | B183: 1 | C183: 180 | D183: 501 | E183: 451 | F183: 2000000 | G183: 1166666.67 | H183: 0 | K183: - -
A184: 511 | B184: 1 | C184: 181 | D184: 501 | E184: 451 | F184: 1100000 | G184: 641666.67 | H184: 0 | K184: - -
A185: 511 | B185: 1 | C185: 182 | D185: 501 | E185: 451 | F185: 1385000 | G185: 807916.67 | H185: 0 | K185: - -
A186: 511 | B186: 1 | C186: 183 | D186: 501 | E186: 451 | F186: 906500 | G186: 528791.67 | H186: 0 | K186: - -
A187: 511 | B187: 1 | C187: 184 | D187: 501 | E187: 451 | F187: 835080 | G187: 487130 | H187: 0 | K187: - -
A188: 511 | B188: 1 | C188: 185 | D188: 501 | E188: 451 | F188: 600000 | G188: 350000 | H188: 0 | K188: - -
A189: 511 | B189: 1 | C189: 186 | D189: 501 | E189: 451 | F189: 500000 | G189: 291666.67 | H189: 499039.2 | K189: - -
A190: 511 | B190: 1 | C190: 187 | D190: 501 | E190: 451 | F190: 500000 | G190: 291666.67 | H190: 142913.76 | K190: - -
A191: 511 | B191: 1 | C191: 188 | D191: 501 | E191: 451 | F191: 780000 | G191: 455000 | H191: 0 | K191: - -
A192: 511 | B192: 1 | C192: 189 | D192: 501 | E192: 451 | F192: 900470 | G192: 525274.17 | H192: 0 | K192: - -
A193: 511 | B193: 1 | C193: 190 | D193: 501 | E193: 451 | F193: 500000 | G193: 291666.67 | H193: 499131 | K193: - -
A194: 512 | B194: 1 | C194: 191 | D194: 501 | E194: 451 | F194: 1600000 | G194: 933333.33 | H194: 0 | K194: - -
A195: 511 | B195: 1 | C195: 192 | D195: 501 | E195: 451 | F195: 700000 | G195: 408333.33 | H195: 0 | K195: - -
A196: 463141 | B196: 1 | C196: 193 | D196: 501 | E196: 912 | F196: 30600000 | G196: 17850000 | H196: 11766417.17 | K196: - -
A197: 463141 | B197: 1 | C197: 194 | D197: 501 | E197: 912 | F197: 24173500 | G197: 14101208.33 | H197: 9929056.11 | K197: - -
A198: 463141 | B198: 1 | C198: 195 | D198: 501 | E198: 912 | F198: 1575000 | G198: 918750 | H198: 733517.88 | K198: - -
A199: 463141 | B199: 1 | C199: 196 | D199: 501 | E199: 912 | F199: 694000 | G199: 404833.33 | H199: 216848 | K199: - -
A200: 463141 | B200: 1 | C200: 197 | D200: 501 | E200: 912 | F200: 5342000 | G200: 3116166.67 | H200: 1014381.58 | K200: - -
... 145 more rows

Sheet Osn.skole staro (hidden)
C1: 2002-0001 | D1: Функција | E1: Позиција | F1: Ек.клас. | H1: 2018 R2 | I1: 2019 | J1: 2019 Р1 | K1: 2020
D4: 912 | G4: Основна школа ''Бранко Радичевић'' Бујановац
E5: 193 | F5: 463 | G5: Трансфер 421 Стални трошкови | H5: 8160000 | I5: =8572000-272000-100000 -> 8200000 | J5: =8572000-272000-100000+300000-17400 -> 8482600 | K5: 8200000 | L5: =K5-J5 -> -282600
E6: 194 | F6: 463 | G6: Трансфер 422 Трошкови путовања | H6: 4500000 | I6: =7372900-372900-100000-200000 -> 6700000 | J6: =7372900-372900-100000-200000+180000-4700 -> 6875300 | K6: 7000000 | L6: =K6-J6 -> 124700
E7: 195 | F7: 463 | G7: Трансфер 423 Услуге по уговору | H7: 77300 | I7: 169000 | J7: =169000-154000 -> 15000 | K7: 150000 | L7: 135000
E8: 196 | F8: 463 | G8: Трансфер 424 Специјализоване услуге | H8: 162200 | I8: 164000 | J8: =164000-103800 -> 60200 | K8: 140000 | L8: 79800
E9: 197 | F9: 463 | G9: Трансфер 425 Текуће поправке и одржавање | H9: 150000 | I9: 220000 | J9: =220000-150000 -> 70000 | K9: 200000 | L9: 130000
E10: 198 | F10: 463 | G10: Трансфер 426 Материјал | H10: 240000 | I10: 278000 | J10: =278000-50000 -> 228000 | K10: 260000 | L10: 32000
G11: УКУПНО ЗА ОШ "БРАНКО РАДИЧЕВИЋ" | H11: =SUBTOTAL(9,H5:H10) -> 13289500 | I11: =SUBTOTAL(9,I5:I10) -> 15731000 | J11: =SUBTOTAL(9,J5:J10) -> 15731100 | K11: =SUBTOTAL(9,K5:K10) -> 15950000 | L11: 218900
L12: 0
D13: 912 | G13: Основна школа ''Мухарем Кадриу'' Велики Трновац | L13: 0
E14: 193 | F14: 463 | G14: Трансфер 421 Стални трошкови | H14: 5360000 | I14: =5540000-100000 -> 5440000 | J14: =5540000-100000 -> 5440000 | K14: 5440000 | L14: 0
E15: 194 | F15: 463 | G15: Трансфер 422 Трошкови путовања | H15: 1390000 | I15: 1460000 | J15: 1460000 | K15: 1460000 | L15: 0
E16: 195 | F16: 463 | G16: Трансфер 423 Услуге по уговору | H16: 200000 | I16: 200000 | J16: 200000 | K16: 200000 | L16: 0
E17: 196 | F17: 463 | G17: Трансфер 424 Специјализоване услуге | H17: 74000 | I17: 124000 | J17: 124000 | K17: 124000 | L17: 0
E18: 197 | F18: 463 | G18: Трансфер 425 Текуће поправке и одржавање | H18: 1192000 | I18: =1192000-50000 -> 1142000 | J18: =1192000-50000 -> 1142000 | K18: 1142000 | L18: 0
E19: 198 | F19: 463 | G19: Трансфер 426 Материјал | H19: 551000 | I19: =551000-51000 -> 500000 | J19: =551000-51000 -> 500000 | K19: 500000 | L19: 0
G20: УКУПНО ЗА ОШ "МУХАРЕМ КАДРИУ" | H20: =SUBTOTAL(9,H14:H19) -> 8767000 | I20: =SUBTOTAL(9,I14:I19) -> 8866000 | J20: =SUBTOTAL(9,J14:J19) -> 8866000 | K20: =SUBTOTAL(9,K14:K19) -> 8866000 | L20: 0
D21: 912 | G21: Основна школа ''Бора Станковић'' Кленике | L21: 0
E22: 193 | F22: 463 | G22: Трансфер 421 Стални трошкови | H22: 1515200 | I22: =1842000-142000 -> 1700000 | J22: =1842000-142000+4100 -> 1704100 | K22: 1700000 | L22: -4100
E23: 194 | F23: 463 | G23: Трансфер 422 Трошкови путовања | H23: =2375000-59000 -> 2316000 | I23: =2720000-220000-100000 -> 2400000 | J23: =2720000-220000-100000+127700 -> 2527700 | K23: 2500000 | L23: -27700
E24: 195 | F24: 463 | G24: Трансфер 423 Услуге по уговору | H24: 170000 | I24: 245000 | J24: =245000-50700 -> 194300 | K24: 230000 | L24: 35700
E25: 196 | F25: 463 | G25: Трансфер 424 Специјализоване услуге | H25: 60000 | I25: 52000 | J25: =52000-13100 -> 38900 | K25: 50000 | L25: 11100
E26: 197 | F26: 463 | G26: Трансфер 425 Текуће поправке и одржавање | H26: 289500 | I26: 135000 | J26: =135000-27000 -> 108000 | K26: 130000 | L26: 22000
E27: 198 | F27: 463 | G27: Трансфер 426 Материјал | H27: 187000 | I27: 190000 | J27: =190000-41000 -> 149000 | K27: 180000 | L27: 31000
G28: УКУПНО ЗА ОШ "БОРА СТАНКОВИЋ" | H28: =SUBTOTAL(9,H22:H27) -> 4537700 | I28: =SUBTOTAL(9,I22:I27) -> 4722000 | J28: =SUBTOTAL(9,J22:J27) -> 4722000 | K28: =SUBTOTAL(9,K22:K27) -> 4790000 | L28: 68000
L29: 0
D30: 912 | G30: Основна школа ''Вук Стефановић Караџић'' Левосоје | L30: 0
E31: 193 | F31: 463 | G31: Трансфер 421 Стални трошкови | H31: 1146000 | I31: =1623300-123300 -> 1500000 | J31: =1623300-123300-600000 -> 900000 | K31: 1500000 | L31: 600000
E32: 194 | F32: 463 | G32: Трансфер 422 Трошкови путовања | H32: =1315000+20000 -> 1335000 | I32: =1349300+700 -> 1350000 | J32: =1349300+700+400000 -> 1750000 | K32: 1350000 | L32: -400000
E33: 195 | F33: 463 | G33: Трансфер 423 Услуге по уговору | H33: 190000 | I33: 190000 | J33: 190000 | K33: 190000 | L33: 0
E34: 196 | F34: 463 | G34: Трансфер 424 Специјализоване услуге | H34: 80000 | I34: 80000 | J34: =80000+100000 -> 180000 | K34: 80000 | L34: -100000
E35: 197 | F35: 463 | G35: Трансфер 425 Текуће поправке и одржавање | H35: 480000 | I35: 480000 | J35: =480000-80000 -> 400000 | K35: 480000 | L35: 80000
E36: 198 | F36: 463 | G36: Трансфер 426 Материјал | H36: 450000 | I36: 500000 | J36: =500000-50000 -> 450000 | K36: 500000 | L36: 50000
G37: УКУПНО ЗА ОШ "В. С. КАРАЏИЋ" | H37: =SUBTOTAL(9,H31:H36) -> 3681000 | I37: =SUBTOTAL(9,I31:I36) -> 4100000 | J37: =SUBTOTAL(9,J31:J36) -> 3870000 | K37: =SUBTOTAL(9,K31:K36) -> 4100000 | L37: 230000
L38: 0
D39: 912 | G39: Основна школа ''Десанка Максимовић'' Биљача | L39: 0
E40: 193 | F40: 463 | G40: Трансфер 421 Стални трошкови | H40: 1858400 | I40: 1964000 | J40: 1964000 | K40: 2000000 | L40: 36000
E41: 194 | F41: 463 | G41: Трансфер 422 Трошкови путовања | H41: 2131200 | I41: 2100000 | J41: 2100000 | K41: 2100000 | L41: 0
E42: 195 | F42: 463 | G42: Трансфер 423 Услуге по уговору | H42: 124400 | I42: 118000 | J42: 118000 | K42: 100000 | L42: -18000
E43: 196 | F43: 463 | G43: Трансфер 424 Специјализоване услуге | H43: 30000 | I43: 30000 | J43: 30000 | K43: 30000 | L43: 0
E44: 197 | F44: 463 | G44: Трансфер 425 Текуће поправке и одржавање | H44: 612000 | I44: =650000-150000 -> 500000 | J44: =650000-150000 -> 500000 | K44: 450000 | L44: -50000
E45: 198 | F45: 463 | G45: Трансфер 426 Материјал | H45: 490000 | I45: 550000 | J45: 550000 | K45: 500000 | L45: -50000
G46: УКУПНО ЗА ОШ "ДЕСАНКА МАКСИМОВИЋ" | H46: =SUBTOTAL(9,H40:H45) -> 5246000 | I46: =SUBTOTAL(9,I40:I45) -> 5262000 | J46: =SUBTOTAL(9,J40:J45) -> 5262000 | K46: =SUBTOTAL(9,K40:K45) -> 5180000 | L46: -82000
D47: 912 | G47: Основна школа ''Наим Фрашери'' Бујановац | L47: 0
E48: 193 | F48: 463 | G48: Трансфер 421 Стални трошкови | H48: 4870000 | I48: =5540000-340000 -> 5200000 | J48: =5540000-340000+343000 -> 5543000 | K48: 5400000 | L48: -143000
E49: 194 | F49: 463 | G49: Трансфер 422 Трошкови путовања | H49: 945000 | I49: =1190000-90000 -> 1100000 | J49: =1190000-90000-155000 -> 945000 | K49: 1100000 | L49: 155000
E50: 195 | F50: 463 | G50: Трансфер 423 Услуге по уговору | H50: 100000 | I50: 100000 | J50: 100000 | K50: 100000 | L50: 0
E51: 196 | F51: 463 | G51: Трансфер 424 Специјализоване услуге | H51: 100000 | I51: 100000 | J51: 100000 | K51: 100000 | L51: 0
E52: 197 | F52: 463 | G52: Трансфер 425 Текуће поправке и одржавање | H52: 495000 | I52: 495000 | J52: =495000-188000 -> 307000 | K52: 485000 | L52: 178000
E53: 198 | F53: 463 | G53: Трансфер 426 Материјал | H53: 506500 | I53: =506500-206500 -> 300000 | J53: =506500-206500 -> 300000 | K53: 300000 | L53: 0
G54: УКУПНО ЗА ОШ "НАИМ ФРАШЕРИ" | H54: =SUBTOTAL(9,H48:H53) -> 7016500 | I54: =SUBTOTAL(9,I48:I53) -> 7295000 | J54: =SUBTOTAL(9,J48:J53) -> 7295000 | K54: =SUBTOTAL(9,K48:K53) -> 7485000 | L54: 190000
L55: 0
D56: 912 | G56: Основна школа ''Миђени'' Муховац | L56: 0
E57: 193 | F57: 463 | G57: Трансфер 421 Стални трошкови | H57: 1000000 | I57: =1190000-100000 -> 1090000 | J57: =1190000-100000 -> 1090000 | K57: 1090000 | L57: 0
E58: 194 | F58: 463 | G58: Трансфер 422 Трошкови путовања | H58: 1500000 | I58: 1700000 | J58: 1700000 | K58: 1700000 | L58: 0
E59: 195 | F59: 463 | G59: Трансфер 423 Услуге по уговору | H59: 180000 | I59: 150000 | J59: 150000 | K59: 150000 | L59: 0
E60: 196 | F60: 463 | G60: Трансфер 424 Специјализоване услуге | L60: 0
E61: 197 | F61: 463 | G61: Трансфер 425 Текуће поправке и одржавање | H61: 680000 | I61: =680000-50000 -> 630000 | J61: =680000-50000 -> 630000 | K61: 630000 | L61: 0
E62: 198 | F62: 463 | G62: Трансфер 426 Материјал | H62: 440000 | I62: 330000 | J62: 330000 | K62: 330000 | L62: 0
G63: УКУПНО ЗА ОШ "МИЂЕНИ" | H63: =SUBTOTAL(9,H57:H62) -> 3800000 | I63: =SUBTOTAL(9,I57:I62) -> 3900000 | J63: =SUBTOTAL(9,J57:J62) -> 3900000 | K63: =SUBTOTAL(9,K57:K62) -> 3900000 | L63: =K63-J63 -> 0
L64: 0
D65: 912 | G65: Основна школа ''Драгомир Трајковић'' Жбевац | L65: 0
E66: 193 | F66: 463 | G66: Трансфер 421 Стални трошкови | H66: 1129000 | I66: 1200000 | J66: 1200000 | K66: 1250000 | L66: 50000
E67: 194 | F67: 463 | G67: Трансфер 422 Трошкови путовања | H67: 2190000 | I67: 2300000 | J67: =2300000-375000 -> 1925000 | K67: 2450000 | L67: 525000
E68: 195 | F68: 463 | G68: Трансфер 423 Услуге по уговору | H68: 50000 | I68: 80000 | J68: 80000 | K68: 80000 | L68: 0
E69: 196 | F69: 463 | G69: Трансфер 424 Специјализоване услуге | H69: 10000 | I69: 30000 | J69: 30000 | K69: 30000 | L69: 0
E70: 197 | F70: 463 | G70: Трансфер 425 Текуће поправке и одржавање | H70: 240000 | I70: =375000+100000-75000+4000 -> 404000 | J70: =375000+100000-75000+4000+375000 -> 779000 | K70: 400000 | L70: -379000
E71: 198 | F71: 463 | G71: Трансфер 426 Материјал | H71: 195000 | I71: 175000 | J71: 175000 | K71: 170000 | L71: -5000
G72: УКУПНО ЗА ОШ "ДРАГОМИР ТРАЈКОВИЋ" | H72: =SUBTOTAL(9,H66:H71) -> 3814000 | I72: =SUBTOTAL(9,I66:I71) -> 4189000 | J72: =SUBTOTAL(9,J66:J71) -> 4189000 | K72: =SUBTOTAL(9,K66:K71) -> 4380000 | L72: 191000
D73: 912 | G73: Основна школа ''Сами Фрашери'' Лучане | L73: 0
E74: 193 | F74: 463 | G74: Трансфер 421 Стални трошкови | H74: 1670000 | I74: =1861000-100000 -> 1761000 | J74: =1861000-100000 -> 1761000 | K74: 1800000 | L74: 39000
E75: 194 | F75: 463 | G75: Трансфер 422 Трошкови путовања | H75: 1360000 | I75: 1481000 | J75: 1481000 | K75: 1500000 | L75: 19000
E76: 195 | F76: 463 | G76: Трансфер 423 Услуге по уговору | H76: 75000 | I76: 75000 | J76: 75000 | K76: 75000 | L76: 0
E77: 196 | F77: 463 | G77: Трансфер 424 Специјализоване услуге | H77: 40000 | I77: 40000 | J77: 40000 | K77: 40000 | L77: 0
E78: 197 | F78: 463 | G78: Трансфер 425 Текуће поправке и одржавање | H78: 490000 | I78: =490000-50000 -> 440000 | J78: =490000-50000 -> 440000 | K78: 440000 | L78: 0
E79: 198 | F79: 463 | G79: Трансфер 426 Материјал | H79: 500000 | I79: =500000-50000 -> 450000 | J79: =500000-50000 -> 450000 | K79: 450000 | L79: 0
G80: УКУПНО ЗА ОШ "САМИ ФРАШЕРИ" | H80: =SUBTOTAL(9,H74:H79) -> 4135000 | I80: =SUBTOTAL(9,I74:I79) -> 4247000 | J80: =SUBTOTAL(9,J74:J79) -> 4247000 | K80: =SUBTOTAL(9,K74:K79) -> 4305000 | L80: 58000
L81: 0
D82: 912 | G82: Основна школа ''Али Бекташи'' Несалце | L82: 0
E83: 193 | F83: 463 | G83: Трансфер 421 Стални трошкови | H83: 1543000 | I83: 1448000 | J83: 1448000 | K83: 1510000 | L83: 62000
E84: 194 | F84: 463 | G84: Трансфер 422 Трошкови путовања | H84: 1020000 | I84: 1334000 | J84: 1334000 | K84: 1350000 | L84: 16000
E85: 195 | F85: 463 | G85: Трансфер 423 Услуге по уговору | H85: 135000 | I85: 165000 | J85: 165000 | K85: 150000 | L85: -15000
E86: 196 | F86: 463 | G86: Трансфер 424 Специјализоване услуге | H86: 45000 | I86: 40000 | J86: 40000 | K86: 40000 | L86: 0
E87: 197 | F87: 463 | G87: Трансфер 425 Текуће поправке и одржавање | H87: 912000 | I87: 723000 | J87: 723000 | K87: 700000 | L87: -23000
E88: 198 | F88: 463 | G88: Трансфер 426 Материјал | H88: 431000 | I88: 440000 | J88: 440000 | K88: 400000 | L88: -40000
G89: УКУПНО ЗА ОШ "АЛИ БЕКТАШИ" | H89: =SUBTOTAL(9,H83:H88) -> 4086000 | I89: =SUBTOTAL(9,I83:I88) -> 4150000 | J89: =SUBTOTAL(9,J83:J88) -> 4150000 | K89: =SUBTOTAL(9,K83:K88) -> 4150000 | L89: 0
D90: 912 | G90: Основна школа ''Скендербег'' Зарбинце | L90: 0
E91: 193 | F91: 463 | G91: Трансфер 421 Стални трошкови | H91: 255000 | I91: 290000 | J91: 290000 | K91: 290000 | L91: 0
E92: 194 | F92: 463 | G92: Трансфер 422 Трошкови путовања | H92: 20000 | I92: 50000 | J92: 50000 | K92: 50000 | L92: 0
E93: 195 | F93: 463 | G93: Трансфер 423 Услуге по уговору | L93: 0
E94: 196 | F94: 463 | G94: Трансфер 424 Специјализоване услуге | L94: 0
E95: 197 | F95: 463 | G95: Трансфер 425 Текуће поправке и одржавање | H95: 150000 | I95: 130000 | J95: 130000 | K95: 130000 | L95: 0
E96: 198 | F96: 463 | G96: Трансфер 426 Материјал | H96: 45000 | I96: 30000 | J96: 30000 | K96: 30000 | L96: 0
G97: УКУПНО ЗА ОШ "СКЕНДЕРБЕГ" | H97: =SUBTOTAL(9,H91:H96) -> 470000 | I97: =SUBTOTAL(9,I91:I96) -> 500000 | J97: =SUBTOTAL(9,J91:J96) -> 500000 | K97: =SUBTOTAL(9,K91:K96) -> 500000 | L97: 0
D99: 912 | G99: Основна музичка школа | L99: R2 2018 | M99: 2019 | N99: 2019 Р2 | O99: 2020
E100: 193 | F100: 463 | G100: Трансфер 421 Стални трошкови | H100: 347000 | I100: 417000 | J100: 417000 | K100: 420000 | L100: =SUMIF(G:H,G100,H:H) -> 28853600 | M100: =SUMIF(G:I,G100,I:I) -> 30210000 | N100: =SUMIF(G:I,G100,J:J) -> 30239700 | O100: =SUMIF(G:I,G100,K:K) -> 30600000 | P100: 31487300 | Q100: =P100-M100 -> 1277300
E101: 194 | F101: 463 | G101: Трансфер 422 Трошкови путовања | H101: 1400000 | I101: 1551000 | J101: 1551000 | K101: 1613500 | L101: 20107200 | M101: 23526000 | N101: 23699000 | O101: 24173500 | P101: 24608200 | Q101: =P101-M101 -> 1082200
E102: 195 | F102: 463 | G102: Трансфер 423 Услуге по уговору | H102: 100000 | I102: =238000-50000-38000 -> 150000 | J102: =238000-50000-38000 -> 150000 | K102: 150000 | L102: 1401700 | M102: 1642000 | N102: 1437300 | O102: 1575000 | P102: 1730000 | Q102: 88000
E103: 196 | F103: 463 | G103: Трансфер 424 Специјализоване услуге | H103: 55000 | I103: 56500 | J103: 56500 | K103: 60000 | L103: 656200 | M103: 716500 | N103: 699600 | O103: 694000 | P103: 716500 | Q103: 0
E104: 197 | F104: 463 | G104: Трансфер 425 Текуће поправке и одржавање | H104: 100000 | I104: 154000 | J104: 154000 | K104: 155000 | L104: 5790500 | M104: 5453000 | N104: 5383000 | O104: 5342000 | P104: 5824000 | Q104: 371000
E105: 198 | F105: 463 | G105: Трансфер 426 Материјал | H105: 75000 | I105: 108000 | J105: 108000 | K105: 110000 | L105: 4110500 | M105: 3851000 | N105: 3710000 | O105: 3730000 | P105: 4158500 | Q105: 307500
G106: УКУПНО ЗА МУЗИЧКУ ШКОЛУ | H106: =SUBTOTAL(9,H100:H105) -> 2077000 | I106: =SUBTOTAL(9,I100:I105) -> 2436500 | J106: =SUBTOTAL(9,J100:J105) -> 2436500 | K106: =SUBTOTAL(9,K100:K105) -> 2508500 | L106: =SUM(L100:L105) -> 60919700 | M106: =SUM(M100:M105) -> 65398500 | N106: =SUM(N100:N105) -> 65168600 | O106: =SUM(O100:O105) -> 66114500 | P106: =SUBTOTAL(9,P100:P105) -> 68524500 | Q106: =SUBTOTAL(9,Q100:Q105) -> 3126000
H107: =SUBTOTAL(9,H5:H106) -> 60919700 | I107: =SUBTOTAL(9,I5:I106) -> 65398500 | J107: =SUBTOTAL(9,J5:J106) -> 65168600 | K107: =SUBTOTAL(9,K5:K106) -> 66114500 | Q107: 74000
Q108: 400000
K109: =K107-I107 -> 716000 | Q109: 100000
Q110: 200000

Sheet Основне
A1: Функција | B1: Позиција | C1: Ек.клас. | E1: 2020 | F1: 2020 Р1 | H1: 2021 R2 | I1: 2022 | K1: 2022 Р1 - ne važi | L1: 2022 Р1 - nacrt | M1: 2022 Р1
A2: / Радна | G2: 2021
A3: јединица
A5: 912 | D5: ОШ ''Бранко Радичевић'' Бујановац
A6: 1 | B6: 170 | C6: 463 | D6: Трансфер 421 Стални трошкови | E6: 8200000 | F6: 8476000 | G6: =9020000-506000 -> 8514000 | H6: 8584000 | I6: 7089000 | J6: =I6-G6 -> -1425000 | K6: =I6*110% -> 7797900 | L6: =I6*108%-120 -> 7656000 | M6: =7656000-15000 -> 7641000
B7: 171 | C7: 463 | D7: Трансфер 422 Трошкови путовања | E7: 7000000 | F7: 6330000 | G7: 8020000 | H7: =7142000-200000 -> 6942000 | I7: 9580000 | J7: =I7-G7 -> 1560000 | K7: =I7*110% -> 10538000 | L7: =I7*107.5%-400 -> 10298100 | M7: 10248100
B8: 172 | C8: 463 | D8: Трансфер 423 Услуге по уговору | E8: 150000 | F8: 185000 | G8: 225000 | H8: 225000 | I8: 260000 | J8: 35000 | K8: 260000 | L8: 260000 | M8: 225000
B9: 173 | C9: 463 | D9: Трансфер 424 Специјализоване услуге | E9: 140000 | F9: 120000 | G9: 190000 | H9: 190000 | I9: 140000 | J9: -50000 | K9: 140000 | L9: 140000 | M9: 120000
B10: 174 | C10: 463 | D10: Трансфер 425 Текуће поправке и одржавање | E10: 200000 | F10: 565000 | G10: 290000 | H10: 290000 | I10: 150000 | J10: -140000 | K10: 150000 | L10: 150000 | M10: 150000
B11: 175 | C11: 463 | D11: Трансфер 426 Материјал | E11: 260000 | F11: 208000 | G11: 335000 | H11: 485000 | I11: 355000 | J11: 20000 | K11: 355000 | L11: 355000 | M11: 460000
D12: УКУПНО ЗА ОШ "БРАНКО РАДИЧЕВИЋ" | E12: =SUBTOTAL(9,E6:E11) -> 15950000 | F12: =SUBTOTAL(9,F6:F11) -> 15884000 | G12: =SUBTOTAL(9,G6:G11) -> 17574000 | H12: =SUBTOTAL(9,H6:H11) -> 16716000 | I12: =SUBTOTAL(9,I6:I11) -> 17574000 | J12: 0 | K12: =SUBTOTAL(9,K6:K11) -> 19240900 | L12: =SUBTOTAL(9,L6:L11) -> 18859100 | M12: =SUBTOTAL(9,M6:M11) -> 18844100
A14: 912 | D14: ОШ ''Мухарем Кадриу'' Велики Трновац
A15: 2 | B15: 170 | C15: 463 | D15: Трансфер 421 Стални трошкови | E15: 5440000 | F15: 5440000 | G15: 5240000 | H15: 4947000 | I15: 5240000 | J15: =I15-G15 -> 0 | K15: =I15*110% -> 5764000 | L15: =I15*108%-200 -> 5659000 | M15: =5659000-15000 -> 5644000
B16: 171 | C16: 463 | D16: Трансфер 422 Трошкови путовања | E16: 1460000 | F16: 3460000 | G16: 3460000 | H16: 3267000 | I16: 3460000 | J16: 0 | K16: =I16*110% -> 3806000 | L16: =I16*107.5% -> 3719500 | M16: 3719500
B17: 172 | C17: 463 | D17: Трансфер 423 Услуге по уговору | E17: 200000 | F17: 200000 | G17: 200000 | H17: 200000 | I17: 200000 | J17: 0 | K17: 200000 | L17: 200000 | M17: 200000
B18: 173 | C18: 463 | D18: Трансфер 424 Специјализоване услуге | E18: 124000 | F18: 124000 | G18: 124000 | H18: 124000 | I18: 124000 | J18: 0 | K18: 124000 | L18: 124000 | M18: 124000
B19: 174 | C19: 463 | D19: Трансфер 425 Текуће поправке и одржавање | E19: 1142000 | F19: 900000 | G19: 1100000 | H19: 1045000 | I19: 1100000 | J19: 0 | K19: 1100000 | L19: 1100000 | M19: 1100000
B20: 175 | C20: 463 | D20: Трансфер 426 Материјал | E20: 500000 | F20: 724000 | G20: 724000 | H20: 724000 | I20: 724000 | J20: 0 | K20: 724000 | L20: 724000 | M20: 724000
D21: УКУПНО ЗА ОШ "МУХАРЕМ КАДРИУ" | E21: =SUBTOTAL(9,E15:E20) -> 8866000 | F21: =SUBTOTAL(9,F15:F20) -> 10848000 | G21: =SUBTOTAL(9,G15:G20) -> 10848000 | H21: =SUBTOTAL(9,H15:H20) -> 10307000 | I21: =SUBTOTAL(9,I15:I20) -> 10848000 | J21: 0 | K21: =SUBTOTAL(9,K15:K20) -> 11718000 | L21: =SUBTOTAL(9,L15:L20) -> 11526500 | M21: =SUBTOTAL(9,M15:M20) -> 11511500
A23: 912 | D23: ОШ ''Бора Станковић'' Кленике
A24: 3 | B24: 170 | C24: 463 | D24: Трансфер 421 Стални трошкови | E24: 1700000 | F24: 1710000 | G24: =1992000-282000 -> 1710000 | H24: 1861000 | I24: 1890000 | J24: =I24-G24 -> 180000 | K24: =I24*110% -> 2079000 | L24: =I24*108%-200 -> 2041000 | M24: =2459000-5000 -> 2454000
B25: 171 | C25: 463 | D25: Трансфер 422 Трошкови путовања | E25: 2500000 | F25: 2500000 | G25: 3087000 | H25: 2746000 | I25: 3140000 | J25: 53000 | K25: =I25*110% -> 3454000 | L25: =I25*107.5% -> 3375500 | M25: 3128000
B26: 172 | C26: 463 | D26: Трансфер 423 Услуге по уговору | E26: 230000 | F26: 210000 | G26: =312500-102500 -> 210000 | H26: 125000 | I26: 75000 | J26: -135000 | K26: 75000 | L26: 75000 | M26: 15000
B27: 173 | C27: 463 | D27: Трансфер 424 Специјализоване услуге | E27: 50000 | F27: 110000 | G27: =122000-12000 -> 110000 | H27: 110000 | I27: 48000 | J27: -62000 | K27: 48000 | L27: 48000 | M27: 40000
B28: 174 | C28: 463 | D28: Трансфер 425 Текуће поправке и одржавање | E28: 130000 | F28: 97000 | G28: =140000-43000 -> 97000 | H28: 110000 | I28: 75000 | J28: -22000 | K28: 75000 | L28: 75000 | M28: 35000
B29: 175 | C29: 463 | D29: Трансфер 426 Материјал | E29: 180000 | F29: 168000 | G29: =228000-60000 -> 168000 | H29: 162000 | I29: 154000 | J29: -14000 | K29: 154000 | L29: 154000 | M29: 91500
D30: УКУПНО ЗА ОШ "БОРА СТАНКОВИЋ" | E30: =SUBTOTAL(9,E24:E29) -> 4790000 | F30: =SUBTOTAL(9,F24:F29) -> 4795000 | G30: =SUBTOTAL(9,G24:G29) -> 5382000 | H30: =SUBTOTAL(9,H24:H29) -> 5114000 | I30: =SUBTOTAL(9,I24:I29) -> 5382000 | J30: 0 | K30: =SUBTOTAL(9,K24:K29) -> 5885000 | L30: =SUBTOTAL(9,L24:L29) -> 5768500 | M30: =SUBTOTAL(9,M24:M29) -> 5763500
A32: 912 | D32: ОШ ''Вук Стефановић Караџић'' Левосоје
A33: 4 | B33: 170 | C33: 463 | D33: Трансфер 421 Стални трошкови | E33: 1500000 | F33: 954000 | G33: 1020000 | H33: 1055000 | I33: 1020000 | J33: =I33-G33 -> 0 | K33: =I33*110% -> 1122000 | L33: =I33*108%-100 -> 1101500 | M33: =1659000-5000 -> 1654000
B34: 171 | C34: 463 | D34: Трансфер 422 Трошкови путовања | E34: 1350000 | F34: 1716000 | G34: 2100000 | H34: =1950000-100000+50000 -> 1900000 | I34: 2100000 | J34: 0 | K34: =I34*110% -> 2310000 | L34: =I34*107.5% -> 2257500 | M34: 2000000
B35: 172 | C35: 463 | D35: Трансфер 423 Услуге по уговору | E35: 190000 | F35: 190000 | G35: 200000 | H35: 165000 | I35: 200000 | J35: 0 | K35: 200000 | L35: 200000 | M35: 200000
B36: 173 | C36: 463 | D36: Трансфер 424 Специјализоване услуге | E36: 80000 | F36: 80000 | G36: 80000 | H36: =80000+40000 -> 120000 | I36: 80000 | J36: 0 | K36: 80000 | L36: 80000 | M36: 80000
B37: 174 | C37: 463 | D37: Трансфер 425 Текуће поправке и одржавање | E37: 480000 | F37: 910000 | G37: 350000 | H37: 450000 | I37: 350000 | J37: 0 | K37: 350000 | L37: 350000 | M37: 250000
B38: 175 | C38: 463 | D38: Трансфер 426 Материјал | E38: 500000 | F38: 400000 | G38: 500000 | H38: =550000-40000-50000 -> 460000 | I38: 500000 | J38: 0 | K38: 500000 | L38: 500000 | M38: 300000
D39: УКУПНО ЗА ОШ "В. С. КАРАЏИЋ" | E39: =SUBTOTAL(9,E33:E38) -> 4100000 | F39: =SUBTOTAL(9,F33:F38) -> 4250000 | G39: =SUBTOTAL(9,G33:G38) -> 4250000 | H39: =SUBTOTAL(9,H33:H38) -> 4150000 | I39: =SUBTOTAL(9,I33:I38) -> 4250000 | J39: 0 | K39: =SUBTOTAL(9,K33:K38) -> 4562000 | L39: =SUBTOTAL(9,L33:L38) -> 4489000 | M39: =SUBTOTAL(9,M33:M38) -> 4484000
A41: 912 | D41: ОШ ''Десанка Максимовић'' Биљача
A42: 5 | B42: 170 | C42: 463 | D42: Трансфер 421 Стални трошкови | E42: 2000000 | F42: 1700000 | G42: 1700000 | H42: =1700000+200000+200000 -> 2100000 | I42: 1990000 | J42: =I42-G42 -> 290000 | K42: =I42*110% -> 2189000 | L42: =I42*108%-200 -> 2149000 | M42: =2149000-5000 -> 2144000
B43: 171 | C43: 463 | D43: Трансфер 422 Трошкови путовања | E43: 2100000 | F43: 2400000 | G43: 2600000 | H43: =2500000-200000 -> 2300000 | I43: 2502000 | J43: -98000 | K43: =I43*110% -> 2752200 | L43: =I43*107.5%-150 -> 2689500 | M43: 2689500
B44: 172 | C44: 463 | D44: Трансфер 423 Услуге по уговору | E44: 100000 | F44: 100000 | G44: =200000-100000 -> 100000 | H44: =100000+10000 -> 110000 | I44: 168000 | J44: 68000 | K44: 168000 | L44: 168000 | M44: 168000
